Workbook

Sheet Disclaimer
B4: Oklahoma Department of Transportation
B5: I-40 Douglas Boulevard Interchange Reconstruction and Related Widening
B6: 2021-03-29
B13: Disclaimer
B14: ="The Model is provided to "&Client.Name&" on the basis that it is strictly private and confidential. The Recipients agree to not disclose that information to any person or entity except with the prior consent of HDR Inc. (HDR) or as required by law." -> The Model is provided to Oklahoma Department of Transportation on the basis that it is strictly private and confidential. The Recipients agree to not disclose that information to any person or entity except with the prior consent of HDR Inc. (HDR) or as required by law.
B17: ="HDR retains all intellectual property with respect to this Model. The Recipients agree to use this Model only for the purpose of performing analysis in support of the "&Project.Name&" project. The Model must not be used for any other purpose. " -> HDR retains all intellectual property with respect to this Model. The Recipients agree to use this Model only for the purpose of performing analysis in support of the I-40 Douglas Boulevard Interchange Reconstruction and Related Widening project. The Model must not be used for any other purpose.
B20: By retaining and using this Model, the Recipients represent to HDR that they are capable of making their own independent assessment as to the validity of the assumptions, data and results contained in this Model.
B22: The Model may be a development version and may not be complete or, in the event that development of the Model has concluded, material events may have occurred since completion which are not reflected in the Model. In consultation with the client, HDR used what was deemed the best available data at the time of analysis and makes no warranties as to the accuracy of this information or completeness of the Model.

Sheet Results
B2: Cost-Benefit Analysis
B4: All values are in 2019$ millions
B5: Benefit Category | C5: Impact # | D5: Over Years 2019-2045 | G5: 30 Year Analysis (7%)
D6: Undiscounted | E6: 7%* | F6: 0.03
B7: Reduction in Accident Costs | C7: 1 | D7: =(SUM(D32:AD32))/10^6 -> 172.1676885 | E7: =(SUM(D47:AD47))/10^6 -> 59.01050939 | F7: =(SUM(D62:AD62))/10^6 -> 105.864337 | G7: =(SUM('Accident Cost Saving'!D106:AN106)/10^6) -> 71.60676538
B8: Travel Time Saving - Mainline | C8: 2 | D8: 93.56376033 | E8: 29.01808363 | F8: 55.09854817 | G8: =(SUM('Travel Time Savings'!D70:AN70)/10^6) -> 40.38522242
B9: Travel Time Saving - Interchanges | C9: 3 | D9: 45.93448551 | E9: 15.50553182 | F9: 28.07831905 | G9: =(SUM('Travel Time Saving-Interchanges'!D38:AN38))/10^6 -> 17.02822729
B10: Emissions Impacts | C10: 4 | D10: -0.06669512135 | E10: -0.0578710386 | F10: -0.0453449518 | G10: =(SUM(Emissions!D134:AN134))/10^6 -> 0.04290991001
B11: Residual Value | C11: 5 | D11: 71.10188554 | E11: 12.24342424 | F11: 32.96956944 | G11: =('Residual Value'!AN21*'Residual Value'!AN6)/10^6 -> 4.667952032
B12: Agency Cost Saving | C12: 6 | D12: 31.38053715 | E12: 12.18047992 | F12: 20.26726126 | G12: =(SUM('Project Data'!K25:AV25))/10^6 -> 14.05866284
B13: O&M Costs | C13: 7 | D13: 6.374171608 | E13: 1.539435946 | F13: 3.298302853 | G13: =(SUM('Project Data'!K20:AV20))/10^6 -> 2.201615819
B14: Capital Costs | C14: C1 | D14: =((SUM(D39:AD39))/10^6) -> -112.2907969 | E14: =(((SUM(D54:AD54))/10^6)) -> -78.28904828 | F14: -95.83251525 | G14: =-(SUM('Project Data'!K15:AV15))/10^6 -> -79.8483613
B15: Total Benefits | D15: =SUM(D7:D12) -> 414.0816619 | E15: =SUM(E7:E12) -> 127.900158 | F15: =SUM(F7:F12) -> 242.23269 | G15: =SUM(G7:G12) -> 147.7897399
B16: NPV | D16: =SUM(D7:D14)-D13 -> 301.790865 | E16: =SUM(E7:E14)-E13 -> 49.61110968 | F16: =SUM(F7:F14)-F13 -> 146.4001747 | G16: =SUM(G7:G14)-G13 -> 67.94137857
B17: *CO2 emissions were discounted at 3%.
B19: All values are in 2019$ millions | D19: Over Years 2019-2045 | G19: 30 Year Analysis (7%)
B20: Financial Metrics | D20: Undiscounted | E20: 0.07 | F20: 0.03
B21: Total Benefits | D21: =(SUM(D40:AD40))/10^6 -> 414.0816619 | E21: =(SUM(D55:AD55))/10^6 -> 127.900158 | F21: =(SUM(D70:AD70))/10^6 -> 242.23269 | G21: =G15 -> 147.7897399
B22: Total O&M Costs | D22: =(SUM(D38:AD38)/10^6) -> 6.374171608 | E22: =(SUM(D53:AD53)/10^6) -> 1.539435946 | F22: =(SUM(D68:AD68)/10^6) -> 3.298302853 | G22: =(SUM('Project Data'!K20:AV20))/10^6 -> 2.201615819
B23: Total Capital Costs | D23: =((-SUM(D39:AD39))/10^6) -> 112.2907969 | E23: =(((-SUM(D54:AD54))/10^6)) -> 78.28904828 | F23: =(-SUM(D69:AD69))/10^6 -> 95.83251525 | G23: =(SUM('Project Data'!K15:AV15))/10^6 -> 79.8483613
B24: NPV | D24: =D16 -> 301.790865 | E24: =E16 -> 49.61110968 | F24: =F16 -> 146.4001747 | G24: =G16 -> 67.94137857
B25: ROI | D25: =IFERROR(D24/D23,"-") -> 2.68758325 | E25: =IFERROR(E24/E23,"-") -> 0.6336915669 | F25: =IFERROR(F24/F23,"-") -> 1.527667038 | G25: =IFERROR(G24/G23,"-") -> 0.8508800615
B26: BCR | D26: =IFERROR((D21-D22)/D23,"-") -> 3.630818388 | E26: =IFERROR((E21-E22)/E23,"-") -> 1.614028077 | F26: =IFERROR((F21-F22)/F23,"-") -> 2.493249671 | G26: =IFERROR((G21-G22)/G23,"-") -> 1.823307601
B27: Payback Period | D27: =IFERROR((S31-O31+1)+(-S43/T42),"-") -> 4.037361698
B28: IRR | D28: =IFERROR(IRR(D42:AD42),"-") -> 0.125232921
B30: Results - Undiscounted 2019$ | K30: 1 | L30: 2 | M30: 3 | N30: 4 | O30: 5 | P30: 6 | Q30: 7 | R30: 8 | S30: 9 | T30: 10 | U30: 11 | V30: 12 | W30: 13 | X30: 14 | Y30: 15 | Z30: 16 | AA30: 17 | AB30: 18 | AC30: 19 | AD30: 20
B31: Impact Category | C31: Total | D31: =Base.Year -> 2019 | E31: =D31+1 -> 2020 | F31: =E31+1 -> 2021 | G31: 2022 | H31: 2023 | I31: 2024 | J31: 2025 | K31: 2026 | L31: 2027 | M31: 2028 | N31: 2029 | O31: 2030 | P31: 2031 | Q31: 2032 | R31: 2033 | S31: 2034 | T31: 2035 | U31: 2036 | V31: 2037 | W31: 2038 | X31: 2039 | Y31: 2040 | Z31: 2041 | AA31: 2042 | AB31: 2043 | AC31: 2044 | AD31: 2045
B32: Reduction in Accident Costs | C32: =SUM(D32:AD32)/10^6 -> 172.1676885 | D32: ='Accident Cost Saving'!D105 -> 0 | E32: ='Accident Cost Saving'!E105 -> 0 | F32: ='Accident Cost Saving'!F105 -> 0 | G32: ='Accident Cost Saving'!G105 -> 0 | H32: ='Accident Cost Saving'!H105 -> 0 | I32: ='Accident Cost Saving'!I105 -> 0 | J32: ='Accident Cost Saving'!J105 -> 0 | K32: ='Accident Cost Saving'!K105 -> 7561131.392 | L32: ='Accident Cost Saving'!L105 -> 7662695.064 | M32: ='Accident Cost Saving'!M105 -> 7765622.974 | N32: ='Accident Cost Saving'!N105 -> 7869933.447 | O32: ='Accident Cost Saving'!O105 -> 7975645.053 | P32: ='Accident Cost Saving'!P105 -> 8082776.613 | Q32: ='Accident Cost Saving'!Q105 -> 8191347.201 | R32: ='Accident Cost Saving'!R105 -> 8301376.145 | S32: ='Accident Cost Saving'!S105 -> 8412883.035 | T32: ='Accident Cost Saving'!T105 -> 8525887.724 | U32: ='Accident Cost Saving'!U105 -> 8640410.329 | V32: ='Accident Cost Saving'!V105 -> 8756471.241 | W32: ='Accident Cost Saving'!W105 -> 8874091.123 | X32: ='Accident Cost Saving'!X105 -> 8993290.914 | Y32: ='Accident Cost Saving'!Y105 -> 9114091.838 | Z32: ='Accident Cost Saving'!Z105 -> 9236515.4 | AA32: ='Accident Cost Saving'!AA105 -> 9360583.397 | AB32: ='Accident Cost Saving'!AB105 -> 9486317.917 | AC32: ='Accident Cost Saving'!AC105 -> 9613741.345 | AD32: ='Accident Cost Saving'!AD105 -> 9742876.369
B33: Travel Time Saving | C33: 93.56376033 | D33: ='Travel Time Savings'!D69 -> 0 | E33: ='Travel Time Savings'!E69 -> 0 | F33: ='Travel Time Savings'!F69 -> 0 | G33: ='Travel Time Savings'!G69 -> 0 | H33: ='Travel Time Savings'!H69 -> 0 | I33: ='Travel Time Savings'!I69 -> 0 | J33: ='Travel Time Savings'!J69 -> 0 | K33: ='Travel Time Savings'!K69 -> 2409085.767 | L33: ='Travel Time Savings'!L69 -> 2601739.301 | M33: ='Travel Time Savings'!M69 -> 2801172.337 | N33: ='Travel Time Savings'!N69 -> 3007583.088 | O33: ='Travel Time Savings'!O69 -> 3221175.132 | P33: ='Travel Time Savings'!P69 -> 3442157.554 | Q33: ='Travel Time Savings'!Q69 -> 3670745.086 | R33: ='Travel Time Savings'!R69 -> 3907158.259 | S33: ='Travel Time Savings'!S69 -> 4151623.55 | T33: ='Travel Time Savings'!T69 -> 4404373.536 | U33: ='Travel Time Savings'!U69 -> 4665647.057 | V33: ='Travel Time Savings'!V69 -> 4935689.374 | W33: ='Travel Time Savings'!W69 -> 5214752.336 | X33: ='Travel Time Savings'!X69 -> 5503094.555 | Y33: ='Travel Time Savings'!Y69 -> 5800981.578 | Z33: ='Travel Time Savings'!Z69 -> 6108686.067 | AA33: ='Travel Time Savings'!AA69 -> 6426487.983 | AB33: ='Travel Time Savings'!AB69 -> 6754674.777 | AC33: ='Travel Time Savings'!AC69 -> 7093541.582 | AD33: ='Travel Time Savings'!AD69 -> 7443391.415
B34: Travel Time Saving - Douglas Interchange | C34: 45.93448551 | D34: ='Travel Time Saving-Interchanges'!D37 -> 0 | E34: ='Travel Time Saving-Interchanges'!E37 -> 0 | F34: ='Travel Time Saving-Interchanges'!F37 -> 0 | G34: ='Travel Time Saving-Interchanges'!G37 -> 0 | H34: ='Travel Time Saving-Interchanges'!H37 -> 0 | I34: ='Travel Time Saving-Interchanges'!I37 -> 0 | J34: ='Travel Time Saving-Interchanges'!J37 -> 0 | K34: ='Travel Time Saving-Interchanges'!K37 -> 1741371.605 | L34: ='Travel Time Saving-Interchanges'!L37 -> 1815723.502 | M34: ='Travel Time Saving-Interchanges'!M37 -> 1890578.495 | N34: ='Travel Time Saving-Interchanges'!N37 -> 1965518.168 | O34: ='Travel Time Saving-Interchanges'!O37 -> 2040051.816 | P34: ='Travel Time Saving-Interchanges'!P37 -> 2113607.361 | Q34: ='Travel Time Saving-Interchanges'!Q37 -> 2185521.267 | R34: ='Travel Time Saving-Interchanges'!R37 -> 2255027.328 | S34: ='Travel Time Saving-Interchanges'!S37 -> 2321244.247 | T34: ='Travel Time Saving-Interchanges'!T37 -> 2383161.84 | U34: ='Travel Time Saving-Interchanges'!U37 -> 2439625.761 | V34: ='Travel Time Saving-Interchanges'!V37 -> 2489320.571 | W34: ='Travel Time Saving-Interchanges'!W37 -> 2530750.999 | X34: ='Travel Time Saving-Interchanges'!X37 -> 2562221.193 | Y34: ='Travel Time Saving-Interchanges'!Y37 -> 2581811.777 | Z34: ='Travel Time Saving-Interchanges'!Z37 -> 2587354.476 | AA34: ='Travel Time Saving-Interchanges'!AA37 -> 2576404.075 | AB34: ='Travel Time Saving-Interchanges'!AB37 -> 2546207.431 | AC34: ='Travel Time Saving-Interchanges'!AC37 -> 2493669.255 | AD34: ='Travel Time Saving-Interchanges'!AD37 -> 2415314.339
B35: Emissions Impacts | C35: -0.06669512135 | D35: =Emissions!D133 -> 0 | E35: =Emissions!E133 -> 0 | F35: =Emissions!F133 -> 0 | G35: =Emissions!G133 -> 0 | H35: =Emissions!H133 -> 0 | I35: =Emissions!I133 -> 0 | J35: =Emissions!J133 -> 0 | K35: =Emissions!K133 -> -16695.60131 | L35: =Emissions!L133 -> 840.6897082 | M35: =Emissions!M133 -> -46.12763329 | N35: =Emissions!N133 -> -874.825751 | O35: =Emissions!O133 -> -1674.901116 | P35: =Emissions!P133 -> -2456.869486 | Q35: =Emissions!Q133 -> -3183.309252 | R35: =Emissions!R133 -> -3860.434186 | S35: =Emissions!S133 -> -4591.496388 | T35: =Emissions!T133 -> -5652.532774 | U35: =Emissions!U133 -> -5873.866519 | V35: =Emissions!V133 -> -6099.872306 | W35: =Emissions!W133 -> -6330.654893 | X35: =Emissions!X133 -> -6566.320948 | Y35: =Emissions!Y133 -> -6806.979084 | Z35: =Emissions!Z133 -> -7052.739898 | AA35: =Emissions!AA133 -> -7415.584052 | AB35: =Emissions!AB133 -> -7673.674625 | AC35: =Emissions!AC133 -> -7937.239386 | AD35: =Emissions!AD133 -> 33257.21854
B36: Residual Value | C36: 71.10188554 | D36: ='Residual Value'!D24 -> 0 | E36: ='Residual Value'!E24 -> 0 | F36: ='Residual Value'!F24 -> 0 | G36: ='Residual Value'!G24 -> 0 | H36: ='Residual Value'!H24 -> 0 | I36: ='Residual Value'!I24 -> 0 | J36: ='Residual Value'!J24 -> 0 | K36: ='Residual Value'!K24 -> 0 | L36: ='Residual Value'!L24 -> 0 | M36: ='Residual Value'!M24 -> 0 | N36: ='Residual Value'!N24 -> 0 | O36: ='Residual Value'!O24 -> 0 | P36: ='Residual Value'!P24 -> 0 | Q36: ='Residual Value'!Q24 -> 0 | R36: ='Residual Value'!R24 -> 0 | S36: ='Residual Value'!S24 -> 0 | T36: ='Residual Value'!T24 -> 0 | U36: ='Residual Value'!U24 -> 0 | V36: ='Residual Value'!V24 -> 0 | W36: ='Residual Value'!W24 -> 0 | X36: ='Residual Value'!X24 -> 0 | Y36: ='Residual Value'!Y24 -> 0 | Z36: ='Residual Value'!Z24 -> 0 | AA36: ='Residual Value'!AA24 -> 0 | AB36: ='Residual Value'!AB24 -> 0 | AC36: ='Residual Value'!AC24 -> 0 | AD36: ='Residual Value'!AD24 -> 71101885.54
B37: Agency Cost Saving | C37: 31.38053715 | D37: ='Project Data'!K24 -> 0 | E37: ='Project Data'!L24 -> 0 | F37: ='Project Data'!M24 -> 0 | G37: ='Project Data'!N24 -> 0 | H37: ='Project Data'!O24 -> 0 | I37: ='Project Data'!P24 -> 0 | J37: ='Project Data'!Q24 -> 0 | K37: ='Project Data'!R24 -> 7452877.572 | L37: ='Project Data'!S24 -> 0 | M37: ='Project Data'!T24 -> 0 | N37: ='Project Data'!U24 -> 0 | O37: ='Project Data'!V24 -> 6472235.787 | P37: ='Project Data'!W24 -> 0 | Q37: ='Project Data'!X24 -> 0 | R37: ='Project Data'!Y24 -> 0 | S37: ='Project Data'!Z24 -> 0 | T37: ='Project Data'!AA24 -> 6472235.787 | U37: ='Project Data'!AB24 -> 0 | V37: ='Project Data'!AC24 -> 0 | W37: ='Project Data'!AD24 -> 0 | X37: ='Project Data'!AE24 -> 0 | Y37: ='Project Data'!AF24 -> 5491594.001 | Z37: ='Project Data'!AG24 -> 0 | AA37: ='Project Data'!AH24 -> 0 | AB37: ='Project Data'!AI24 -> 0 | AC37: ='Project Data'!AJ24 -> 0 | AD37: ='Project Data'!AK24 -> 5491594.001
B38: O&M Costs | C38: 6.374171608 | D38: =('Project Data'!K19) -> 0 | E38: =('Project Data'!L19) -> 0 | F38: =('Project Data'!M19) -> 0 | G38: =('Project Data'!N19) -> 0 | H38: =('Project Data'!O19) -> 0 | I38: =('Project Data'!P19) -> 0 | J38: =('Project Data'!Q19) -> 0 | K38: =('Project Data'!R19) -> 980641.7858 | L38: =('Project Data'!S19) -> 0 | M38: =('Project Data'!T19) -> 0 | N38: =('Project Data'!U19) -> 0 | O38: =('Project Data'!V19) -> 0 | P38: =('Project Data'!W19) -> 0 | Q38: =('Project Data'!X19) -> 0 | R38: =('Project Data'!Y19) -> 0 | S38: =('Project Data'!Z19) -> 0 | T38: =('Project Data'!AA19) -> 0 | U38: =('Project Data'!AB19) -> 0 | V38: =('Project Data'!AC19) -> 0 | W38: =('Project Data'!AD19) -> 0 | X38: =('Project Data'!AE19) -> 0 | Y38: =('Project Data'!AF19) -> 0 | Z38: =('Project Data'!AG19) -> 0 | AA38: =('Project Data'!AH19) -> 0 | AB38: =('Project Data'!AI19) -> 0 | AC38: =('Project Data'!AJ19) -> 0 | AD38: =('Project Data'!AK19) -> 5393529.822
B39: Capital Costs | C39: -112.2907969 | D39: =-'Project Data'!K14 -> 0 | E39: =-'Project Data'!L14 -> 0 | F39: =-'Project Data'!M14 -> -5637968.615 | G39: =-'Project Data'!N14 -> 0 | H39: =-'Project Data'!O14 -> -19045042.33 | I39: =-'Project Data'!P14 -> -30521100.9 | J39: =-'Project Data'!Q14 -> -34946737.28 | K39: =-'Project Data'!R14 -> -22139947.81 | L39: =-'Project Data'!S14 -> 0 | M39: =-'Project Data'!T14 -> 0 | N39: =-'Project Data'!U14 -> 0 | O39: =-'Project Data'!V14 -> 0 | P39: =-'Project Data'!W14 -> 0 | Q39: =-'Project Data'!X14 -> 0 | R39: =-'Project Data'!Y14 -> 0 | S39: =-'Project Data'!Z14 -> 0 | T39: =-'Project Data'!AA14 -> 0 | U39: =-'Project Data'!AB14 -> 0 | V39: =-'Project Data'!AC14 -> 0 | W39: =-'Project Data'!AD14 -> 0 | X39: =-'Project Data'!AE14 -> 0 | Y39: =-'Project Data'!AF14 -> 0 | Z39: =-'Project Data'!AG14 -> 0 | AA39: =-'Project Data'!AH14 -> 0 | AB39: =-'Project Data'!AI14 -> 0 | AC39: =-'Project Data'!AJ14 -> 0 | AD39: =-'Project Data'!AK14 -> 0
B40: Total Benefits | C40: 414.0816619 | D40: =SUM(D32:D37) -> 0 | E40: =SUM(E32:E37) -> 0 | F40: 0 | G40: 0 | H40: 0 | I40: 0 | J40: 0 | K40: =SUM(K32:K37) -> 19147770.74 | L40: 12080998.56 | M40: 12457327.68 | N40: 12842159.88 | O40: 19707432.89 | P40: 13636084.66 | Q40: 14044430.24 | R40: 14459701.3 | S40: 14881159.34 | T40: 21780006.35 | U40: 15739809.28 | V40: 16175381.31 | W40: 16613263.8 | X40: 17052040.34 | Y40: 22981672.21 | Z40: 17925503.2 | AA40: 18356059.87 | AB40: 18779526.45 | AC40: 19193014.94 | AD40: 96228318.88
B41: Total Costs | C41: -105.9166253 | D41: =SUM(D38:D39) -> 0 | E41: =SUM(E38:E39) -> 0 | F41: =SUM(F38:F39) -> -5637968.615 | G41: 0 | H41: -19045042.33 | I41: -30521100.9 | J41: -34946737.28 | K41: -21159306.02 | L41: 0 | M41: 0 | N41: 0 | O41: 0 | P41: 0 | Q41: 0 | R41: 0 | S41: 0 | T41: 0 | U41: 0 | V41: 0 | W41: 0 | X41: 0 | Y41: 0 | Z41: 0 | AA41: 0 | AB41: =SUM(AB38:AB39) -> 0 | AC41: 0 | AD41: 5393529.822
B42: Net Impacts | C42: =SUM(D42:AD42)/10^6 -> 301.790865 | D42: =SUM(D32:D39)-D38 -> 0 | E42: =SUM(E32:E39)-E38 -> 0 | F42: -5637968.615 | G42: 0 | H42: -19045042.33 | I42: -30521100.9 | J42: -34946737.28 | K42: -2992177.074 | L42: 12080998.56 | M42: 12457327.68 | N42: 12842159.88 | O42: 19707432.89 | P42: 13636084.66 | Q42: 14044430.24 | R42: 14459701.3 | S42: 14881159.34 | T42: 21780006.35 | U42: 15739809.28 | V42: 16175381.31 | W42: 16613263.8 | X42: 17052040.34 | Y42: 22981672.21 | Z42: 17925503.2 | AA42: 18356059.87 | AB42: 18779526.45 | AC42: 19193014.94 | AD42: 96228318.88
B43: Cumulative Net Impacts | D43: =D42 -> 0 | E43: =E42 -> 0 | F43: =E43+F42 -> -5637968.615 | G43: =F43+G42 -> -5637968.615 | H43: =G43+H42 -> -24683010.95 | I43: =H43+I42 -> -55204111.84 | J43: -90150849.12 | K43: -93143026.19 | L43: -81062027.64 | M43: -68604699.96 | N43: -55762540.08 | O43: -36055107.19 | P43: -22419022.53 | Q43: -8374592.29 | R43: 6085109.008 | S43: 20966268.34 | T43: 42746274.7 | U43: 58486083.98 | V43: 74661465.29 | W43: 91274729.1 | X43: 108326769.4 | Y43: 131308441.7 | Z43: 149233944.9 | AA43: 167590004.7 | AB43: =AA43+AB42 -> 186369531.2 | AC43: =AB43+AC42 -> 205562546.1 | AD43: =AC43+AD42 -> 301790865
B45: Results - 7% Discount Rate, in 2019$
B46: Impact Category | C46: Total | D46: =Base.Year -> 2019 | E46: =D46+1 -> 2020 | F46: =E46+1 -> 2021 | G46: 2022 | H46: 2023 | I46: 2024 | J46: 2025 | K46: 2026 | L46: 2027 | M46: 2028 | N46: 2029 | O46: 2030 | P46: 2031 | Q46: 2032 | R46: 2033 | S46: 2034 | T46: 2035 | U46: 2036 | V46: 2037 | W46: 2038 | X46: 2039 | Y46: 2040 | Z46: 2041 | AA46: 2042 | AB46: 2043 | AC46: 2044 | AD46: 2045
B47: Reduction in Accident Costs | C47: =SUM(D47:AD47)/10^6 -> 59.01050939 | D47: ='Accident Cost Saving'!D106 -> 0 | E47: ='Accident Cost Saving'!E106 -> 0 | F47: ='Accident Cost Saving'!F106 -> 0 | G47: ='Accident Cost Saving'!G106 -> 0 | H47: ='Accident Cost Saving'!H106 -> 0 | I47: ='Accident Cost Saving'!I106 -> 0 | J47: ='Accident Cost Saving'!J106 -> 0 | K47: ='Accident Cost Saving'!K106 -> 4708692.623 | L47: ='Accident Cost Saving'!L106 -> 4459758.293 | M47: ='Accident Cost Saving'!M106 -> 4223984.368 | N47: ='Accident Cost Saving'!N106 -> 4000675.097 | O47: ='Accident Cost Saving'!O106 -> 3789171.511 | P47: ='Accident Cost Saving'!P106 -> 3588849.48 | Q47: ='Accident Cost Saving'!Q106 -> 3399117.869 | R47: ='Accident Cost Saving'!R106 -> 3219416.793 | S47: ='Accident Cost Saving'!S106 -> 3049215.97 | T47: ='Accident Cost Saving'!T106 -> 2888013.149 | U47: ='Accident Cost Saving'!U106 -> 2735332.633 | V47: ='Accident Cost Saving'!V106 -> 2590723.875 | W47: ='Accident Cost Saving'!W106 -> 2453760.143 | X47: ='Accident Cost Saving'!X106 -> 2324037.27 | Y47: ='Accident Cost Saving'!Y106 -> 2201172.453 | Z47: ='Accident Cost Saving'!Z106 -> 2084803.126 | AA47: ='Accident Cost Saving'!AA106 -> 1974585.894 | AB47: ='Accident Cost Saving'!AB106 -> 1870195.513 | AC47: ='Accident Cost Saving'!AC106 -> 1771323.936 | AD47: ='Accident Cost Saving'!AD106 -> 1677679.4
B48: Travel Time Saving | C48: 29.01808363 | D48: ='Travel Time Savings'!D70 -> 0 | E48: ='Travel Time Savings'!E70 -> 0 | F48: ='Travel Time Savings'!F70 -> 0 | G48: ='Travel Time Savings'!G70 -> 0 | H48: ='Travel Time Savings'!H70 -> 0 | I48: ='Travel Time Savings'!I70 -> 0 | J48: ='Travel Time Savings'!J70 -> 0 | K48: ='Travel Time Savings'!K70 -> 1500257.54 | L48: ='Travel Time Savings'!L70 -> 1514235.961 | M48: ='Travel Time Savings'!M70 -> 1523652.153 | N48: ='Travel Time Savings'!N70 -> 1528902.734 | O48: ='Travel Time Savings'!O70 -> 1530357.101 | P48: ='Travel Time Savings'!P70 -> 1528359.119 | Q48: ='Travel Time Savings'!Q70 -> 1523228.708 | R48: ='Travel Time Savings'!R70 -> 1515263.336 | S48: ='Travel Time Savings'!S70 -> 1504739.431 | T48: ='Travel Time Savings'!T70 -> 1491913.698 | U48: ='Travel Time Savings'!U70 -> 1477024.373 | V48: ='Travel Time Savings'!V70 -> 1460292.388 | W48: ='Travel Time Savings'!W70 -> 1441922.475 | X48: ='Travel Time Savings'!X70 -> 1422104.207 | Y48: ='Travel Time Savings'!Y70 -> 1401012.967 | Z48: ='Travel Time Savings'!Z70 -> 1378810.867 | AA48: ='Travel Time Savings'!AA70 -> 1355647.611 | AB48: ='Travel Time Savings'!AB70 -> 1331661.301 | AC48: ='Travel Time Savings'!AC70 -> 1306979.202 | AD48: ='Travel Time Savings'!AD70 -> 1281718.454
B49: Travel Time Saving - Douglas Interchange | C49: 15.50553182 | D49: ='Travel Time Saving-Interchanges'!D38 -> 0 | E49: ='Travel Time Saving-Interchanges'!E38 -> 0 | F49: ='Travel Time Saving-Interchanges'!F38 -> 0 | G49: ='Travel Time Saving-Interchanges'!G38 -> 0 | H49: ='Travel Time Saving-Interchanges'!H38 -> 0 | I49: ='Travel Time Saving-Interchanges'!I38 -> 0 | J49: ='Travel Time Saving-Interchanges'!J38 -> 0 | K49: ='Travel Time Saving-Interchanges'!K38 -> 1084438.718 | L49: ='Travel Time Saving-Interchanges'!L38 -> 1056767.609 | M49: ='Travel Time Saving-Interchanges'!M38 -> 1028349.436 | N49: ='Travel Time Saving-Interchanges'!N38 -> 999169.7694 | O49: ='Travel Time Saving-Interchanges'!O38 -> 969213.9219 | P49: ='Travel Time Saving-Interchanges'!P38 -> 938466.9455 | Q49: ='Travel Time Saving-Interchanges'!Q38 -> 906913.6257 | R49: ='Travel Time Saving-Interchanges'!R38 -> 874538.4769 | S49: ='Travel Time Saving-Interchanges'!S38 -> 841325.738 | T49: ='Travel Time Saving-Interchanges'!T38 -> 807259.3674 | U49: ='Travel Time Saving-Interchanges'!U38 -> 772323.0382 | V49: ='Travel Time Saving-Interchanges'!V38 -> 736500.1332 | W49: ='Travel Time Saving-Interchanges'!W38 -> 699773.74 | X49: ='Travel Time Saving-Interchanges'!X38 -> 662126.6456 | Y49: ='Travel Time Saving-Interchanges'!Y38 -> 623541.3316 | Z49: ='Travel Time Saving-Interchanges'!Z38 -> 583999.9683 | AA49: ='Travel Time Saving-Interchanges'!AA38 -> 543484.4099 | AB49: ='Travel Time Saving-Interchanges'!AB38 -> 501976.1886 | AC49: ='Travel Time Saving-Interchanges'!AC38 -> 459456.5093 | AD49: ='Travel Time Saving-Interchanges'!AD38 -> 415906.2434
B50: Emissions Impacts | C50: -0.0578710386 | D50: =Emissions!D134 -> 0 | E50: =Emissions!E134 -> 0 | F50: =Emissions!F134 -> 0 | G50: =Emissions!G134 -> 0 | H50: =Emissions!H134 -> 0 | I50: =Emissions!I134 -> 0 | J50: =Emissions!J134 -> 0 | K50: =Emissions!K134 -> -12623.59507 | L50: =Emissions!L134 -> -481.4143186 | M50: =Emissions!M134 -> -1115.078253 | N50: =Emissions!N134 -> -1652.705628 | O50: =Emissions!O134 -> -2120.244991 | P50: =Emissions!P134 -> -2530.259897 | Q50: =Emissions!Q134 -> -2873.396015 | R50: =Emissions!R134 -> -3160.677035 | S50: =Emissions!S134 -> -3463.986226 | T50: =Emissions!T134 -> -3822.542862 | U50: =Emissions!U134 -> -3854.569165 | V50: =Emissions!V134 -> -3883.550751 | W50: =Emissions!W134 -> -3909.676282 | X50: =Emissions!X134 -> -3933.120979 | Y50: =Emissions!Y134 -> -3954.047652 | Z50: =Emissions!Z134 -> -3972.607662 | AA50: =Emissions!AA134 -> -4045.624417 | AB50: =Emissions!AB134 -> -4059.090625 | AC50: =Emissions!AC134 -> -4070.594078 | AD50: =Emissions!AD134 -> 11655.7433
B51: Residual Value | C51: 12.24342424 | D51: ='Residual Value'!D25 -> 0 | E51: ='Residual Value'!E25 -> 0 | F51: ='Residual Value'!F25 -> 0 | G51: ='Residual Value'!G25 -> 0 | H51: ='Residual Value'!H25 -> 0 | I51: ='Residual Value'!I25 -> 0 | J51: ='Residual Value'!J25 -> 0 | K51: ='Residual Value'!K25 -> 0 | L51: ='Residual Value'!L25 -> 0 | M51: ='Residual Value'!M25 -> 0 | N51: ='Residual Value'!N25 -> 0 | O51: ='Residual Value'!O25 -> 0 | P51: ='Residual Value'!P25 -> 0 | Q51: ='Residual Value'!Q25 -> 0 | R51: ='Residual Value'!R25 -> 0 | S51: ='Residual Value'!S25 -> 0 | T51: ='Residual Value'!T25 -> 0 | U51: ='Residual Value'!U25 -> 0 | V51: ='Residual Value'!V25 -> 0 | W51: ='Residual Value'!W25 -> 0 | X51: ='Residual Value'!X25 -> 0 | Y51: ='Residual Value'!Y25 -> 0 | Z51: ='Residual Value'!Z25 -> 0 | AA51: ='Residual Value'!AA25 -> 0 | AB51: ='Residual Value'!AB25 -> 0 | AC51: ='Residual Value'!AC25 -> 0 | AD51: ='Residual Value'!AD25 -> 12243424.24
B52: Agency Cost Saving | C52: 12.18047992 | D52: ='Project Data'!K24*'Project Data'!K6 -> 0 | E52: ='Project Data'!L24*'Project Data'!L6 -> 0 | F52: ='Project Data'!M24*'Project Data'!M6 -> 0 | G52: ='Project Data'!N24*'Project Data'!N6 -> 0 | H52: ='Project Data'!O24*'Project Data'!O6 -> 0 | I52: ='Project Data'!P24*'Project Data'!P6 -> 0 | J52: ='Project Data'!Q24*'Project Data'!Q6 -> 0 | K52: ='Project Data'!R24*'Project Data'!R6 -> 4641277.584 | L52: ='Project Data'!S24*'Project Data'!S6 -> 0 | M52: ='Project Data'!T24*'Project Data'!T6 -> 0 | N52: ='Project Data'!U24*'Project Data'!U6 -> 0 | O52: ='Project Data'!V24*'Project Data'!V6 -> 3074912.599 | P52: ='Project Data'!W24*'Project Data'!W6 -> 0 | Q52: ='Project Data'!X24*'Project Data'!X6 -> 0 | R52: ='Project Data'!Y24*'Project Data'!Y6 -> 0 | S52: ='Project Data'!Z24*'Project Data'!Z6 -> 0 | T52: ='Project Data'!AA24*'Project Data'!AA6 -> 2192370.186 | U52: ='Project Data'!AB24*'Project Data'!AB6 -> 0 | V52: ='Project Data'!AC24*'Project Data'!AC6 -> 0 | W52: ='Project Data'!AD24*'Project Data'!AD6 -> 0 | X52: ='Project Data'!AE24*'Project Data'!AE6 -> 0 | Y52: ='Project Data'!AF24*'Project Data'!AF6 -> 1326291.818 | Z52: ='Project Data'!AG24*'Project Data'!AG6 -> 0 | AA52: ='Project Data'!AH24*'Project Data'!AH6 -> 0 | AB52: ='Project Data'!AI24*'Project Data'!AI6 -> 0 | AC52: ='Project Data'!AJ24*'Project Data'!AJ6 -> 0 | AD52: ='Project Data'!AK24*'Project Data'!AK6 -> 945627.7364
B53: O&M Costs | C53: 1.539435946 | D53: =('Project Data'!K19)*'Project Data'!K6 -> 0 | E53: =('Project Data'!L19)*'Project Data'!L6 -> 0 | F53: =('Project Data'!M19)*'Project Data'!M6 -> 0 | G53: =('Project Data'!N19)*'Project Data'!N6 -> 0 | H53: =('Project Data'!O19)*'Project Data'!O6 -> 0 | I53: =('Project Data'!P19)*'Project Data'!P6 -> 0 | J53: =('Project Data'!Q19)*'Project Data'!Q6 -> 0 | K53: =('Project Data'!R19)*'Project Data'!R6 -> 610694.419 | L53: =('Project Data'!S19)*'Project Data'!S6 -> 0 | M53: =('Project Data'!T19)*'Project Data'!T6 -> 0 | N53: =('Project Data'!U19)*'Project Data'!U6 -> 0 | O53: =('Project Data'!V19)*'Project Data'!V6 -> 0 | P53: =('Project Data'!W19)*'Project Data'!W6 -> 0 | Q53: =('Project Data'!X19)*'Project Data'!X6 -> 0 | R53: =('Project Data'!Y19)*'Project Data'!Y6 -> 0 | S53: =('Project Data'!Z19)*'Project Data'!Z6 -> 0 | T53: =('Project Data'!AA19)*'Project Data'!AA6 -> 0 | U53: =('Project Data'!AB19)*'Project Data'!AB6 -> 0 | V53: =('Project Data'!AC19)*'Project Data'!AC6 -> 0 | W53: =('Project Data'!AD19)*'Project Data'!AD6 -> 0 | X53: =('Project Data'!AE19)*'Project Data'!AE6 -> 0 | Y53: =('Project Data'!AF19)*'Project Data'!AF6 -> 0 | Z53: =('Project Data'!AG19)*'Project Data'!AG6 -> 0 | AA53: =('Project Data'!AH19)*'Project Data'!AH6 -> 0 | AB53: =('Project Data'!AI19)*'Project Data'!AI6 -> 0 | AC53: =('Project Data'!AJ19)*'Project Data'!AJ6 -> 0 | AD53: =('Project Data'!AK19)*'Project Data'!AK6 -> 928741.5268
B54: =B39 -> Capital Costs | C54: -78.28904828 | D54: =-(('Project Data'!K14)*'Project Data'!K6) -> 0 | E54: =-(('Project Data'!L14)*'Project Data'!L6) -> 0 | F54: =-(('Project Data'!M14)*'Project Data'!M6) -> -4924420.137 | G54: =-(('Project Data'!N14)*'Project Data'!N6) -> 0 | H54: =-(('Project Data'!O14)*'Project Data'!O6) -> -14529371.61 | I54: =-(('Project Data'!P14)*'Project Data'!P6) -> -21761123.12 | J54: =-(('Project Data'!Q14)*'Project Data'!Q6) -> -23286486.63 | K54: =-(('Project Data'!R14)*'Project Data'!R6) -> -13787646.78 | L54: =-(('Project Data'!S14)*'Project Data'!S6) -> 0 | M54: =-(('Project Data'!T14)*'Project Data'!T6) -> 0 | N54: =-(('Project Data'!U14)*'Project Data'!U6) -> 0 | O54: =-(('Project Data'!V14)*'Project Data'!V6) -> 0 | P54: =-(('Project Data'!W14)*'Project Data'!W6) -> 0 | Q54: =-(('Project Data'!X14)*'Project Data'!X6) -> 0 | R54: =-(('Project Data'!Y14)*'Project Data'!Y6) -> 0 | S54: =-(('Project Data'!Z14)*'Project Data'!Z6) -> 0 | T54: =-(('Project Data'!AA14)*'Project Data'!AA6) -> 0 | U54: =-(('Project Data'!AB14)*'Project Data'!AB6) -> 0 | V54: =-(('Project Data'!AC14)*'Project Data'!AC6) -> 0 | W54: =-(('Project Data'!AD14)*'Project Data'!AD6) -> 0 | X54: =-(('Project Data'!AE14)*'Project Data'!AE6) -> 0 | Y54: =-(('Project Data'!AF14)*'Project Data'!AF6) -> 0 | Z54: =-(('Project Data'!AG14)*'Project Data'!AG6) -> 0 | AA54: =-(('Project Data'!AH14)*'Project Data'!AH6) -> 0 | AB54: =-(('Project Data'!AI14)*'Project Data'!AI6) -> 0 | AC54: =-(('Project Data'!AJ14)*'Project Data'!AJ6) -> 0 | AD54: =-(('Project Data'!AK14)*'Project Data'!AK6) -> 0
B55: Total Benefits | C55: 127.900158 | D55: =SUM(D47:D52) -> 0 | E55: =SUM(E47:E52) -> 0 | F55: 0 | G55: 0 | H55: 0 | I55: 0 | J55: 0 | K55: =SUM(K47:K52) -> 11922042.87 | L55: 7030280.449 | M55: 6774870.879 | N55: 6527094.895 | O55: 9361534.888 | P55: 6053145.285 | Q55: 5826386.806 | R55: 5606057.929 | S55: 5391817.152 | T55: 7375733.858 | U55: 4980825.476 | V55: 4783632.845 | W55: 4591546.683 | X55: 4404335.002 | Y55: 5548064.522 | Z55: 4043641.354 | AA55: 3869672.29 | AB55: 3699773.912 | AC55: 3533689.053 | AD55: 16576011.81
B56: Total Costs | C56: -76.74961234 | D56: =SUM(D53:D54) -> 0 | E56: =SUM(E53:E54) -> 0 | F56: =SUM(F53:F54) -> -4924420.137 | G56: =SUM(G53:G54) -> 0 | H56: =SUM(H53:H54) -> -14529371.61 | I56: -21761123.12 | J56: -23286486.63 | K56: -13176952.36 | L56: 0 | M56: 0 | N56: 0 | O56: 0 | P56: 0 | Q56: 0 | R56: 0 | S56: 0 | T56: 0 | U56: 0 | V56: 0 | W56: 0 | X56: 0 | Y56: 0 | Z56: 0 | AA56: 0 | AB56: =SUM(AB53:AB54) -> 0 | AC56: 0 | AD56: 928741.5268
B57: Net Impacts | C57: 49.61110968 | D57: =SUM(D47:D54)-D53 -> 0 | E57: =SUM(E47:E54)-E53 -> 0 | F57: -4924420.137 | G57: 0 | H57: -14529371.61 | I57: -21761123.12 | J57: -23286486.63 | K57: -1865603.914 | L57: 7030280.449 | M57: 6774870.879 | N57: 6527094.895 | O57: 9361534.888 | P57: 6053145.285 | Q57: 5826386.806 | R57: 5606057.929 | S57: 5391817.152 | T57: 7375733.858 | U57: 4980825.476 | V57: 4783632.845 | W57: 4591546.683 | X57: 4404335.002 | Y57: 5548064.522 | Z57: 4043641.354 | AA57: 3869672.29 | AB57: 3699773.912 | AC57: 3533689.053 | AD57: 16576011.81
B58: Cumulative Net Impacts | D58: =D57 -> 0 | E58: =E57 -> 0 | F58: =E58+F57 -> -4924420.137 | G58: =F58+G57 -> -4924420.137 | H58: -19453791.75 | I58: -41214914.87 | J58: -64501401.5 | K58: -66367005.41 | L58: -59336724.96 | M58: =L58+M57 -> -52561854.08 | N58: =M58+N57 -> -46034759.19 | O58: =N58+O57 -> -36673224.3 | P58: =O58+P57 -> -30620079.02 | Q58: =P58+Q57 -> -24793692.21 | R58: -19187634.28 | S58: =R58+S57 -> -13795817.13 | T58: =S58+T57 -> -6420083.271 | U58: =T58+U57 -> -1439257.795 | V58: =U58+V57 -> 3344375.05 | W58: =V58+W57 -> 7935921.733 | X58: 12340256.73 | Y58: =X58+Y57 -> 17888321.26 | Z58: =Y58+Z57 -> 21931962.61 | AA58: =Z58+AA57 -> 25801634.9 | AB58: =AA58+AB57 -> 29501408.81 | AC58: =AB58+AC57 -> 33035097.87 | AD58: =AC58+AD57 -> 49611109.68
B60: Results - 3% Discount Rate, in 2019$
B61: Impact Category | C61: Total | D61: =Base.Year -> 2019 | E61: =D61+1 -> 2020 | F61: =E61+1 -> 2021 | G61: 2022 | H61: 2023 | I61: 2024 | J61: 2025 | K61: 2026 | L61: 2027 | M61: 2028 | N61: 2029 | O61: 2030 | P61: 2031 | Q61: 2032 | R61: 2033 | S61: 2034 | T61: 2035 | U61: 2036 | V61: 2037 | W61: 2038 | X61: 2039 | Y61: 2040 | Z61: 2041 | AA61: 2042 | AB61: 2043 | AC61: 2044 | AD61: 2045
B62: Reduction in Accident Costs | C62: =SUM(D62:AD62)/10^6 -> 105.864337 | D62: ='Accident Cost Saving'!D107 -> 0 | E62: ='Accident Cost Saving'!E107 -> 0 | F62: ='Accident Cost Saving'!F107 -> 0 | G62: ='Accident Cost Saving'!G107 -> 0 | H62: ='Accident Cost Saving'!H107 -> 0 | I62: ='Accident Cost Saving'!I107 -> 0 | J62: ='Accident Cost Saving'!J107 -> 0 | K62: ='Accident Cost Saving'!K107 -> 6147891.751 | L62: ='Accident Cost Saving'!L107 -> 6049002.243 | M62: ='Accident Cost Saving'!M107 -> 5951703.385 | N62: ='Accident Cost Saving'!N107 -> 5855969.589 | O62: ='Accident Cost Saving'!O107 -> 5761775.681 | P62: ='Accident Cost Saving'!P107 -> 5669096.893 | Q62: ='Accident Cost Saving'!Q107 -> 5577908.853 | R62: ='Accident Cost Saving'!R107 -> 5488187.582 | S62: ='Accident Cost Saving'!S107 -> 5399909.488 | T62: ='Accident Cost Saving'!T107 -> 5313051.357 | U62: ='Accident Cost Saving'!U107 -> 5227590.348 | V62: ='Accident Cost Saving'!V107 -> 5143503.989 | W62: ='Accident Cost Saving'!W107 -> 5060770.168 | X62: ='Accident Cost Saving'!X107 -> 4979367.13 | Y62: ='Accident Cost Saving'!Y107 -> 4899273.468 | Z62: ='Accident Cost Saving'!Z107 -> 4820468.121 | AA62: ='Accident Cost Saving'!AA107 -> 4742930.368 | AB62: ='Accident Cost Saving'!AB107 -> 4666639.817 | AC62: ='Accident Cost Saving'!AC107 -> 4591576.408 | AD62: ='Accident Cost Saving'!AD107 -> 4517720.402
B63: Travel Time Saving | C63: 55.09854817 | D63: ='Travel Time Savings'!D71 -> 0 | E63: ='Travel Time Savings'!E71 -> 0 | F63: ='Travel Time Savings'!F71 -> 0 | G63: ='Travel Time Savings'!G71 -> 0 | H63: ='Travel Time Savings'!H71 -> 0 | I63: ='Travel Time Savings'!I71 -> 0 | J63: ='Travel Time Savings'!J71 -> 0 | K63: ='Travel Time Savings'!K71 -> 1958807.188 | L63: ='Travel Time Savings'!L71 -> 2053837.03 | M63: ='Travel Time Savings'!M71 -> 2146865.35 | N63: ='Travel Time Savings'!N71 -> 2237924.275 | O63: ='Travel Time Savings'!O71 -> 2327045.451 | P63: ='Travel Time Savings'!P71 -> 2414260.053 | Q63: ='Travel Time Savings'!Q71 -> 2499598.785 | R63: ='Travel Time Savings'!R71 -> 2583091.895 | S63: ='Travel Time Savings'!S71 -> 2664769.177 | T63: ='Travel Time Savings'!T71 -> 2744659.976 | U63: ='Travel Time Savings'!U71 -> 2822793.2 | V63: ='Travel Time Savings'!V71 -> 2899197.323 | W63: ='Travel Time Savings'!W71 -> 2973900.39 | X63: ='Travel Time Savings'!X71 -> 3046930.028 | Y63: ='Travel Time Savings'!Y71 -> 3118313.447 | Z63: ='Travel Time Savings'!Z71 -> 3188077.448 | AA63: ='Travel Time Savings'!AA71 -> 3256248.432 | AB63: ='Travel Time Savings'!AB71 -> 3322852.401 | AC63: ='Travel Time Savings'!AC71 -> 3387914.966 | AD63: ='Travel Time Savings'!AD71 -> 3451461.353
B64: Travel Time Saving - Douglas Interchange | C64: 28.07831905 | D64: ='Travel Time Saving-Interchanges'!D39 -> 0 | E64: ='Travel Time Saving-Interchanges'!E39 -> 0 | F64: ='Travel Time Saving-Interchanges'!F39 -> 0 | G64: ='Travel Time Saving-Interchanges'!G39 -> 0 | H64: ='Travel Time Saving-Interchanges'!H39 -> 0 | I64: ='Travel Time Saving-Interchanges'!I39 -> 0 | J64: ='Travel Time Saving-Interchanges'!J39 -> 0 | K64: ='Travel Time Saving-Interchanges'!K39 -> 1415894.47 | L64: ='Travel Time Saving-Interchanges'!L39 -> 1433348.899 | M64: ='Travel Time Saving-Interchanges'!M39 -> 1448970.992 | N64: ='Travel Time Saving-Interchanges'!N39 -> 1462530.108 | O64: ='Travel Time Saving-Interchanges'!O39 -> 1473776.837 | P64: ='Travel Time Saving-Interchanges'!P39 -> 1482441.678 | Q64: ='Travel Time Saving-Interchanges'!Q39 -> 1488233.635 | R64: ='Travel Time Saving-Interchanges'!R39 -> 1490838.719 | S64: ='Travel Time Saving-Interchanges'!S39 -> 1489918.353 | T64: ='Travel Time Saving-Interchanges'!T39 -> 1485107.67 | U64: ='Travel Time Saving-Interchanges'!U39 -> 1476013.707 | V64: ='Travel Time Saving-Interchanges'!V39 -> 1462213.48 | W64: ='Travel Time Saving-Interchanges'!W39 -> 1443251.932 | X64: ='Travel Time Saving-Interchanges'!X39 -> 1418639.751 | Y64: ='Travel Time Saving-Interchanges'!Y39 -> 1387851.051 | Z64: ='Travel Time Saving-Interchanges'!Z39 -> 1350320.898 | AA64: ='Travel Time Saving-Interchanges'!AA39 -> 1305442.686 | AB64: ='Travel Time Saving-Interchanges'!AB39 -> 1252565.335 | AC64: ='Travel Time Saving-Interchanges'!AC39 -> 1190990.324 | AD64: ='Travel Time Saving-Interchanges'!AD39 -> 1119968.524
B65: Emissions Impacts | C65: -0.0453449518 | D65: =Emissions!D135 -> 0 | E65: =Emissions!E135 -> 0 | F65: =Emissions!F135 -> 0 | G65: =Emissions!G135 -> 0 | H65: =Emissions!H135 -> 0 | I65: =Emissions!I135 -> 0 | J65: =Emissions!J135 -> 0 | K65: =Emissions!K135 -> -13575.0517 | L65: =Emissions!L135 -> 663.6482189 | M65: =Emissions!M135 -> -35.35298997 | N65: =Emissions!N135 -> -650.9525179 | O65: =Emissions!O135 -> -1209.984203 | P65: =Emissions!P135 -> -1723.198825 | Q65: =Emissions!Q135 -> -2167.678701 | R65: =Emissions!R135 -> -2552.201778 | S65: =Emissions!S135 -> -2947.106813 | T65: =Emissions!T135 -> -3522.471548 | U65: =Emissions!U135 -> -3553.785844 | V65: =Emissions!V135 -> -3583.0321 | W65: =Emissions!W135 -> -3610.284026 | X65: =Emissions!X135 -> -3635.612703 | Y65: =Emissions!Y135 -> -3659.086678 | Z65: =Emissions!Z135 -> -3680.772064 | AA65: =Emissions!AA135 -> -3757.415249 | AB65: =Emissions!AB135 -> -3774.93943 | AC65: =Emissions!AC135 -> -3790.869735 | AD65: =Emissions!AD135 -> 15421.19689
B66: Residual Value | C66: 32.96956944 | D66: ='Residual Value'!D26 -> 0 | E66: ='Residual Value'!E26 -> 0 | F66: ='Residual Value'!F26 -> 0 | G66: ='Residual Value'!G26 -> 0 | H66: ='Residual Value'!H26 -> 0 | I66: ='Residual Value'!I26 -> 0 | J66: ='Residual Value'!J26 -> 0 | K66: ='Residual Value'!K26 -> 0 | L66: ='Residual Value'!L26 -> 0 | M66: ='Residual Value'!M26 -> 0 | N66: ='Residual Value'!N26 -> 0 | O66: ='Residual Value'!O26 -> 0 | P66: ='Residual Value'!P26 -> 0 | Q66: ='Residual Value'!Q26 -> 0 | R66: ='Residual Value'!R26 -> 0 | S66: ='Residual Value'!S26 -> 0 | T66: ='Residual Value'!T26 -> 0 | U66: ='Residual Value'!U26 -> 0 | V66: ='Residual Value'!V26 -> 0 | W66: ='Residual Value'!W26 -> 0 | X66: ='Residual Value'!X26 -> 0 | Y66: ='Residual Value'!Y26 -> 0 | Z66: ='Residual Value'!Z26 -> 0 | AA66: ='Residual Value'!AA26 -> 0 | AB66: ='Residual Value'!AB26 -> 0 | AC66: ='Residual Value'!AC26 -> 0 | AD66: ='Residual Value'!AD26 -> 32969569.44
B67: Agency Cost Saving | C67: 20.26726126 | D67: ='Project Data'!K24*'Project Data'!K7 -> 0 | E67: ='Project Data'!L24*'Project Data'!L7 -> 0 | F67: ='Project Data'!M24*'Project Data'!M7 -> 0 | G67: ='Project Data'!N24*'Project Data'!N7 -> 0 | H67: ='Project Data'!O24*'Project Data'!O7 -> 0 | I67: ='Project Data'!P24*'Project Data'!P7 -> 0 | J67: ='Project Data'!Q24*'Project Data'!Q7 -> 0 | K67: ='Project Data'!R24*'Project Data'!R7 -> 6059871.489 | L67: ='Project Data'!S24*'Project Data'!S7 -> 0 | M67: ='Project Data'!T24*'Project Data'!T7 -> 0 | N67: ='Project Data'!U24*'Project Data'!U7 -> 0 | O67: ='Project Data'!V24*'Project Data'!V7 -> 4675680.839 | P67: ='Project Data'!W24*'Project Data'!W7 -> 0 | Q67: ='Project Data'!X24*'Project Data'!X7 -> 0 | R67: ='Project Data'!Y24*'Project Data'!Y7 -> 0 | S67: ='Project Data'!Z24*'Project Data'!Z7 -> 0 | T67: ='Project Data'!AA24*'Project Data'!AA7 -> 4033283.365 | U67: ='Project Data'!AB24*'Project Data'!AB7 -> 0 | V67: ='Project Data'!AC24*'Project Data'!AC7 -> 0 | W67: ='Project Data'!AD24*'Project Data'!AD7 -> 0 | X67: ='Project Data'!AE24*'Project Data'!AE7 -> 0 | Y67: ='Project Data'!AF24*'Project Data'!AF7 -> 2952002.379 | Z67: ='Project Data'!AG24*'Project Data'!AG7 -> 0 | AA67: ='Project Data'!AH24*'Project Data'!AH7 -> 0 | AB67: ='Project Data'!AI24*'Project Data'!AI7 -> 0 | AC67: ='Project Data'!AJ24*'Project Data'!AJ7 -> 0 | AD67: ='Project Data'!AK24*'Project Data'!AK7 -> 2546423.183
B68: O&M Costs | C68: 3.298302853 | D68: =('Project Data'!K19)*'Project Data'!K7 -> 0 | E68: =('Project Data'!L19)*'Project Data'!L7 -> 0 | F68: =('Project Data'!M19)*'Project Data'!M7 -> 0 | G68: =('Project Data'!N19)*'Project Data'!N7 -> 0 | H68: =('Project Data'!O19)*'Project Data'!O7 -> 0 | I68: =('Project Data'!P19)*'Project Data'!P7 -> 0 | J68: =('Project Data'!Q19)*'Project Data'!Q7 -> 0 | K68: =('Project Data'!R19)*'Project Data'!R7 -> 797351.5117 | L68: =('Project Data'!S19)*'Project Data'!S7 -> 0 | M68: =('Project Data'!T19)*'Project Data'!T7 -> 0 | N68: =('Project Data'!U19)*'Project Data'!U7 -> 0 | O68: =('Project Data'!V19)*'Project Data'!V7 -> 0 | P68: =('Project Data'!W19)*'Project Data'!W7 -> 0 | Q68: =('Project Data'!X19)*'Project Data'!X7 -> 0 | R68: =('Project Data'!Y19)*'Project Data'!Y7 -> 0 | S68: =('Project Data'!Z19)*'Project Data'!Z7 -> 0 | T68: =('Project Data'!AA19)*'Project Data'!AA7 -> 0 | U68: =('Project Data'!AB19)*'Project Data'!AB7 -> 0 | V68: =('Project Data'!AC19)*'Project Data'!AC7 -> 0 | W68: =('Project Data'!AD19)*'Project Data'!AD7 -> 0 | X68: =('Project Data'!AE19)*'Project Data'!AE7 -> 0 | Y68: =('Project Data'!AF19)*'Project Data'!AF7 -> 0 | Z68: =('Project Data'!AG19)*'Project Data'!AG7 -> 0 | AA68: =('Project Data'!AH19)*'Project Data'!AH7 -> 0 | AB68: =('Project Data'!AI19)*'Project Data'!AI7 -> 0 | AC68: =('Project Data'!AJ19)*'Project Data'!AJ7 -> 0 | AD68: =('Project Data'!AK19)*'Project Data'!AK7 -> 2500951.341
B69: =B54 -> Capital Costs | C69: -95.83251525 | D69: =-(('Project Data'!K14)*'Project Data'!K7) -> 0 | E69: =-(('Project Data'!L14)*'Project Data'!L7) -> 0 | F69: =-(('Project Data'!M14)*'Project Data'!M7) -> -5314326.152 | G69: =-(('Project Data'!N14)*'Project Data'!N7) -> 0 | H69: =-(('Project Data'!O14)*'Project Data'!O7) -> -16921273.44 | I69: =-(('Project Data'!P14)*'Project Data'!P7) -> -26327769.74 | J69: =-(('Project Data'!Q14)*'Project Data'!Q7) -> -29267342.29 | K69: =-(('Project Data'!R14)*'Project Data'!R7) -> -18001803.63 | L69: =-(('Project Data'!S14)*'Project Data'!S7) -> 0 | M69: =-(('Project Data'!T14)*'Project Data'!T7) -> 0 | N69: =-(('Project Data'!U14)*'Project Data'!U7) -> 0 | O69: =-(('Project Data'!V14)*'Project Data'!V7) -> 0 | P69: =-(('Project Data'!W14)*'Project Data'!W7) -> 0 | Q69: =-(('Project Data'!X14)*'Project Data'!X7) -> 0 | R69: =-(('Project Data'!Y14)*'Project Data'!Y7) -> 0 | S69: =-(('Project Data'!Z14)*'Project Data'!Z7) -> 0 | T69: =-(('Project Data'!AA14)*'Project Data'!AA7) -> 0 | U69: =-(('Project Data'!AB14)*'Project Data'!AB7) -> 0 | V69: =-(('Project Data'!AC14)*'Project Data'!AC7) -> 0 | W69: =-(('Project Data'!AD14)*'Project Data'!AD7) -> 0 | X69: =-(('Project Data'!AE14)*'Project Data'!AE7) -> 0 | Y69: =-(('Project Data'!AF14)*'Project Data'!AF7) -> 0 | Z69: =-(('Project Data'!AG14)*'Project Data'!AG7) -> 0 | AA69: =-(('Project Data'!AH14)*'Project Data'!AH7) -> 0 | AB69: =-(('Project Data'!AI14)*'Project Data'!AI7) -> 0 | AC69: =-(('Project Data'!AJ14)*'Project Data'!AJ7) -> 0 | AD69: =-(('Project Data'!AK14)*'Project Data'!AK7) -> 0
B70: Total Benefits | C70: 242.23269 | D70: =SUM(D62:D67) -> 0 | E70: =SUM(E62:E67) -> 0 | F70: 0 | G70: 0 | H70: 0 | I70: 0 | J70: 0 | K70: 15568889.85 | L70: 9536851.821 | M70: 9547504.374 | N70: 9555773.019 | O70: 14237068.82 | P70: 9564075.424 | Q70: 9563573.594 | R70: 9559565.995 | S70: 9551649.911 | T70: 13572579.9 | U70: 9522843.47 | V70: 9501331.76 | W70: 9474312.207 | X70: 9441301.296 | Y70: 12353781.26 | Z70: 9355185.696 | AA70: 9300864.07 | AB70: 9238282.613 | AC70: 9166690.828 | AD70: 44620564.1
B71: Total Costs | C71: -92.5342124 | D71: =SUM(D68:D69) -> 0 | E71: =SUM(E68:E69) -> 0 | F71: =SUM(F68:F69) -> -5314326.152 | G71: =SUM(G68:G69) -> 0 | H71: -16921273.44 | I71: -26327769.74 | J71: -29267342.29 | K71: -17204452.11 | L71: 0 | M71: 0 | N71: 0 | O71: 0 | P71: 0 | Q71: 0 | R71: 0 | S71: 0 | T71: 0 | U71: 0 | V71: 0 | W71: 0 | X71: 0 | Y71: 0 | Z71: 0 | AA71: 0 | AB71: =SUM(AB68:AB69) -> 0 | AC71: 0 | AD71: 2500951.341
B72: Net Impacts | C72: 146.4001747 | D72: =SUM(D62:D69)-D68 -> 0 | E72: =SUM(E62:E69)-E68 -> 0 | F72: -5314326.152 | G72: 0 | H72: -16921273.44 | I72: -26327769.74 | J72: -29267342.29 | K72: -2432913.779 | L72: 9536851.821 | M72: 9547504.374 | N72: 9555773.019 | O72: 14237068.82 | P72: 9564075.424 | Q72: 9563573.594 | R72: 9559565.995 | S72: 9551649.911 | T72: 13572579.9 | U72: 9522843.47 | V72: 9501331.76 | W72: 9474312.207 | X72: 9441301.296 | Y72: 12353781.26 | Z72: 9355185.696 | AA72: 9300864.07 | AB72: 9238282.613 | AC72: 9166690.828 | AD72: 44620564.1
B73: Cumulative Net Impacts | D73: =D72 -> 0 | E73: =E72 -> 0 | F73: =E73+F72 -> -5314326.152 | G73: =F73+G72 -> -5314326.152 | H73: -22235599.59 | I73: -48563369.33 | J73: -77830711.62 | K73: -80263625.4 | L73: -70726773.58 | M73: -61179269.21 | N73: -51623496.19 | O73: -37386427.37 | P73: -27822351.94 | Q73: -18258778.35 | R73: -8699212.353 | S73: 852437.5582 | T73: 14425017.45 | U73: 23947860.92 | V73: 33449192.68 | W73: 42923504.89 | X73: 52364806.19 | Y73: 64718587.44 | Z73: 74073773.14 | AA73: 83374637.21 | AB73: =AA73+AB72 -> 92612919.82 | AC73: =AB73+AC72 -> 101779610.7 | AD73: =AC73+AD72 -> 146400174.7

Sheet Report Tables
A2: Table ES-1
A3: Current Status or Baseline & Problems to be Addressed | B3: Changes to Baseline / Alternatives | C3: Type of Impacts | D3: Population Affected by Impacts | E3: Economic Benefit/Impact | F3: Summary of Results
A4: The stretch of I-40 from Industrial through Douglas Interchange to I-240 is now well beyond its design life and inadequate for the level of traffic it carries. During peak hours, multiple segments operate at LOS D. Conditions are forecasted to deteriorate to LOS F without improvements. Inadequate capacity and design also contribute to safety issues and a high accident rate. The Douglas Boulevard Interchange in particular is an outdated and dangerous design for the level of traffic it carries. The bridge structures within the Project area are approaching structural deficiency, are too narrow, or too low to allow for safe passage of trucks on the roadway beneath. | B4: The Project addresses the various concerns with improvements that include mainline widening from 4 to 6 lanes, reconstruction of the Douglas Boulevard Interchange, correction, or reconstruction of substandard bridges, and addition of acceleration lanes at the Anderson Road Interchange. | C4: Safety: reduction in number of crashes due to road widening and interchange improvements | D4: Auto Users, Truck Operators | E4: Reductions in fatalities, injuries, and property losses, reduction in accident costs on highway segment. | F4: $59.0 million in accident cost savings.
C5: Agency cost savings due to infrastructure renewal | D5: Agency operating I-40; Oklahoma residents | E5: Reduction in maintenance, rehabilitation and repair costs of road and bridges due to inadequate design. | F5: $12.2 million in maintenance cost savings.
C6: Congestion reduction – reduction in travel times | D6: Auto Users, Truck Operators | E6: Travel time savings due to additional capacity with road widening on I-40 mainline and interchange improvements | F6: $28.7 million in travel time savings on I-40 mainline
F8: $15.5 million in travel time savings due to interchange improvements
C9: Emission Cost Savings | D9: Auto Users, Truck Operators | E9: Increase speed impact on emissions in the build case | F9: -$0.03 million in emission cost impact
C10: State of good repair | D10: Agency operating I-40; Oklahoma residents | E10: Residual value of investment | F10: $12.2 million in residual value
A13: Table ES-2
A14: Project Evaluation Metric | B14: Undiscounted | C14: Present Value at 7% Discount Rate | D14: Present Value at 3% Discount Rate
A15: Total Benefits | B15: =Results!D21 -> 414.0816619 | C15: =Results!E21 -> 127.900158 | D15: =Results!F21 -> 242.23269
A16: Total O&M Costs | B16: =Results!D22 -> 6.374171608 | C16: =Results!E22 -> 1.539435946 | D16: =Results!F22 -> 3.298302853
A17: Total Costs | B17: =Results!D23 -> 112.2907969 | C17: =Results!E23 -> 78.28904828 | D17: =Results!F23 -> 95.83251525
A18: Net Present Value | B18: =Results!D24 -> 301.790865 | C18: =Results!E24 -> 49.61110968 | D18: =Results!F24 -> 146.4001747
A19: Benefit / Cost Ratio | B19: =Results!D26 -> 3.630818388 | C19: =Results!E26 -> 1.614028077 | D19: =Results!F26 -> 2.493249671
A20: Internal Rate of Return (%) | B20: =Results!D28 -> 0.125232921
A23: Table 1
B24: Over the Project Lifecycle
B25: In Constant Dollars | C25: Discounted at 7 Percent | D25: Discounted at 3 Percent
A26: Construction & Development Costs | B26: =Results!D23 -> 112.2907969 | C26: =Results!E23 -> 78.28904828 | D26: =Results!F23 -> 95.83251525
A27: Operations and Maintenance | B27: =Results!D22 -> 6.374171608 | C27: =Results!E22 -> 1.539435946 | D27: =Results!F22 -> 3.298302853
A28: Total | B28: =SUM(B26:B27) -> 118.6649685 | C28: =SUM(C26:C27) -> 79.82848423 | D28: =SUM(D26:D27) -> 99.1308181
A30: Table 2
A31: Project Requirements | B31: Benefit or Impact | C31: Description | D31: Monetized | E31: Qualitative
B32: Categories
A33: Safety | B33: Reduction in number of traffic crashes, fatalities and injuries | C33: Reduction in property losses, injuries, and deaths due to improved interchange design, acceleration and deceleration lanes, additional travel lanes | D33: Yes
A34: Infrastructure Condition | B34: Agency costs savings - Reduction in highway maintenance costs | C34: Reduction in the costs of maintenance and repair of road and bridges due to inadequate design and clearance issues for trucks using the Interstate | D34: Yes
B35: State of good repair | C35: Renewal of infrastructure assets with outdated design that is also beyond its design life | D35: Yes (residual value) | E35: Yes
A36: Congestion reduction | B36: Reduction in travel times | C36: Travel time savings for roadway users due additional capacity with road widening and interchange improvements. | D36: Yes
A37: System reliability | B37: More reliable/consistent travel times | C37: Reduction in congestion typically also improves the reliability of travel times. Reliability will also improve as a result of reduction in the number of accidents and corresponding non-recurrent delays. | E37: Yes
A38: Freight movements and economic vitality | B38: Travel time savings | C38: Travel time savings for truck operators due additional capacity with road widening. (Also captured under congestion reduction). | D38: Yes
B39: More reliable/consistent travel times | C39: Improvement in reliability of travel times (Also captured under system reliability) | E39: Yes
A41: Table 3
A42: TIME | B42: Industrial to Douglas | F42: Douglas to Anderson | J42: Anderson to I-240
B43: 2015 | D43: 2045 | F43: 2015 | H43: 2045 | J43: 2015 | L43: 2045
B44: EB | C44: WB | D44: EB | E44: WB | F44: EB | G44: WB | H44: EB | I44: WB | J44: EB | K44: WB | L44: EB | M44: WB
A45: ='Traffic Projection'!B8 -> 00:00 | B45: ='Traffic Projection'!C8 -> 435.0873642 | C45: ='Traffic Projection'!D8 -> 539.7034272 | D45: ='Traffic Projection'!E8 -> 661.409971 | E45: ='Traffic Projection'!F8 -> 801.4813944 | F45: ='Traffic Projection'!G8 -> 356.6558726 | G45: ='Traffic Projection'!H8 -> 441.5219564 | H45: ='Traffic Projection'!I8 -> 514.2906294 | I45: ='Traffic Projection'!J8 -> 630.2236788 | J45: ='Traffic Projection'!K8 -> 297.808136 | K45: ='Traffic Projection'!L8 -> 370.4494151 | L45: ='Traffic Projection'!M8 -> 430.8426095 | M45: ='Traffic Projection'!N8 -> 529.0955852
A46: ='Traffic Projection'!B9 -> 01:00 | B46: ='Traffic Projection'!C9 -> 234.2778115 | C46: ='Traffic Projection'!D9 -> 302.8261125 | D46: ='Traffic Projection'!E9 -> 356.1438305 | E46: ='Traffic Projection'!F9 -> 449.7090118 | F46: ='Traffic Projection'!G9 -> 192.0454699 | G46: ='Traffic Projection'!H9 -> 247.7367586 | H46: ='Traffic Projection'!I9 -> 276.9257235 | I46: ='Traffic Projection'!J9 -> 353.6167774 | J46: ='Traffic Projection'!K9 -> 160.3582271 | K46: ='Traffic Projection'!L9 -> 207.8581506 | L46: ='Traffic Projection'!M9 -> 231.9921743 | M46: ='Traffic Projection'!N9 -> 296.8740815
A47: ='Traffic Projection'!B10 -> 02:00 | B47: ='Traffic Projection'!C10 -> 95.84092289 | C47: ='Traffic Projection'!D10 -> 49.79807184 | D47: ='Traffic Projection'!E10 -> 145.6952034 | E47: ='Traffic Projection'!F10 -> 73.95214861 | F47: ='Traffic Projection'!G10 -> 78.56405586 | G47: ='Traffic Projection'!H10 -> 40.73893363 | H47: ='Traffic Projection'!I10 -> 113.287796 | I47: ='Traffic Projection'!J10 -> 58.1503145 | J47: ='Traffic Projection'!K10 -> 65.6010929 | K47: ='Traffic Projection'!L10 -> 34.1811181 | L47: ='Traffic Projection'!M10 -> 94.9058895 | M47: ='Traffic Projection'!N10 -> 48.8192934
A48: ='Traffic Projection'!B11 -> 03:00 | B48: ='Traffic Projection'!C11 -> 89.75578493 | C48: ='Traffic Projection'!D11 -> 74.02416084 | D48: ='Traffic Projection'!E11 -> 136.4447143 | E48: ='Traffic Projection'!F11 -> 109.9288696 | F48: ='Traffic Projection'!G11 -> 73.57586184 | G48: ='Traffic Projection'!H11 -> 60.55787432 | H48: ='Traffic Projection'!I11 -> 106.0949201 | I48: ='Traffic Projection'!J11 -> 86.43965669 | J48: ='Traffic Projection'!K11 -> 61.43594414 | K48: ='Traffic Projection'!L11 -> 50.80977015 | L48: ='Traffic Projection'!M11 -> 88.88011873 | M48: ='Traffic Projection'!N11 -> 72.56921992
A49: ='Traffic Projection'!B12 -> 04:00 | B49: ='Traffic Projection'!C12 -> 91.27706942 | C49: ='Traffic Projection'!D12 -> 148.0483217 | D49: ='Traffic Projection'!E12 -> 138.7573366 | E49: ='Traffic Projection'!F12 -> 219.8577391 | F49: ='Traffic Projection'!G12 -> 74.82291034 | G49: ='Traffic Projection'!H12 -> 121.1157486 | H49: ='Traffic Projection'!I12 -> 107.893139 | I49: ='Traffic Projection'!J12 -> 172.8793134 | J49: ='Traffic Projection'!K12 -> 62.47723133 | K49: ='Traffic Projection'!L12 -> 101.6195403 | L49: ='Traffic Projection'!M12 -> 90.38656142 | M49: ='Traffic Projection'!N12 -> 145.1384398
A50: ='Traffic Projection'!B13 -> 05:00 | B50: ='Traffic Projection'!C13 -> 130.8304662 | C50: ='Traffic Projection'!D13 -> 441.4531774 | D50: ='Traffic Projection'!E13 -> 198.8855158 | E50: ='Traffic Projection'!F13 -> 655.5758039 | F50: ='Traffic Projection'!G13 -> 107.2461715 | G50: ='Traffic Projection'!H13 -> 361.1451414 | H50: ='Traffic Projection'!I13 -> 154.6468326 | I50: ='Traffic Projection'!J13 -> 515.4946799 | J50: ='Traffic Projection'!K13 -> 89.55069824 | K50: ='Traffic Projection'!L13 -> 303.0109929 | L50: ='Traffic Projection'!M13 -> 129.5540714 | M50: ='Traffic Projection'!N13 -> 432.7764388
A51: ='Traffic Projection'!B14 -> 06:00 | B51: ='Traffic Projection'!C14 -> 641.9820549 | C51: ='Traffic Projection'!D14 -> 1351.277409 | D51: ='Traffic Projection'!E14 -> 975.9266006 | E51: ='Traffic Projection'!F14 -> 2006.701546 | F51: ='Traffic Projection'!G14 -> 526.2544694 | G51: ='Traffic Projection'!H14 -> 1105.456469 | H51: ='Traffic Projection'!I14 -> 758.8484113 | I51: ='Traffic Projection'!J14 -> 1577.916642 | J51: ='Traffic Projection'!K14 -> 439.4231937 | K51: ='Traffic Projection'!L14 -> 927.5092587 | L51: ='Traffic Projection'!M14 -> 635.7188154 | M51: ='Traffic Projection'!N14 -> 1324.718124
A52: ='Traffic Projection'!B15 -> 07:00 | B52: ='Traffic Projection'!C15 -> 1236.804291 | C52: ='Traffic Projection'!D15 -> 2682.36641 | D52: ='Traffic Projection'!E15 -> 1880.161911 | E52: ='Traffic Projection'!F15 -> 3983.422491 | F52: ='Traffic Projection'!G15 -> 1013.850435 | G52: ='Traffic Projection'!H15 -> 2194.397155 | H52: ='Traffic Projection'!I15 -> 1461.952034 | I52: ='Traffic Projection'!J15 -> 3132.258833 | J52: ='Traffic Projection'!K15 -> 846.5664845 | K52: ='Traffic Projection'!L15 -> 1841.161307 | L52: ='Traffic Projection'!M15 -> 1224.737907 | M52: ='Traffic Projection'!N15 -> 2629.644642
A53: ='Traffic Projection'!B16 -> 08:00 | B53: ='Traffic Projection'!C16 -> 1660 | C53: ='Traffic Projection'!D16 -> 3295 | D53: ='Traffic Projection'!E16 -> 2730 | E53: ='Traffic Projection'!F16 -> 5095 | F53: ='Traffic Projection'!G16 -> 1095 | G53: ='Traffic Projection'!H16 -> 3110 | H53: ='Traffic Projection'!I16 -> 1730 | I53: ='Traffic Projection'!J16 -> 4575 | J53: ='Traffic Projection'!K16 -> 1015 | K53: ='Traffic Projection'!L16 -> 2470 | L53: ='Traffic Projection'!M16 -> 1615 | M53: ='Traffic Projection'!N16 -> 3675
A54: ='Traffic Projection'!B17 -> 09:00 | B54: ='Traffic Projection'!C17 -> 1075.548135 | C54: ='Traffic Projection'!D17 -> 1733.511257 | D54: ='Traffic Projection'!E17 -> 1635.023949 | E54: ='Traffic Projection'!F17 -> 2574.334254 | F54: ='Traffic Projection'!G17 -> 881.6632935 | G54: ='Traffic Projection'!H17 -> 1418.155311 | H54: ='Traffic Projection'!I17 -> 1271.340822 | I54: ='Traffic Projection'!J17 -> 2024.259597 | J54: ='Traffic Projection'!K17 -> 736.1900425 | K54: ='Traffic Projection'!L17 -> 1189.872435 | L54: ='Traffic Projection'!M17 -> 1065.054982 | M54: ='Traffic Projection'!N17 -> 1699.439186
A55: ='Traffic Projection'!B18 -> 10:00 | B55: ='Traffic Projection'!C18 -> 1016.21804 | C55: ='Traffic Projection'!D18 -> 1328.397214 | D55: ='Traffic Projection'!E18 -> 1544.83168 | E55: ='Traffic Projection'!F18 -> 1972.723532 | F55: ='Traffic Projection'!G18 -> 833.0284018 | G55: ='Traffic Projection'!H18 -> 1086.738581 | H55: ='Traffic Projection'!I18 -> 1201.210281 | I55: ='Traffic Projection'!J18 -> 1551.19893 | J55: ='Traffic Projection'!K18 -> 695.5798421 | K55: ='Traffic Projection'!L18 -> 911.8044207 | L55: ='Traffic Projection'!M18 -> 1006.303717 | M55: ='Traffic Projection'!N18 -> 1302.287637
A56: ='Traffic Projection'!B19 -> 11:00 | B56: ='Traffic Projection'!C19 -> 1051.207583 | C56: ='Traffic Projection'!D19 -> 1422.609782 | D56: ='Traffic Projection'!E19 -> 1598.021993 | E56: ='Traffic Projection'!F19 -> 2112.633002 | F56: ='Traffic Projection'!G19 -> 861.7105174 | G56: ='Traffic Projection'!H19 -> 1163.812239 | H56: ='Traffic Projection'!I19 -> 1242.569318 | I56: ='Traffic Projection'!J19 -> 1661.213039 | J56: ='Traffic Projection'!K19 -> 719.5294475 | K56: ='Traffic Projection'!L19 -> 976.4714009 | L56: ='Traffic Projection'!M19 -> 1040.951899 | M56: ='Traffic Projection'!N19 -> 1394.648463
A57: ='Traffic Projection'!B20 -> 12:00 | B57: ='Traffic Projection'!C20 -> 1262.666127 | C57: ='Traffic Projection'!D20 -> 1566.620422 | D57: ='Traffic Projection'!E20 -> 1919.476489 | E57: ='Traffic Projection'!F20 -> 2326.494621 | F57: ='Traffic Projection'!G20 -> 1035.05026 | G57: ='Traffic Projection'!H20 -> 1281.624831 | H57: ='Traffic Projection'!I20 -> 1492.521757 | I57: ='Traffic Projection'!J20 -> 1829.377462 | J57: ='Traffic Projection'!K20 -> 864.2683667 | K57: ='Traffic Projection'!L20 -> 1075.319499 | L57: ='Traffic Projection'!M20 -> 1250.347433 | M57: ='Traffic Projection'!N20 -> 1535.828582
A58: ='Traffic Projection'!B21 -> 13:00 | B58: ='Traffic Projection'!C21 -> 1343.294205 | C58: ='Traffic Projection'!D21 -> 1230.146964 | D58: ='Traffic Projection'!E21 -> 2042.04547 | E58: ='Traffic Projection'!F21 -> 1826.817941 | F58: ='Traffic Projection'!G21 -> 1101.143831 | G58: ='Traffic Projection'!H21 -> 1006.361766 | H58: ='Traffic Projection'!I21 -> 1587.827363 | I58: ='Traffic Projection'!J21 -> 1436.469931 | J58: ='Traffic Projection'!K21 -> 919.4565877 | K58: ='Traffic Projection'!L21 -> 844.3659985 | L58: ='Traffic Projection'!M21 -> 1330.188896 | M58: ='Traffic Projection'!N21 -> 1205.968491
A59: ='Traffic Projection'!B22 -> 14:00 | B59: ='Traffic Projection'!C22 -> 1480.209809 | C59: ='Traffic Projection'!D22 -> 1257.06484 | D59: ='Traffic Projection'!E22 -> 2250.181475 | E59: ='Traffic Projection'!F22 -> 1866.792076 | F59: ='Traffic Projection'!G22 -> 1213.378196 | G59: ='Traffic Projection'!H22 -> 1028.382811 | H59: ='Traffic Projection'!I22 -> 1749.667071 | I59: ='Traffic Projection'!J22 -> 1467.902534 | J59: ='Traffic Projection'!K22 -> 1013.172435 | K59: ='Traffic Projection'!L22 -> 862.8422785 | L59: ='Traffic Projection'!M22 -> 1465.768738 | M59: ='Traffic Projection'!N22 -> 1232.357298
A60: ='Traffic Projection'!B23 -> 15:00 | B60: ='Traffic Projection'!C23 -> 2096.330028 | C60: ='Traffic Projection'!D23 -> 1755.045559 | D60: ='Traffic Projection'!E23 -> 3186.793497 | E60: ='Traffic Projection'!F23 -> 2606.313562 | F60: ='Traffic Projection'!G23 -> 1718.432841 | G60: ='Traffic Projection'!H23 -> 1435.772147 | H60: ='Traffic Projection'!I23 -> 2477.94576 | I60: ='Traffic Projection'!J23 -> 2049.405679 | J60: ='Traffic Projection'!K23 -> 1434.893746 | K60: ='Traffic Projection'!L23 -> 1204.65346 | L60: ='Traffic Projection'!M23 -> 2075.878027 | M60: ='Traffic Projection'!N23 -> 1720.550232
A61: ='Traffic Projection'!B24 -> 16:00 | B61: ='Traffic Projection'!C24 -> 3380 | C61: ='Traffic Projection'!D24 -> 1815 | D61: ='Traffic Projection'!E24 -> 5280 | E61: ='Traffic Projection'!F24 -> 3195 | F61: ='Traffic Projection'!G24 -> 3400 | G61: ='Traffic Projection'!H24 -> 1140 | H61: ='Traffic Projection'!I24 -> 4935 | I61: ='Traffic Projection'!J24 -> 2010 | J61: ='Traffic Projection'!K24 -> 2740 | K61: ='Traffic Projection'!L24 -> 1005 | L61: ='Traffic Projection'!M24 -> 3995 | M61: ='Traffic Projection'!N24 -> 1820
A62: ='Traffic Projection'!B25 -> 17:00 | B62: ='Traffic Projection'!C25 -> 2960.419618 | C62: ='Traffic Projection'!D25 -> 2010.765387 | D62: ='Traffic Projection'!E25 -> 4500.362949 | E62: ='Traffic Projection'!F25 -> 2986.067838 | F62: ='Traffic Projection'!G25 -> 2426.756392 | G62: ='Traffic Projection'!H25 -> 1644.972077 | H62: ='Traffic Projection'!I25 -> 3499.334143 | I62: ='Traffic Projection'!J25 -> 2348.015402 | J62: ='Traffic Projection'!K25 -> 2026.344869 | K62: ='Traffic Projection'!L25 -> 1380.17812 | L62: ='Traffic Projection'!M25 -> 2931.537476 | M62: ='Traffic Projection'!N25 -> 1971.243901
A63: ='Traffic Projection'!B26 -> 18:00 | B63: ='Traffic Projection'!C26 -> 2500.991702 | C63: ='Traffic Projection'!D26 -> 1586.80883 | D63: ='Traffic Projection'!E26 -> 3801.951022 | E63: ='Traffic Projection'!F26 -> 2356.475222 | F63: ='Traffic Projection'!G26 -> 2050.147743 | G63: ='Traffic Projection'!H26 -> 1298.140615 | H63: ='Traffic Projection'!I26 -> 2956.27201 | I63: ='Traffic Projection'!J26 -> 1852.951913 | J63: ='Traffic Projection'!K26 -> 1711.876138 | K63: ='Traffic Projection'!L26 -> 1089.176709 | L63: ='Traffic Projection'!M26 -> 2476.591783 | M63: ='Traffic Projection'!N26 -> 1555.620187
A64: ='Traffic Projection'!B27 -> 19:00 | B64: ='Traffic Projection'!C27 -> 1478.688525 | C64: ='Traffic Projection'!D27 -> 1142.663865 | D64: ='Traffic Projection'!E27 -> 2247.868852 | E64: ='Traffic Projection'!F27 -> 1696.902005 | F64: ='Traffic Projection'!G27 -> 1212.131148 | G64: ='Traffic Projection'!H27 -> 934.793369 | H64: ='Traffic Projection'!I27 -> 1747.868852 | I64: ='Traffic Projection'!J27 -> 1334.313973 | J64: ='Traffic Projection'!K27 -> 1012.131148 | K64: ='Traffic Projection'!L27 -> 784.3180883 | L64: ='Traffic Projection'!M27 -> 1464.262295 | M64: ='Traffic Projection'!N27 -> 1120.204867
A65: ='Traffic Projection'!B28 -> 20:00 | B65: ='Traffic Projection'!C28 -> 1136.399514 | C65: ='Traffic Projection'!D28 -> 788.6937864 | D65: ='Traffic Projection'!E28 -> 1727.52884 | E65: ='Traffic Projection'!F28 -> 1171.242137 | F65: ='Traffic Projection'!G28 -> 931.5452338 | G65: ='Traffic Projection'!H28 -> 645.2166245 | H65: ='Traffic Projection'!I28 -> 1343.269581 | I65: ='Traffic Projection'!J28 -> 920.9752513 | J65: ='Traffic Projection'!K28 -> 777.8415301 | K65: ='Traffic Projection'!L28 -> 541.3550056 | L65: ='Traffic Projection'!M28 -> 1125.31269 | M65: ='Traffic Projection'!N28 -> 773.1920522
A66: ='Traffic Projection'!B29 -> 21:00 | B66: ='Traffic Projection'!C29 -> 950.8028064 | C66: ='Traffic Projection'!D29 -> 656.7961907 | D66: ='Traffic Projection'!E29 -> 1445.388923 | E66: ='Traffic Projection'!F29 -> 975.368879 | F66: ='Traffic Projection'!G29 -> 779.4053161 | G66: ='Traffic Projection'!H29 -> 537.313503 | H66: ='Traffic Projection'!I29 -> 1123.886865 | I66: ='Traffic Projection'!J29 -> 766.9554994 | J66: ='Traffic Projection'!K29 -> 650.804493 | K66: ='Traffic Projection'!L29 -> 450.8212333 | L66: ='Traffic Projection'!M29 -> 941.5266815 | M66: ='Traffic Projection'!N29 -> 643.8868967
A67: ='Traffic Projection'!B30 -> 22:00 | B67: ='Traffic Projection'!C30 -> 704.354719 | C67: ='Traffic Projection'!D30 -> 409.1517254 | D67: ='Traffic Projection'!E30 -> 1070.744114 | E67: ='Traffic Projection'!F30 -> 607.6068426 | F67: ='Traffic Projection'!G30 -> 577.3834581 | G67: ='Traffic Projection'!H30 -> 334.7198871 | H67: ='Traffic Projection'!I30 -> 832.5753896 | I67: ='Traffic Projection'!J30 -> 477.775557 | J67: ='Traffic Projection'!K30 -> 482.1159684 | K67: ='Traffic Projection'!L30 -> 280.8394568 | L67: ='Traffic Projection'!M30 -> 697.4829657 | M67: ='Traffic Projection'!N30 -> 401.1098701
A68: ='Traffic Projection'!B31 -> 23:00 | B68: ='Traffic Projection'!C31 -> 537.0134251 | C68: ='Traffic Projection'!D31 -> 417.2270884 | D68: ='Traffic Projection'!E31 -> 816.3556635 | E68: ='Traffic Projection'!F31 -> 619.5990829 | F68: ='Traffic Projection'!G31 -> 440.2081225 | G68: ='Traffic Projection'!H31 -> 341.3262007 | H68: ='Traffic Projection'!I31 -> 634.7713014 | I68: ='Traffic Projection'!J31 -> 487.2053377 | J68: ='Traffic Projection'!K31 -> 367.5743777 | K68: ='Traffic Projection'!L31 -> 286.3823408 | L68: ='Traffic Projection'!M31 -> 531.7742697 | M68: ='Traffic Projection'!N31 -> 409.0265123
A69: ='Traffic Projection'!B32 -> TOTAL | B69: ='Traffic Projection'!C32 -> 27590 | C69: ='Traffic Projection'!D32 -> 28005 | D69: ='Traffic Projection'!E32 -> 42290 | E69: ='Traffic Projection'!F32 -> 42290 | F69: ='Traffic Projection'!G32 -> 22980 | G69: ='Traffic Projection'!H32 -> 22980 | H69: ='Traffic Projection'!I32 -> 33320 | I69: ='Traffic Projection'!J32 -> 33320 | J69: ='Traffic Projection'!K32 -> 19190 | K69: ='Traffic Projection'!L32 -> 19190 | L69: ='Traffic Projection'!M32 -> 27940 | M69: ='Traffic Projection'!N32 -> 27940
A71: Table 4
A72: Accident Severity | B72: I-40 Mainline | C72: Douglas Boulevard Interchange | D72: Anderson Interchange | E72: Total
A73: Property Damage Only | B73: 368 | C73: 338 | D73: 168 | E73: 874
A74: Potential Injury | B74: 72 | C74: 79 | D74: 32 | E74: 183
A75: Non-incapacitating Injury | B75: 42 | C75: 48 | D75: 28 | E75: 118
A76: Serious Injury | B76: 27 | C76: 8 | D76: 13 | E76: 48
A77: Fatal | B77: 5 | C77: 1 | D77: 2 | E77: 8
A78: Grand Total | B78: 514 | C78: 474 | D78: 243 | E78: 1231
A80: Table 5
A81: CMF ID# | B81: Value | C81: Applied to | D81: Description of Improvement
A82: 8336 | B82: =Inputs!E80 -> 0.74 | C82: Mainlines | D82: Adding additional 12-foot lane. Affects all accidents
A83: 474 | B83: =Inputs!E82 -> 0.89 | C83: Anderson Interchange | D83: Extend acceleration lane by approximately 98 feet. Affects all accidents
A84: 475 | B84: =Inputs!E81 -> 0.93 | C84: Anderson Interchange | D84: Extend deceleration lane by approximately 98 feet. Affects all accidents
A85: 478 | B85: =Inputs!E83 -> 0.55 | C85: Douglas Interchange | D85: Provide as straight ramp instead of a cloverleaf ramp. Affects all accidents.
A87: Table 6
A88: Data Item | B88: Unit | C88: Value | D88: Source
A89: =Inputs!B50 -> Cost of a Fatality | B89: =Inputs!D50 -> $/fatality | C89: =Inputs!E50 -> 10900000 | D89: =Inputs!F50 -> US DOT BCA Guidance for Discretionary Grant Programs, February 2021; Table A-1.
A90: =Inputs!B51 -> Cost of serious injury (MAIS 3) | B90: =Inputs!D51 -> $/serious Injury | C90: =Inputs!E51 -> 1144500 | D90: =Inputs!F51 -> US DOT BCA Guidance for Discretionary Grant Programs, February 2021; Table A-1.
A91: =Inputs!B52 -> Cost of non-incapacitating injury (MAIS 2) | B91: =Inputs!D52 -> $/non-incapacitating Injury | C91: =Inputs!E52 -> 512300 | D91: =Inputs!F52 -> US DOT BCA Guidance for Discretionary Grant Programs, February 2021; Table A-1.
A92: =Inputs!B53 -> Possible Injury (MAIS 1) | B92: =Inputs!D53 -> $/possible injury | C92: =Inputs!E53 -> 32700 | D92: =Inputs!F53 -> US DOT BCA Guidance for Discretionary Grant Programs, February 2021; Table A-1.
A93: =Inputs!B54 -> Cost of Property Damage Only (PDO) | B93: =Inputs!D54 -> $/PDO | C93: =Inputs!E54 -> 4500 | D93: =Inputs!F54 -> US DOT BCA Guidance for Discretionary Grant Programs, February 2021; Table A-1.
A94: =Inputs!B73 -> Average number of victims per accident
A95: =Inputs!B74 -> Fatal Accident | B95: =Inputs!D74 -> Number/Year | C95: =Inputs!E74 -> 1 | D95: =Inputs!F74 -> Based on crash data at project location, 2009 - 2018
A96: =Inputs!B75 -> Serious Injury | B96: =Inputs!D75 -> Number/Year | C96: =Inputs!E75 -> 1.61 | D96: =Inputs!F75 -> Based on crash data at project location, 2009 - 2018
A97: =Inputs!B76 -> Non-Incapacitating Injury | B97: =Inputs!D76 -> Number/Year | C97: =Inputs!E76 -> 1.15 | D97: =Inputs!F76 -> Based on crash data at project location, 2009 - 2018
A98: =Inputs!B77 -> Possible Injury | B98: =Inputs!D77 -> Number/Year | C98: =Inputs!E77 -> 1.15 | D98: =Inputs!F77 -> Assumed the same as non-incapacitating injury
A99: =Inputs!B78 -> PDO | B99: =Inputs!D78 -> Number/Year | C99: =Inputs!E78 -> 2.03 | D99: =Inputs!F78 -> California Department of Transportation, TASAS Unit, 2010 to 2013 average
A102: Table 7
A103: Year | B103: Maintenance & Rehabilitation Costs for I-40 | C103: Bridge Rehabilitation Costs | D103: Bridge Damage Repair Costs | E103: Total
A104: 2026 | B104: ='Project Costs'!C17 -> 5500000 | C104: ='Project Costs'!D17 -> 2000000 | D104: ='Project Costs'!E17 -> 100000 | E104: ='Project Costs'!F17 -> 7600000
A105: 2030 | B105: ='Project Costs'!C20 -> 5500000 | C105: ='Project Costs'!D20 -> 1000000 | D105: ='Project Costs'!E20 -> 100000 | E105: ='Project Costs'!F20 -> 6600000
A106: 2035 | B106: ='Project Costs'!C21 -> 5500000 | C106: ='Project Costs'!D21 -> 1000000 | D106: ='Project Costs'!E21 -> 100000 | E106: ='Project Costs'!F21 -> 6600000
A107: 2040 | B107: ='Project Costs'!C22 -> 5500000 | D107: ='Project Costs'!E22 -> 100000 | E107: ='Project Costs'!F22 -> 5600000
A108: 2045 | B108: ='Project Costs'!C24 -> 5500000 | D108: ='Project Costs'!E24 -> 100000 | E108: ='Project Costs'!F24 -> 5600000
A109: Total | B109: =SUM(B104:B108) -> 27500000 | C109: =SUM(C104:C108) -> 4000000 | D109: 500000 | E109: 32000000
A111: Table 8
B112: 2017 | F112: 2045
B113: Eastbound | D113: Westbound | F113: Eastbound | H113: Westbound
B114: AM | C114: PM | D114: AM | E114: PM | F114: AM | G114: PM | H114: AM | I114: PM
A115: No Build | B115: ='Traffic Projection'!C206 -> 64.5 | C115: ='Traffic Projection'!G206 -> 64 | D115: ='Traffic Projection'!K206 -> 63.9 | E115: ='Traffic Projection'!M206 -> 64.4 | F115: ='Traffic Projection'!G206 -> 64 | G115: ='Traffic Projection'!I206 -> 59.6 | H115: ='Traffic Projection'!O206 -> 29.4 | I115: ='Traffic Projection'!Q206 -> 62.5
A116: Build | B116: ='Traffic Projection'!D206 -> 66.8 | C116: ='Traffic Projection'!F206 -> 67.3 | D116: ='Traffic Projection'!L206 -> 69.3 | E116: ='Traffic Projection'!N206 -> 69 | F116: ='Traffic Projection'!H206 -> 66.7 | G116: ='Traffic Projection'!J206 -> 64.5 | H116: ='Traffic Projection'!P206 -> 66.8 | I116: ='Traffic Projection'!R206 -> 68.9
A118: Table 9
B119: 2017 | D119: 2045
B120: AM | C120: PM | D120: AM | E120: PM
A121: No Build | B121: ='Traffic Projection'!C223 -> 184.5 | C121: ='Traffic Projection'!E223 -> 297.6 | D121: ='Traffic Projection'!G223 -> 1145.5 | E121: ='Traffic Projection'!I223 -> 2630.3
A122: Build | B122: ='Traffic Projection'!D223 -> 151.1 | C122: ='Traffic Projection'!F223 -> 169.3 | D122: ='Traffic Projection'!H223 -> 919 | E122: ='Traffic Projection'!J223 -> 2513.4
A126: Table 10
A127: Variable Name | B127: Unit | C127: Value | D127: Source
A128: Value of Travel Time Savings | D128: US DOT, Benefit-Cost Analysis Guidance for Discretionary Grant Programs, February 2021.
A129: Auto | B129: $/h, per person | C129: =timevalue_auto -> 17.9 | D129: Value of travel time for all purposes. I-40 is likely to carry commuters as well as users travelling on business.
A130: Truck Drivers | B130: $/h | C130: =TimeValue_truck -> 30.8
A131: Average Vehicle Occupancy – Peak Period | B131: persons/ vehicle | C131: =Avg_Veh_Occ -> 1.48 | D131: US DOT, Benefit-Cost Analysis Guidance for Discretionary Grant Programs, January 2020.
A132: Truck Share in Total Traffic | B132: % | C132: =ShareTruck -> 0.13 | D132: ODOT
A134: Table 11
A135: Year | B135: Unit | C135: NOx | D135: SO2 | E135: PM2.5 | F135: CO2 | G135: Source
A136: ='Costs for Emission'!B5 -> 2019 | B136: $/metric ton | C136: ='Costs for Emission'!C5 -> 15700 | D136: ='Costs for Emission'!D5 -> 40400 | E136: ='Costs for Emission'!E5 -> 729300 | F136: ='Costs for Emission'!F5 -> 50 | G136: US DOT, Benefit-Cost Analysis Guidance for Discretionary Grant Programs, February 2021; Table A-6.
A137: ='Costs for Emission'!B6 -> 2020 | C137: ='Costs for Emission'!C6 -> 15700 | D137: ='Costs for Emission'!D6 -> 40400 | E137: ='Costs for Emission'!E6 -> 729300 | F137: ='Costs for Emission'!F6 -> 50
A138: ='Costs for Emission'!B7 -> 2021 | C138: ='Costs for Emission'!C7 -> 15900 | D138: ='Costs for Emission'!D7 -> 41300 | E138: ='Costs for Emission'!E7 -> 742300 | F138: ='Costs for Emission'!F7 -> 52
A139: ='Costs for Emission'!B8 -> 2022 | C139: ='Costs for Emission'!C8 -> 16100 | D139: ='Costs for Emission'!D8 -> 42100 | E139: ='Costs for Emission'!E8 -> 755500 | F139: ='Costs for Emission'!F8 -> 53
A140: ='Costs for Emission'!B9 -> 2023 | C140: ='Costs for Emission'!C9 -> 16400 | D140: ='Costs for Emission'!D9 -> 43000 | E140: ='Costs for Emission'!E9 -> 769000 | F140: ='Costs for Emission'!F9 -> 54
A141: ='Costs for Emission'!B10 -> 2024 | C141: ='Costs for Emission'!C10 -> 16600 | D141: ='Costs for Emission'!D10 -> 43900 | E141: ='Costs for Emission'!E10 -> 782700 | F141: ='Costs for Emission'!F10 -> 55
A142: ='Costs for Emission'!B11 -> 2025 | C142: ='Costs for Emission'!C11 -> 16800 | D142: ='Costs for Emission'!D11 -> 44900 | E142: ='Costs for Emission'!E11 -> 796600 | F142: ='Costs for Emission'!F11 -> 56
A143: ='Costs for Emission'!B12 -> 2026 | C143: ='Costs for Emission'!C12 -> 17000 | D143: ='Costs for Emission'!D12 -> 45500 | E143: ='Costs for Emission'!E12 -> 807500 | F143: ='Costs for Emission'!F12 -> 57
A144: ='Costs for Emission'!B13 -> 2027 | C144: ='Costs for Emission'!C13 -> 17300 | D144: ='Costs for Emission'!D13 -> 46200 | E144: ='Costs for Emission'!E13 -> 818600 | F144: ='Costs for Emission'!F13 -> 58
A145: ='Costs for Emission'!B14 -> 2028 | C145: ='Costs for Emission'!C14 -> 17500 | D145: ='Costs for Emission'!D14 -> 46900 | E145: ='Costs for Emission'!E14 -> 829800 | F145: ='Costs for Emission'!F14 -> 59
A146: ='Costs for Emission'!B15 -> 2029 | C146: ='Costs for Emission'!C15 -> 17700 | D146: ='Costs for Emission'!D15 -> 47600 | E146: ='Costs for Emission'!E15 -> 841200 | F146: ='Costs for Emission'!F15 -> 60
A147: ='Costs for Emission'!B16 -> 2030 | C147: ='Costs for Emission'!C16 -> 18000 | D147: ='Costs for Emission'!D16 -> 48200 | E147: ='Costs for Emission'!E16 -> 852700 | F147: ='Costs for Emission'!F16 -> 61
A148: ='Costs for Emission'!B17 -> 2031 | C148: ='Costs for Emission'!C17 -> 18000 | D148: ='Costs for Emission'!D17 -> 48200 | E148: ='Costs for Emission'!E17 -> 852700 | F148: ='Costs for Emission'!F17 -> 62
A149: ='Costs for Emission'!B18 -> 2032 | C149: ='Costs for Emission'!C18 -> 18000 | D149: ='Costs for Emission'!D18 -> 48200 | E149: ='Costs for Emission'!E18 -> 852700 | F149: ='Costs for Emission'!F18 -> 63
A150: ='Costs for Emission'!B19 -> 2033 | C150: ='Costs for Emission'!C19 -> 18000 | D150: ='Costs for Emission'!D19 -> 48200 | E150: ='Costs for Emission'!E19 -> 852700 | F150: ='Costs for Emission'!F19 -> 64
A151: ='Costs for Emission'!B20 -> 2034 | C151: ='Costs for Emission'!C20 -> 18000 | D151: ='Costs for Emission'!D20 -> 48200 | E151: ='Costs for Emission'!E20 -> 852700 | F151: ='Costs for Emission'!F20 -> 66
A152: ='Costs for Emission'!B21 -> 2035 | C152: ='Costs for Emission'!C21 -> 18000 | D152: ='Costs for Emission'!D21 -> 48200 | E152: ='Costs for Emission'!E21 -> 852700 | F152: ='Costs for Emission'!F21 -> 67
A153: ='Costs for Emission'!B22 -> 2036 | C153: ='Costs for Emission'!C22 -> 18000 | D153: ='Costs for Emission'!D22 -> 48200 | E153: ='Costs for Emission'!E22 -> 852700 | F153: ='Costs for Emission'!F22 -> 68
A154: ='Costs for Emission'!B23 -> 2037 | C154: ='Costs for Emission'!C23 -> 18000 | D154: ='Costs for Emission'!D23 -> 48200 | E154: ='Costs for Emission'!E23 -> 852700 | F154: ='Costs for Emission'!F23 -> 69
A155: ='Costs for Emission'!B24 -> 2038 | C155: ='Costs for Emission'!C24 -> 18000 | D155: ='Costs for Emission'!D24 -> 48200 | E155: ='Costs for Emission'!E24 -> 852700 | F155: ='Costs for Emission'!F24 -> 70
A156: ='Costs for Emission'!B25 -> 2039 | C156: ='Costs for Emission'!C25 -> 18000 | D156: ='Costs for Emission'!D25 -> 48200 | E156: ='Costs for Emission'!E25 -> 852700 | F156: ='Costs for Emission'!F25 -> 71
A157: ='Costs for Emission'!B26 -> 2040 | C157: ='Costs for Emission'!C26 -> 18000 | D157: ='Costs for Emission'!D26 -> 48200 | E157: ='Costs for Emission'!E26 -> 852700 | F157: ='Costs for Emission'!F26 -> 72
A158: ='Costs for Emission'!B27 -> 2041 | C158: ='Costs for Emission'!C27 -> 18000 | D158: ='Costs for Emission'!D27 -> 48200 | E158: ='Costs for Emission'!E27 -> 852700 | F158: ='Costs for Emission'!F27 -> 73
A159: ='Costs for Emission'!B28 -> 2042 | C159: ='Costs for Emission'!C28 -> 18000 | D159: ='Costs for Emission'!D28 -> 48200 | E159: ='Costs for Emission'!E28 -> 852700 | F159: ='Costs for Emission'!F28 -> 75
A160: ='Costs for Emission'!B29 -> 2043 | C160: ='Costs for Emission'!C29 -> 18000 | D160: ='Costs for Emission'!D29 -> 48200 | E160: ='Costs for Emission'!E29 -> 852700 | F160: ='Costs for Emission'!F29 -> 76
A161: ='Costs for Emission'!B30 -> 2044 | C161: ='Costs for Emission'!C30 -> 18000 | D161: ='Costs for Emission'!D30 -> 48200 | E161: ='Costs for Emission'!E30 -> 852700 | F161: ='Costs for Emission'!F30 -> 77
A162: ='Costs for Emission'!B31 -> 2045 | C162: ='Costs for Emission'!C31 -> 18000 | D162: ='Costs for Emission'!D31 -> 48200 | E162: ='Costs for Emission'!E31 -> 852700 | F162: ='Costs for Emission'!F31 -> 78
A164: Table 12
A165: Benefit Categories | B165: Over Project Lifecycle
B166: Undiscounted | C166: Present Value at 7% Discount Rate | D166: Present Value at 3% Discount Rate | E166: Distribution
A167: =Results!B7 -> Reduction in Accident Costs | B167: =Results!D7 -> 172.1676885 | C167: =Results!E7 -> 59.01050939 | D167: =Results!F7 -> 105.864337 | E167: =C167/$C$173 -> 0.461379488
A168: =Results!B8 -> Travel Time Saving - Mainline | B168: =Results!D8 -> 93.56376033 | C168: =Results!E8 -> 29.01808363 | D168: =Results!F8 -> 55.09854817 | E168: 0.2268807489
A169: =Results!B9 -> Travel Time Saving - Interchanges | B169: =Results!D9 -> 45.93448551 | C169: =Results!E9 -> 15.50553182 | D169: =Results!F9 -> 28.07831905 | E169: 0.1212315298
A170: =Results!B10 -> Emissions Impacts | B170: =Results!D10 -> -0.06669512135 | C170: =Results!E10 -> -0.0578710386 | D170: =Results!F10 -> -0.0453449518 | E170: -0.0004524704232
A171: =Results!B11 -> Residual Value | B171: =Results!D11 -> 71.10188554 | C171: =Results!E11 -> 12.24342424 | D171: =Results!F11 -> 32.96956944 | E171: 0.09572641997
A172: =Results!B12 -> Agency Cost Saving | B172: =Results!D12 -> 31.38053715 | C172: =Results!E12 -> 12.18047992 | D172: =Results!F12 -> 20.26726126 | E172: 0.09523428366
A173: Total Benefits | B173: =SUM(B167:B172) -> 414.0816619 | C173: =SUM(C167:C172) -> 127.900158 | D173: =SUM(D167:D172) -> 242.23269
A175: Table 13
A176: Project Evaluation Metric | B176: Undiscounted | C176: Present Value at 7% Discount Rate | D176: Present Value at 3% Discount Rate
A177: Total Discounted Benefits | B177: =Results!D21 -> 414.0816619 | C177: =Results!E21 -> 127.900158 | D177: =Results!F21 -> 242.23269
A178: Total O&M Costs | B178: =Results!D22 -> 6.374171608 | C178: =Results!E22 -> 1.539435946 | D178: =Results!F22 -> 3.298302853
A179: Total Discounted Costs | B179: =Results!D23 -> 112.2907969 | C179: =Results!E23 -> 78.28904828 | D179: =Results!F23 -> 95.83251525
A180: Net Present Value | B180: =Results!D24 -> 301.790865 | C180: =Results!E24 -> 49.61110968 | D180: =Results!F24 -> 146.4001747
A181: Benefit / Cost Ratio | B181: =Results!D26 -> 3.630818388 | C181: =Results!E26 -> 1.614028077 | D181: =Results!F26 -> 2.493249671
A182: Internal Rate of Return (%) | B182: =Results!D28 -> 0.125232921
A184: Table 14
A185: Parameters | B185: Change in Parameter Value
C186: New NPV | D186: % Change in NPV | E186: New B/C Ratio
A187: Capital Cost Estimate | B187: 25% Reduction | C187: 69.21368991 | D187: =(C187-Results!$E$16)/Results!$E$16 -> 0.395124809 | E187: 2.152553781
B188: 25% Increase | C188: 30.06916577 | D188: =(C188-Results!$E$16)/Results!$E$16 -> -0.3939025761 | E188: 1.291532269
A189: Crash Modification Factors | B189: CMF reduction on mainline from 0.74 to 0.89 | C189: 26.3195331 | D189: =(C189-Results!$E$16)/Results!$E$16 -> -0.46948308 | E189: 1.32
B190: CMF reduction on Douglas Interchange from 0.55 to 0.66
A191: Length of Analysis Period | B191: Extension from 20 years to 30 years | C191: =Results!G16 -> 67.94137857 | D191: =(C191-Results!$E$16)/Results!$E$16 -> 0.3694791149 | E191: =Results!G26 -> 1.823307601

Sheet Inputs
B1: Model Inputs
B3: Variable | C3: Year | D3: Unit | E3: Value | F3: Source / Assumptions
B4: General Economic Inputs
B5: Real Discount Rate | D5: % | E5: 0.07 | F5: US DOT BCA Guidance for Discretionary Grant Programs, February 2021
B6: Real Discount Rate - Sensitivity | D6: % | E6: 0.03 | F6: US DOT BCA Guidance for Discretionary Grant Programs, February 2021
B7: Length of Analysis | D7: years | E7: 20 | F7: Reasoned assumption
B8: End year of Analysis | D8: year | E8: =E7+(YEAR($E$19)-1) -> 2045 | F8: Based on ODOT Project Schedule
B9: Days/Year | D9: days | E9: 365 | F9: Known
B10: Annualizationn factor | D10: days | E10: 260 | F10: Known - Weekdays per year
B11: Number of seconds in hour | D11: seconds | E11: 3600 | F11: Known
B12: GDP Deflator 2020 to 2019 | D12: Index | E12: ='Deflation Factors'!C95 -> 1.019740352 | F12: Office of Management and Budget- Table 10.1 Gross Domestic Product and Deflators used in the historical Tables: 1940-2025.
B13: Inflation Factor 2015 to 2019 | D13: Index | E13: ='Deflation Factors'!B121 -> 1.073 | F13: US DOT BCA Guidance for Discretionary Grant Programs, February 2021
B14: Inflation Factor 2016 to 2019 | D14: Index | E14: ='Deflation Factors'!B122 -> 1.0619 | F14: US DOT BCA Guidance for Discretionary Grant Programs, February 2021
B15: Inflation Factor 2017 to 2019 | D15: Index | E15: ='Deflation Factors'!B123 -> 1.0423 | F15: US DOT BCA Guidance for Discretionary Grant Programs, February 2021
B16: Inflation Factor 2018 to 2019 | D16: Index | E16: ='Deflation Factors'!B124 -> 1.0179 | F16: US DOT BCA Guidance for Discretionary Grant Programs, February 2021
B17: Project Inputs
B18: Base Year | D18: year | E18: 2019 | F18: Assumption
B19: First Year of Benefits from Widening I-40 | D19: date | E19: 2026-01-01 | F19: ODOT Project Schedule; 2025 is last year of construction
B20: Affected Segment Lengths
B21: Industrial to Douglas | D21: miles | E21: 0.8 | F21: Approximation from project scope
B22: Douglas to Anderson | D22: miles | E22: 3.7 | F22: Approximation from project scope
B23: Anderson to I-240 | D23: miles | E23: 1.8 | F23: Approximation from project scope
B24: Traffic Inputs
B25: West of Industrial
B26: Current Traffic - With Turnpike | C26: 2017 | D26: ADT | E26: =SUM('Traffic Projection'!C8:D31) -> 55595 | F26: Provided by Garver
B27: Future Traffic - With Turnpike | C27: 2045 | D27: ADT | E27: =SUM('Traffic Projection'!E8:F31) -> 84580 | F27: Provided by Garver
B28: Traffic Rate of Growth | D28: % | E28: =(E27/E26)^(1/(2045-2017))-1 -> 0.01509872852 | F28: Calculated from above
B29: Douglas to Anderson
B30: Current Traffic - With Turnpike | C30: 2017 | D30: ADT | E30: =SUM('Traffic Projection'!G8:H31) -> 45960 | F30: Provided by Garver
B31: Future Traffic - With Turnpike | C31: 2045 | D31: ADT | E31: =SUM('Traffic Projection'!I8:J31) -> 66640 | F31: Provided by Garver
B32: Traffic Rate of Growth | D32: % | E32: =(E31/E30)^(1/(2045-2017))-1 -> 0.01335747976 | F32: Calculated from above
B33: Anderson to I-240
B34: Current Traffic - With Turnpike | C34: 2017 | D34: ADT | E34: =SUM('Traffic Projection'!K8:L31) -> 38380 | F34: Provided by Garver
B35: Future Traffic - With Turnpike | C35: 2045 | D35: ADT | E35: =SUM('Traffic Projection'!M8:N31) -> 55880 | F35: Provided by Garver
B36: Traffic Rate of Growth | D36: % | E36: =(E35/E34)^(1/(2045-2017))-1 -> 0.01350719625 | F36: Calculated from above
B37: Douglas Boulevard Interchange
B38: Current Traffic | C38: 2017 | D38: AADT | E38: 34400 | F38: Provided by Garver
B39: Future Traffic | C39: 2045 | D39: AADT | E39: 44160 | F39: Provided by Garver
B40: Traffic Rate of Growth | D40: % | E40: =(E39/E38)^(1/(2045-2017))-1 -> 0.008960004003 | F40: Calculated from above
B41: Travel Time Inputs
B42: Value of Time
B43: Auto (All Purposes) | D43: $/hr/person | E43: 17.9 | F43: US DOT BCA Guidance for Discretionary Grant Programs, February 2021; Table A-3.
B44: Truck | D44: $/hr/veh | E44: 30.8 | F44: US DOT BCA Guidance for Discretionary Grant Programs, February 2021; Table A-3.
B45: Average Vehicle Occupancy
B46: Auto | D46: per/veh | E46: 1.48 | F46: US DOT BCA Guidance for Discretionary Grant Programs, February 2021; Table A-4.
B47: Truck | D47: per/veh | E47: 1 | F47: Reasoned Assumption
B48: Percentage of Truck Traffic (all Day) | D48: % | E48: 0.13 | F48: ODOT
B49: Safety Inputs
B50: Cost of a Fatality | D50: $/fatality | E50: 10900000 | F50: US DOT BCA Guidance for Discretionary Grant Programs, February 2021; Table A-1.
B51: Cost of serious injury (MAIS 3) | D51: $/serious Injury | E51: 1144500 | F51: US DOT BCA Guidance for Discretionary Grant Programs, February 2021; Table A-1.
B52: Cost of non-incapacitating injury (MAIS 2) | D52: $/non-incapacitating Injury | E52: 512300 | F52: US DOT BCA Guidance for Discretionary Grant Programs, February 2021; Table A-1.
B53: Possible Injury (MAIS 1) | D53: $/possible injury | E53: 32700 | F53: US DOT BCA Guidance for Discretionary Grant Programs, February 2021; Table A-1.
B54: Cost of Property Damage Only (PDO) | D54: $/PDO | E54: 4500 | F54: US DOT BCA Guidance for Discretionary Grant Programs, February 2021; Table A-1.
B55: Average number of accidents on the mainline of project location
B56: Fatal Accident | D56: Number/Year | E56: 0.5 | F56: Based on crash data at project location, I-40 between Douglas Boulevard and I-240, 2009 - 2018
B57: Serious Injury | D57: Number/Year | E57: 2.7 | F57: Based on crash data at project location, I-40 between Douglas Boulevard and I-240, 2009 - 2018
B58: Non-Incapacitating Injury | D58: Number/Year | E58: 4.2 | F58: Based on crash data at project location, I-40 between Douglas Boulevard and I-240, 2009 - 2018
B59: Possible Injury | D59: Number/Year | E59: 7.2 | F59: Based on crash data at project location, I-40 between Douglas Boulevard and I-240, 2009 - 2018
B60: PDO | D60: Number/Year | E60: 36.8 | F60: Based on crash data at project location, I-40 between Douglas Boulevard and I-240, 2009 - 2018
B61: Average number of accidents on Anderson Interchange
B62: Fatal Accident | D62: Number/Year | E62: 0.2 | F62: Based on crash data at project location, I-40 at Anderson Interchange, 2009 - 2018
B63: Serious Injury | D63: Number/Year | E63: 1.3 | F63: Based on crash data at project location, I-40 at Anderson Interchange, 2009 - 2018
B64: Non-Incapacitating Injury | D64: Number/Year | E64: 2.8 | F64: Based on crash data at project location, I-40 at Anderson Interchange, 2009 - 2018
B65: Possible Injury | D65: Number/Year | E65: 3.2 | F65: Based on crash data at project location, I-40 at Anderson Interchange, 2009 - 2018
B66: PDO | D66: Number/Year | E66: 16.8 | F66: Based on crash data at project location, I-40 at Anderson Interchange, 2009 - 2018
B67: Average number of accidents on Douglas Interchange
B68: Fatal Accident | D68: Number/Year | E68: 0.1 | F68: Based on crash data at project location, I-40 at Douglas Interchange, 2009 - 2018
B69: Serious Injury | D69: Number/Year | E69: 0.8 | F69: Based on crash data at project location, I-40 at Douglas Interchange, 2009 - 2018
B70: Non-Incapacitating Injury | D70: Number/Year | E70: 4.8 | F70: Based on crash data at project location, I-40 at Douglas Interchange, 2009 - 2018
B71: Possible Injury | D71: Number/Year | E71: 7.9 | F71: Based on crash data at project location, I-40 at Douglas Interchange, 2009 - 2018
B72: PDO | D72: Number/Year | E72: 33.8 | F72: Based on crash data at project location, I-40 at Douglas Interchange, 2009 - 2018
B73: Average number of victims per accident
B74: Fatal Accident | D74: Number/Year | E74: 1 | F74: Based on crash data at project location, 2009 - 2018
B75: Serious Injury | D75: Number/Year | E75: 1.61 | F75: Based on crash data at project location, 2009 - 2018
B76: Non-Incapacitating Injury | D76: Number/Year | E76: 1.15 | F76: Based on crash data at project location, 2009 - 2018
B77: Possible Injury | D77: Number/Year | E77: 1.15 | F77: Assumed the same as non-incapacitating injury
B78: PDO | D78: Number/Year | E78: 2.03 | F78: California Department of Transportation, TASAS Unit, 2010 to 2013 average
B79: Crash Modification Factors | G79: Sensitivity Analysis
B80: Adding one 12-foot lane - All crash types | E80: =G80 -> 0.74 | F80: CMF Clearinghouse, CMF ID 8336. CMFs determined to mirror installation feature. | G80: 0.74 | H80: 0.89
B81: Extend deceleration lane by approximately 100 ft. - All crash type | E81: 0.93 | F81: CMF Clearinghouse, CMF ID 475. CMFs determined to mirror installation feature.
B82: Extend acceleration lane by approximately 98ft - All crash type | E82: 0.89 | F82: CMF Clearinghouse, CMF ID 474. CMFs determined to mirror installation feature.
B83: Provide a straight ramp instead of a cloverleaf ramp - All crash type | E83: =G83 -> 0.55 | F83: CMF Clearinghouse, CMF ID 478. CMFs determined to mirror installation feature. | G83: 0.55 | H83: 0.66
B84: Emission Inputs
B85: Grams/Metric Ton | D85: g/metric ton | E85: 1000000 | F85: Standardized conversion

Sheet Accident Cost Saving
A2: Reduction in Accident Costs
B4: Unit | C4: Value | D4: =Base.Year -> 2019 | E4: =D4+1 -> 2020 | F4: 2021 | G4: 2022 | H4: 2023 | I4: 2024 | J4: 2025 | K4: 2026 | L4: 2027 | M4: 2028 | N4: 2029 | O4: 2030 | P4: 2031 | Q4: 2032 | R4: 2033 | S4: 2034 | T4: 2035 | U4: 2036 | V4: 2037 | W4: 2038 | X4: 2039 | Y4: 2040 | Z4: =Y4+1 -> 2041 | AA4: =Z4+1 -> 2042 | AB4: =AA4+1 -> 2043 | AC4: =AB4+1 -> 2044 | AD4: =AC4+1 -> 2045 | AE4: =AD4+1 -> 2046 | AF4: =AE4+1 -> 2047 | AG4: =AF4+1 -> 2048 | AH4: =AG4+1 -> 2049 | AI4: =AH4+1 -> 2050 | AJ4: =AI4+1 -> 2051 | AK4: =AJ4+1 -> 2052 | AL4: =AK4+1 -> 2053 | AM4: =AL4+1 -> 2054 | AN4: =AM4+1 -> 2055
A5: Benefits Index | D5: 0 | E5: 0 | F5: 0 | G5: 0 | H5: 0 | I5: 0 | J5: 0 | K5: 1 | L5: =K5+1 -> 2 | M5: 3 | N5: 4 | O5: 5 | P5: 6 | Q5: 7 | R5: 8 | S5: 9 | T5: 10 | U5: 11 | V5: 12 | W5: 13 | X5: 14 | Y5: 15 | Z5: 16 | AA5: 17 | AB5: 18 | AC5: 19 | AD5: 20 | AE5: 21 | AF5: 22 | AG5: 23 | AH5: 24 | AI5: 25 | AJ5: 26 | AK5: 27 | AL5: 28 | AM5: 29 | AN5: 30
A6: Discount Factor | B6: % | C6: 0.07 | D6: =1/(1+Real_discount_rate)^(D4-$D$4) -> 1 | E6: 0.9345794393 | F6: 0.8734387283 | G6: 0.8162978769 | H6: 0.762895212 | I6: 0.7129861795 | J6: 0.6663422238 | K6: 0.6227497419 | L6: 0.5820091046 | M6: 0.5439337426 | N6: 0.5083492921 | O6: 0.4750927964 | P6: 0.4440119592 | Q6: 0.4149644479 | R6: 0.387817241 | S6: 0.3624460196 | T6: 0.3387345978 | U6: 0.3165743905 | V6: 0.2958639163 | W6: 0.276508333 | X6: 0.2584190028 | Y6: 0.2415130867 | Z6: 0.2257131652 | AA6: 0.2109468833 | AB6: 0.1971466199 | AC6: 0.1842491775 | AD6: 0.172195493 | AE6: 0.1609303673 | AF6: 0.1504022124 | AG6: 0.1405628154 | AH6: 0.1313671172 | AI6: 0.1227730067 | AJ6: 0.1147411277 | AK6: 0.1072346988 | AL6: 0.1002193447 | AM6: 0.09366293897 | AN6: 0.08753545698
A7: Discount Factor | B7: % | C7: 0.03 | D7: =1/(1+Real_discount_rate_Sensitivity)^(D4-$D$4) -> 1 | E7: 0.9708737864 | F7: 0.9425959091 | G7: 0.9151416594 | H7: 0.8884870479 | I7: 0.8626087844 | J7: 0.8374842567 | K7: 0.8130915113 | L7: 0.7894092343 | M7: 0.7664167323 | N7: 0.7440939149 | O7: 0.7224212766 | P7: 0.7013798802 | Q7: 0.68095134 | R7: 0.6611178058 | S7: 0.6418619474 | T7: 0.6231669392 | U7: 0.6050164458 | V7: 0.5873946076 | W7: 0.5702860268 | X7: 0.5536757542 | Y7: 0.5375492759 | Z7: 0.5218925009 | AA7: 0.5066917484 | AB7: 0.4919337363 | AC7: 0.4776055693 | AD7: 0.4636947274 | AE7: 0.4501890558 | AF7: 0.4370767532 | AG7: 0.4243463623 | AH7: 0.4119867595 | AI7: 0.3999871452 | AJ7: 0.3883370341 | AK7: 0.3770262467 | AL7: 0.3660448997 | AM7: 0.3553833978 | AN7: 0.3450324251
A9: ADT Growth Rate | B9: =AVERAGE(GrowthRate_Douglas_Anderson, GrowthRate_Anderson_I40) -> 0.013432338
A11: No Build Case Alternative | B11: Unit | D11: =Base.Year -> 2019 | E11: =D11+1 -> 2020 | F11: =E11+1 -> 2021 | G11: =F11+1 -> 2022 | H11: =G11+1 -> 2023 | I11: =H11+1 -> 2024 | J11: =I11+1 -> 2025 | K11: =J11+1 -> 2026 | L11: =K11+1 -> 2027 | M11: =L11+1 -> 2028 | N11: =M11+1 -> 2029 | O11: =N11+1 -> 2030 | P11: =O11+1 -> 2031 | Q11: =P11+1 -> 2032 | R11: =Q11+1 -> 2033 | S11: =R11+1 -> 2034 | T11: =S11+1 -> 2035 | U11: =T11+1 -> 2036 | V11: =U11+1 -> 2037 | W11: =V11+1 -> 2038 | X11: =W11+1 -> 2039 | Y11: =X11+1 -> 2040 | Z11: =Y11+1 -> 2041 | AA11: =Z11+1 -> 2042 | AB11: =AA11+1 -> 2043 | AC11: =AB11+1 -> 2044 | AD11: =AC11+1 -> 2045 | AE11: =AD11+1 -> 2046 | AF11: =AE11+1 -> 2047 | AG11: =AF11+1 -> 2048 | AH11: =AG11+1 -> 2049 | AI11: =AH11+1 -> 2050 | AJ11: =AI11+1 -> 2051 | AK11: =AJ11+1 -> 2052 | AL11: =AK11+1 -> 2053 | AM11: =AL11+1 -> 2054 | AN11: =AM11+1 -> 2055
A12: Average Number of Accidents on Mainline
A13: Fatal Accident | B13: Number/Year | D13: =Acc_Fatal_Mainlanes*(1+$B$9) -> 0.506716169 | E13: =D13*(1+$B$9) -> 0.5135225519 | F13: =E13*(1+$B$9) -> 0.5204203603 | G13: =F13*(1+$B$9) -> 0.5274108225 | H13: 0.534495183 | I13: 0.5416747029 | J13: 0.5489506606 | K13: =J13*(1+$B$9) -> 0.5563243514 | L13: 0.5637970882 | M13: 0.5713702012 | N13: 0.5790450389 | O13: 0.5868229676 | P13: 0.594705372 | Q13: 0.6026936556 | R13: 0.6107892405 | S13: 0.618993568 | T13: 0.6273080988 | U13: 0.6357343133 | V13: 0.6442737114 | W13: 0.6529278137 | X13: 0.6616981608 | Y13: 0.6705863141 | Z13: 0.6795938562 | AA13: 0.6887223905 | AB13: 0.6979735425 | AC13: 0.707348959 | AD13: 0.7168503093 | AE13: 0.726479285 | AF13: 0.7362376003 | AG13: =AF13*(1+$B$9) -> 0.7461269926 | AH13: =AG13*(1+$B$9) -> 0.7561492225 | AI13: =AH13*(1+$B$9) -> 0.7663060745 | AJ13: =AI13*(1+$B$9) -> 0.7765993567 | AK13: =AJ13*(1+$B$9) -> 0.7870309017 | AL13: =AK13*(1+$B$9) -> 0.7976025668 | AM13: =AL13*(1+$B$9) -> 0.8083162341 | AN13: =AM13*(1+$B$9) -> 0.819173811
A14: Serious Injury | B14: Number/Year | D14: =Acc_IncapacitatingInj_Mailanes*(1+$B$9) -> 2.736267313 | E14: =D14*(1+$B$9) -> 2.77302178 | F14: =E14*(1+$B$9) -> 2.810269946 | G14: 2.848018442 | H14: 2.886273988 | I14: 2.925043396 | J14: 2.964333567 | K14: 3.004151498 | L14: 3.044504276 | M14: 3.085399087 | N14: 3.12684321 | O14: 3.168844025 | P14: 3.211409009 | Q14: 3.25454574 | R14: 3.298261899 | S14: 3.342565267 | T14: 3.387463734 | U14: 3.432965292 | V14: 3.479078042 | W14: 3.525810194 | X14: 3.573170068 | Y14: 3.621166096 | Z14: 3.669806823 | AA14: 3.719100909 | AB14: 3.769057129 | AC14: 3.819684379 | AD14: 3.87099167 | AE14: 3.922988139 | AF14: 3.975683042 | AG14: 4.02908576 | AH14: 4.083205802 | AI14: 4.138052802 | AJ14: 4.193636526 | AK14: 4.249966869 | AL14: 4.307053861 | AM14: 4.364907664 | AN14: 4.423538579
A15: Non-Incapacitating Injury | B15: Number/Year | D15: =Acc_NonIncapacitatingInj_mainlanes*(1+$B$9) -> 4.25641582 | E15: 4.313589436 | F15: =E15*(1+$B$9) -> 4.371531027 | G15: 4.430250909 | H15: 4.489759537 | I15: 4.550067505 | J15: 4.611185549 | K15: 4.673124552 | L15: 4.735895541 | M15: 4.79950969 | N15: 4.863978327 | O15: 4.929312928 | P15: 4.995525125 | Q15: 5.062626707 | R15: 5.13062962 | S15: 5.199545971 | T15: 5.26938803 | U15: 5.340168231 | V15: 5.411899176 | W15: 5.484593635 | X15: 5.558264551 | Y15: 5.632925039 | Z15: 5.708588392 | AA15: 5.785268081 | AB15: 5.862977757 | AC15: 5.941731256 | AD15: 6.021542598 | AE15: 6.102425994 | AF15: 6.184395842 | AG15: 6.267466738 | AH15: 6.351653469 | AI15: 6.436971026 | AJ15: 6.523434596 | AK15: 6.611059575 | AL15: 6.699861561 | AM15: 6.789856366 | AN15: 6.881060012
A16: Possible Injury | B16: Number/Year | D16: =Acc_PossibleInj_Mainlanes*(1+$B$9) -> 7.296712834 | E16: 7.394724747 | F16: =E16*(1+$B$9) -> 7.494053189 | G16: 7.594715844 | H16: 7.696730635 | I16: 7.800115722 | J16: 7.904889513 | K16: 8.011070661 | L16: 8.11867807 | M16: 8.227730898 | N16: 8.33824856 | O16: 8.450250733 | P16: 8.563757357 | Q16: 8.678788641 | R16: 8.795365063 | S16: 8.913507379 | T16: 9.033236623 | U16: 9.154574111 | V16: 9.277541445 | W16: 9.402160517 | X16: 9.528453515 | Y16: 9.656442923 | Z16: 9.786151529 | AA16: 9.917602424 | AB16: 10.05081901 | AC16: 10.18582501 | AD16: 10.32264445 | AE16: 10.4613017 | AF16: 10.60182144 | AG16: 10.74422869 | AH16: 10.8885488 | AI16: 11.03480747 | AJ16: 11.18303074 | AK16: 11.33324499 | AL16: 11.48547696 | AM16: 11.63975377 | AN16: 11.79610288
A17: Property Damage Only (PDO) | B17: Number/Year | D17: =Acc_PDO_Mainlanes*(1+$B$9) -> 37.29431004 | E17: 37.79525982 | F17: =E17*(1+$B$9) -> 38.30293852 | G17: 38.81743654 | H17: 39.33884547 | I17: 39.86725814 | J17: 40.40276862 | K17: 40.94547227 | L17: 41.49546569 | M17: 42.05284681 | N17: 42.61771486 | O17: 43.19017041 | P17: 43.77031538 | Q17: 44.35825305 | R17: 44.9540881 | S17: 45.55792661 | T17: 46.16987607 | U17: 46.79004546 | V17: 47.41854516 | W17: 48.05548709 | X17: 48.70098463 | Y17: 49.35515272 | Z17: 50.01810781 | AA17: 50.68996794 | AB17: 51.37085273 | AC17: 52.06088338 | AD17: 52.76018277 | AE17: 53.46887537 | AF17: 54.18708738 | AG17: 54.91494665 | AH17: 55.65258278 | AI17: 56.40012708 | AJ17: 57.15771265 | AK17: 57.92547437 | AL17: 58.70354892 | AM17: 59.49207483 | AN17: 60.29119249
A19: Average Number of Accidents on Anderson Interchange
A20: Fatal Accident | B20: Number/Year | D20: =Acc_Fatal_AndersonInt*(1+$B$9) -> 0.2026864676 | E20: =D20*(1+$B$9) -> 0.2054090207 | F20: =E20*(1+$B$9) -> 0.2081681441 | G20: =F20*(1+$B$9) -> 0.210964329 | H20: 0.2137980732 | I20: 0.2166698812 | J20: 0.2195802642 | K20: 0.2225297406 | L20: 0.2255188353 | M20: 0.2285480805 | N20: 0.2316180156 | O20: 0.234729187 | P20: 0.2378821488 | Q20: 0.2410774622 | R20: 0.2443156962 | S20: 0.2475974272 | T20: 0.2509232395 | U20: 0.2542937253 | V20: 0.2577094846 | W20: 0.2611711255 | X20: 0.2646792643 | Y20: 0.2682345257 | Z20: 0.2718375425 | AA20: 0.2754889562 | AB20: 0.279189417 | AC20: 0.2829395836 | AD20: 0.2867401237 | AE20: 0.290591714 | AF20: 0.2944950401 | AG20: =AF20*(1+$B$9) -> 0.298450797 | AH20: =AG20*(1+$B$9) -> 0.302459689 | AI20: =AH20*(1+$B$9) -> 0.3065224298 | AJ20: =AI20*(1+$B$9) -> 0.3106397427 | AK20: =AJ20*(1+$B$9) -> 0.3148123607 | AL20: =AK20*(1+$B$9) -> 0.3190410267 | AM20: =AL20*(1+$B$9) -> 0.3233264936 | AN20: =AM20*(1+$B$9) -> 0.3276695244
A21: Serious Injury | B21: Number/Year | D21: =Acc_IncapacitatingInj_Anderson_Int*(1+$B$9) -> 1.317462039 | E21: =D21*(1+$B$9) -> 1.335158635 | F21: =E21*(1+$B$9) -> 1.353092937 | G21: 1.371268139 | H21: 1.389687476 | I21: 1.408354228 | J21: 1.427271718 | K21: 1.446443314 | L21: 1.465872429 | M21: 1.485562523 | N21: 1.505517101 | O21: 1.525739716 | P21: 1.546233967 | Q21: 1.567003505 | R21: 1.588052025 | S21: 1.609383277 | T21: 1.631001057 | U21: 1.652909214 | V21: 1.67511165 | W21: 1.697612316 | X21: 1.720415218 | Y21: 1.743524417 | Z21: 1.766944026 | AA21: 1.790678215 | AB21: 1.81473121 | AC21: 1.839107293 | AD21: 1.863810804 | AE21: 1.888846141 | AF21: 1.914217761 | AG21: 1.939930181 | AH21: 1.965987979 | AI21: 1.992395794 | AJ21: 2.019158327 | AK21: 2.046280345 | AL21: 2.073766674 | AM21: 2.101622209 | AN21: 2.129851909
A22: Non-Incapacitating Injury | B22: Number/Year | D22: =Acc_NonIncapacitatingInj_AndersonInt*(1+$B$9) -> 2.837610546 | E22: 2.87572629 | F22: =E22*(1+$B$9) -> 2.914354018 | G22: 2.953500606 | H22: 2.993173025 | I22: 3.033378336 | J22: 3.074123699 | K22: 3.115416368 | L22: 3.157263694 | M22: 3.199673127 | N22: 3.242652218 | O22: 3.286208618 | P22: 3.330350083 | Q22: 3.375084471 | R22: 3.420419747 | S22: 3.466363981 | T22: 3.512925354 | U22: 3.560112154 | V22: 3.607932784 | W22: 3.656395757 | X22: 3.7055097 | Y22: 3.755283359 | Z22: 3.805725594 | AA22: 3.856845387 | AB22: 3.908651838 | AC22: 3.961154171 | AD22: 4.014361732 | AE22: 4.068283996 | AF22: 4.122930562 | AG22: 4.178311158 | AH22: 4.234435646 | AI22: 4.291314017 | AJ22: 4.348956397 | AK22: 4.40737305 | AL22: 4.466574374 | AM22: 4.526570911 | AN22: 4.587373341
A23: Possible Injury | B23: Number/Year | D23: =Acc_PossibleInj_AndersonInt*(1+$B$9) -> 3.242983482 | E23: 3.286544332 | F23: =E23*(1+$B$9) -> 3.330690306 | G23: 3.375429264 | H23: 3.420769171 | I23: 3.466718099 | J23: 3.513284228 | K23: 3.560475849 | L23: 3.608301364 | M23: 3.656769288 | N23: 3.705888249 | O23: 3.755666992 | P23: 3.806114381 | Q23: 3.857239396 | R23: 3.909051139 | S23: 3.961558835 | T23: 4.014771833 | U23: 4.068699605 | V23: 4.123351753 | W23: 4.178738008 | X23: 4.234868229 | Y23: 4.29175241 | Z23: 4.349400679 | AA23: 4.407823299 | AB23: 4.467030672 | AC23: 4.527033338 | AD23: 4.58784198 | AE23: 4.649467424 | AF23: 4.711920642 | AG23: 4.775212753 | AH23: 4.839355024 | AI23: 4.904358877 | AJ23: 4.970235883 | AK23: 5.036997771 | AL23: 5.104656428 | AM23: 5.173223898 | AN23: 5.24271239
A24: Property Damage Only (PDO) | B24: Number/Year | D24: =Acc_PDO_AndersonInt*(1+$B$9) -> 17.02566328 | E24: 17.25435774 | F24: =E24*(1+$B$9) -> 17.48612411 | G24: 17.72100364 | H24: 17.95903815 | I24: 18.20027002 | J24: 18.4447422 | K24: 18.69249821 | L24: 18.94358216 | M24: 19.19803876 | N24: 19.45591331 | O24: 19.71725171 | P24: 19.9821005 | Q24: 20.25050683 | R24: 20.52251848 | S24: 20.79818389 | T24: 21.07755212 | U24: 21.36067293 | V24: 21.6475967 | W24: 21.93837454 | X24: 22.2330582 | Y24: 22.53170015 | Z24: 22.83435357 | AA24: 23.14107232 | AB24: 23.45191103 | AC24: 23.76692502 | AD24: 24.08617039 | AE24: 24.40970398 | AF24: 24.73758337 | AG24: 25.06986695 | AH24: 25.40661388 | AI24: 25.7478841 | AJ24: 26.09373838 | AK24: 26.4442383 | AL24: 26.79944625 | AM24: 27.15942547 | AN24: 27.52424005
A26: Average Number of Accidents on Douglas Interchange
A27: Fatal Accident | B27: Number/Year | D27: =Acc_Fatal_DouglasInt*(1+$B$9) -> 0.1013432338 | E27: =D27*(1+$B$9) -> 0.1027045104 | F27: =E27*(1+$B$9) -> 0.1040840721 | G27: =F27*(1+$B$9) -> 0.1054821645 | H27: 0.1068990366 | I27: 0.1083349406 | J27: 0.1097901321 | K27: 0.1112648703 | L27: 0.1127594176 | M27: 0.1142740402 | N27: 0.1158090078 | O27: 0.1173645935 | P27: 0.1189410744 | Q27: 0.1205387311 | R27: 0.1221578481 | S27: 0.1237987136 | T27: 0.1254616198 | U27: 0.1271468627 | V27: 0.1288547423 | W27: 0.1305855627 | X27: 0.1323396322 | Y27: 0.1341172628 | Z27: 0.1359187712 | AA27: 0.1377444781 | AB27: 0.1395947085 | AC27: 0.1414697918 | AD27: 0.1433700619 | AE27: 0.145295857 | AF27: 0.1472475201 | AG27: =AF27*(1+$B$9) -> 0.1492253985 | AH27: =AG27*(1+$B$9) -> 0.1512298445 | AI27: =AH27*(1+$B$9) -> 0.1532612149 | AJ27: =AI27*(1+$B$9) -> 0.1553198713 | AK27: =AJ27*(1+$B$9) -> 0.1574061803 | AL27: =AK27*(1+$B$9) -> 0.1595205134 | AM27: =AL27*(1+$B$9) -> 0.1616632468 | AN27: =AM27*(1+$B$9) -> 0.1638347622
A28: Serious Injury | B28: Number/Year | D28: =Acc_IncapacitatingInj_DouglasInt*(1+$B$9) -> 0.8107458704 | E28: =D28*(1+$B$9) -> 0.821636083 | F28: =E28*(1+$B$9) -> 0.8326725766 | G28: 0.843857316 | H28: 0.8551922927 | I28: 0.8666795247 | J28: 0.878321057 | K28: 0.8901189623 | L28: 0.9020753411 | M28: 0.914192322 | N28: 0.9264720622 | O28: 0.9389167481 | P28: 0.9515285952 | Q28: 0.9643098489 | R28: 0.9772627848 | S28: 0.9903897088 | T28: 1.003692958 | U28: 1.017174901 | V28: 1.030837938 | W28: 1.044684502 | X28: 1.058717057 | Y28: 1.072938103 | Z28: 1.08735017 | AA28: 1.101955825 | AB28: 1.116757668 | AC28: 1.131758334 | AD28: 1.146960495 | AE28: 1.162366856 | AF28: 1.17798016 | AG28: 1.193803188 | AH28: 1.209838756 | AI28: 1.226089719 | AJ28: 1.242558971 | AK28: 1.259249443 | AL28: 1.276164107 | AM28: 1.293305975 | AN28: 1.310678098
A29: Non-Incapacitating Injury | B29: Number/Year | D29: =Acc_NonIncapacitatingInj_DouglasInt*(1+$B$9) -> 4.864475222 | E29: 4.929816498 | F29: =E29*(1+$B$9) -> 4.996035459 | G29: 5.063143896 | H29: 5.131153756 | I29: 5.200077148 | J29: 5.269926342 | K29: 5.340713774 | L29: 5.412452046 | M29: 5.485153932 | N29: 5.558832373 | O29: 5.633500489 | P29: 5.709171571 | Q29: 5.785859094 | R29: 5.863576709 | S29: 5.942338253 | T29: 6.022157749 | U29: 6.103049407 | V29: 6.18502763 | W29: 6.268107011 | X29: 6.352302343 | Y29: 6.437628616 | Z29: 6.524101019 | AA29: 6.611734949 | AB29: 6.700546008 | AC29: 6.790550007 | AD29: 6.88176297 | AE29: 6.974201136 | AF29: 7.067880963 | AG29: 7.162819129 | AH29: 7.259032536 | AI29: 7.356538315 | AJ29: 7.455353824 | AK29: 7.555496657 | AL29: 7.656984642 | AM29: 7.759835847 | AN29: 7.864068585
A30: Possible Injury | B30: Number/Year | D30: =Acc_PossibleInj_DouglasInt*(1+$B$9) -> 8.00611547 | E30: 8.113656319 | F30: =E30*(1+$B$9) -> 8.222641693 | G30: 8.333090996 | H30: 8.445023891 | I30: 8.558460306 | J30: 8.673420438 | K30: 8.789924753 | L30: 8.907993993 | M30: 9.027649179 | N30: 9.148911614 | O30: 9.271802888 | P30: 9.396344878 | Q30: 9.522559758 | R30: 9.65047 | S30: 9.780098375 | T30: 9.911467962 | U30: 10.04460215 | V30: 10.17952464 | W30: 10.31625946 | X30: 10.45483094 | Y30: 10.59526376 | Z30: 10.73758293 | AA30: 10.88181377 | AB30: 11.02798197 | AC30: 11.17611355 | AD30: 11.32623489 | AE30: 11.4783727 | AF30: 11.63255408 | AG30: 11.78880648 | AH30: 11.94715772 | AI30: 12.10763598 | AJ30: 12.27026984 | AK30: 12.43508825 | AL30: 12.60212056 | AM30: 12.7713965 | AN30: 12.94294621
A31: Property Damage Only (PDO) | B31: Number/Year | D31: =Acc_PDO_DouglasInt*(1+$B$9) -> 34.25401302 | E31: 34.71412451 | F31: =E31*(1+$B$9) -> 35.18041636 | G31: 35.6529716 | H31: 36.13187437 | I31: 36.61720992 | J31: 37.10906466 | K31: 37.60752616 | L31: 38.11268316 | M31: 38.6246256 | N31: 39.14344463 | O31: 39.66923261 | P31: 40.20208315 | Q31: 40.74209112 | R31: 41.28935266 | S31: 41.8439652 | T31: 42.40602748 | U31: 42.97563958 | V31: 43.55290289 | W31: 44.13792021 | X31: 44.73079567 | Y31: 45.33163484 | Z31: 45.94054468 | AA31: 46.5576336 | AB31: 47.18301147 | AC31: 47.81678963 | AD31: 48.45908091 | AE31: 49.10999966 | AF31: 49.76966178 | AG31: 50.4381847 | AH31: 51.11568744 | AI31: 51.80229063 | AJ31: 52.49811651 | AK31: 53.20328896 | AL31: 53.91793352 | AM31: 54.64217743 | AN31: 55.37614962
A33: Annual Cost of Collision on Mainline
A34: Fatal Accident | B34: $/year | D34: =D13*number_of_victims_accident_Fatality*AccidentCost_Fatality -> 5523206.242 | E34: =E13*number_of_victims_accident_Fatality*AccidentCost_Fatality -> 5597395.815 | F34: 5672581.928 | G34: 5748777.966 | H34: 5825997.494 | I34: 5904254.262 | J34: 5983562.201 | K34: 6063935.431 | L34: 6145388.261 | M34: 6227935.193 | N34: 6311590.924 | O34: 6396370.347 | P34: 6482288.555 | Q34: 6569360.846 | R34: 6657602.721 | S34: 6747029.891 | T34: 6837658.277 | U34: 6929504.014 | V34: 7022583.455 | W34: 7116913.169 | X34: 7212509.952 | Y34: 7309390.824 | Z34: 7407573.032 | AA34: 7507074.057 | AB34: 7607911.613 | AC34: 7710103.653 | AD34: 7813668.372 | AE34: 7918624.206 | AF34: 8024989.843 | AG34: 8132784.219 | AH34: 8242026.526 | AI34: 8352736.212 | AJ34: 8464932.988 | AK34: 8578636.829 | AL34: 8693867.978 | AM34: 8810646.952 | AN34: 8928994.54
A35: Serious Injury | B35: $/year | D35: =D14*number_of_victims_accident_incapacitating*AccidentCost_IncapacitatingInjury -> 5041969.282 | E35: 5109694.718 | F35: 5178329.864 | G35: 5247886.941 | H35: 5318378.333 | I35: 5389816.588 | J35: 5462214.426 | K35: 5535584.737 | L35: 5609940.582 | M35: 5685295.2 | N35: 5761662.007 | O35: 5839054.598 | P35: 5917486.753 | Q35: 5996972.435 | R35: 6077525.796 | S35: 6159161.177 | T35: 6241893.112 | U35: 6325736.33 | V35: 6410705.758 | W35: 6496816.525 | X35: 6584083.96 | Y35: 6672523.601 | Z35: 6762151.194 | AA35: 6852982.694 | AB35: 6945034.274 | AC35: 7038322.322 | AD35: 7132863.446 | AE35: 7228674.479 | AF35: 7325772.478 | AG35: 7424174.73 | AH35: 7523898.755 | AI35: 7624962.306 | AJ35: 7727383.377 | AK35: 7831180.202 | AL35: 7936371.261 | AM35: 8042975.283 | AN35: 8151011.245
A36: Non-Incapacitating Injury | B36: $/year | D36: =D15*number_of_victims_accident_nonincapacitating*AccidentCost_NonIncapacitating_Injury -> 2507646.098 | E36: 2541329.648 | F36: 2575465.647 | G36: 2610060.172 | H36: 2645119.382 | I36: 2680649.52 | J36: 2716656.91 | K36: 2753147.964 | L36: 2790129.178 | M36: 2827607.136 | N36: 2865588.511 | O36: 2904080.065 | P36: 2943088.65 | Q36: 2982621.211 | R36: 3022684.788 | S36: 3063286.511 | T36: 3104433.611 | U36: 3146133.413 | V36: 3188393.34 | W36: 3231220.917 | X36: 3274623.769 | Y36: 3318609.622 | Z36: 3363186.308 | AA36: 3408361.763 | AB36: 3454144.031 | AC36: 3500541.261 | AD36: 3547561.714 | AE36: 3595213.762 | AF36: 3643505.889 | AG36: 3692446.691 | AH36: 3742044.883 | AI36: 3792309.295 | AJ36: 3843248.875 | AK36: 3894872.693 | AL36: 3947189.94 | AM36: 4000209.929 | AN36: 4053942.101
A37: Possible Injury | B37: $/year | D37: =D16*number_of_victims_accident_possibleInjry*AccidentCost_PossibleInjury -> 274392.8861 | E37: 278078.6241 | F37: 281813.8702 | G37: 285599.2893 | H37: 289435.5555 | I37: 293323.3517 | J37: 297263.3701 | K37: 301256.3122 | L37: 305302.8888 | M37: 309403.8204 | N37: 313559.8371 | O37: 317771.6788 | P37: 322040.0954 | Q37: 326365.8468 | R37: 330749.7032 | S37: 335192.445 | T37: 339694.8632 | U37: 344257.7594 | V37: 348881.946 | W37: 353568.2462 | X37: 358317.4944 | Y37: 363130.5361 | Z37: 368008.2282 | AA37: 372951.4391 | AB37: 377961.0489 | AC37: 383037.9495 | AD37: 388183.0447 | AE37: 393397.2506 | AF37: 398681.4954 | AG37: 404036.72 | AH37: 409463.8778 | AI37: 414963.935 | AJ37: 420537.8708 | AK37: 426186.6777 | AL37: 431911.3612 | AM37: 437712.9406 | AN37: 443592.4487
A38: Property Damage Only (PDO) | B38: $/year | D38: =D17*number_of_victims_accident_PDO*AccidentCost_PDO -> 340683.5222 | E38: 345259.6984 | F38: 349897.3434 | G38: 354597.2828 | H38: 359360.3533 | I38: 364187.4031 | J38: 369079.2914 | K38: 374036.8892 | L38: 379061.0791 | M38: 384152.7556 | N38: 389312.8253 | O38: 394542.2067 | P38: 399841.831 | Q38: 405212.6416 | R38: 410655.5948 | S38: 416171.6595 | T38: 421761.8179 | U38: 427427.0652 | V38: 433168.41 | W38: 438986.8745 | X38: 444883.4946 | Y38: 450859.3201 | Z38: 456915.4149 | AA38: 463052.8572 | AB38: 469272.7397 | AC38: 475576.1697 | AD38: 481964.2696 | AE38: 488438.1765 | AF38: 494999.0432 | AG38: 501648.0377 | AH38: 508386.3437 | AI38: 515215.1609 | AJ38: 522135.7051 | AK38: 529149.2084 | AL38: 536256.9194 | AM38: 543460.1036 | AN38: 550760.0434
A40: Annual Cost of Collision on Anderson Interchange
A41: Fatal Accident | B41: $/year | D41: =D20*number_of_victims_accident_Fatality*AccidentCost_Fatality -> 2209282.497 | E41: 2238958.326 | F41: 2269032.771 | G41: 2299511.186 | H41: 2330398.998 | I41: 2361701.705 | J41: 2393424.88 | K41: 2425574.172 | L41: 2458155.304 | M41: 2491174.077 | N41: 2524636.37 | O41: 2558548.139 | P41: 2592915.422 | Q41: 2627744.338 | R41: 2663041.089 | S41: 2698811.957 | T41: 2735063.311 | U41: 2771801.606 | V41: 2809033.382 | W41: 2846765.268 | X41: 2885003.981 | Y41: 2923756.33 | Z41: 2963029.213 | AA41: 3002829.623 | AB41: 3043164.645 | AC41: 3084041.461 | AD41: 3125467.349 | AE41: 3167449.683 | AF41: 3209995.937 | AG41: 3253113.688 | AH41: 3296810.61 | AI41: 3341094.485 | AJ41: 3385973.195 | AK41: 3431454.732 | AL41: 3477547.191 | AM41: 3524258.781 | AN41: 3571597.816
A42: Serious Injury | B42: $/year | D42: =D21*number_of_victims_accident_incapacitating*AccidentCost_IncapacitatingInjury -> 2427614.84 | E42: 2460223.383 | F42: 2493269.935 | G42: 2526760.379 | H42: 2560700.679 | I42: 2595096.876 | J42: 2629955.094 | K42: 2665281.54 | L42: 2701082.502 | M42: 2737364.356 | N42: 2774133.559 | O42: 2811396.658 | P42: 2849160.289 | Q42: 2887431.173 | R42: 2926216.124 | S42: 2965522.048 | T42: 3005355.943 | U42: 3045724.899 | V42: 3086636.106 | W42: 3128096.845 | X42: 3170114.499 | Y42: 3212696.549 | Z42: 3255850.575 | AA42: 3299584.26 | AB42: 3343905.391 | AC42: 3388821.859 | AD42: 3434341.659 | AE42: 3480472.897 | AF42: 3527223.786 | AG42: 3574602.648 | AH42: 3622617.919 | AI42: 3671278.147 | AJ42: 3720591.996 | AK42: 3770568.245 | AL42: 3821215.793 | AM42: 3872543.655 | AN42: 3924560.97
A43: Non-Incapacitating Injury | B43: $/year | D43: =D22*number_of_victims_accident_nonincapacitating*AccidentCost_NonIncapacitating_Injury -> 1671764.065 | E43: 1694219.765 | F43: 1716977.098 | G43: 1740040.115 | H43: 1763412.922 | I43: 1787099.68 | J43: 1811104.607 | K43: 1835431.976 | L43: 1860086.119 | M43: 1885071.424 | N43: 1910392.341 | O43: 1936053.376 | P43: 1962059.1 | Q43: 1988414.141 | R43: 2015123.192 | S43: 2042191.008 | T43: 2069622.407 | U43: 2097422.275 | V43: 2125595.56 | W43: 2154147.278 | X43: 2183082.512 | Y43: 2212406.415 | Z43: 2242124.205 | AA43: 2272241.176 | AB43: 2302762.687 | AC43: 2333694.174 | AD43: 2365041.143 | AE43: 2396809.175 | AF43: 2429003.926 | AG43: 2461631.127 | AH43: 2494696.589 | AI43: 2528206.197 | AJ43: 2562165.917 | AK43: 2596581.795 | AL43: 2631459.96 | AM43: 2666806.619 | AN43: 2702628.067
A44: Possible Injury | B44: $/year | D44: =D23*number_of_victims_accident_possibleInjry*AccidentCost_PossibleInjury -> 121952.3938 | E44: 123590.4996 | F44: 125250.609 | G44: 126933.0175 | H44: 128638.0247 | I44: 130365.9341 | J44: 132117.0534 | K44: 133891.6943 | L44: 135690.1728 | M44: 137512.8091 | N44: 139359.9276 | O44: 141231.8573 | P44: 143128.9313 | Q44: 145051.4875 | R44: 146999.8681 | S44: 148974.42 | T44: 150975.4948 | U44: 153003.4486 | V44: 155058.6427 | W44: 157141.4428 | X44: 159252.2198 | Y44: 161391.3494 | Z44: 163559.2125 | AA44: 165756.1952 | AB44: 167982.6884 | AC44: 170239.0887 | AD44: 172525.7976 | AE44: 174843.2225 | AF44: 177191.7757 | AG44: 179571.8756 | AH44: 181983.9457 | AI44: 184428.4156 | AJ44: 186905.7204 | AK44: 189416.3012 | AL44: 191960.605 | AM44: 194539.0847 | AN44: 197152.1994
A45: Property Damage Only (PDO) | B45: $/year | D45: =D24*number_of_victims_accident_PDO*AccidentCost_PDO -> 155529.434 | E45: 157618.558 | F45: 159735.7437 | G45: 161881.3682 | H45: 164055.8135 | I45: 166259.4666 | J45: 168492.72 | K45: 170755.9711 | L45: 173049.6231 | M45: 175374.0841 | N45: 177729.7681 | O45: 180117.0944 | P45: 182536.4881 | Q45: 184988.3799 | R45: 187473.2063 | S45: 189991.4098 | T45: 192543.4386 | U45: 195129.7472 | V45: 197750.7959 | W45: 200407.0514 | X45: 203098.9867 | Y45: 205827.0809 | Z45: 208591.8198 | AA45: 211393.6957 | AB45: 214233.2072 | AC45: 217110.8601 | AD45: 220027.1665 | AE45: 222982.6458 | AF45: 225977.8241 | AG45: 229013.2346 | AH45: 232089.4178 | AI45: 235206.9213 | AJ45: 238366.3001 | AK45: 241568.1169 | AL45: 244812.9415 | AM45: 248101.3516 | AN45: 251433.9328
A47: Annual Cost of Collision on Douglas Interchange
A48: Fatal Accident | B48: $/year | D48: =D27*number_of_victims_accident_Fatality*AccidentCost_Fatality -> 1104641.248 | E48: 1119479.163 | F48: 1134516.386 | G48: 1149755.593 | H48: 1165199.499 | I48: 1180850.852 | J48: 1196712.44 | K48: 1212787.086 | L48: 1229077.652 | M48: 1245587.039 | N48: 1262318.185 | O48: 1279274.069 | P48: 1296457.711 | Q48: 1313872.169 | R48: 1331520.544 | S48: 1349405.978 | T48: 1367531.655 | U48: 1385900.803 | V48: 1404516.691 | W48: 1423382.634 | X48: 1442501.99 | Y48: 1461878.165 | Z48: 1481514.606 | AA48: 1501414.811 | AB48: 1521582.323 | AC48: 1542020.731 | AD48: 1562733.674 | AE48: 1583724.841 | AF48: 1604997.969 | AG48: 1626556.844 | AH48: 1648405.305 | AI48: 1670547.242 | AJ48: 1692986.598 | AK48: 1715727.366 | AL48: 1738773.596 | AM48: 1762129.39 | AN48: 1785798.908
A49: Serious Injury | B49: $/year | D49: =D28*number_of_victims_accident_incapacitating*AccidentCost_IncapacitatingInjury -> 1493916.824 | E49: 1513983.62 | F49: 1534319.96 | G49: 1554929.464 | H49: 1575815.802 | I49: 1596982.693 | J49: 1618433.904 | K49: 1640173.255 | L49: 1662204.617 | M49: 1684531.911 | N49: 1707159.113 | O49: 1730090.251 | P49: 1753329.408 | Q49: 1776880.722 | R49: 1800748.384 | S49: 1824936.645 | T49: 1849449.811 | U49: 1874292.246 | V49: 1899468.373 | W49: 1924982.674 | X49: 1950839.692 | Y49: 1977044.03 | Z49: 2003600.354 | AA49: 2030513.391 | AB49: 2057787.933 | AC49: 2085428.836 | AD49: 2113441.021 | AE49: 2141829.475 | AF49: 2170599.253 | AG49: 2199755.476 | AH49: 2229303.335 | AI49: 2259248.091 | AJ49: 2289595.075 | AK49: 2320349.689 | AL49: 2351517.411 | AM49: 2383103.787 | AN49: 2415114.443
A50: Non-Incapacitating Injury | B50: $/year | D50: =D29*number_of_victims_accident_nonincapacitating*AccidentCost_NonIncapacitating_Injury -> 2865881.255 | E50: 2904376.741 | F50: 2943389.311 | G50: 2982925.911 | H50: 3022993.58 | I50: 3063599.451 | J50: 3104750.755 | K50: 3146454.816 | L50: 3188719.061 | M50: 3231551.013 | N50: 3274958.299 | O50: 3318948.645 | P50: 3363529.885 | Q50: 3408709.956 | R50: 3454496.9 | S50: 3500898.87 | T50: 3547924.127 | U50: 3595581.043 | V50: 3643878.103 | W50: 3692823.905 | X50: 3742427.164 | Y50: 3792696.711 | Z50: 3843641.495 | AA50: 3895270.587 | AB50: 3947593.178 | AC50: 4000618.584 | AD50: 4054356.245 | AE50: 4108815.728 | AF50: 4164006.73 | AG50: 4219939.076 | AH50: 4276622.724 | AI50: 4334067.766 | AJ50: 4392284.429 | AK50: 4451283.078 | AL50: 4511074.217 | AM50: 4571668.49 | AN50: 4633076.687
A51: Possible Injury | B51: $/year | D51: =D30*number_of_victims_accident_possibleInjry*AccidentCost_PossibleInjury -> 301069.9723 | E51: 305114.0459 | F51: 309212.4409 | G51: 313365.8869 | H51: 317575.1234 | I51: 321840.8998 | J51: 326163.9756 | K51: 330545.1203 | L51: 334985.1141 | M51: 339484.7474 | N51: 344044.8213 | O51: 348666.1476 | P51: 353349.5491 | Q51: 358095.8597 | R51: 362905.9243 | S51: 367780.5994 | T51: 372720.7527 | U51: 377727.2638 | V51: 382801.0241 | W51: 387942.9369 | X51: 393153.9175 | Y51: 398434.8938 | Z51: 403786.806 | AA51: 409210.6068 | AB51: 414707.262 | AC51: 420277.7501 | AD51: 425923.0629 | AE51: 431644.2055 | AF51: 437442.1963 | AG51: 443318.0678 | AH51: 449272.8659 | AI51: 455307.6509 | AJ51: 461423.4972 | AK51: 467621.4935 | AL51: 473902.7435 | AM51: 480268.3653 | AN51: 486719.4924
A52: Property Damage Only (PDO) | B52: $/year | D52: =D31*number_of_victims_accident_PDO*AccidentCost_PDO -> 312910.409 | E52: 317113.5274 | F52: 321373.1034 | G52: 325689.8956 | H52: 330064.6724 | I52: 334498.2126 | J52: 338991.3057 | K52: 343544.7514 | L52: 348159.3607 | M52: 352835.9549 | N52: 357575.3667 | O52: 362378.4399 | P52: 367246.0296 | Q52: 372179.0024 | R52: 377178.2365 | S52: 382244.6221 | T52: 387379.061 | U52: 392582.4675 | V52: 397855.7679 | W52: 403199.9011 | X52: 408615.8184 | Y52: 414104.4842 | Z52: 419666.8756 | AA52: 425303.9829 | AB52: 431016.8098 | AC52: 436806.3733 | AD52: 442673.7041 | AE52: 448619.8469 | AF52: 454645.8604 | AG52: 460752.8172 | AH52: 466941.8048 | AI52: 473213.9249 | AJ52: 479570.2943 | AK52: 486012.0446 | AL52: 492540.3227 | AM52: 499156.2908 | AN52: 505861.1268
A54: Total Cost | B54: $/year | D54: =SUM(D34:D38,D41:D45,D48:D52) -> 26352460.97 | E54: =SUM(E34:E38,E41:E45,E48:E52) -> 26706436.13 | F54: =SUM(F34:F38,F41:F45,F48:F52) -> 27065166.01 | G54: =SUM(G34:G38,G41:G45,G48:G52) -> 27428714.47 | H54: 27797146.23 | I54: 28170526.89 | J54: 28548922.93 | K54: 28932401.72 | L54: 29321031.52 | M54: 29714881.52 | N54: 30114021.85 | O54: 30518523.57 | P54: 30928458.7 | Q54: 31343900.21 | R54: 31764922.07 | S54: 32191599.24 | T54: 32624007.68 | U54: 33062224.38 | V54: 33506327.35 | W54: 33956395.67 | X54: 34412509.45 | Y54: 34874749.91 | Z54: 35343199.34 | AA54: 35817941.14 | AB54: =SUM(AB34:AB38,AB41:AB45,AB48:AB52) -> 36299059.83 | AC54: 36786641.07 | AD54: 37280771.67 | AE54: 37781539.59 | AF54: 38289034 | AG54: =SUM(AG34:AG38,AG41:AG45,AG48:AG52) -> 38803345.25 | AH54: 39324564.9 | AI54: =SUM(AI34:AI38,AI41:AI45,AI48:AI52) -> 39852785.75 | AJ54: 40388101.84 | AK54: 40930608.47 | AL54: 41480402.24 | AM54: 42037581.02 | AN54: 42602244.02
A56: Build (Alternative Case) | B56: Unit | D56: =Base.Year -> 2019 | E56: =D56+1 -> 2020 | F56: =E56+1 -> 2021 | G56: =F56+1 -> 2022 | H56: =G56+1 -> 2023 | I56: =H56+1 -> 2024 | J56: =I56+1 -> 2025 | K56: =J56+1 -> 2026 | L56: =K56+1 -> 2027 | M56: =L56+1 -> 2028 | N56: =M56+1 -> 2029 | O56: =N56+1 -> 2030 | P56: =O56+1 -> 2031 | Q56: =P56+1 -> 2032 | R56: =Q56+1 -> 2033 | S56: =R56+1 -> 2034 | T56: =S56+1 -> 2035 | U56: =T56+1 -> 2036 | V56: =U56+1 -> 2037 | W56: =V56+1 -> 2038 | X56: =W56+1 -> 2039 | Y56: =X56+1 -> 2040 | Z56: =Y56+1 -> 2041 | AA56: =Z56+1 -> 2042 | AB56: =AA56+1 -> 2043 | AC56: =AB56+1 -> 2044 | AD56: =AC56+1 -> 2045 | AE56: =AD56+1 -> 2046 | AF56: =AE56+1 -> 2047 | AG56: =AF56+1 -> 2048 | AH56: =AG56+1 -> 2049 | AI56: =AH56+1 -> 2050 | AJ56: =AI56+1 -> 2051 | AK56: =AJ56+1 -> 2052 | AL56: =AK56+1 -> 2053 | AM56: =AL56+1 -> 2054 | AN56: =AM56+1 -> 2055
A57: Average Number of Accidents on Mainline
A58: Fatal Accident | B58: Number/Year | D58: =Acc_Fatal_Mainlanes*(1+$B$9) -> 0.506716169 | E58: =D58*(1+$B$9) -> 0.5135225519 | F58: =E58*(1+$B$9) -> 0.5204203603 | G58: =F58*(1+$B$9) -> 0.5274108225 | H58: 0.534495183 | I58: 0.5416747029 | J58: =I58*(1+$B$9) -> 0.5489506606 | K58: =K13*$B$63 -> 0.4116800201 | L58: =L13*$B$63 -> 0.4172098452 | M58: =M13*$B$63 -> 0.4228139489 | N58: =N13*$B$63 -> 0.4284933288 | O58: 0.434248996 | P58: 0.4400819753 | Q58: 0.4459933051 | R58: 0.451984038 | S58: 0.4580552403 | T58: 0.4642079931 | U58: 0.4704433918 | V58: 0.4767625465 | W58: 0.4831665821 | X58: 0.489656639 | Y58: 0.4962338725 | Z58: 0.5028994536 | AA58: 0.509654569 | AB58: 0.5165004214 | AC58: 0.5234382297 | AD58: 0.5304692289 | AE58: 0.5375946709 | AF58: 0.5448158242 | AG58: 0.5521339745 | AH58: 0.5595504247 | AI58: 0.5670664951 | AJ58: 0.5746835239 | AK58: 0.5824028673 | AL58: 0.5902258995 | AM58: 0.5981540132 | AN58: 0.6061886201
A59: Serious Injury | B59: Number/Year | D59: =Acc_IncapacitatingInj_Mailanes*(1+$B$9) -> 2.736267313 | E59: =D59*(1+$B$9) -> 2.77302178 | F59: =E59*(1+$B$9) -> 2.810269946 | G59: 2.848018442 | H59: 2.886273988 | I59: 2.925043396 | J59: 2.964333567 | K59: =K14*$B$63 -> 2.223072108 | L59: =L14*$B$63 -> 2.252933164 | M59: 2.283195324 | N59: 2.313863975 | O59: 2.344944578 | P59: 2.376442667 | Q59: 2.408363848 | R59: 2.440713805 | S59: 2.473498298 | T59: 2.506723163 | U59: 2.540394316 | V59: 2.574517751 | W59: 2.609099544 | X59: 2.64414585 | Y59: 2.679662911 | Z59: 2.715657049 | AA59: 2.752134673 | AB59: 2.789102276 | AC59: 2.82656644 | AD59: 2.864533836 | AE59: 2.903011223 | AF59: 2.942005451 | AG59: 2.981523462 | AH59: 3.021572293 | AI59: 3.062159074 | AJ59: 3.103291029 | AK59: 3.144975483 | AL59: 3.187219857 | AM59: 3.230031671 | AN59: 3.273418549
A60: Non-Incapacitating Injury | B60: Number/Year | D60: =Acc_NonIncapacitatingInj_mainlanes*(1+$B$9) -> 4.25641582 | E60: 4.313589436 | F60: =E60*(1+$B$9) -> 4.371531027 | G60: 4.430250909 | H60: 4.489759537 | I60: 4.550067505 | J60: 4.611185549 | K60: =K15*$B$63 -> 3.458112169 | L60: 3.5045627 | M60: 3.551637171 | N60: 3.599343962 | O60: 3.647691566 | P60: 3.696688592 | Q60: 3.746343763 | R60: 3.796665919 | S60: 3.847664019 | T60: 3.899347142 | U60: 3.951724491 | V60: 4.00480539 | W60: 4.05859929 | X60: 4.113115767 | Y60: 4.168364529 | Z60: 4.22435541 | AA60: 4.28109838 | AB60: 4.33860354 | AC60: 4.396881129 | AD60: 4.455941523 | AE60: 4.515795235 | AF60: 4.576452923 | AG60: 4.637925386 | AH60: 4.700223567 | AI60: 4.763358559 | AJ60: 4.827341601 | AK60: 4.892184085 | AL60: 4.957897555 | AM60: 5.024493711 | AN60: 5.091984409
A61: Possible Injury | B61: Number/Year | D61: =Acc_PossibleInj_Mainlanes*(1+$B$9) -> 7.296712834 | E61: 7.394724747 | F61: =E61*(1+$B$9) -> 7.494053189 | G61: 7.594715844 | H61: 7.696730635 | I61: 7.800115722 | J61: 7.904889513 | K61: =K16*$B$63 -> 5.928192289 | L61: 6.007821772 | M61: 6.088520864 | N61: 6.170303934 | O61: 6.253185542 | P61: 6.337180444 | Q61: 6.422303594 | R61: 6.508570147 | S61: 6.595995461 | T61: 6.684595101 | U61: 6.774384842 | V61: 6.865380669 | W61: 6.957598783 | X61: 7.051055601 | Y61: 7.145767763 | Z61: 7.241752131 | AA61: 7.339025794 | AB61: 7.437606069 | AC61: 7.537510507 | AD61: 7.638756896 | AE61: 7.741363261 | AF61: 7.845347869 | AG61: 7.950729233 | AH61: 8.057526115 | AI61: 8.16575753 | AJ61: 8.275442745 | AK61: 8.386601289 | AL61: 8.499252952 | AM61: 8.613417791 | AN61: 8.72911613
A62: Property Damage Only (PDO) | B62: Number/Year | D62: =Acc_PDO_Mainlanes*(1+$B$9) -> 37.29431004 | E62: 37.79525982 | F62: =E62*(1+$B$9) -> 38.30293852 | G62: 38.81743654 | H62: 39.33884547 | I62: 39.86725814 | J62: 40.40276862 | K62: =K17*$B$63 -> 30.29964948 | L62: 30.70664461 | M62: 31.11910664 | N62: 31.537109 | O62: 31.96072611 | P62: 32.39003338 | Q62: 32.82510726 | R62: 33.26602519 | S62: 33.71286569 | T62: 34.1657083 | U62: 34.62463364 | V62: 35.08972342 | W62: 35.56106044 | X62: 36.03872863 | Y62: 36.52281301 | Z62: 37.01339978 | AA62: 37.51057628 | AB62: 38.01443102 | AC62: 38.5250537 | AD62: 39.04253525 | AE62: 39.56696778 | AF62: 40.09844466 | AG62: 40.63706052 | AH62: 41.18291126 | AI62: 41.73609404 | AJ62: 42.29670736 | AK62: 42.86485103 | AL62: 43.4406262 | AM62: 44.02413537 | AN62: 44.61548244
A63: CMF (All crashes) | B63: =C63 -> 0.74 | C63: =(Inputs!$E$80) -> 0.74
A65: Average Number of Accidents on Anderson Interchange
A66: Fatal Accident | B66: Number/Year | D66: =Acc_Fatal_AndersonInt*(1+$B$9) -> 0.2026864676 | E66: =D66*(1+$B$9) -> 0.2054090207 | F66: =E66*(1+$B$9) -> 0.2081681441 | G66: 0.210964329 | H66: 0.2137980732 | I66: =H66*(1+$B$9) -> 0.2166698812 | J66: =I66*(1+$B$9) -> 0.2195802642 | K66: =(K20*$B$71) -> 0.2025020639 | L66: 0.2052221401 | M66: =(M20*$B$71) -> 0.2079787532 | N66: 0.2107723942 | O66: 0.2136035602 | P66: 0.2164727554 | Q66: 0.2193804906 | R66: 0.2223272835 | S66: 0.2253136588 | T66: 0.228340148 | U66: 0.23140729 | V66: 0.234515631 | W66: 0.2376657242 | X66: 0.2408581305 | Y66: 0.2440934183 | Z66: 0.2473721636 | AA66: 0.2506949502 | AB66: 0.2540623695 | AC66: 0.2574750211 | AD66: 0.2609335126 | AE66: 0.2644384597 | AF66: 0.2679904865 | AG66: 0.2715902253 | AH66: 0.275238317 | AI66: 0.2789354111 | AJ66: 0.2826821658 | AK66: 0.2864792482 | AL66: 0.2903273343 | AM66: 0.2942271092 | AN66: 0.2981792672
A67: Serious Injury | B67: Number/Year | D67: =Acc_IncapacitatingInj_Anderson_Int*(1+$B$9) -> 1.317462039 | E67: =D67*(1+$B$9) -> 1.335158635 | F67: =E67*(1+$B$9) -> 1.353092937 | G67: 1.371268139 | H67: 1.389687476 | I67: 1.408354228 | J67: 1.427271718 | K67: 1.316263416 | L67: 1.333943911 | M67: =(M21*$B$71) -> 1.351861896 | N67: 1.370020562 | O67: 1.388423141 | P67: 1.40707291 | Q67: 1.425973189 | R67: 1.445127343 | S67: 1.464538782 | T67: 1.484210962 | U67: 1.504147385 | V67: 1.524351601 | W67: 1.544827207 | X67: 1.565577848 | Y67: 1.586607219 | Z67: 1.607919064 | AA67: 1.629517176 | AB67: 1.651405402 | AC67: 1.673587637 | AD67: 1.696067832 | AE67: 1.718849988 | AF67: 1.741938162 | AG67: 1.765336464 | AH67: 1.789049061 | AI67: 1.813080172 | AJ67: 1.837434078 | AK67: 1.862115114 | AL67: 1.887127673 | AM67: 1.91247621 | AN67: 1.938165237
A68: Non-Incapacitating Injury | B68: Number/Year | D68: =Acc_NonIncapacitatingInj_AndersonInt*(1+$B$9) -> 2.837610546 | E68: 2.87572629 | F68: =E68*(1+$B$9) -> 2.914354018 | G68: 2.953500606 | H68: 2.993173025 | I68: 3.033378336 | J68: 3.074123699 | K68: 2.835028895 | L68: 2.873109961 | M68: =(M22*$B$71) -> 2.911702545 | N68: 2.950813518 | O68: 2.990449843 | P68: 3.030618576 | Q68: 3.071326869 | R68: 3.11258197 | S68: 3.154391223 | T68: 3.196762072 | U68: 3.23970206 | V68: 3.283218833 | W68: 3.327320139 | X68: 3.372013827 | Y68: 3.417307857 | Z68: 3.463210291 | AA68: 3.509729302 | AB68: 3.556873172 | AC68: 3.604650295 | AD68: 3.653069176 | AE68: 3.702138436 | AF68: 3.751866811 | AG68: 3.802263154 | AH68: 3.853336438 | AI68: 3.905095756 | AJ68: 3.957550322 | AK68: 4.010709475 | AL68: 4.064582681 | AM68: 4.119179529 | AN68: 4.174509741
A69: Possible Injury | B69: Number/Year | D69: =Acc_PossibleInj_AndersonInt*(1+$B$9) -> 3.242983482 | E69: 3.286544332 | F69: =E69*(1+$B$9) -> 3.330690306 | G69: 3.375429264 | H69: 3.420769171 | I69: 3.466718099 | J69: 3.513284228 | K69: 3.240033023 | L69: 3.283554241 | M69: =(M23*$B$71) -> 3.327660052 | N69: 3.372358306 | O69: 3.417656963 | P69: 3.463564087 | Q69: 3.51008785 | R69: 3.557236537 | S69: 3.60501854 | T69: 3.653442368 | U69: 3.70251664 | V69: 3.752250095 | W69: 3.802651587 | X69: 3.853730088 | Y69: 3.905494693 | Z69: 3.957954618 | AA69: 4.011119203 | AB69: 4.064997911 | AC69: 4.119600337 | AD69: 4.174936202 | AE69: 4.231015356 | AF69: 4.287847784 | AG69: 4.345443605 | AH69: 4.403813072 | AI69: 4.462966578 | AJ69: 4.522914653 | AK69: 4.583667972 | AL69: 4.645237349 | AM69: 4.707633747 | AN69: 4.770868275
A70: Property Damage Only (PDO) | B70: Number/Year | D70: =Acc_PDO_AndersonInt*(1+$B$9) -> 17.02566328 | E70: 17.25435774 | F70: =E70*(1+$B$9) -> 17.48612411 | G70: 17.72100364 | H70: 17.95903815 | I70: 18.20027002 | J70: 18.4447422 | K70: 17.01017337 | L70: 17.23865977 | M70: =(M24*$B$71) -> 17.47021527 | N70: 17.70488111 | O70: 17.94269906 | P70: 18.18371145 | Q70: 18.42796121 | R70: 18.67549182 | S70: 18.92634734 | T70: 19.18057243 | U70: 19.43821236 | V70: 19.699313 | W70: 19.96392083 | X70: 20.23208296 | Y70: 20.50384714 | Z70: 20.77926175 | AA70: 21.05837581 | AB70: 21.34123903 | AC70: 21.62790177 | AD70: 21.91841506 | AE70: 22.21283062 | AF70: 22.51120087 | AG70: 22.81357893 | AH70: 23.12001863 | AI70: 23.43057453 | AJ70: 23.74530193 | AK70: 24.06425685 | AL70: 24.38749608 | AM70: 24.71507717 | AN70: 25.04705844
A71: CMF (All crashes) | B71: =C71 -> 0.91 | C71: =AVERAGE(Inputs!$E$81:$E$82) -> 0.91
A73: Average Number of Accidents on Douglas Interchange
A74: Fatal Accident | B74: Number/Year | D74: =Acc_Fatal_DouglasInt*(1+$B$9) -> 0.1013432338 | E74: 0.1027045104 | F74: =E74*(1+$B$9) -> 0.1040840721 | G74: 0.1054821645 | H74: 0.1068990366 | I74: 0.1083349406 | J74: =I74*(1+$B$9) -> 0.1097901321 | K74: =K27*($B$79) -> 0.06119567866 | L74: 0.0620176797 | M74: =M27*($B$79) -> 0.06285072213 | N74: 0.06369495428 | O74: 0.06455052643 | P74: 0.06541759092 | Q74: 0.06629630211 | R74: 0.06718681645 | S74: 0.06808929248 | T74: 0.06900389087 | U74: 0.06993077446 | V74: 0.07087010826 | W74: 0.07182205951 | X74: 0.07278679769 | Y74: 0.07376449455 | Z74: 0.07475532418 | AA74: 0.07575946296 | AB74: 0.07677708967 | AC74: 0.07780838549 | AD74: 0.07885353403 | AE74: 0.07991272135 | AF74: 0.08098613603 | AG74: 0.08207396918 | AH74: 0.08317641448 | AI74: 0.08429366819 | AJ74: 0.08542592924 | AK74: 0.08657339919 | AL74: 0.08773628235 | AM74: 0.08891478575 | AN74: 0.09010911921
A75: Serious Injury | B75: Number/Year | D75: =Acc_IncapacitatingInj_DouglasInt*(1+$B$9) -> 0.8107458704 | E75: 0.821636083 | F75: =E75*(1+$B$9) -> 0.8326725766 | G75: 0.843857316 | H75: 0.8551922927 | I75: 0.8666795247 | J75: 0.878321057 | K75: =K28*($B$79) -> 0.4895654293 | L75: 0.4961414376 | M75: =M28*($B$79) -> 0.5028057771 | N75: 0.5095596342 | O75: 0.5164042115 | P75: 0.5233407274 | Q75: 0.5303704169 | R75: 0.5374945316 | S75: 0.5447143399 | T75: 0.552031127 | U75: 0.5594461957 | V75: 0.5669608661 | W75: 0.574576476 | X75: 0.5822943815 | Y75: 0.5901159564 | Z75: 0.5980425934 | AA75: 0.6060757037 | AB75: 0.6142167174 | AC75: 0.6224670839 | AD75: 0.6308282722 | AE75: 0.6393017708 | AF75: 0.6478890883 | AG75: 0.6565917535 | AH75: 0.6654113158 | AI75: 0.6743493455 | AJ75: 0.6834074339 | AK75: 0.6925871935 | AL75: 0.7018902588 | AM75: 0.711318286 | AN75: 0.7208729537
A76: Non-Incapacitating Injury | B76: Number/Year | D76: =Acc_NonIncapacitatingInj_DouglasInt*(1+$B$9) -> 4.864475222 | E76: 4.929816498 | F76: =E76*(1+$B$9) -> 4.996035459 | G76: 5.063143896 | H76: 5.131153756 | I76: 5.200077148 | J76: 5.269926342 | K76: =K29*($B$79) -> 2.937392576 | L76: 2.976848626 | M76: =M29*($B$79) -> 3.016834662 | N76: 3.057357805 | O76: 3.098425269 | P76: 3.140044364 | Q76: 3.182222502 | R76: 3.22496719 | S76: 3.268286039 | T76: 3.312186762 | U76: 3.356677174 | V76: 3.401765196 | W76: 3.447458856 | X76: 3.493766289 | Y76: 3.540695739 | Z76: 3.588255561 | AA76: 3.636454222 | AB76: 3.685300304 | AC76: 3.734802504 | AD76: 3.784969633 | AE76: 3.835810625 | AF76: 3.88733453 | AG76: 3.939550521 | AH76: 3.992467895 | AI76: 4.046096073 | AJ76: 4.100444603 | AK76: 4.155523161 | AL76: 4.211341553 | AM76: 4.267909716 | AN76: 4.325237722
A77: Possible Injury | B77: Number/Year | D77: =Acc_PossibleInj_DouglasInt*(1+$B$9) -> 8.00611547 | E77: 8.113656319 | F77: =E77*(1+$B$9) -> 8.222641693 | G77: 8.333090996 | H77: 8.445023891 | I77: 8.558460306 | J77: 8.673420438 | K77: =K30*($B$79) -> 4.834458614 | L77: 4.899396696 | M77: =M30*($B$79) -> 4.965207049 | N77: 5.031901388 | O77: 5.099491588 | P77: 5.167989683 | Q77: 5.237407867 | R77: 5.3077585 | S77: 5.379054106 | T77: 5.451307379 | U77: 5.524531182 | V77: 5.598738552 | W77: 5.673942701 | X77: 5.750157017 | Y77: 5.82739507 | Z77: 5.90567061 | AA77: 5.984997574 | AB77: 6.065390084 | AC77: 6.146862454 | AD77: 6.229429188 | AE77: 6.313104986 | AF77: 6.397904746 | AG77: 6.483843566 | AH77: 6.570936744 | AI77: 6.659199787 | AJ77: 6.74864841 | AK77: 6.839298536 | AL77: 6.931166306 | AM77: 7.024268074 | AN77: 7.118620417
A78: Property Damage Only (PDO) | B78: Number/Year | D78: =Acc_PDO_DouglasInt*(1+$B$9) -> 34.25401302 | E78: 34.71412451 | F78: =E78*(1+$B$9) -> 35.18041636 | G78: 35.6529716 | H78: 36.13187437 | I78: 36.61720992 | J78: 37.10906466 | K78: =K31*($B$79) -> 20.68413939 | L78: 20.96197574 | M78: =M31*($B$79) -> 21.24354408 | N78: 21.52889455 | O78: 21.81807793 | P78: 22.11114573 | Q78: 22.40815011 | R78: 22.70914396 | S78: 23.01418086 | T78: 23.32331511 | U78: 23.63660177 | V78: 23.95409659 | W78: 24.27585611 | X78: 24.60193762 | Y78: 24.93239916 | Z78: 25.26729957 | AA78: 25.60669848 | AB78: 25.95065631 | AC78: 26.2992343 | AD78: 26.6524945 | AE78: 27.01049982 | AF78: 27.37331398 | AG78: 27.74100158 | AH78: 28.11362809 | AI78: 28.49125985 | AJ78: 28.87396408 | AK78: 29.26180893 | AL78: 29.65486343 | AM78: 30.05319758 | AN78: 30.45688229
A79: CMF (All crashes) | B79: =C79 -> 0.55 | C79: =Inputs!$E$83 -> 0.55
A81: Annual Cost of Collision on Mainline
A82: Fatal Accident | B82: $/year | D82: =D58*number_of_victims_accident_Fatality*AccidentCost_Fatality -> 5523206.242 | E82: 5597395.815 | F82: 5672581.928 | G82: 5748777.966 | H82: 5825997.494 | I82: 5904254.262 | J82: 5983562.201 | K82: =K58*number_of_victims_accident_Fatality*AccidentCost_Fatality -> 4487312.219 | L82: =L58*number_of_victims_accident_Fatality*AccidentCost_Fatality -> 4547587.313 | M82: 4608672.043 | N82: 4670577.284 | O82: 4733314.056 | P82: 4796893.531 | Q82: 4861327.026 | R82: 4926626.014 | S82: 4992802.12 | T82: 5059867.125 | U82: 5127832.971 | V82: 5196711.756 | W82: 5266515.745 | X82: 5337257.365 | Y82: 5408949.21 | Z82: 5481604.044 | AA82: 5555234.802 | AB82: 5629854.594 | AC82: 5705476.703 | AD82: 5782114.595 | AE82: 5859781.913 | AF82: 5938492.484 | AG82: 6018260.322 | AH82: 6099099.629 | AI82: 6181024.797 | AJ82: 6264050.411 | AK82: 6348191.253 | AL82: 6433462.304 | AM82: 6519878.744 | AN82: 6607455.959
A83: Serious Injury | B83: $/year | D83: =D59*number_of_victims_accident_incapacitating*AccidentCost_IncapacitatingInjury -> 5041969.282 | E83: 5109694.718 | F83: 5178329.864 | G83: 5247886.941 | H83: 5318378.333 | I83: 5389816.588 | J83: 5462214.426 | K83: 4096332.705 | L83: 4151356.031 | M83: 4207118.448 | N83: 4263629.885 | O83: 4320900.403 | P83: 4378940.197 | Q83: 4437759.602 | R83: 4497369.089 | S83: 4557779.271 | T83: 4619000.903 | U83: 4681044.884 | V83: 4743922.261 | W83: 4807644.228 | X83: 4872222.131 | Y83: 4937667.465 | Z83: 5003991.883 | AA83: 5071207.194 | AB83: 5139325.363 | AC83: 5208358.518 | AD83: 5278318.95 | AE83: 5349219.115 | AF83: 5421071.634 | AG83: 5493889.3 | AH83: 5567685.078 | AI83: 5642472.106 | AJ83: 5718263.699 | AK83: 5795073.35 | AL83: 5872914.734 | AM83: 5951801.709 | AN83: 6031748.322
A84: Non-Incapacitating Injury | B84: $/year | D84: =D60*number_of_victims_accident_nonincapacitating*AccidentCost_NonIncapacitating_Injury -> 2507646.098 | E84: 2541329.648 | F84: 2575465.647 | G84: 2610060.172 | H84: 2645119.382 | I84: 2680649.52 | J84: 2716656.91 | K84: 2037329.494 | L84: 2064695.592 | M84: 2092429.281 | N84: 2120535.498 | O84: 2149019.248 | P84: 2177885.601 | Q84: 2207139.696 | R84: 2236786.743 | S84: 2266832.018 | T84: 2297280.872 | U84: 2328138.725 | V84: 2359411.072 | W84: 2391103.479 | X84: 2423221.589 | Y84: 2455771.12 | Z84: 2488757.868 | AA84: 2522187.705 | AB84: 2556066.583 | AC84: 2590400.533 | AD84: 2625195.668 | AE84: 2660458.184 | AF84: 2696194.358 | AG84: 2732410.551 | AH84: 2769113.214 | AI84: 2806308.878 | AJ84: 2844004.168 | AK84: 2882205.793 | AL84: 2920920.555 | AM84: 2960155.347 | AN84: 2999917.155
A85: Possible Injury | B85: $/year | D85: =D61*number_of_victims_accident_possibleInjry*AccidentCost_PossibleInjury -> 274392.8861 | E85: 278078.6241 | F85: 281813.8702 | G85: 285599.2893 | H85: 289435.5555 | I85: 293323.3517 | J85: 297263.3701 | K85: 222929.671 | L85: 225924.1377 | M85: 228958.8271 | N85: 232034.2795 | O85: 235151.0423 | P85: 238309.6706 | Q85: 241510.7267 | R85: 244754.7804 | S85: 248042.4093 | T85: 251374.1988 | U85: 254750.742 | V85: 258172.6401 | W85: 261640.5022 | X85: 265154.9459 | Y85: 268716.5967 | Z85: 272326.0889 | AA85: 275984.065 | AB85: 279691.1762 | AC85: 283448.0826 | AD85: 287255.4531 | AE85: 291113.9654 | AF85: 295024.3066 | AG85: 298987.1728 | AH85: 303003.2696 | AI85: 307073.3119 | AJ85: 311198.0244 | AK85: 315378.1415 | AL85: 319614.4073 | AM85: 323907.576 | AN85: 328258.4121
A86: Property Damage Only (PDO) | B86: $/year | D86: =D62*number_of_victims_accident_PDO*AccidentCost_PDO -> 340683.5222 | E86: 345259.6984 | F86: 349897.3434 | G86: 354597.2828 | H86: 359360.3533 | I86: 364187.4031 | J86: 369079.2914 | K86: 276787.298 | L86: 280505.1985 | M86: 284273.0392 | N86: 288091.4907 | O86: 291961.233 | P86: 295882.9549 | Q86: 299857.3548 | R86: 303885.1401 | S86: 307967.0281 | T86: 312103.7453 | U86: 316296.0283 | V86: 320544.6234 | W86: 324850.2872 | X86: 329213.786 | Y86: 333635.8969 | Z86: 338117.407 | AA86: 342659.1143 | AB86: 347261.8273 | AC86: 351926.3656 | AD86: 356653.5595 | AE86: 361444.2506 | AF86: 366299.292 | AG86: 371219.5479 | AH86: 376205.8943 | AI86: 381259.2191 | AJ86: 386380.4218 | AK86: 391570.4142 | AL86: 396830.1203 | AM86: 402160.4766 | AN86: 407562.4321
A88: Annual Cost of Collision on Anderson Interchange
A89: Fatal Accident | B89: $/year | D89: =D66*number_of_victims_accident_Fatality*AccidentCost_Fatality -> 2209282.497 | E89: 2238958.326 | F89: 2269032.771 | G89: 2299511.186 | H89: 2330398.998 | I89: 2361701.705 | J89: 2393424.88 | K89: 2207272.497 | L89: 2236921.327 | M89: 2266968.41 | N89: 2297419.096 | O89: 2328278.806 | P89: 2359553.034 | Q89: 2391247.348 | R89: 2423367.391 | S89: 2455918.88 | T89: 2488907.613 | U89: 2522339.461 | V89: 2556220.377 | W89: 2590556.394 | X89: 2625353.623 | Y89: 2660618.26 | Z89: 2696356.584 | AA89: 2732574.957 | AB89: 2769279.827 | AC89: 2806477.73 | AD89: 2844175.287 | AE89: 2882379.211 | AF89: 2921096.303 | AG89: 2960333.456 | AH89: 3000097.655 | AI89: 3040395.981 | AJ89: 3081235.608 | AK89: 3122623.806 | AL89: 3164567.944 | AM89: 3207075.49 | AN89: 3250154.012
A90: Serious Injury | B90: $/year | D90: =D67*number_of_victims_accident_incapacitating*AccidentCost_IncapacitatingInjury -> 2427614.84 | E90: 2460223.383 | F90: 2493269.935 | G90: 2526760.379 | H90: 2560700.679 | I90: 2595096.876 | J90: 2629955.094 | K90: 2425406.201 | L90: 2457985.077 | M90: 2491001.564 | N90: 2524461.538 | O90: 2558370.959 | P90: 2592735.863 | Q90: 2627562.367 | R90: 2662856.673 | S90: 2698625.064 | T90: 2734873.908 | U90: 2771609.659 | V90: 2808838.856 | W90: 2846568.129 | X90: 2884804.194 | Y90: 2923553.859 | Z90: 2962824.023 | AA90: 3002621.677 | AB90: 3042953.906 | AC90: 3083827.891 | AD90: 3125250.91 | AE90: 3167230.337 | AF90: 3209773.645 | AG90: 3252888.41 | AH90: 3296582.306 | AI90: 3340863.114 | AJ90: 3385738.717 | AK90: 3431217.103 | AL90: 3477306.371 | AM90: 3524014.726 | AN90: 3571350.483
A91: Non-Incapacitating Injury | B91: $/year | D91: =D68*number_of_victims_accident_nonincapacitating*AccidentCost_NonIncapacitating_Injury -> 1671764.065 | E91: 1694219.765 | F91: 1716977.098 | G91: 1740040.115 | H91: 1763412.922 | I91: 1787099.68 | J91: 1811104.607 | K91: 1670243.098 | L91: 1692678.368 | M91: 1715414.996 | N91: 1738457.03 | O91: 1761808.573 | P91: 1785473.781 | Q91: 1809456.868 | R91: 1833762.104 | S91: 1858393.817 | T91: 1883356.391 | U91: 1908654.27 | V91: 1934291.96 | W91: 1960274.023 | X91: 1986605.086 | Y91: 2013289.837 | Z91: 2040333.027 | AA91: 2067739.47 | AB91: 2095514.045 | AC91: 2123661.698 | AD91: 2152187.44 | AE91: 2181096.349 | AF91: 2210393.572 | AG91: 2240084.326 | AH91: 2270173.896 | AI91: 2300667.639 | AJ91: 2331570.984 | AK91: 2362889.434 | AL91: 2394628.563 | AM91: 2426794.024 | AN91: 2459391.541
A92: Possible Injury | B92: $/year | D92: =D69*number_of_victims_accident_possibleInjry*AccidentCost_PossibleInjury -> 121952.3938 | E92: 123590.4996 | F92: 125250.609 | G92: 126933.0175 | H92: 128638.0247 | I92: 130365.9341 | J92: 132117.0534 | K92: 121841.4418 | L92: 123478.0573 | M92: 125136.6563 | N92: 126817.5341 | O92: 128520.9901 | P92: 130247.3275 | Q92: 131996.8536 | R92: 133769.88 | S92: 135566.7222 | T92: 137387.7002 | U92: 139233.1383 | V92: 141103.3648 | W92: 142998.7129 | X92: 144919.52 | Y92: 146866.1279 | Z92: 148838.8834 | AA92: 150838.1376 | AB92: 152864.2465 | AC92: 154917.5707 | AD92: 156998.4759 | AE92: 159107.3325 | AF92: 161244.5159 | AG92: 163410.4068 | AH92: 165605.3906 | AI92: 167829.8582 | AJ92: 170084.2055 | AK92: 172368.8341 | AL92: 174684.1505 | AM92: 177030.5671 | AN92: 179408.5015
A93: Property Damage Only (PDO) | B93: $/year | D93: =D70*number_of_victims_accident_PDO*AccidentCost_PDO -> 155529.434 | E93: 157618.558 | F93: 159735.7437 | G93: 161881.3682 | H93: 164055.8135 | I93: 166259.4666 | J93: 168492.72 | K93: 155387.9337 | L93: 157475.157 | M93: 159590.4165 | N93: 161734.0889 | O93: 163906.5559 | P93: 166108.2041 | Q93: 168339.4257 | R93: 170600.6177 | S93: 172892.1829 | T93: 175214.5291 | U93: 177568.0699 | V93: 179953.2243 | W93: 182370.4168 | X93: 184820.0779 | Y93: 187302.6436 | Z93: 189818.556 | AA93: 192368.2631 | AB93: 194952.2186 | AC93: 197570.8827 | AD93: 200224.7216 | AE93: 202914.2077 | AF93: 205639.8199 | AG93: 208402.0435 | AH93: 211201.3702 | AI93: 214038.2984 | AJ93: 216913.3331 | AK93: 219826.9863 | AL93: 222779.7767 | AM93: 225772.23 | AN93: 228804.8789
A95: Annual Cost of Collision on Douglas Interchange
A96: Fatal Accident | B96: $/year | D96: =D74*number_of_victims_accident_Fatality*AccidentCost_Fatality -> 1104641.248 | E96: 1119479.163 | F96: 1134516.386 | G96: 1149755.593 | H96: 1165199.499 | I96: 1180850.852 | J96: 1196712.44 | K96: 667032.8974 | L96: 675992.7087 | M96: 685072.8713 | N96: 694275.0016 | O96: 703600.7381 | P96: 713051.7411 | Q96: 722629.6931 | R96: 732336.2993 | S96: 742173.288 | T96: 752142.4105 | U96: 762245.4416 | V96: 772484.18 | W96: 782860.4486 | X96: 793376.0948 | Y96: 804032.9906 | Z96: 814833.0335 | AA96: 825778.1463 | AB96: 836870.2774 | AC96: 848111.4019 | AD96: 859503.5209 | AE96: 871048.6627 | AF96: 882748.8827 | AG96: 894606.2641 | AH96: 906622.9178 | AI96: 918800.9833 | AJ96: 931142.6287 | AK96: 943650.0512 | AL96: 956325.4776 | AM96: 969171.1647 | AN96: 982189.3994
A97: Serious Injury | B97: $/year | D97: =D75*number_of_victims_accident_incapacitating*AccidentCost_IncapacitatingInjury -> 1493916.824 | E97: 1513983.62 | F97: 1534319.96 | G97: 1554929.464 | H97: 1575815.802 | I97: 1596982.693 | J97: 1618433.904 | K97: 902095.2904 | L97: 914212.5393 | M97: 926492.5511 | N97: 938937.5122 | O97: 951549.6382 | P97: 964331.1746 | Q97: 977284.3969 | R97: 990411.6112 | S97: 1003715.155 | T97: 1017197.396 | U97: 1030860.735 | V97: 1044707.605 | W97: 1058740.471 | X97: 1072961.831 | Y97: 1087374.217 | Z97: 1101980.195 | AA97: 1116782.365 | AB97: 1131783.363 | AC97: 1146985.86 | AD97: 1162392.562 | AE97: 1178006.211 | AF97: 1193829.589 | AG97: 1209865.512 | AH97: 1226116.834 | AI97: 1242586.45 | AJ97: 1259277.291 | AK97: 1276192.329 | AL97: 1293334.576 | AM97: 1310707.083 | AN97: 1328312.944
A98: Non-Incapacitating Injury | B98: $/year | D98: =D76*number_of_victims_accident_nonincapacitating*AccidentCost_NonIncapacitating_Injury -> 2865881.255 | E98: 2904376.741 | F98: 2943389.311 | G98: 2982925.911 | H98: 3022993.58 | I98: 3063599.451 | J98: 3104750.755 | K98: 1730550.149 | L98: 1753795.483 | M98: 1777353.057 | N98: 1801227.064 | O98: 1825421.755 | P98: 1849941.437 | Q98: 1874790.476 | R98: 1899973.295 | S98: 1925494.379 | T98: 1951358.27 | U98: 1977569.574 | V98: 2004132.957 | W98: 2031053.148 | X98: 2058334.94 | Y98: 2085983.191 | Z98: 2114002.822 | AA98: 2142398.823 | AB98: 2171176.248 | AC98: 2200340.221 | AD98: 2229895.935 | AE98: 2259848.65 | AF98: 2290203.701 | AG98: 2320966.492 | AH98: 2352142.498 | AI98: 2383737.271 | AJ98: 2415756.436 | AK98: 2448205.693 | AL98: 2481090.819 | AM98: 2514417.67 | AN98: 2548192.178
A99: Possible Injury | B99: $/year | D99: =D77*number_of_victims_accident_possibleInjry*AccidentCost_PossibleInjury -> 301069.9723 | E99: 305114.0459 | F99: 309212.4409 | G99: 313365.8869 | H99: 317575.1234 | I99: 321840.8998 | J99: 326163.9756 | K99: 181799.8162 | L99: 184241.8128 | M99: 186716.6111 | N99: 189224.6517 | O99: 191766.3812 | P99: 194342.252 | Q99: 196952.7228 | R99: 199598.2584 | S99: 202279.3297 | T99: 204996.414 | U99: 207749.9951 | V99: 210540.5633 | W99: 213368.6153 | X99: 216234.6546 | Y99: 219139.1916 | Z99: 222082.7433 | AA99: 225065.8338 | AB99: 228088.9941 | AC99: 231152.7626 | AD99: 234257.6846 | AE99: 237404.313 | AF99: 240593.208 | AG99: 243824.9373 | AH99: 247100.0763 | AI99: 250419.208 | AJ99: 253782.9234 | AK99: 257191.8215 | AL99: 260646.5089 | AM99: 264147.6009 | AN99: 267695.7208
A100: Property Damage Only (PDO) | B100: $/year | D100: =D78*number_of_victims_accident_PDO*AccidentCost_PDO -> 312910.409 | E100: 317113.5274 | F100: 321373.1034 | G100: 325689.8956 | H100: 330064.6724 | I100: 334498.2126 | J100: 338991.3057 | K100: 188949.6133 | L100: 191487.6484 | M100: 194059.7752 | N100: 196666.4517 | O100: 199308.1419 | P100: 201985.3163 | Q100: 204698.4513 | R100: 207448.0301 | S100: 210234.5421 | T100: 213058.4836 | U100: 215920.3571 | V100: 218820.6724 | W100: 221759.9456 | X100: 224738.7001 | Y100: 227757.4663 | Z100: 230816.7816 | AA100: 233917.1906 | AB100: 237059.2454 | AC100: 240243.5053 | AD100: 243470.5373 | AE100: 246740.9158 | AF100: 250055.2232 | AG100: 253414.0495 | AH100: 256817.9926 | AI100: 260267.6587 | AJ100: 263763.6619 | AK100: 267306.6245 | AL100: 270897.1775 | AM100: 274535.9599 | AN100: 278223.6197
A102: Total Cost | B102: $/year | D102: =SUM(D82:D86,D89:D93,D96:D100) -> 26352460.97 | E102: =SUM(E82:E86,E89:E93,E96:E100) -> 26706436.13 | F102: =SUM(F82:F86,F89:F93,F96:F100) -> 27065166.01 | G102: 27428714.47 | H102: 27797146.23 | I102: 28170526.89 | J102: 28548922.93 | K102: 21371270.32 | L102: 21658336.45 | M102: 21949258.55 | N102: 22244088.41 | O102: 22542878.52 | P102: 22845682.08 | Q102: 23152553.01 | R102: 23463545.93 | S102: 23778716.21 | T102: 24098119.96 | U102: 24421814.05 | V102: 24749856.11 | W102: 25082304.55 | X102: 25419218.54 | Y102: 25760658.07 | Z102: 26106683.94 | AA102: 26457357.74 | AB102: 26812741.91 | AC102: 27172899.73 | AD102: 27537895.3 | AE102: 27907793.62 | AF102: 28282660.53 | AG102: 28662562.79 | AH102: 29047568.02 | AI102: 29437744.77 | AJ102: 29833162.51 | AK102: 30233891.63 | AL102: 30640003.49 | AM102: 31051570.37 | AN102: 31468665.56
A104: No Build Less Build | B104: Unit | D104: =Base.Year -> 2019 | E104: =D104+1 -> 2020 | F104: =E104+1 -> 2021 | G104: =F104+1 -> 2022 | H104: =G104+1 -> 2023 | I104: =H104+1 -> 2024 | J104: =I104+1 -> 2025 | K104: =J104+1 -> 2026 | L104: 2027 | M104: =L104+1 -> 2028 | N104: =M104+1 -> 2029 | O104: =N104+1 -> 2030 | P104: =O104+1 -> 2031 | Q104: =P104+1 -> 2032 | R104: =Q104+1 -> 2033 | S104: =R104+1 -> 2034 | T104: =S104+1 -> 2035 | U104: =T104+1 -> 2036 | V104: =U104+1 -> 2037 | W104: =V104+1 -> 2038 | X104: =W104+1 -> 2039 | Y104: =X104+1 -> 2040 | Z104: =Y104+1 -> 2041 | AA104: =Z104+1 -> 2042 | AB104: =AA104+1 -> 2043 | AC104: =AB104+1 -> 2044 | AD104: =AC104+1 -> 2045 | AE104: =AD104+1 -> 2046 | AF104: =AE104+1 -> 2047 | AG104: =AF104+1 -> 2048 | AH104: =AG104+1 -> 2049 | AI104: =AH104+1 -> 2050 | AJ104: =AI104+1 -> 2051 | AK104: =AJ104+1 -> 2052 | AL104: =AK104+1 -> 2053 | AM104: =AL104+1 -> 2054 | AN104: =AM104+1 -> 2055
A105: Undiscounted Impacts | B105: $/year | D105: =D54-D102 -> 0 | E105: =E54-E102 -> 0 | F105: 0 | G105: 0 | H105: 0 | I105: 0 | J105: 0 | K105: =K54-K102 -> 7561131.392 | L105: 7662695.064 | M105: 7765622.974 | N105: 7869933.447 | O105: 7975645.053 | P105: 8082776.613 | Q105: 8191347.201 | R105: 8301376.145 | S105: 8412883.035 | T105: 8525887.724 | U105: 8640410.329 | V105: 8756471.241 | W105: 8874091.123 | X105: 8993290.914 | Y105: 9114091.838 | Z105: 9236515.4 | AA105: 9360583.397 | AB105: =AB54-AB102 -> 9486317.917 | AC105: 9613741.345 | AD105: 9742876.369 | AE105: 9873745.977 | AF105: 10006373.47 | AG105: =AG54-AG102 -> 10140782.46 | AH105: 10276996.88 | AI105: =AI54-AI102 -> 10415040.97 | AJ105: 10554939.33 | AK105: 10696716.84 | AL105: 10840398.75 | AM105: 10986010.65 | AN105: 11133578.46
A106: Discounted Impacts, at 7% | B106: $/year | D106: =D105*D6 -> 0 | E106: 0 | F106: 0 | G106: 0 | H106: 0 | I106: 0 | J106: 0 | K106: 4708692.623 | L106: 4459758.293 | M106: 4223984.368 | N106: 4000675.097 | O106: 3789171.511 | P106: 3588849.48 | Q106: 3399117.869 | R106: 3219416.793 | S106: 3049215.97 | T106: 2888013.149 | U106: 2735332.633 | V106: 2590723.875 | W106: 2453760.143 | X106: 2324037.27 | Y106: 2201172.453 | Z106: 2084803.126 | AA106: 1974585.894 | AB106: 1870195.513 | AC106: 1771323.936 | AD106: 1677679.4 | AE106: 1588985.567 | AF106: 1504980.708 | AG106: 1425416.933 | AH106: 1350059.453 | AI106: 1278685.895 | AJ106: 1211085.641 | AK106: 1147059.209 | AL106: 1086417.659 | AM106: 1028982.045 | AN106: 974582.8786
A107: Discounted Impacts, at 3% | B107: $/year | D107: =D105*D7 -> 0 | E107: 0 | F107: 0 | G107: 0 | H107: 0 | I107: 0 | J107: 0 | K107: 6147891.751 | L107: 6049002.243 | M107: 5951703.385 | N107: 5855969.589 | O107: 5761775.681 | P107: 5669096.893 | Q107: 5577908.853 | R107: 5488187.582 | S107: 5399909.488 | T107: 5313051.357 | U107: 5227590.348 | V107: 5143503.989 | W107: 5060770.168 | X107: 4979367.13 | Y107: 4899273.468 | Z107: 4820468.121 | AA107: 4742930.368 | AB107: 4666639.817 | AC107: 4591576.408 | AD107: 4517720.402 | AE107: 4445052.378 | AF107: 4373553.227 | AG107: 4303204.148 | AH107: 4233986.642 | AI107: 4165882.506 | AJ107: 4098873.833 | AK107: 4032943.002 | AL107: 3968072.675 | AM107: 3904245.795 | AN107: 3841445.576
A109: Key Quantified Impacts
A110: Total Accident Costs Saving | B110: $/year | D110: =D105 -> 0 | E110: =E105 -> 0 | F110: =F105 -> 0 | G110: =G105 -> 0 | H110: 0 | I110: 0 | J110: 0 | K110: 7561131.392 | L110: 7662695.064 | M110: 7765622.974 | N110: 7869933.447 | O110: 7975645.053 | P110: 8082776.613 | Q110: 8191347.201 | R110: 8301376.145 | S110: 8412883.035 | T110: 8525887.724 | U110: 8640410.329 | V110: 8756471.241 | W110: 8874091.123 | X110: 8993290.914 | Y110: 9114091.838 | Z110: 9236515.4 | AA110: 9360583.397 | AB110: =AB105 -> 9486317.917 | AC110: 9613741.345 | AD110: 9742876.369 | AE110: 9873745.977 | AF110: 10006373.47 | AG110: =AG105 -> 10140782.46 | AH110: 10276996.88 | AI110: =AI105 -> 10415040.97 | AJ110: 10554939.33 | AK110: 10696716.84 | AL110: 10840398.75 | AM110: 10986010.65 | AN110: 11133578.46

Sheet Travel Time Savings
A2: Travel Time Savings
B4: Unit | C4: Value | D4: =Base.Year -> 2019 | E4: =D4+1 -> 2020 | F4: =E4+1 -> 2021 | G4: 2022 | H4: 2023 | I4: 2024 | J4: 2025 | K4: 2026 | L4: 2027 | M4: 2028 | N4: 2029 | O4: 2030 | P4: 2031 | Q4: 2032 | R4: 2033 | S4: 2034 | T4: 2035 | U4: 2036 | V4: 2037 | W4: 2038 | X4: 2039 | Y4: 2040 | Z4: 2041 | AA4: 2042 | AB4: 2043 | AC4: 2044 | AD4: 2045 | AE4: 2046 | AF4: 2047 | AG4: 2048 | AH4: 2049 | AI4: 2050 | AJ4: 2051 | AK4: 2052 | AL4: 2053 | AM4: 2054 | AN4: 2055
A5: Benefits Index | B5: Number | D5: 0 | E5: 0 | F5: 0 | G5: 0 | H5: 0 | I5: 0 | J5: 0 | K5: 1 | L5: =K5+1 -> 2 | M5: 3 | N5: =M5+1 -> 4 | O5: =N5+1 -> 5 | P5: =O5+1 -> 6 | Q5: 7 | R5: 8 | S5: 9 | T5: 10 | U5: 11 | V5: 12 | W5: =V5+1 -> 13 | X5: 14 | Y5: 15 | Z5: 16 | AA5: 17 | AB5: =AA5+1 -> 18 | AC5: =AB5+1 -> 19 | AD5: =AC5+1 -> 20 | AE5: =AD5+1 -> 21 | AF5: =AE5+1 -> 22 | AG5: =AF5+1 -> 23 | AH5: =AG5+1 -> 24 | AI5: =AH5+1 -> 25 | AJ5: =AI5+1 -> 26 | AK5: =AJ5+1 -> 27 | AL5: =AK5+1 -> 28 | AM5: =AL5+1 -> 29 | AN5: =AM5+1 -> 30
A6: Discount Factor | B6: % | C6: 0.07 | D6: =1/(1+Real_discount_rate)^(D4-$D$4) -> 1 | E6: 0.9345794393 | F6: 0.8734387283 | G6: 0.8162978769 | H6: 0.762895212 | I6: 0.7129861795 | J6: 0.6663422238 | K6: 0.6227497419 | L6: 0.5820091046 | M6: 0.5439337426 | N6: 0.5083492921 | O6: 0.4750927964 | P6: 0.4440119592 | Q6: 0.4149644479 | R6: 0.387817241 | S6: 0.3624460196 | T6: 0.3387345978 | U6: 0.3165743905 | V6: 0.2958639163 | W6: 0.276508333 | X6: 0.2584190028 | Y6: 0.2415130867 | Z6: 0.2257131652 | AA6: 0.2109468833 | AB6: 0.1971466199 | AC6: 0.1842491775 | AD6: 0.172195493 | AE6: 0.1609303673 | AF6: 0.1504022124 | AG6: =1/(1+Real_discount_rate)^(AG4-$D$4) -> 0.1405628154 | AH6: 0.1313671172 | AI6: =1/(1+Real_discount_rate)^(AI4-$D$4) -> 0.1227730067 | AJ6: 0.1147411277 | AK6: 0.1072346988 | AL6: 0.1002193447 | AM6: 0.09366293897 | AN6: 0.08753545698
A7: Discount Factor | B7: % | C7: 0.03 | D7: =1/(1+Real_discount_rate_Sensitivity)^(D4-$D$4) -> 1 | E7: 0.9708737864 | F7: 0.9425959091 | G7: 0.9151416594 | H7: 0.8884870479 | I7: 0.8626087844 | J7: 0.8374842567 | K7: 0.8130915113 | L7: 0.7894092343 | M7: 0.7664167323 | N7: 0.7440939149 | O7: 0.7224212766 | P7: 0.7013798802 | Q7: 0.68095134 | R7: 0.6611178058 | S7: 0.6418619474 | T7: 0.6231669392 | U7: 0.6050164458 | V7: 0.5873946076 | W7: 0.5702860268 | X7: 0.5536757542 | Y7: 0.5375492759 | Z7: 0.5218925009 | AA7: 0.5066917484 | AB7: 0.4919337363 | AC7: 0.4776055693 | AD7: 0.4636947274 | AE7: 0.4501890558 | AF7: 0.4370767532 | AG7: =1/(1+Real_discount_rate_Sensitivity)^(AG4-$D$4) -> 0.4243463623 | AH7: 0.4119867595 | AI7: =1/(1+Real_discount_rate_Sensitivity)^(AI4-$D$4) -> 0.3999871452 | AJ7: 0.3883370341 | AK7: 0.3770262467 | AL7: 0.3660448997 | AM7: 0.3553833978 | AN7: 0.3450324251
A9: Share of Traffic - Auto | B9: =1-ShareTruck -> 0.87
A10: Share of Traffic - Trucks | B10: =ShareTruck -> 0.13
A12: No Build Case Alternative | B12: Unit | D12: =Base.Year -> 2019 | E12: =D12+1 -> 2020 | F12: =E12+1 -> 2021 | G12: 2022 | H12: 2023 | I12: 2024 | J12: 2025 | K12: 2026 | L12: 2027 | M12: 2028 | N12: 2029 | O12: 2030 | P12: 2031 | Q12: 2032 | R12: 2033 | S12: 2034 | T12: 2035 | U12: 2036 | V12: 2037 | W12: 2038 | X12: 2039 | Y12: 2040 | Z12: 2041 | AA12: 2042 | AB12: 2043 | AC12: 2044 | AD12: 2045 | AE12: 2046 | AF12: 2047 | AG12: 2048 | AH12: 2049 | AI12: 2050 | AJ12: 2051 | AK12: 2052 | AL12: 2053 | AM12: 2054 | AN12: 2055
A14: Average Annual Travel Time - West of Industrial | B14: hours/year | D14: ='Traffic Projection'!W140*(1+'Traffic Projection'!W153)^(Base.Year-2017) -> 79959.75986 | E14: =D14*(1+'Traffic Projection'!$W$153) -> 82022.00949 | F14: =E14*(1+'Traffic Projection'!$W$153) -> 84137.44679 | G14: =F14*(1+'Traffic Projection'!$W$153) -> 86307.44353 | H14: =G14*(1+'Traffic Projection'!$W$153) -> 88533.40685 | I14: =H14*(1+'Traffic Projection'!$W$153) -> 90816.78021 | J14: =I14*(1+'Traffic Projection'!$W$153) -> 93159.04426 | K14: =J14*(1+'Traffic Projection'!$W$153) -> 95561.71787 | L14: =K14*(1+'Traffic Projection'!$W$153) -> 98026.35905 | M14: =L14*(1+'Traffic Projection'!$W$153) -> 100554.566 | N14: =M14*(1+'Traffic Projection'!$W$153) -> 103147.9782 | O14: =N14*(1+'Traffic Projection'!$W$153) -> 105808.2773 | P14: =O14*(1+'Traffic Projection'!$W$153) -> 108537.1885 | Q14: =P14*(1+'Traffic Projection'!$W$153) -> 111336.4813 | R14: =Q14*(1+'Traffic Projection'!$W$153) -> 114207.9708 | S14: =R14*(1+'Traffic Projection'!$W$153) -> 117153.5193 | T14: =S14*(1+'Traffic Projection'!$W$153) -> 120175.0366 | U14: =T14*(1+'Traffic Projection'!$W$153) -> 123274.4822 | V14: =U14*(1+'Traffic Projection'!$W$153) -> 126453.8659 | W14: =V14*(1+'Traffic Projection'!$W$153) -> 129715.2493 | X14: =W14*(1+'Traffic Projection'!$W$153) -> 133060.7474 | Y14: =X14*(1+'Traffic Projection'!$W$153) -> 136492.5296 | Z14: =Y14*(1+'Traffic Projection'!$W$153) -> 140012.8211 | AA14: =Z14*(1+'Traffic Projection'!$W$153) -> 143623.9049 | AB14: =AA14*(1+'Traffic Projection'!$W$153) -> 147328.1224 | AC14: =AB14*(1+'Traffic Projection'!$W$153) -> 151127.8757 | AD14: =AC14*(1+'Traffic Projection'!$W$153) -> 155025.6289 | AE14: =AD14*(1+'Traffic Projection'!$W$153) -> 159023.9093 | AF14: =AE14*(1+'Traffic Projection'!$W$153) -> 163125.3098 | AG14: =AF14*(1+'Traffic Projection'!$W$153) -> 167332.4899 | AH14: =AG14*(1+'Traffic Projection'!$W$153) -> 171648.1778 | AI14: =AH14*(1+'Traffic Projection'!$W$153) -> 176075.1719 | AJ14: =AI14*(1+'Traffic Projection'!$W$153) -> 180616.3431 | AK14: =AJ14*(1+'Traffic Projection'!$W$153) -> 185274.6361 | AL14: =AK14*(1+'Traffic Projection'!$W$153) -> 190053.0715 | AM14: =AL14*(1+'Traffic Projection'!$W$153) -> 194954.748 | AN14: =AM14*(1+'Traffic Projection'!$W$153) -> 199982.8441
A15: Average Annual Travel Time - Auto | B15: hours/year | D15: =D14*(1-ShareTruck) -> 69564.99108 | E15: 71359.14825 | F15: 73199.5787 | G15: 75087.47587 | H15: 77024.06396 | I15: 79010.59878 | J15: 81048.36851 | K15: 83138.69454 | L15: 85282.93237 | M15: 87482.47244 | N15: 89738.74105 | O15: 92053.20129 | P15: 94427.35399 | Q15: 96862.73869 | R15: 99360.93462 | S15: 101923.5618 | T15: 104552.2818 | U15: 107248.7995 | V15: 110014.8633 | W15: 112852.2669 | X15: 115762.8502 | Y15: 118748.5007 | Z15: 121811.1544 | AA15: 124952.7972 | AB15: 128175.4665 | AC15: 131481.2519 | AD15: 134872.2971 | AE15: 138350.8011 | AF15: 141919.0196 | AG15: 145579.2662 | AH15: 149333.9147 | AI15: 153185.3996 | AJ15: 157136.2185 | AK15: 161188.9334 | AL15: 165346.1722 | AM15: 169610.6308 | AN15: 173985.0744
A16: Average Annual Travel Time - Truck | B16: hours/year | D16: =D14*(ShareTruck) -> 10394.76878 | E16: 10662.86123 | F16: =F14*(ShareTruck) -> 10937.86808 | G16: 11219.96766 | H16: 11509.34289 | I16: 11806.18143 | J16: 12110.67575 | K16: 12423.02332 | L16: 12743.42668 | M16: 13072.09358 | N16: 13409.23717 | O16: 13755.07605 | P16: 14109.8345 | Q16: 14473.74256 | R16: 14847.03621 | S16: 15229.9575 | T16: 15622.75476 | U16: 16025.68268 | V16: 16439.00256 | W16: 16862.98241 | X16: 17297.89716 | Y16: 17744.02884 | Z16: 18201.66675 | AA16: 18671.10763 | AB16: 19152.65591 | AC16: 19646.62385 | AD16: 20153.33176 | AE16: 20673.10821 | AF16: 21206.29028 | AG16: 21753.22369 | AH16: 22314.26311 | AI16: 22889.77235 | AJ16: 23480.12461 | AK16: 24085.70269 | AL16: 24706.8993 | AM16: 25344.11724 | AN16: 25997.76973
A18: Average Annual Travel Time - Douglas to Anderson | B18: hours/year | D18: ='Traffic Projection'!W165*(1+'Traffic Projection'!W178)^(Base.Year-2017) -> 309306.7631 | E18: =D18*(1+'Traffic Projection'!$W$178) -> 316869.2131 | F18: =E18*(1+'Traffic Projection'!$W$178) -> 324616.5626 | G18: =F18*(1+'Traffic Projection'!$W$178) -> 332553.3322 | H18: =G18*(1+'Traffic Projection'!$W$178) -> 340684.1533 | I18: =H18*(1+'Traffic Projection'!$W$178) -> 349013.7703 | J18: =I18*(1+'Traffic Projection'!$W$178) -> 357547.0437 | K18: =J18*(1+'Traffic Projection'!$W$178) -> 366288.953 | L18: =K18*(1+'Traffic Projection'!$W$178) -> 375244.599 | M18: =L18*(1+'Traffic Projection'!$W$178) -> 384419.2077 | N18: =M18*(1+'Traffic Projection'!$W$178) -> 393818.1326 | O18: =N18*(1+'Traffic Projection'!$W$178) -> 403446.8582 | P18: =O18*(1+'Traffic Projection'!$W$178) -> 413311.003 | Q18: =P18*(1+'Traffic Projection'!$W$178) -> 423416.3229 | R18: =Q18*(1+'Traffic Projection'!$W$178) -> 433768.7146 | S18: =R18*(1+'Traffic Projection'!$W$178) -> 444374.219 | T18: =S18*(1+'Traffic Projection'!$W$178) -> 455239.0245 | U18: =T18*(1+'Traffic Projection'!$W$178) -> 466369.4709 | V18: =U18*(1+'Traffic Projection'!$W$178) -> 477772.0532 | W18: =V18*(1+'Traffic Projection'!$W$178) -> 489453.4249 | X18: =W18*(1+'Traffic Projection'!$W$178) -> 501420.4023 | Y18: =X18*(1+'Traffic Projection'!$W$178) -> 513679.9684 | Z18: =Y18*(1+'Traffic Projection'!$W$178) -> 526239.277 | AA18: =Z18*(1+'Traffic Projection'!$W$178) -> 539105.6566 | AB18: =AA18*(1+'Traffic Projection'!$W$178) -> 552286.615 | AC18: =AB18*(1+'Traffic Projection'!$W$178) -> 565789.8436 | AD18: =AC18*(1+'Traffic Projection'!$W$178) -> 579623.2217 | AE18: =AD18*(1+'Traffic Projection'!$W$178) -> 593794.8214 | AF18: =AE18*(1+'Traffic Projection'!$W$178) -> 608312.9121 | AG18: =AF18*(1+'Traffic Projection'!$W$178) -> 623185.9655 | AH18: =AG18*(1+'Traffic Projection'!$W$178) -> 638422.6601 | AI18: =AH18*(1+'Traffic Projection'!$W$178) -> 654031.887 | AJ18: =AI18*(1+'Traffic Projection'!$W$178) -> 670022.7545 | AK18: =AJ18*(1+'Traffic Projection'!$W$178) -> 686404.5934 | AL18: =AK18*(1+'Traffic Projection'!$W$178) -> 703186.9631 | AM18: =AL18*(1+'Traffic Projection'!$W$178) -> 720379.6562 | AN18: =AM18*(1+'Traffic Projection'!$W$178) -> 737992.705
A19: Average Annual Travel Time - Auto | B19: hours/year | D19: =D18*(1-ShareTruck) -> 269096.8839 | E19: 275676.2154 | F19: 282416.4094 | G19: 289321.399 | H19: 296395.2133 | I19: 303641.9801 | J19: 311065.9281 | K19: 318671.3891 | L19: 326462.8011 | M19: 334444.7107 | N19: 342621.7754 | O19: 350998.7666 | P19: 359580.5726 | Q19: 368372.2009 | R19: 377378.7817 | S19: 386605.5705 | T19: 396057.9513 | U19: 405741.4397 | V19: 415661.6862 | W19: 425824.4796 | X19: 436235.75 | Y19: 446901.5725 | Z19: 457828.171 | AA19: 469021.9212 | AB19: =AB18*(1-ShareTruck) -> 480489.3551 | AC19: =AC18*(1-ShareTruck) -> 492237.1639 | AD19: =AD18*(1-ShareTruck) -> 504272.2029 | AE19: =AE18*(1-ShareTruck) -> 516601.4946 | AF19: =AF18*(1-ShareTruck) -> 529232.2335 | AG19: 542171.7899 | AH19: 555427.7143 | AI19: =AI18*(1-ShareTruck) -> 569007.7417 | AJ19: 582919.7964 | AK19: 597171.9963 | AL19: 611772.6579 | AM19: 626730.3009 | AN19: 642053.6534
A20: Average Annual Travel Time - Truck | B20: hours/year | D20: =D18*(ShareTruck) -> 40209.8792 | E20: =E18*(ShareTruck) -> 41192.9977 | F20: 42200.15313 | G20: 43231.93318 | H20: 44288.93993 | I20: 45371.79014 | J20: 46481.11569 | K20: 47617.56388 | L20: 48781.79787 | M20: 49974.497 | N20: 51196.35724 | O20: 52448.09157 | P20: 53730.43039 | Q20: 55044.12198 | R20: 56389.9329 | S20: 57768.64847 | T20: 59181.07318 | U20: 60628.03122 | V20: 62110.36691 | W20: 63628.94523 | X20: 65184.6523 | Y20: 66778.3959 | Z20: 68411.10601 | AA20: 70083.73536 | AB20: =AB18*(ShareTruck) -> 71797.25995 | AC20: 73552.67966 | AD20: 75351.01882 | AE20: 77193.32678 | AF20: 79080.67858 | AG20: =AG18*(ShareTruck) -> 81014.17551 | AH20: 82994.94582 | AI20: =AI18*(ShareTruck) -> 85024.14531 | AJ20: 87102.95808 | AK20: 89232.59715 | AL20: 91414.3052 | AM20: 93649.3553 | AN20: 95939.05165
A22: Average Annual Travel Time - Anderson to I240 | B22: hours/year | D22: ='Traffic Projection'!W190*(1+'Traffic Projection'!W203)^(Base.Year-2017) -> 125228.363 | E22: =D22*(1+'Traffic Projection'!$W$203) -> 128297.0562 | F22: =E22*(1+'Traffic Projection'!$W$203) -> 131440.947 | G22: =F22*(1+'Traffic Projection'!$W$203) -> 134661.8782 | H22: =G22*(1+'Traffic Projection'!$W$203) -> 137961.7376 | I22: =H22*(1+'Traffic Projection'!$W$203) -> 141342.4592 | J22: =I22*(1+'Traffic Projection'!$W$203) -> 144806.0248 | K22: =J22*(1+'Traffic Projection'!$W$203) -> 148354.4642 | L22: =K22*(1+'Traffic Projection'!$W$203) -> 151989.8573 | M22: =L22*(1+'Traffic Projection'!$W$203) -> 155714.335 | N22: =M22*(1+'Traffic Projection'!$W$203) -> 159530.0801 | O22: =N22*(1+'Traffic Projection'!$W$203) -> 163439.3292 | P22: =O22*(1+'Traffic Projection'!$W$203) -> 167444.3736 | Q22: =P22*(1+'Traffic Projection'!$W$203) -> 171547.5607 | R22: =Q22*(1+'Traffic Projection'!$W$203) -> 175751.2955 | S22: =R22*(1+'Traffic Projection'!$W$203) -> 180058.0419 | T22: =S22*(1+'Traffic Projection'!$W$203) -> 184470.3242 | U22: =T22*(1+'Traffic Projection'!$W$203) -> 188990.7285 | V22: =U22*(1+'Traffic Projection'!$W$203) -> 193621.9042 | W22: =V22*(1+'Traffic Projection'!$W$203) -> 198366.5659 | X22: =W22*(1+'Traffic Projection'!$W$203) -> 203227.4945 | Y22: =X22*(1+'Traffic Projection'!$W$203) -> 208207.539 | Z22: =Y22*(1+'Traffic Projection'!$W$203) -> 213309.6184 | AA22: =Z22*(1+'Traffic Projection'!$W$203) -> 218536.7232 | AB22: =AA22*(1+'Traffic Projection'!$W$203) -> 223891.9169 | AC22: =AB22*(1+'Traffic Projection'!$W$203) -> 229378.3386 | AD22: =AC22*(1+'Traffic Projection'!$W$203) -> 234999.2037 | AE22: =AD22*(1+'Traffic Projection'!$W$203) -> 240757.8069 | AF22: =AE22*(1+'Traffic Projection'!$W$203) -> 246657.5234 | AG22: =AF22*(1+'Traffic Projection'!$W$203) -> 252701.8111 | AH22: =AG22*(1+'Traffic Projection'!$W$203) -> 258894.2128 | AI22: =AH22*(1+'Traffic Projection'!$W$203) -> 265238.3579 | AJ22: =AI22*(1+'Traffic Projection'!$W$203) -> 271737.9648 | AK22: =AJ22*(1+'Traffic Projection'!$W$203) -> 278396.8432 | AL22: =AK22*(1+'Traffic Projection'!$W$203) -> 285218.8959 | AM22: =AL22*(1+'Traffic Projection'!$W$203) -> 292208.1215 | AN22: =AM22*(1+'Traffic Projection'!$W$203) -> 299368.6165
A23: Average Annual Travel Time - Auto | B23: hours/year | D23: =D22*(1-ShareTruck) -> 108948.6758 | E23: 111618.4389 | F23: 114353.6239 | G23: 117155.834 | H23: 120026.7117 | I23: 122967.9395 | J23: 125981.2415 | K23: 129068.3838 | L23: 132231.1759 | M23: 135471.4714 | N23: 138791.1697 | O23: 142192.2164 | P23: 145676.605 | Q23: 149246.3778 | R23: 152903.6271 | S23: 156650.4965 | T23: 160489.1821 | U23: 164421.9338 | V23: 168451.0567 | W23: 172578.9123 | X23: 176807.9202 | Y23: 181140.5589 | Z23: 185579.368 | AA23: 190126.9491 | AB23: =AB22*(1-ShareTruck) -> 194785.9677 | AC23: =AC22*(1-ShareTruck) -> 199559.1545 | AD23: =AD22*(1-ShareTruck) -> 204449.3072 | AE23: =AE22*(1-ShareTruck) -> 209459.292 | AF23: =AF22*(1-ShareTruck) -> 214592.0454 | AG23: 219850.5757 | AH23: 225237.9651 | AI23: =AI22*(1-ShareTruck) -> 230757.3714 | AJ23: 236412.0294 | AK23: 242205.2536 | AL23: 248140.4394 | AM23: 254221.0657 | AN23: 260450.6964
A24: Average Annual Travel Time - Truck | B24: hours/year | D24: =D22*(ShareTruck) -> 16279.68719 | E24: 16678.61731 | F24: =F22*(ShareTruck) -> 17087.32311 | G24: 17506.04417 | H24: 17935.02588 | I24: 18374.5197 | J24: 18824.78322 | K24: 19286.08034 | L24: 19758.68145 | M24: 20242.86354 | N24: 20738.91041 | O24: 21247.1128 | P24: 21767.76857 | Q24: 22301.1829 | R24: 22847.66842 | S24: 23407.54545 | T24: 23981.14215 | U24: 24568.7947 | V24: 25170.84755 | W24: 25787.65357 | X24: 26419.57428 | Y24: 27066.98007 | Z24: 27730.25039 | AA24: 28409.77401 | AB24: =AB22*(ShareTruck) -> 29105.9492 | AC24: 29819.18401 | AD24: 30549.89648 | AE24: 31298.5149 | AF24: 32065.47804 | AG24: =AG22*(ShareTruck) -> 32851.23545 | AH24: 33656.24766 | AI24: =AI22*(ShareTruck) -> 34480.98652 | AJ24: 35325.93543 | AK24: 36191.58962 | AL24: 37078.45647 | AM24: 37987.05579 | AN24: 38917.92014
A26: Average Annual Travel Costs - West of Industrial | B26: $/year | D26: =SUM(D27:D28) -> 2163074.622 | E26: =SUM(E27:E28) -> 2218862.681 | F26: 2276089.576 | G26: 2334792.415 | H26: 2395009.264 | I26: 2456779.171 | J26: 2520142.192 | K26: 2585139.414 | L26: 2651812.986 | M26: 2720206.142 | N26: 2790363.233 | O26: 2862329.751 | P26: 2936152.365 | Q26: 3011878.944 | R26: 3089558.595 | S26: 3169241.689 | T26: 3250979.897 | U26: 3334826.223 | V26: 3420835.037 | W26: 3509062.113 | X26: 3599564.661 | Y26: 3692401.369 | Z26: 3787632.438 | AA26: 3885319.619 | AB26: 3985526.26 | AC26: 4088317.34 | AD26: 4193759.514 | AE26: 4301921.157 | AF26: 4412872.407 | AG26: 4526685.21 | AH26: 4643433.371 | AI26: 4763192.594 | AJ26: 4886040.539 | AK26: 5012056.866 | AL26: 5141323.293 | AM26: 5273923.642 | AN26: 5409943.898
A27: Average Annual Travel Costs - Auto | B27: $/year | D27: =D15*timevalue_auto*Avg_Veh_Occ -> 1842915.744 | E27: =E15*timevalue_auto*Avg_Veh_Occ -> 1890446.556 | F27: 1939203.239 | G27: 1989217.411 | H27: 2040521.503 | I27: 2093148.783 | J27: 2147133.379 | K27: 2202510.296 | L27: 2259315.444 | M27: 2317585.66 | N27: 2377358.728 | O27: 2438673.409 | P27: 2501569.462 | Q27: 2566087.673 | R27: 2632269.88 | S27: 2700158.998 | T27: 2769799.051 | U27: 2841235.196 | V27: 2914513.759 | W27: 2989682.255 | X27: 3066789.429 | Y27: 3145885.281 | Z27: 3227021.102 | AA27: 3310249.504 | AB27: 3395624.458 | AC27: 3483201.325 | AD27: 3573036.896 | AE27: 3665189.424 | AF27: 3759718.666 | AG27: 3856685.921 | AH27: 3956154.067 | AI27: 4058187.606 | AJ27: 4162852.701 | AK27: 4270217.224 | AL27: 4380350.794 | AM27: 4493324.83 | AN27: 4609212.59
A28: Average Annual Travel Costs - Trucks | B28: $/year | D28: =D16*Avg_Truck_Occ*TimeValue_truck -> 320158.8785 | E28: 328416.126 | F28: 336886.3369 | G28: 345575.0039 | H28: 354487.761 | I28: 363630.388 | J28: 373008.8132 | K28: 382629.1183 | L28: 392497.5416 | M28: 402620.4823 | N28: 413004.5048 | O28: 423656.3425 | P28: 434582.9027 | Q28: 445791.2709 | R28: 457288.7152 | S28: 469082.6911 | T28: 481180.8466 | U28: 493591.0267 | V28: 506321.2789 | W28: 519379.8583 | X28: 532775.2326 | Y28: 546516.0884 | Z28: 560611.3358 | AA28: 575070.1151 | AB28: 589901.8021 | AC28: 605116.0145 | AD28: 620722.6181 | AE28: 636731.733 | AF28: 653153.7406 | AG28: 669999.2896 | AH28: 687279.3038 | AI28: 705004.9885 | AJ28: 723187.8379 | AK28: 741839.6429 | AL28: 760972.4983 | AM28: =AM16*Avg_Truck_Occ*TimeValue_truck -> 780598.8111 | AN28: 800731.3078
A30: Average Annual Travel Costs - Douglas to Anderson | B30: $/year | D30: =SUM(D31:D32) -> 8367378.928 | E30: =SUM(E31:E32) -> 8571958.628 | F30: =SUM(F31:F32) -> 8781540.235 | G30: 8996246.045 | H30: 9216201.342 | I30: 9441534.474 | J30: 9672376.929 | K30: 9908863.407 | L30: 10151131.9 | M30: 10399323.78 | N30: 10653583.88 | O30: 10914060.55 | P30: 11180905.79 | Q30: 11454275.3 | R30: 11734328.62 | S30: 12021229.15 | T30: 12315144.3 | U30: 12616245.58 | V30: 12924708.69 | W30: 13240713.63 | X30: 13564444.78 | Y30: 13896091.05 | Z30: 14235845.97 | AA30: 14583907.79 | AB30: =SUM(AB31:AB32) -> 14940479.6 | AC30: 15305769.48 | AD30: 15679990.58 | AE30: 16063361.26 | AF30: 16456105.23 | AG30: =SUM(AG31:AG32) -> 16858451.66 | AH30: 17270635.34 | AI30: =SUM(AI31:AI32) -> 17692896.77 | AJ30: 18125482.36 | AK30: 18568644.52 | AL30: 19022641.85 | AM30: 19487739.27 | AN30: 19964208.18
A31: Average Annual Travel Costs - Auto | B31: $/year | D31: =D19*timevalue_auto*Avg_Veh_Occ -> 7128914.648 | E31: =E19*timevalue_auto*Avg_Veh_Occ -> 7303214.298 | F31: 7481775.518 | G31: 7664702.502 | H31: 7852101.992 | I31: 8044083.338 | J31: 8240758.566 | K31: 8442242.439 | L31: 8648652.528 | M31: 8860109.276 | N31: 9076736.073 | O31: 9298659.326 | P31: 9526008.529 | Q31: 9758916.347 | R31: 9997518.686 | S31: 10241954.77 | T31: 10492367.25 | U31: 10748902.22 | V31: 11011709.39 | W31: 11280942.11 | X31: 11556757.49 | Y31: 11839316.46 | Z31: 12128783.91 | AA31: 12425328.74 | AB31: =AB19*timevalue_auto*Avg_Veh_Occ -> 12729123.99 | AC31: 13040346.95 | AD31: 13359179.2 | AE31: 13685806.8 | AF31: 14020420.33 | AG31: =AG19*timevalue_auto*Avg_Veh_Occ -> 14363215.06 | AH31: 14714391.01 | AI31: =AI19*timevalue_auto*Avg_Veh_Occ -> 15074153.09 | AJ31: 15442711.25 | AK31: 15820280.53 | AL31: 16207081.25 | AM31: 16603339.13 | AN31: 17009285.39
A32: Average Annual Travel Costs - Trucks | B32: $/year | D32: =D20*Avg_Truck_Occ*TimeValue_truck -> 1238464.279 | E32: =E20*Avg_Truck_Occ*TimeValue_truck -> 1268744.329 | F32: 1299764.716 | G32: 1331543.542 | H32: 1364099.35 | I32: 1397451.136 | J32: 1431618.363 | K32: 1466620.968 | L32: 1502479.374 | M32: 1539214.508 | N32: 1576847.803 | O32: 1615401.22 | P32: 1654897.256 | Q32: 1695358.957 | R32: 1736809.933 | S32: 1779274.373 | T32: 1822777.054 | U32: 1867343.362 | V32: 1912999.301 | W32: 1959771.513 | X32: 2007687.291 | Y32: 2056774.594 | Z32: 2107062.065 | AA32: 2158579.049 | AB32: =AB20*Avg_Truck_Occ*TimeValue_truck -> 2211355.606 | AC32: 2265422.534 | AD32: 2320811.38 | AE32: 2377554.465 | AF32: 2435684.9 | AG32: =AG20*Avg_Truck_Occ*TimeValue_truck -> 2495236.606 | AH32: 2556244.331 | AI32: =AI20*Avg_Truck_Occ*TimeValue_truck -> 2618743.676 | AJ32: 2682771.109 | AK32: 2748363.992 | AL32: 2815560.6 | AM32: 2884400.143 | AN32: 2954922.791
A34: Average Annual Travel Costs - Anderson to I240 | B34: $/year | D34: =SUM(D35:D36) -> 3387682.686 | E34: =SUM(E35:E36) -> 3470697.097 | F34: =SUM(F35:F36) -> 3555745.757 | G34: 3642878.515 | H34: 3732146.443 | I34: 3823601.861 | J34: 3917298.374 | K34: 4013290.899 | L34: 4111635.7 | M34: 4212390.418 | N34: 4315614.108 | O34: 4421367.272 | P34: 4529711.893 | Q34: 4640711.475 | R34: 4754431.077 | S34: 4870937.353 | T34: 4990298.589 | U34: 5112584.746 | V34: 5237867.498 | W34: 5366220.275 | X34: 5497718.309 | Y34: 5632438.673 | Z34: 5770460.33 | AA34: 5911864.176 | AB34: =SUM(AB35:AB36) -> 6056733.093 | AC34: 6205151.99 | AD34: 6357207.859 | AE34: 6512989.823 | AF34: 6672589.189 | AG34: =SUM(AG35:AG36) -> 6836099.503 | AH34: 7003616.6 | AI34: =SUM(AI35:AI36) -> 7175238.667 | AJ34: 7351066.294 | AK34: 7531202.538 | AL34: 7715752.981 | AM34: 7904825.791 | AN34: 8098531.788
A35: Average Annual Travel Costs - Auto | B35: $/year | D35: =D23*Avg_Veh_Occ*timevalue_auto -> 2886268.32 | E35: =E23*Avg_Veh_Occ*timevalue_auto -> 2956995.683 | F35: 3029456.205 | G35: 3103692.355 | H35: 3179747.646 | I35: 3257666.654 | J35: 3337495.051 | K35: 3419279.625 | L35: 3503068.311 | M35: 3588910.221 | N35: 3676855.667 | O35: 3766956.197 | P35: 3859264.621 | Q35: 3953835.042 | R35: 4050722.89 | S35: 4149984.953 | T35: 4251679.411 | U35: 4355865.869 | V35: 4462605.393 | W35: 4571960.545 | X35: 4683995.421 | Y35: 4798775.687 | Z35: 4916368.618 | AA35: 5036843.137 | AB35: =AB23*Avg_Veh_Occ*timevalue_auto -> 5160269.857 | AC35: 5286721.122 | AD35: 5416271.047 | AE35: 5548995.564 | AF35: 5684972.466 | AG35: =AG23*Avg_Veh_Occ*timevalue_auto -> 5824281.451 | AH35: 5967004.172 | AI35: =AI23*Avg_Veh_Occ*timevalue_auto -> 6113224.282 | AJ35: 6263027.483 | AK35: 6416501.578 | AL35: 6573736.522 | AM35: 6734824.473 | AN35: 6899859.848
A36: Average Annual Travel Costs - Trucks | B36: $/year | D36: =D24*Avg_Truck_Occ*TimeValue_truck -> 501414.3656 | E36: =E24*Avg_Truck_Occ*TimeValue_truck -> 513701.4131 | F36: 526289.5519 | G36: 539186.1603 | H36: 552398.7972 | I36: 565935.2068 | J36: 579803.3232 | K36: 594011.2746 | L36: 608567.3887 | M36: 623480.1972 | N36: 638758.4407 | O36: 654411.0742 | P36: 670447.272 | Q36: 686876.4332 | R36: 703708.1874 | S36: 720952.3999 | T36: 738619.1781 | U36: 756718.8767 | V36: 775262.1044 | W36: 794259.7298 | X36: 813722.8878 | Y36: 833662.9861 | Z36: 854091.7121 | AA36: 875021.0395 | AB36: =AB24*Avg_Truck_Occ*TimeValue_truck -> 896463.2354 | AC36: 918430.8676 | AD36: 940936.8116 | AE36: 963994.2589 | AF36: 987616.7237 | AG36: =AG24*Avg_Truck_Occ*TimeValue_truck -> 1011818.052 | AH36: 1036612.428 | AI36: =AI24*Avg_Truck_Occ*TimeValue_truck -> 1062014.385 | AJ36: 1088038.811 | AK36: 1114700.96 | AL36: 1142016.459 | AM36: 1170001.318 | AN36: 1198671.94
A38: Total Travel Time | B38: $/year | D38: =SUM(D30,D34,D26) -> 13918136.24 | E38: =SUM(E30,E34,E26) -> 14261518.41 | F38: 14613375.57 | G38: 14973916.97 | H38: 15343357.05 | I38: 15721915.51 | J38: 16109817.49 | K38: 16507293.72 | L38: 16914580.59 | M38: 17331920.34 | N38: 17759561.22 | O38: 18197757.57 | P38: 18646770.04 | Q38: 19106865.72 | R38: 19578318.29 | S38: 20061408.19 | T38: 20556422.79 | U38: 21063656.55 | V38: 21583411.23 | W38: 22115996.02 | X38: 22661727.75 | Y38: 23220931.1 | Z38: 23793938.74 | AA38: 24381091.58 | AB38: 24982738.95 | AC38: 25599238.81 | AD38: 26230957.95 | AE38: 26878272.24 | AF38: 27541566.83 | AG38: 28221236.38 | AH38: 28917685.31 | AI38: 29631328.03 | AJ38: 30362589.19 | AK38: 31111903.92 | AL38: 31879718.13 | AM38: 32666488.71 | AN38: 33472683.86
A40: Build (Alternative Case) | B40: Unit | D40: =Base.Year -> 2019 | E40: =D40+1 -> 2020 | F40: =E40+1 -> 2021 | G40: 2022 | H40: 2023 | I40: 2024 | J40: 2025 | K40: 2026 | L40: 2027 | M40: 2028 | N40: 2029 | O40: 2030 | P40: 2031 | Q40: 2032 | R40: 2033 | S40: 2034 | T40: 2035 | U40: 2036 | V40: 2037 | W40: 2038 | X40: 2039 | Y40: 2040 | Z40: 2041 | AA40: 2042 | AB40: 2043 | AC40: 2044 | AD40: 2045 | AE40: 2046 | AF40: 2047 | AG40: 2048 | AH40: 2049 | AI40: 2050 | AJ40: 2051 | AK40: 2052 | AL40: 2053 | AM40: 2054 | AN40: 2055
A42: Average Annual Travel Time - West of Industrial | B42: hours/year | D42: ='Traffic Projection'!W140*(1+'Traffic Projection'!W153)^(Base.Year-2017) -> 79959.75986 | E42: =D42*(1+'Traffic Projection'!$W$153) -> 82022.00949 | F42: =E42*(1+'Traffic Projection'!$W$153) -> 84137.44679 | G42: =F42*(1+'Traffic Projection'!$W$153) -> 86307.44353 | H42: =G42*(1+'Traffic Projection'!$W$153) -> 88533.40685 | I42: =H42*(1+'Traffic Projection'!$W$153) -> 90816.78021 | J42: =I42*(1+'Traffic Projection'!$W$153) -> 93159.04426 | K42: ='Traffic Projection'!X140*(1+'Traffic Projection'!$X$153)^(2026-2017) -> 81941.89137 | L42: =K42*(1+'Traffic Projection'!$X$153) -> 83309.26709 | M42: =L42*(1+'Traffic Projection'!$X$153) -> 84699.46039 | N42: =M42*(1+'Traffic Projection'!$X$153) -> 86112.85204 | O42: =N42*(1+'Traffic Projection'!$X$153) -> 87549.82916 | P42: =O42*(1+'Traffic Projection'!$X$153) -> 89010.78531 | Q42: =P42*(1+'Traffic Projection'!$X$153) -> 90496.12064 | R42: =Q42*(1+'Traffic Projection'!$X$153) -> 92006.24197 | S42: =R42*(1+'Traffic Projection'!$X$153) -> 93541.5629 | T42: =S42*(1+'Traffic Projection'!$X$153) -> 95102.50395 | U42: =T42*(1+'Traffic Projection'!$X$153) -> 96689.49263 | V42: =U42*(1+'Traffic Projection'!$X$153) -> 98302.96362 | W42: =V42*(1+'Traffic Projection'!$X$153) -> 99943.35882 | X42: =W42*(1+'Traffic Projection'!$X$153) -> 101611.1275 | Y42: =X42*(1+'Traffic Projection'!$X$153) -> 103306.7265 | Z42: =Y42*(1+'Traffic Projection'!$X$153) -> 105030.6202 | AA42: =Z42*(1+'Traffic Projection'!$X$153) -> 106783.2807 | AB42: =AA42*(1+'Traffic Projection'!$X$153) -> 108565.1882 | AC42: =AB42*(1+'Traffic Projection'!$X$153) -> 110376.8305 | AD42: =AC42*(1+'Traffic Projection'!$X$153) -> 112218.704 | AE42: =AD42*(1+'Traffic Projection'!$X$153) -> 114091.3131 | AF42: =AE42*(1+'Traffic Projection'!$X$153) -> 115995.1707 | AG42: =AF42*(1+'Traffic Projection'!$X$153) -> 117930.7982 | AH42: =AG42*(1+'Traffic Projection'!$X$153) -> 119898.7258 | AI42: =AH42*(1+'Traffic Projection'!$X$153) -> 121899.4925 | AJ42: =AI42*(1+'Traffic Projection'!$X$153) -> 123933.6462 | AK42: =AJ42*(1+'Traffic Projection'!$X$153) -> 126001.7442 | AL42: =AK42*(1+'Traffic Projection'!$X$153) -> 128104.3528 | AM42: =AL42*(1+'Traffic Projection'!$X$153) -> 130242.0479 | AN42: =AM42*(1+'Traffic Projection'!$X$153) -> 132415.415
A43: Average Annual Travel Time - Auto | B43: hours/year | D43: =D42*(1-ShareTruck) -> 69564.99108 | E43: 71359.14825 | F43: 73199.5787 | G43: 75087.47587 | H43: 77024.06396 | I43: 79010.59878 | J43: 81048.36851 | K43: 71289.44549 | L43: =L42*(1-ShareTruck) -> 72479.06237 | M43: 73688.53054 | N43: 74918.18128 | O43: 76168.35137 | P43: 77439.38322 | Q43: 78731.62496 | R43: 80045.43051 | S43: 81381.15972 | T43: 82739.17843 | U43: 84119.85859 | V43: 85523.57835 | W43: 86950.72217 | X43: 88401.68094 | Y43: 89876.85206 | Z43: 91376.63957 | AA43: 92901.45424 | AB43: 94451.7137 | AC43: 96027.84256 | AD43: 97630.2725 | AE43: 99259.4424 | AF43: 100915.7985 | AG43: 102599.7944 | AH43: 104311.8914 | AI43: 106052.5585 | AJ43: 107822.2722 | AK43: 109621.5174 | AL43: 111450.7869 | AM43: 113310.5817 | AN43: 115201.4111
A44: Average Annual Travel Time - Truck | B44: hours/year | D44: =D42*(ShareTruck) -> 10394.76878 | E44: 10662.86123 | F44: =F42*(ShareTruck) -> 10937.86808 | G44: 11219.96766 | H44: 11509.34289 | I44: 11806.18143 | J44: 12110.67575 | K44: 10652.44588 | L44: 10830.20472 | M44: 11010.92985 | N44: 11194.67077 | O44: 11381.47779 | P44: 11571.40209 | Q44: 11764.49568 | R44: 11960.81146 | S44: 12160.40318 | T44: 12363.32551 | U44: 12569.63404 | V44: 12779.38527 | W44: 12992.63665 | X44: 13209.44658 | Y44: 13429.87445 | Z44: 13653.98063 | AA44: 13881.8265 | AB44: 14113.47446 | AC44: 14348.98797 | AD44: 14588.43152 | AE44: 14831.8707 | AF44: 15079.37219 | AG44: 15331.00377 | AH44: 15586.83435 | AI44: 15846.93402 | AJ44: 16111.37401 | AK44: 16380.22675 | AL44: 16653.56586 | AM44: 16931.46623 | AN44: 17214.00396
A46: Average Annual Travel Time - Douglas to Anderson | B46: hours/year | D46: =('Traffic Projection'!H104)*(1+CAGR_NoBuild_TT_Douglas_Anderson)^(Base.Year-2017) -> 309306.7631 | E46: =D46*(1+CAGR_NoBuild_TT_Douglas_Anderson) -> 316869.2131 | F46: =E46*(1+CAGR_NoBuild_TT_Douglas_Anderson) -> 324616.5626 | G46: 332553.3322 | H46: 340684.1533 | I46: 349013.7703 | J46: 357547.0437 | K46: ='Traffic Projection'!L104*(1+CAGR_Build_TT_Douglas_Anderson)^(2026-2017) -> 312415.6679 | L46: =K46*(1+CAGR_Build_TT_Douglas_Anderson) -> 317064.72 | M46: 321782.9545 | N46: =M46*(1+CAGR_Build_TT_Douglas_Anderson) -> 326571.4011 | O46: =N46*(1+CAGR_Build_TT_Douglas_Anderson) -> 331431.1044 | P46: =O46*(1+CAGR_Build_TT_Douglas_Anderson) -> 336363.1249 | Q46: =P46*(1+CAGR_Build_TT_Douglas_Anderson) -> 341368.5387 | R46: =Q46*(1+CAGR_Build_TT_Douglas_Anderson) -> 346448.4379 | S46: =R46*(1+CAGR_Build_TT_Douglas_Anderson) -> 351603.9311 | T46: =S46*(1+CAGR_Build_TT_Douglas_Anderson) -> 356836.1431 | U46: =T46*(1+CAGR_Build_TT_Douglas_Anderson) -> 362146.2155 | V46: =U46*(1+CAGR_Build_TT_Douglas_Anderson) -> 367535.307 | W46: =V46*(1+CAGR_Build_TT_Douglas_Anderson) -> 373004.5935 | X46: =W46*(1+CAGR_Build_TT_Douglas_Anderson) -> 378555.2684 | Y46: =X46*(1+CAGR_Build_TT_Douglas_Anderson) -> 384188.5427 | Z46: =Y46*(1+CAGR_Build_TT_Douglas_Anderson) -> 389905.6457 | AA46: =Z46*(1+CAGR_Build_TT_Douglas_Anderson) -> 395707.8248 | AB46: =AA46*(1+CAGR_Build_TT_Douglas_Anderson) -> 401596.346 | AC46: =AB46*(1+CAGR_Build_TT_Douglas_Anderson) -> 407572.4943 | AD46: =AC46*(1+CAGR_Build_TT_Douglas_Anderson) -> 413637.5734 | AE46: =AD46*(1+CAGR_Build_TT_Douglas_Anderson) -> 419792.907 | AF46: =AE46*(1+CAGR_Build_TT_Douglas_Anderson) -> 426039.8379 | AG46: =AF46*(1+CAGR_Build_TT_Douglas_Anderson) -> 432379.7293 | AH46: =AG46*(1+CAGR_Build_TT_Douglas_Anderson) -> 438813.9645 | AI46: =AH46*(1+CAGR_Build_TT_Douglas_Anderson) -> 445343.9474 | AJ46: =AI46*(1+CAGR_Build_TT_Douglas_Anderson) -> 451971.103 | AK46: =AJ46*(1+CAGR_Build_TT_Douglas_Anderson) -> 458696.8771 | AL46: =AK46*(1+CAGR_Build_TT_Douglas_Anderson) -> 465522.7373 | AM46: =AL46*(1+CAGR_Build_TT_Douglas_Anderson) -> 472450.173 | AN46: =AM46*(1+CAGR_Build_TT_Douglas_Anderson) -> 479480.6958
A47: Average Annual Travel Time - Auto | B47: hours/year | D47: =D46*(1-ShareTruck) -> 269096.8839 | E47: 275676.2154 | F47: 282416.4094 | G47: 289321.399 | H47: 296395.2133 | I47: 303641.9801 | J47: 311065.9281 | K47: 271801.6311 | L47: 275846.3064 | M47: =M46*(1-ShareTruck) -> 279951.1705 | N47: 284117.1189 | O47: 288345.0608 | P47: 292635.9187 | Q47: 296990.6287 | R47: 301410.141 | S47: 305895.4201 | T47: 310447.4445 | U47: 315067.2075 | V47: 319755.7171 | W47: 324513.9963 | X47: 329343.0835 | Y47: 334244.0321 | Z47: 339217.9118 | AA47: 344265.8076 | AB47: =AB46*(1-ShareTruck) -> 349388.8211 | AC47: =AC46*(1-ShareTruck) -> 354588.07 | AD47: =AD46*(1-ShareTruck) -> 359864.6889 | AE47: =AE46*(1-ShareTruck) -> 365219.8291 | AF47: =AF46*(1-ShareTruck) -> 370654.659 | AG47: 376170.3645 | AH47: 381768.1491 | AI47: =AI46*(1-ShareTruck) -> 387449.2343 | AJ47: 393214.8596 | AK47: 399066.283 | AL47: 405004.7814 | AM47: 411031.6505 | AN47: 417148.2053
A48: Average Annual Travel Time - Truck | B48: hours/year | D48: =D46*(ShareTruck) -> 40209.8792 | E48: =E46*(ShareTruck) -> 41192.9977 | F48: 42200.15313 | G48: 43231.93318 | H48: 44288.93993 | I48: 45371.79014 | J48: 46481.11569 | K48: 40614.03682 | L48: 41218.4136 | M48: =M46*(ShareTruck) -> 41831.78409 | N48: 42454.28214 | O48: 43086.04357 | P48: 43727.20624 | Q48: 44377.91003 | R48: 45038.29693 | S48: 45708.51104 | T48: 46388.6986 | U48: 47079.00801 | V48: 47779.58991 | W48: 48490.59716 | X48: 49212.18489 | Y48: 49944.51055 | Z48: 50687.73394 | AA48: 51442.01723 | AB48: =AB46*(ShareTruck) -> 52207.52499 | AC48: 52984.42425 | AD48: 53772.88455 | AE48: 54573.0779 | AF48: 55385.17892 | AG48: =AG46*(ShareTruck) -> 56209.36481 | AH48: 57045.81538 | AI48: =AI46*(ShareTruck) -> 57894.71317 | AJ48: 58756.24338 | AK48: 59630.59402 | AL48: 60517.95585 | AM48: 61418.52249 | AN48: 62332.49045
A50: Average Annual Travel Time - Anderson to I240 | B50: hours/year | D50: =('Traffic Projection'!H117)*(1+CAGR_NoBuild_TT_Anderson_I240)^(Base.Year-2017) -> 125228.363 | E50: =D50*(1+CAGR_NoBuild_TT_Anderson_I240) -> 128297.0562 | F50: 131440.947 | G50: 134661.8782 | H50: 137961.7376 | I50: 141342.4592 | J50: 144806.0248 | K50: ='Traffic Projection'!L117*(1+CAGR_Build_TT_Anderson_I240)^(2026-2017) -> 126793.8198 | L50: =K50*(1+CAGR_Build_TT_Anderson_I240) -> 128711.4825 | M50: 130658.1485 | N50: =M50*(1+CAGR_Build_TT_Anderson_I240) -> 132634.2563 | O50: =N50*(1+CAGR_Build_TT_Anderson_I240) -> 134640.2512 | P50: =O50*(1+CAGR_Build_TT_Anderson_I240) -> 136676.5854 | Q50: 138743.7176 | R50: 140842.1137 | S50: 142972.2464 | T50: 145134.5959 | U50: 147329.6492 | V50: 149557.9011 | W50: 151819.8537 | X50: 154116.0167 | Y50: 156446.9074 | Z50: 158813.0511 | AA50: 161214.9809 | AB50: =AA50*(1+CAGR_Build_TT_Anderson_I240) -> 163653.2382 | AC50: 166128.3724 | AD50: 168640.9411 | AE50: 171191.5105 | AF50: 173780.6554 | AG50: =AF50*(1+CAGR_Build_TT_Anderson_I240) -> 176408.9592 | AH50: =AG50*(1+CAGR_Build_TT_Anderson_I240) -> 179077.0142 | AI50: =AH50*(1+CAGR_Build_TT_Anderson_I240) -> 181785.4215 | AJ50: =AI50*(1+CAGR_Build_TT_Anderson_I240) -> 184534.7915 | AK50: =AJ50*(1+CAGR_Build_TT_Anderson_I240) -> 187325.7437 | AL50: =AK50*(1+CAGR_Build_TT_Anderson_I240) -> 190158.9069 | AM50: =AL50*(1+CAGR_Build_TT_Anderson_I240) -> 193034.9197 | AN50: =AM50*(1+CAGR_Build_TT_Anderson_I240) -> 195954.43
A51: Average Annual Travel Time - Auto | B51: hours/year | D51: =D50*(1-ShareTruck) -> 108948.6758 | E51: 111618.4389 | F51: 114353.6239 | G51: 117155.834 | H51: 120026.7117 | I51: 122967.9395 | J51: 125981.2415 | K51: 110310.6233 | L51: 111978.9898 | M51: =M50*(1-ShareTruck) -> 113672.5892 | N51: 115391.8029 | O51: 117137.0186 | P51: 118908.6293 | Q51: 120707.0343 | R51: 122532.6389 | S51: 124385.8544 | T51: 126267.0984 | U51: 128176.7948 | V51: 130115.374 | W51: 132083.2727 | X51: 134080.9345 | Y51: 136108.8094 | Z51: 138167.3544 | AA51: 140257.0334 | AB51: =AB50*(1-ShareTruck) -> 142378.3173 | AC51: =AC50*(1-ShareTruck) -> 144531.6839 | AD51: =AD50*(1-ShareTruck) -> 146717.6187 | AE51: =AE50*(1-ShareTruck) -> 148936.6141 | AF51: =AF50*(1-ShareTruck) -> 151189.1702 | AG51: 153475.7945 | AH51: 155797.0023 | AI51: =AI50*(1-ShareTruck) -> 158153.3167 | AJ51: 160545.2686 | AK51: 162973.397 | AL51: 165438.249 | AM51: 167940.3801 | AN51: 170480.3541
A52: Average Annual Travel Time - Truck | B52: hours/year | D52: =D50*(ShareTruck) -> 16279.68719 | E52: =E50*(ShareTruck) -> 16678.61731 | F52: 17087.32311 | G52: 17506.04417 | H52: 17935.02588 | I52: 18374.5197 | J52: 18824.78322 | K52: 16483.19658 | L52: 16732.49273 | M52: =M50*(ShareTruck) -> 16985.5593 | N52: 17242.45331 | O52: 17503.23266 | P52: 17767.9561 | Q52: 18036.68329 | R52: 18309.47478 | S52: 18586.39204 | T52: 18867.49746 | U52: 19152.8544 | V52: 19442.52715 | W52: 19736.58098 | X52: 20035.08217 | Y52: 20338.09796 | Z52: 20645.69664 | AA52: 20957.94752 | AB52: =AB50*(ShareTruck) -> 21274.92097 | AC52: 21596.68841 | AD52: 21923.32234 | AE52: 22254.89636 | AF52: 22591.4852 | AG52: =AG50*(ShareTruck) -> 22933.1647 | AH52: 23280.01184 | AI52: =AI50*(ShareTruck) -> 23632.1048 | AJ52: 23989.52289 | AK52: 24352.34668 | AL52: 24720.6579 | AM52: 25094.53956 | AN52: 25474.0759
A54: Average Annual Travel Costs - West of Industrial | B54: $/year | D54: =SUM(D55:D56) -> 2163074.622 | E54: =SUM(E55:E56) -> 2218862.681 | F54: 2276089.576 | G54: 2334792.415 | H54: 2395009.264 | I54: 2456779.171 | J54: 2520142.192 | K54: 2216695.323 | L54: =SUM(L55:L56) -> 2253685.626 | M54: 2291293.19 | N54: 2329528.318 | O54: 2368401.48 | P54: 2407923.325 | Q54: 2448104.675 | R54: 2488956.538 | S54: 2530490.101 | T54: 2572716.741 | U54: 2615648.022 | V54: 2659295.704 | W54: 2703671.74 | X54: 2748788.286 | Y54: 2794657.698 | Z54: 2841292.539 | AA54: 2888705.582 | AB54: 2936909.813 | AC54: 2985918.434 | AD54: 3035744.87 | AE54: 3086402.766 | AF54: 3137905.997 | AG54: 3190268.67 | AH54: 3243505.126 | AI54: 3297629.947 | AJ54: 3352657.955 | AK54: 3408604.224 | AL54: 3465484.076 | AM54: 3523313.09 | AN54: 3582107.104
A55: Average Annual Travel Costs - Auto | B55: $/year | D55: =D43*Avg_Veh_Occ*timevalue_auto -> 1842915.744 | E55: 1890446.556 | F55: 1939203.239 | G55: 1989217.411 | H55: 2040521.503 | I55: 2093148.783 | J55: 2147133.379 | K55: 1888599.99 | L55: 1920115.32 | M55: 1952156.551 | N55: 1984732.458 | O55: 2017851.964 | P55: 2051524.14 | Q55: 2085758.208 | R55: 2120563.545 | S55: 2155949.683 | T55: 2191926.315 | U55: 2228503.294 | V55: 2265690.638 | W55: 2303498.532 | X55: 2341937.331 | Y55: 2381017.565 | Z55: 2420749.935 | AA55: 2461145.326 | AB55: 2502214.799 | AC55: 2543969.605 | AD55: 2586421.179 | AE55: 2629581.148 | AF55: 2673461.334 | AG55: 2718073.754 | AH55: 2763430.628 | AI55: 2809544.379 | AJ55: 2856427.636 | AK55: 2904093.24 | AL55: 2952554.247 | AM55: 3001823.93 | AN55: 3051915.782
A56: Average Annual Travel Costs - Trucks | B56: $/year | D56: =D44*Avg_Truck_Occ*TimeValue_truck -> 320158.8785 | E56: 328416.126 | F56: 336886.3369 | G56: 345575.0039 | H56: 354487.761 | I56: 363630.388 | J56: 373008.8132 | K56: 328095.333 | L56: 333570.3054 | M56: 339136.6394 | N56: 344795.8596 | O56: 350549.516 | P56: 356399.1844 | Q56: 362346.4671 | R56: 368392.9928 | S56: 374540.4179 | T56: 380790.4258 | U56: 387144.7285 | V56: 393605.0663 | W56: 400173.2087 | X56: 406850.9546 | Y56: 413640.1329 | Z56: 420542.6033 | AA56: 427560.256 | AB56: 434695.0134 | AC56: 441948.8294 | AD56: 449323.6909 | AE56: 456821.6177 | AF56: 464444.6634 | AG56: 472194.916 | AH56: 480074.4981 | AI56: 488085.5679 | AJ56: 496230.3195 | AK56: 504510.9838 | AL56: 512929.8286 | AM56: 521489.1598 | AN56: 530191.3218
A58: Average Annual Travel Costs - Douglas to Anderson | B58: $/year | D58: =SUM(D59:D60) -> 8367378.928 | E58: =SUM(E59:E60) -> 8571958.628 | F58: =SUM(F59:F60) -> 8781540.235 | G58: 8996246.045 | H58: 9216201.342 | I58: 9441534.474 | J58: 9672376.929 | K58: 8451481.144 | L58: 8577247.487 | M58: 8704885.358 | N58: 8834422.605 | O58: 8965887.494 | P58: 9099308.709 | Q58: 9234715.363 | R58: 9372137.001 | S58: 9511603.609 | T58: 9653145.616 | U58: 9796793.907 | V58: 9942579.827 | W58: 10090535.18 | X58: 10240692.26 | Y58: 10393083.82 | Z58: 10547743.12 | AA58: 10704703.91 | AB58: =SUM(AB59:AB60) -> 10864000.42 | AC58: 11025667.42 | AD58: 11189740.18 | AE58: 11356254.51 | AF58: 11525246.74 | AG58: =SUM(AG59:AG60) -> 11696753.73 | AH58: 11870812.92 | AI58: =SUM(AI59:AI60) -> 12047462.28 | AJ58: 12226740.36 | AK58: 12408686.27 | AL58: 12593339.71 | AM58: 12780740.98 | AN58: 12970930.96
A59: Average Annual Travel Costs - Auto | B59: $/year | D59: =D47*Avg_Veh_Occ*timevalue_auto -> 7128914.648 | E59: =E47*Avg_Veh_Occ*timevalue_auto -> 7303214.298 | F59: 7481775.518 | G59: 7664702.502 | H59: 7852101.992 | I59: 8044083.338 | J59: 8240758.566 | K59: 7200568.81 | L59: 7307720.349 | M59: 7416466.408 | N59: 7526830.715 | O59: 7638837.352 | P59: 7752510.757 | Q59: 7867875.734 | R59: 7984957.456 | S59: 8103781.468 | T59: 8224373.699 | U59: 8346760.461 | V59: 8470968.457 | W59: 8597024.791 | X59: 8724956.967 | Y59: 8854792.9 | Z59: 8986560.918 | AA59: 9120289.775 | AB59: =AB47*Avg_Veh_Occ*timevalue_auto -> 9256008.648 | AC59: 9393747.151 | AD59: 9533535.338 | AE59: 9675403.711 | AF59: 9819383.225 | AG59: =AG47*Avg_Veh_Occ*timevalue_auto -> 9965505.296 | AH59: 10113801.81 | AI59: =AI47*Avg_Veh_Occ*timevalue_auto -> 10264305.11 | AJ59: 10417048.06 | AK59: 10572063.97 | AL59: 10729386.67 | AM59: 10889050.49 | AN59: 11051090.26
A60: Average Annual Travel Costs - Trucks | B60: $/year | D60: =D48*Avg_Truck_Occ*TimeValue_truck -> 1238464.279 | E60: =E48*Avg_Truck_Occ*TimeValue_truck -> 1268744.329 | F60: 1299764.716 | G60: 1331543.542 | H60: 1364099.35 | I60: 1397451.136 | J60: 1431618.363 | K60: 1250912.334 | L60: 1269527.139 | M60: 1288418.95 | N60: 1307591.89 | O60: 1327050.142 | P60: 1346797.952 | Q60: 1366839.629 | R60: 1387179.546 | S60: 1407822.14 | T60: 1428771.917 | U60: 1450033.447 | V60: 1471611.369 | W60: 1493510.392 | X60: 1515735.294 | Y60: 1538290.925 | Z60: 1561182.205 | AA60: 1584414.131 | AB60: =AB48*Avg_Truck_Occ*TimeValue_truck -> 1607991.77 | AC60: 1631920.267 | AD60: 1656204.844 | AE60: 1680850.799 | AF60: 1705863.511 | AG60: =AG48*Avg_Truck_Occ*TimeValue_truck -> 1731248.436 | AH60: 1757011.114 | AI60: =AI48*Avg_Truck_Occ*TimeValue_truck -> 1783157.166 | AJ60: 1809692.296 | AK60: 1836622.296 | AL60: 1863953.04 | AM60: 1891690.493 | AN60: 1919840.706
A62: Average Annual Travel Costs - Anderson to I240 | B62: $/year | D62: =SUM(D63:D64) -> 3387682.686 | E62: =SUM(E63:E64) -> 3470697.097 | F62: =SUM(F63:F64) -> 3555745.757 | G62: 3642878.515 | H62: 3732146.443 | I62: 3823601.861 | J62: 3917298.374 | K62: 3430031.486 | L62: 3481908.174 | M62: 3534569.458 | N62: 3588027.206 | O62: 3642293.462 | P62: 3697380.455 | Q62: 3753300.599 | R62: 3810066.493 | S62: 3867690.929 | T62: 3926186.892 | U62: 3985567.564 | V62: 4045846.324 | W62: 4107036.756 | X62: 4169152.647 | Y62: 4232207.996 | Z62: 4296217.01 | AA62: 4361194.113 | AB62: =SUM(AB63:AB64) -> 4427153.947 | AC62: 4494111.374 | AD62: 4562081.483 | AE62: 4631079.59 | AF62: 4701121.241 | AG62: =SUM(AG63:AG64) -> 4772222.221 | AH62: 4844398.551 | AI62: =SUM(AI63:AI64) -> 4917666.494 | AJ62: 4992042.561 | AK62: 5067543.51 | AL62: 5144186.356 | AM62: 5221988.368 | AN62: 5300967.078
A63: Average Annual Travel Costs - Auto | B63: $/year | D63: =D51*Avg_Veh_Occ*timevalue_auto -> 2886268.32 | E63: =E51*Avg_Veh_Occ*timevalue_auto -> 2956995.683 | F63: 3029456.205 | G63: 3103692.355 | H63: 3179747.646 | I63: 3257666.654 | J63: 3337495.051 | K63: 2922349.031 | L63: 2966547.398 | M63: 3011414.232 | N63: 3056959.644 | O63: 3103193.896 | P63: 3150127.407 | Q63: 3197770.753 | R63: 3246134.67 | S63: 3295230.054 | T63: 3345067.971 | U63: 3395659.648 | V63: 3447016.488 | W63: 3499150.061 | X63: 3552072.117 | Y63: 3605794.579 | Z63: 3660329.554 | AA63: 3715689.329 | AB63: =AB51*Avg_Veh_Occ*timevalue_auto -> 3771886.381 | AC63: 3828933.371 | AD63: 3886843.155 | AE63: 3945628.781 | AF63: 4005303.497 | AG63: =AG51*Avg_Veh_Occ*timevalue_auto -> 4065880.749 | AH63: 4127374.186 | AI63: =AI51*Avg_Veh_Occ*timevalue_auto -> 4189797.666 | AJ63: 4253165.256 | AK63: 4317491.233 | AL63: 4382790.093 | AM63: 4449076.55 | AN63: 4516365.54
A64: Average Annual Travel Costs - Trucks | B64: $/year | D64: =D52*Avg_Truck_Occ*TimeValue_truck -> 501414.3656 | E64: =E52*Avg_Truck_Occ*TimeValue_truck -> 513701.4131 | F64: 526289.5519 | G64: 539186.1603 | H64: 552398.7972 | I64: 565935.2068 | J64: 579803.3232 | K64: 507682.4546 | L64: 515360.776 | M64: 523155.2264 | N64: 531067.5621 | O64: 539099.566 | P64: 547253.048 | Q64: 555529.8453 | R64: 563931.8232 | S64: 572460.8747 | T64: 581118.9218 | U64: 589907.9155 | V64: 598829.8361 | W64: 607886.6943 | X64: 617080.5307 | Y64: 626413.4171 | Z64: 635887.4565 | AA64: 645504.7837 | AB64: =AB52*Avg_Truck_Occ*TimeValue_truck -> 655267.5659 | AC64: 665178.0029 | AD64: 675238.328 | AE64: 685450.808 | AF64: 695817.7443 | AG64: =AG52*Avg_Truck_Occ*TimeValue_truck -> 706341.4727 | AH64: 717024.3648 | AI64: =AI52*Avg_Truck_Occ*TimeValue_truck -> 727868.8277 | AJ64: 738877.3051 | AK64: 750052.2776 | AL64: 761396.2633 | AM64: 772911.8183 | AN64: 784601.5376
A66: Total Travel Time | B66: $/year | D66: =SUM(D58,D62,D54) -> 13918136.24 | E66: =SUM(E58,E62,E54) -> 14261518.41 | F66: 14613375.57 | G66: 14973916.97 | H66: 15343357.05 | I66: 15721915.51 | J66: 16109817.49 | K66: 14098207.95 | L66: 14312841.29 | M66: 14530748.01 | N66: 14751978.13 | O66: 14976582.44 | P66: 15204612.49 | Q66: 15436120.64 | R66: 15671160.03 | S66: 15909784.64 | T66: 16152049.25 | U66: 16398009.49 | V66: 16647721.85 | W66: 16901243.68 | X66: 17158633.19 | Y66: 17419949.52 | Z66: 17685252.67 | AA66: 17954603.6 | AB66: 18228064.18 | AC66: 18505697.23 | AD66: 18787566.54 | AE66: 19073736.87 | AF66: 19364273.97 | AG66: 19659244.62 | AH66: 19958716.6 | AI66: 20262758.72 | AJ66: 20571440.87 | AK66: 20884834 | AL66: 21203010.14 | AM66: 21526042.44 | AN66: 21854005.14
A68: No Build Less Build | B68: Unit | D68: =Base.Year -> 2019 | E68: =D68+1 -> 2020 | F68: =E68+1 -> 2021 | G68: 2022 | H68: 2023 | I68: 2024 | J68: 2025 | K68: 2026 | L68: 2027 | M68: 2028 | N68: 2029 | O68: 2030 | P68: 2031 | Q68: 2032 | R68: 2033 | S68: 2034 | T68: 2035 | U68: 2036 | V68: 2037 | W68: 2038 | X68: 2039 | Y68: 2040 | Z68: 2041 | AA68: 2042 | AB68: 2043 | AC68: 2044 | AD68: 2045 | AE68: 2046 | AF68: 2047 | AG68: 2048 | AH68: 2049 | AI68: 2050 | AJ68: 2051 | AK68: 2052 | AL68: 2053 | AM68: 2054 | AN68: 2055
A69: Undiscounted Impacts | B69: $/year | D69: =D38-D66 -> 0 | E69: 0 | F69: 0 | G69: 0 | H69: 0 | I69: 0 | J69: 0 | K69: =K38-K66 -> 2409085.767 | L69: 2601739.301 | M69: 2801172.337 | N69: 3007583.088 | O69: 3221175.132 | P69: 3442157.554 | Q69: 3670745.086 | R69: 3907158.259 | S69: 4151623.55 | T69: 4404373.536 | U69: 4665647.057 | V69: 4935689.374 | W69: 5214752.336 | X69: 5503094.555 | Y69: 5800981.578 | Z69: 6108686.067 | AA69: 6426487.983 | AB69: 6754674.777 | AC69: 7093541.582 | AD69: 7443391.415 | AE69: 7804535.373 | AF69: 8177292.852 | AG69: 8561991.755 | AH69: 8958968.713 | AI69: 9368569.31 | AJ69: 9791148.316 | AK69: 10227069.92 | AL69: 10676707.98 | AM69: 11140446.27 | AN69: 11618678.72
A70: Discounted Impacts, at 7% | B70: $/year | D70: =D69*D6 -> 0 | E70: 0 | F70: 0 | G70: 0 | H70: 0 | I70: 0 | J70: 0 | K70: 1500257.54 | L70: 1514235.961 | M70: 1523652.153 | N70: 1528902.734 | O70: 1530357.101 | P70: 1528359.119 | Q70: 1523228.708 | R70: 1515263.336 | S70: 1504739.431 | T70: 1491913.698 | U70: 1477024.373 | V70: 1460292.388 | W70: 1441922.475 | X70: 1422104.207 | Y70: 1401012.967 | Z70: 1378810.867 | AA70: 1355647.611 | AB70: 1331661.301 | AC70: 1306979.202 | AD70: 1281718.454 | AE70: 1255986.744 | AF70: 1229882.937 | AG70: 1203497.666 | AH70: 1176913.892 | AI70: 1150207.423 | AJ70: 1123447.4 | AK70: 1096696.763 | AL70: 1070012.678 | AM70: 1043446.939 | AN70: 1017046.351
A71: Discounted Impacts, at 3% | B71: $/year | D71: =D69*D7 -> 0 | E71: 0 | F71: 0 | G71: 0 | H71: 0 | I71: 0 | J71: 0 | K71: 1958807.188 | L71: 2053837.03 | M71: 2146865.35 | N71: 2237924.275 | O71: 2327045.451 | P71: 2414260.053 | Q71: 2499598.785 | R71: 2583091.895 | S71: 2664769.177 | T71: 2744659.976 | U71: 2822793.2 | V71: 2899197.323 | W71: 2973900.39 | X71: 3046930.028 | Y71: 3118313.447 | Z71: 3188077.448 | AA71: 3256248.432 | AB71: 3322852.401 | AC71: 3387914.966 | AD71: 3451461.353 | AE71: 3513516.41 | AF71: 3574104.61 | AG71: 3633250.055 | AH71: 3690976.489 | AI71: 3747307.293 | AJ71: 3802265.498 | AK71: 3855873.788 | AL71: 3908154.504 | AM71: 3959129.649 | AN71: 4008820.894
A73: Key Quantified Impacts
A74: Total Travel Time Saving | B74: $/year | D74: =D69 -> 0 | E74: 0 | F74: 0 | G74: 0 | H74: =H69 -> 0 | I74: 0 | J74: 0 | K74: 2409085.767 | L74: 2601739.301 | M74: 2801172.337 | N74: 3007583.088 | O74: 3221175.132 | P74: 3442157.554 | Q74: 3670745.086 | R74: 3907158.259 | S74: 4151623.55 | T74: 4404373.536 | U74: 4665647.057 | V74: 4935689.374 | W74: 5214752.336 | X74: 5503094.555 | Y74: 5800981.578 | Z74: 6108686.067 | AA74: 6426487.983 | AB74: =AB69 -> 6754674.777 | AC74: 7093541.582 | AD74: 7443391.415 | AE74: 7804535.373 | AF74: 8177292.852 | AG74: =AG69 -> 8561991.755 | AH74: 8958968.713 | AI74: =AI69 -> 9368569.31 | AJ74: 9791148.316 | AK74: 10227069.92 | AL74: 10676707.98 | AM74: 11140446.27 | AN74: 11618678.72

Sheet Travel Time Saving-Interchanges
A2: Travel Time Savings - Intersection
B4: Unit | C4: Value | D4: =Base.Year -> 2019 | E4: =D4+1 -> 2020 | F4: =E4+1 -> 2021 | G4: 2022 | H4: 2023 | I4: 2024 | J4: 2025 | K4: 2026 | L4: 2027 | M4: 2028 | N4: 2029 | O4: 2030 | P4: 2031 | Q4: 2032 | R4: 2033 | S4: 2034 | T4: 2035 | U4: 2036 | V4: 2037 | W4: 2038 | X4: 2039 | Y4: 2040 | Z4: 2041 | AA4: 2042 | AB4: 2043 | AC4: 2044 | AD4: 2045 | AE4: 2046 | AF4: 2047 | AG4: 2048 | AH4: 2049 | AI4: 2050 | AJ4: 2051 | AK4: 2052 | AL4: 2053 | AM4: 2054 | AN4: 2055
A5: Benefits Index | B5: Number | D5: 0 | E5: 0 | F5: 0 | G5: 0 | H5: 0 | I5: 0 | J5: 0 | K5: 1 | L5: =K5+1 -> 2 | M5: =L5+1 -> 3 | N5: 4 | O5: 5 | P5: 6 | Q5: 7 | R5: 8 | S5: 9 | T5: 10 | U5: 11 | V5: 12 | W5: 13 | X5: 14 | Y5: 15 | Z5: 16 | AA5: 17 | AB5: 18 | AC5: 19 | AD5: 20 | AE5: 21 | AF5: 22 | AG5: 23 | AH5: 24 | AI5: 25 | AJ5: 26 | AK5: 27 | AL5: 28 | AM5: 29 | AN5: 30
A6: Discount Factor | B6: % | C6: 0.07 | D6: =1/(1+Real_discount_rate)^(D4-$D$4) -> 1 | E6: =1/(1+Real_discount_rate)^(E4-$D$4) -> 0.9345794393 | F6: 0.8734387283 | G6: 0.8162978769 | H6: 0.762895212 | I6: 0.7129861795 | J6: 0.6663422238 | K6: 0.6227497419 | L6: 0.5820091046 | M6: 0.5439337426 | N6: 0.5083492921 | O6: 0.4750927964 | P6: 0.4440119592 | Q6: 0.4149644479 | R6: 0.387817241 | S6: 0.3624460196 | T6: 0.3387345978 | U6: 0.3165743905 | V6: 0.2958639163 | W6: 0.276508333 | X6: 0.2584190028 | Y6: 0.2415130867 | Z6: 0.2257131652 | AA6: 0.2109468833 | AB6: 0.1971466199 | AC6: 0.1842491775 | AD6: 0.172195493 | AE6: 0.1609303673 | AF6: 0.1504022124 | AG6: =1/(1+Real_discount_rate)^(AG4-$D$4) -> 0.1405628154 | AH6: 0.1313671172 | AI6: =1/(1+Real_discount_rate)^(AI4-$D$4) -> 0.1227730067 | AJ6: 0.1147411277 | AK6: 0.1072346988 | AL6: 0.1002193447 | AM6: 0.09366293897 | AN6: 0.08753545698
A7: Discount Factor | B7: % | C7: 0.03 | D7: =1/(1+Real_discount_rate_Sensitivity)^(D4-$D$4) -> 1 | E7: 0.9708737864 | F7: 0.9425959091 | G7: 0.9151416594 | H7: 0.8884870479 | I7: 0.8626087844 | J7: 0.8374842567 | K7: 0.8130915113 | L7: 0.7894092343 | M7: 0.7664167323 | N7: 0.7440939149 | O7: 0.7224212766 | P7: 0.7013798802 | Q7: 0.68095134 | R7: 0.6611178058 | S7: 0.6418619474 | T7: 0.6231669392 | U7: 0.6050164458 | V7: 0.5873946076 | W7: 0.5702860268 | X7: 0.5536757542 | Y7: 0.5375492759 | Z7: 0.5218925009 | AA7: 0.5066917484 | AB7: 0.4919337363 | AC7: 0.4776055693 | AD7: 0.4636947274 | AE7: 0.4501890558 | AF7: 0.4370767532 | AG7: =1/(1+Real_discount_rate_Sensitivity)^(AG4-$D$4) -> 0.4243463623 | AH7: 0.4119867595 | AI7: =1/(1+Real_discount_rate_Sensitivity)^(AI4-$D$4) -> 0.3999871452 | AJ7: 0.3883370341 | AK7: 0.3770262467 | AL7: 0.3660448997 | AM7: 0.3553833978 | AN7: 0.3450324251
A9: Share of Traffic - Auto | B9: =1-ShareTruck -> 0.87
A10: Share of Traffic - Trucks | B10: =ShareTruck -> 0.13
A12: No Build Case Alternative | B12: Unit | D12: =Base.Year -> 2019 | E12: =D12+1 -> 2020 | F12: =E12+1 -> 2021 | G12: 2022 | H12: 2023 | I12: 2024 | J12: 2025 | K12: 2026 | L12: 2027 | M12: 2028 | N12: 2029 | O12: 2030 | P12: 2031 | Q12: 2032 | R12: 2033 | S12: 2034 | T12: 2035 | U12: 2036 | V12: 2037 | W12: 2038 | X12: 2039 | Y12: 2040 | Z12: 2041 | AA12: 2042 | AB12: 2043 | AC12: 2044 | AD12: 2045 | AE12: 2046 | AF12: 2047 | AG12: 2048 | AH12: 2049 | AI12: 2050 | AJ12: 2051 | AK12: 2052 | AL12: 2053 | AM12: 2054 | AN12: 2055
A14: Annual Average Delay | B14: hours | D14: =('Traffic Projection'!G218)*((1+CAGR_NoBuild_TT_Douglas_Interchange)^(2019-2017)) -> 145197.276 | E14: =D14*(1+CAGR_NoBuild_TT_Douglas_Interchange) -> 156272.4653 | F14: 168192.435 | G14: 181021.6223 | H14: 194829.3795 | I14: 209690.3488 | J14: 225684.8658 | K14: 242899.3941 | L14: 261426.9921 | M14: 281367.8168 | N14: 302829.6645 | O14: 325928.5542 | P14: 350789.3541 | Q14: 377546.4573 | R14: 406344.5078 | S14: 437339.1825 | T14: 470698.033 | U14: 506601.3912 | V14: 545243.3441 | W14: 586832.783 | X14: 631594.5329 | Y14: 679770.5676 | Z14: 731621.3179 | AA14: 787427.0796 | AB14: 847489.5284 | AC14: 912133.351 | AD14: 981708 | AE14: 1056589.583 | AF14: 1137182.897 | AG14: 1223923.614 | AH14: 1317280.639 | AI14: 1417758.643 | AJ14: 1525900.791 | AK14: 1642291.68 | AL14: 1767560.499 | AM14: 1902384.427 | AN14: 2047492.298
A15: Annual Average Delay - Auto | B15: hours | D15: =D14*(1-ShareTruck) -> 126321.6301 | E15: 135957.0448 | F15: 146327.4185 | G15: 157488.8114 | H15: 169501.5602 | I15: 182430.6035 | J15: 196345.8333 | K15: 211322.4729 | L15: 227441.4831 | M15: 244790.0006 | N15: 263461.8081 | O15: 283557.8421 | P15: 305186.7381 | Q15: 328465.4179 | R15: 353519.7218 | S15: 380485.0888 | T15: 409507.2887 | U15: 440743.2104 | V15: 474361.7094 | W15: 510544.5213 | X15: 549487.2436 | Y15: 591400.3938 | Z15: 636510.5466 | AA15: 685061.5593 | AB15: 737315.8897 | AC15: 793556.0154 | AD15: 854085.96 | AE15: 919232.9375 | AF15: 989349.1205 | AG15: =AG14*(1-ShareTruck) -> 1064813.544 | AH15: 1146034.156 | AI15: =AI14*(1-ShareTruck) -> 1233450.019 | AJ15: 1327533.688 | AK15: 1428793.762 | AL15: 1537777.634 | AM15: 1655074.451 | AN15: 1781318.299
A16: Annual Average Delay Traffic - Truck | B16: hours | D16: =D14*(ShareTruck) -> 18875.64588 | E16: 20315.42049 | F16: 21865.01655 | G16: 23532.8109 | H16: 25327.81934 | I16: 27259.74534 | J16: 29339.03256 | K16: 31576.92123 | L16: 33985.50898 | M16: 36577.81618 | N16: 39367.85639 | O16: 42370.71204 | P16: 45602.61604 | Q16: 49081.03945 | R16: 52824.78601 | S16: 56854.09372 | T16: 61190.74429 | U16: 65858.18086 | V16: 70881.63474 | W16: 76288.2618 | X16: 82107.28928 | Y16: 88370.17379 | Z16: 95110.77133 | AA16: 102365.5204 | AB16: 110173.6387 | AC16: 118577.3356 | AD16: 127622.04 | AE16: 137356.6458 | AF16: 147833.7766 | AG16: =AG14*(ShareTruck) -> 159110.0699 | AH16: 171246.4831 | AI16: =AI14*(ShareTruck) -> 184308.6235 | AJ16: 198367.1028 | AK16: 213497.9184 | AL16: 229782.8648 | AM16: 247309.9755 | AN16: 266173.9987
A18: Average Annual Travel Costs | B18: $/year | D18: =SUM(D19:D20) -> 3927882.518 | E18: =SUM(E19:E20) -> 4227488.982 | F18: =SUM(F19:F20) -> 4549948.48 | G18: 4897004.168 | H18: 5270532.168 | I18: 5672551.704 | J18: 6105236.018 | K18: 6570924.125 | L18: 7072133.448 | M18: 7611573.434 | N18: 8192160.198 | O18: 8817032.285 | P18: 9489567.639 | Q18: 10213401.87 | R18: 10992447.88 | S18: 11830917.06 | T18: 12733342.02 | U18: 13704601.1 | V18: 14749944.75 | W18: 15875023.92 | X18: 17085920.57 | Y18: 18389180.59 | Z18: 19791849.16 | AA18: 21301508.86 | AB18: 22926320.62 | AC18: 24675067.9 | AD18: 26557204.08 | AE18: 28582903.67 | AF18: 30763117.22 | AG18: =SUM(AG19:AG20) -> 33109630.57 | AH18: 35635128.54 | AI18: =SUM(AI19:AI20) -> 38353263.51 | AJ18: 41278729.23 | AK18: 44427340.22 | AL18: 47816117.31 | AM18: 51463379.61 | AN18: 55388843.55
A19: Average Annual Travel Costs - Auto | B19: $/year | D19: =(D15)*(timevalue_auto)*Avg_Veh_Occ -> 3346512.625 | E19: 3601774.031 | F19: 3876505.97 | G19: 4172193.593 | H19: 4490435.333 | I19: 4832951.547 | J19: 5201593.815 | K19: 5598354.951 | L19: 6025379.772 | M19: 6484976.696 | N19: 6979630.221 | O19: 7512014.354 | P19: 8085007.065 | Q19: 8701705.85 | R19: 9365444.469 | S19: 10079810.97 | T19: 10848667.09 | U19: 11676169.13 | V19: 12566790.4 | W19: 13525345.46 | X19: 14557016.06 | Y19: 15667379.23 | Z19: 16862437.4 | AA19: 18148650.83 | AB19: 19532972.55 | AC19: 21022885.96 | AD19: 22626445.25 | AE19: 24352318.98 | AF19: 26209836.9 | AG19: 28209040.42 | AH19: 30360736.86 | AI19: 32676557.91 | AJ19: 35169022.46 | AK19: 37851604.34 | AL19: 40738805.08 | AM19: 43846232.36 | AN19: 47190684.38
A20: Average Annual Travel Costs - Trucks | B20: $/year | D20: =(D16)*(TimeValue_truck)*Avg_Truck_Occ -> 581369.8931 | E20: 625714.951 | F20: 673442.5098 | G20: 724810.5759 | H20: 780096.8357 | I20: 839600.1566 | J20: 903642.2028 | K20: 972569.1739 | L20: 1046753.676 | M20: 1126596.738 | N20: 1212529.977 | O20: 1305017.931 | P20: 1404560.574 | Q20: 1511696.015 | R20: 1627003.409 | S20: 1751106.087 | T20: 1884674.924 | U20: 2028431.97 | V20: 2183154.35 | W20: 2349678.463 | X20: 2528904.51 | Y20: 2721801.353 | Z20: 2929411.757 | AA20: 3152858.027 | AB20: 3393348.072 | AC20: 3652181.937 | AD20: 3930758.832 | AE20: 4230584.692 | AF20: 4553280.32 | AG20: 4900590.151 | AH20: 5274391.679 | AI20: 5676705.605 | AJ20: 6109706.766 | AK20: 6575735.887 | AL20: 7077312.237 | AM20: 7617147.245 | AN20: 8198159.161
A22: Total Travel Time | B22: $/year | D22: =D18 -> 3927882.518 | E22: =E18 -> 4227488.982 | F22: 4549948.48 | G22: 4897004.168 | H22: 5270532.168 | I22: 5672551.704 | J22: 6105236.018 | K22: 6570924.125 | L22: 7072133.448 | M22: 7611573.434 | N22: 8192160.198 | O22: 8817032.285 | P22: 9489567.639 | Q22: 10213401.87 | R22: 10992447.88 | S22: 11830917.06 | T22: 12733342.02 | U22: 13704601.1 | V22: 14749944.75 | W22: 15875023.92 | X22: 17085920.57 | Y22: 18389180.59 | Z22: 19791849.16 | AA22: 21301508.86 | AB22: 22926320.62 | AC22: 24675067.9 | AD22: 26557204.08 | AE22: 28582903.67 | AF22: 30763117.22 | AG22: =AG18 -> 33109630.57 | AH22: 35635128.54 | AI22: =AI18 -> 38353263.51 | AJ22: 41278729.23 | AK22: 44427340.22 | AL22: 47816117.31 | AM22: 51463379.61 | AN22: 55388843.55
A24: Build (Alternative Case) | B24: Unit | D24: =Base.Year -> 2019 | E24: =D24+1 -> 2020 | F24: =E24+1 -> 2021 | G24: 2022 | H24: 2023 | I24: 2024 | J24: 2025 | K24: 2026 | L24: 2027 | M24: 2028 | N24: 2029 | O24: 2030 | P24: 2031 | Q24: 2032 | R24: 2033 | S24: 2034 | T24: 2035 | U24: 2036 | V24: 2037 | W24: 2038 | X24: 2039 | Y24: 2040 | Z24: 2041 | AA24: 2042 | AB24: 2043 | AC24: 2044 | AD24: 2045 | AE24: 2046 | AF24: 2047 | AG24: 2048 | AH24: 2049 | AI24: 2050 | AJ24: 2051 | AK24: 2052 | AL24: 2053 | AM24: 2054 | AN24: 2055
A26: Annual Average Delay | B26: hours | D26: =('Traffic Projection'!G218)*((1+CAGR_NoBuild_TT_Douglas_Interchange)^(2019-2017)) -> 145197.276 | E26: =D26*(1+CAGR_NoBuild_TT_Douglas_Interchange) -> 156272.4653 | F26: 168192.435 | G26: 181021.6223 | H26: 194829.3795 | I26: 209690.3488 | J26: 225684.8658 | K26: ='Traffic Projection'!K218*((1+CAGR_Build_TT_Douglas_Interchange)^(K24-2017)) -> 178528.2189 | L26: =K26*(1+CAGR_Build_TT_Douglas_Interchange) -> 194307.3405 | M26: 211481.0912 | N26: 230172.7348 | O26: 250516.4294 | P26: 272658.1906 | Q26: 296756.9395 | R26: 322985.6436 | S26: 351532.5576 | T26: 382602.5755 | U26: 416418.7003 | V26: 453223.6454 | W26: 493281.5759 | X26: 536880.0052 | Y26: 584331.8585 | Z26: 635977.7186 | AA26: 692188.2705 | AB26: 753366.962 | AC26: 819952.8997 | AD26: 892424 | AE26: 971300.4199 | AF26: 1057148.29 | AG26: 1150583.779 | AH26: 1252277.513 | AI26: 1362959.394 | AJ26: 1483423.834 | AK26: 1614535.46 | AL26: 1757235.316 | AM26: 1912547.624 | AN26: 2081587.127
A27: Annual Average Delay - Auto | B27: hours | D27: =D26*(1-ShareTruck) -> 126321.6301 | E27: 135957.0448 | F27: =F26*(1-ShareTruck) -> 146327.4185 | G27: 157488.8114 | H27: 169501.5602 | I27: 182430.6035 | J27: 196345.8333 | K27: 155319.5505 | L27: 169047.3862 | M27: 183988.5494 | N27: 200250.2793 | O27: 217949.2936 | P27: 237212.6258 | Q27: 258178.5374 | R27: 280997.5099 | S27: 305833.3251 | T27: 332864.2407 | U27: 362284.2693 | V27: 394304.5715 | W27: 429154.971 | X27: 467085.6045 | Y27: 508368.7169 | Z27: 553300.6151 | AA27: 602203.7953 | AB27: 655429.257 | AC27: 713359.0227 | AD27: 776408.88 | AE27: 845031.3653 | AF27: 919719.0124 | AG27: 1001007.887 | AH27: 1089481.436 | AI27: =AI26*(1-ShareTruck) -> 1185774.673 | AJ27: 1290578.736 | AK27: 1404645.85 | AL27: 1528794.725 | AM27: 1663916.433 | AN27: 1810980.8
A28: Annual Average Delay Traffic - Truck | B28: hours | D28: =D26*(ShareTruck) -> 18875.64588 | E28: 20315.42049 | F28: =F26*(ShareTruck) -> 21865.01655 | G28: 23532.8109 | H28: 25327.81934 | I28: 27259.74534 | J28: 29339.03256 | K28: 23208.66846 | L28: 25259.95426 | M28: 27492.54186 | N28: 29922.45553 | O28: 32567.13582 | P28: 35445.56478 | Q28: 38578.40214 | R28: 41988.13366 | S28: 45699.23249 | T28: 49738.33482 | U28: 54134.43104 | V28: 58919.0739 | W28: 64126.60486 | X28: 69794.40068 | Y28: 75963.1416 | Z28: 82677.10341 | AA28: 89984.47516 | AB28: 97937.70507 | AC28: 106593.877 | AD28: 116015.12 | AE28: 126269.0546 | AF28: 137429.2777 | AG28: 149575.8912 | AH28: 162796.0767 | AI28: =AI26*(ShareTruck) -> 177184.7212 | AJ28: 192845.0984 | AK28: 209889.6097 | AL28: 228440.5911 | AM28: 248631.1911 | AN28: 270606.3265
A30: Average Annual Travel Costs | B30: $/year | D30: =SUM(D31:D32) -> 3927882.518 | E30: =SUM(E31:E32) -> 4227488.982 | F30: =SUM(F31:F32) -> 4549948.48 | G30: 4897004.168 | H30: 5270532.168 | I30: 5672551.704 | J30: 6105236.018 | K30: 4829552.519 | L30: 5256409.946 | M30: 5720994.94 | N30: 6226642.03 | O30: 6776980.469 | P30: 7375960.278 | Q30: 8027880.599 | R30: 8737420.549 | S30: 9509672.811 | T30: 10350180.18 | U30: 11264975.34 | V30: 12260624.18 | W30: 13344272.92 | X30: 14523699.38 | Y30: 15807368.81 | Z30: 17204494.68 | AA30: 18725104.78 | AB30: 20380113.19 | AC30: 22181398.64 | AD30: 24141889.74 | AE30: 26275657.81 | AF30: 28598017.83 | AG30: =SUM(AG31:AG32) -> 31125638.4 | AH30: 33876661.38 | AI30: =SUM(AI31:AI32) -> 36870832.05 | AJ30: 40129640.9 | AK30: 43676477.83 | AL30: 47536800.06 | AM30: 51738314.82 | AN30: 56311178.21
A31: Average Annual Travel Costs - Auto | B31: $/year | D31: =(D27)*(timevalue_auto)*Avg_Veh_Occ -> 3346512.625 | E31: 3601774.031 | F31: 3876505.97 | G31: 4172193.593 | H31: 4490435.333 | I31: 4832951.547 | J31: 5201593.815 | K31: 4114725.531 | L31: 4478403.355 | M31: 4874224.65 | N31: 5305030.4 | O31: 5773912.686 | P31: 6284236.883 | Q31: 6839665.813 | R31: 7444186.032 | S31: 8102136.45 | T31: 8818239.464 | U31: 9597634.862 | V31: 10445916.71 | W31: 11369173.49 | X31: 12374031.83 | Y31: 13467704.05 | Z31: 14658039.9 | AA31: 15953582.94 | AB31: 17363631.88 | AC31: 18898307.23 | AD31: 20568624.05 | AE31: 22386570.93 | AF31: 24365196.08 | AG31: 26518700.95 | AH31: 28862542.21 | AI31: 31413542.63 | AJ31: 34190011.87 | AK31: 37211877.85 | AL31: 40500829.86 | AM31: 44080474.13 | AN31: 47976503.36
A32: Average Annual Travel Costs - Trucks | B32: $/year | D32: =(D28)*(TimeValue_truck)*Avg_Truck_Occ -> 581369.8931 | E32: 625714.951 | F32: 673442.5098 | G32: 724810.5759 | H32: 780096.8357 | I32: 839600.1566 | J32: 903642.2028 | K32: 714826.9885 | L32: 778006.5912 | M32: 846770.2893 | N32: 921611.6303 | O32: 1003067.783 | P32: 1091723.395 | Q32: 1188214.786 | R32: 1293234.517 | S32: 1407536.361 | T32: 1531940.712 | U32: 1667340.476 | V32: 1814707.476 | W32: 1975099.43 | X32: 2149667.541 | Y32: 2339664.761 | Z32: 2546454.785 | AA32: 2771521.835 | AB32: 3016481.316 | AC32: 3283091.41 | AD32: 3573265.696 | AE32: 3889086.881 | AF32: 4232821.754 | AG32: 4606937.45 | AH32: 5014119.162 | AI32: 5457289.414 | AJ32: 5939629.032 | AK32: 6464599.98 | AL32: 7035970.206 | AM32: 7657840.685 | AN32: 8334674.855
A34: Total Travel Time | B34: $/year | D34: =D30 -> 3927882.518 | E34: =E30 -> 4227488.982 | F34: 4549948.48 | G34: 4897004.168 | H34: 5270532.168 | I34: 5672551.704 | J34: 6105236.018 | K34: 4829552.519 | L34: 5256409.946 | M34: 5720994.94 | N34: 6226642.03 | O34: 6776980.469 | P34: 7375960.278 | Q34: 8027880.599 | R34: 8737420.549 | S34: 9509672.811 | T34: 10350180.18 | U34: 11264975.34 | V34: 12260624.18 | W34: 13344272.92 | X34: 14523699.38 | Y34: 15807368.81 | Z34: 17204494.68 | AA34: 18725104.78 | AB34: 20380113.19 | AC34: 22181398.64 | AD34: 24141889.74 | AE34: 26275657.81 | AF34: 28598017.83 | AG34: =AG30 -> 31125638.4 | AH34: 33876661.38 | AI34: =AI30 -> 36870832.05 | AJ34: 40129640.9 | AK34: 43676477.83 | AL34: 47536800.06 | AM34: 51738314.82 | AN34: 56311178.21
A36: No Build Less Build | B36: Unit | D36: =Base.Year -> 2019 | E36: =D36+1 -> 2020 | F36: =E36+1 -> 2021 | G36: 2022 | H36: 2023 | I36: 2024 | J36: 2025 | K36: 2026 | L36: 2027 | M36: 2028 | N36: 2029 | O36: 2030 | P36: 2031 | Q36: 2032 | R36: 2033 | S36: 2034 | T36: 2035 | U36: 2036 | V36: 2037 | W36: 2038 | X36: 2039 | Y36: 2040 | Z36: 2041 | AA36: 2042 | AB36: 2043 | AC36: 2044 | AD36: 2045 | AE36: 2046 | AF36: 2047 | AG36: 2048 | AH36: 2049 | AI36: 2050 | AJ36: 2051 | AK36: 2052 | AL36: 2053 | AM36: 2054 | AN36: 2055
A37: Undiscounted Impacts | B37: $/year | D37: =D22-D34 -> 0 | E37: 0 | F37: 0 | G37: 0 | H37: 0 | I37: 0 | J37: 0 | K37: =K22-K34 -> 1741371.605 | L37: =L22-L34 -> 1815723.502 | M37: 1890578.495 | N37: 1965518.168 | O37: 2040051.816 | P37: 2113607.361 | Q37: 2185521.267 | R37: 2255027.328 | S37: 2321244.247 | T37: 2383161.84 | U37: 2439625.761 | V37: 2489320.571 | W37: 2530750.999 | X37: 2562221.193 | Y37: 2581811.777 | Z37: 2587354.476 | AA37: 2576404.075 | AB37: 2546207.431 | AC37: 2493669.255 | AD37: 2415314.339 | AE37: 2307245.861 | AF37: 2165099.391 | AG37: 1983992.166 | AH37: 1758467.164 | AI37: 1482431.465 | AJ37: 1149088.331 | AK37: 750862.3903 | AL37: 279317.2513 | AM37: -274935.2064 | AN37: -922334.6676
A38: Discounted Impacts, at 7% | B38: $/year | D38: =D37*D6 -> 0 | E38: 0 | F38: 0 | G38: 0 | H38: 0 | I38: 0 | J38: 0 | K38: 1084438.718 | L38: 1056767.609 | M38: 1028349.436 | N38: 999169.7694 | O38: 969213.9219 | P38: 938466.9455 | Q38: 906913.6257 | R38: 874538.4769 | S38: 841325.738 | T38: 807259.3674 | U38: 772323.0382 | V38: 736500.1332 | W38: 699773.74 | X38: 662126.6456 | Y38: 623541.3316 | Z38: 583999.9683 | AA38: 543484.4099 | AB38: 501976.1886 | AC38: 459456.5093 | AD38: 415906.2434 | AE38: 371305.9239 | AF38: 325635.7385 | AG38: 278875.5245 | AH38: 231004.762 | AI38: 182002.5682 | AJ38: 131847.691 | AK38: 80518.50229 | AL38: 27992.99188 | AM38: -25751.23945 | AN38: -80736.98662
A39: Discounted Impacts, at 3% | B39: $/year | D39: =D37*D7 -> 0 | E39: 0 | F39: 0 | G39: 0 | H39: 0 | I39: 0 | J39: 0 | K39: 1415894.47 | L39: 1433348.899 | M39: 1448970.992 | N39: 1462530.108 | O39: 1473776.837 | P39: 1482441.678 | Q39: 1488233.635 | R39: 1490838.719 | S39: 1489918.353 | T39: 1485107.67 | U39: 1476013.707 | V39: 1462213.48 | W39: 1443251.932 | X39: 1418639.751 | Y39: 1387851.051 | Z39: 1350320.898 | AA39: 1305442.686 | AB39: 1252565.335 | AC39: 1190990.324 | AD39: 1119968.524 | AE39: 1038696.836 | AF39: 946314.612 | AG39: 841899.8584 | AH39: 724465.1887 | AI39: 592953.5297 | AJ39: 446233.5544 | AK39: 283094.8288 | AL39: 102242.6552 | AM39: -97707.40782 | AN39: -318235.3671
A41: Key Quantified Impacts
A42: Total Travel Time Saving | B42: $/year | D42: =D37 -> 0 | E42: =E37 -> 0 | F42: =F37 -> 0 | G42: =G37 -> 0 | H42: 0 | I42: 0 | J42: 0 | K42: 1741371.605 | L42: 1815723.502 | M42: 1890578.495 | N42: 1965518.168 | O42: 2040051.816 | P42: 2113607.361 | Q42: 2185521.267 | R42: 2255027.328 | S42: 2321244.247 | T42: 2383161.84 | U42: 2439625.761 | V42: 2489320.571 | W42: 2530750.999 | X42: 2562221.193 | Y42: 2581811.777 | Z42: 2587354.476 | AA42: 2576404.075 | AB42: 2546207.431 | AC42: 2493669.255 | AD42: 2415314.339 | AE42: 2307245.861 | AF42: 2165099.391 | AG42: =AG37 -> 1983992.166 | AH42: 1758467.164 | AI42: =AI37 -> 1482431.465 | AJ42: 1149088.331 | AK42: 750862.3903 | AL42: 279317.2513 | AM42: -274935.2064 | AN42: -922334.6676

Sheet Emissions
A2: Emissions Impacts
B4: Unit | C4: Value | D4: =Base.Year -> 2019 | E4: =D4+1 -> 2020 | F4: 2021 | G4: 2022 | H4: 2023 | I4: 2024 | J4: 2025 | K4: 2026 | L4: 2027 | M4: 2028 | N4: 2029 | O4: 2030 | P4: 2031 | Q4: 2032 | R4: 2033 | S4: 2034 | T4: 2035 | U4: =T4+1 -> 2036 | V4: 2037 | W4: 2038 | X4: 2039 | Y4: 2040 | Z4: 2041 | AA4: 2042 | AB4: 2043 | AC4: 2044 | AD4: 2045 | AE4: 2046 | AF4: =AE4+1 -> 2047 | AG4: =AF4+1 -> 2048 | AH4: =AG4+1 -> 2049 | AI4: =AH4+1 -> 2050 | AJ4: =AI4+1 -> 2051 | AK4: =AJ4+1 -> 2052 | AL4: =AK4+1 -> 2053 | AM4: =AL4+1 -> 2054 | AN4: =AM4+1 -> 2055
A5: Benefits Index | D5: 0 | E5: 0 | F5: 0 | G5: 0 | H5: 0 | I5: 0 | J5: 0 | K5: 1 | L5: 2 | M5: 3 | N5: 4 | O5: 5 | P5: 6 | Q5: 7 | R5: 8 | S5: 9 | T5: 10 | U5: 11 | V5: 12 | W5: 13 | X5: 14 | Y5: 15 | Z5: 16 | AA5: 17 | AB5: 18 | AC5: 19 | AD5: 20 | AE5: 21 | AF5: 22 | AG5: 23 | AH5: 24 | AI5: 25 | AJ5: 26 | AK5: 27 | AL5: 28 | AM5: 29 | AN5: 30
A6: Discount Factor | B6: % | C6: 0.07 | D6: =1/(1+Real_discount_rate)^(D4-$D$4) -> 1 | E6: 0.9345794393 | F6: 0.8734387283 | G6: 0.8162978769 | H6: 0.762895212 | I6: 0.7129861795 | J6: 0.6663422238 | K6: 0.6227497419 | L6: 0.5820091046 | M6: 0.5439337426 | N6: 0.5083492921 | O6: 0.4750927964 | P6: 0.4440119592 | Q6: 0.4149644479 | R6: 0.387817241 | S6: 0.3624460196 | T6: 0.3387345978 | U6: 0.3165743905 | V6: 0.2958639163 | W6: 0.276508333 | X6: 0.2584190028 | Y6: 0.2415130867 | Z6: 0.2257131652 | AA6: 0.2109468833 | AB6: 0.1971466199 | AC6: 0.1842491775 | AD6: 0.172195493 | AE6: 0.1609303673 | AF6: =1/(1+Real_discount_rate)^(AF4-$D$4) -> 0.1504022124 | AG6: 0.1405628154 | AH6: 0.1313671172 | AI6: 0.1227730067 | AJ6: 0.1147411277 | AK6: 0.1072346988 | AL6: 0.1002193447 | AM6: 0.09366293897 | AN6: 0.08753545698
A7: Discount Factor | B7: % | C7: 0.03 | D7: =1/(1+Real_discount_rate_Sensitivity)^(D4-$D$4) -> 1 | E7: 0.9708737864 | F7: 0.9425959091 | G7: 0.9151416594 | H7: 0.8884870479 | I7: 0.8626087844 | J7: 0.8374842567 | K7: 0.8130915113 | L7: 0.7894092343 | M7: 0.7664167323 | N7: 0.7440939149 | O7: 0.7224212766 | P7: 0.7013798802 | Q7: 0.68095134 | R7: 0.6611178058 | S7: 0.6418619474 | T7: 0.6231669392 | U7: 0.6050164458 | V7: 0.5873946076 | W7: 0.5702860268 | X7: 0.5536757542 | Y7: 0.5375492759 | Z7: 0.5218925009 | AA7: 0.5066917484 | AB7: 0.4919337363 | AC7: 0.4776055693 | AD7: 0.4636947274 | AE7: 0.4501890558 | AF7: =1/(1+Real_discount_rate_Sensitivity)^(AF4-$D$4) -> 0.4370767532 | AG7: 0.4243463623 | AH7: 0.4119867595 | AI7: 0.3999871452 | AJ7: 0.3883370341 | AK7: 0.3770262467 | AL7: 0.3660448997 | AM7: 0.3553833978 | AN7: 0.3450324251
A9: Share of Traffic - Auto | B9: =1-ShareTruck -> 0.87
A10: Share of Traffic - Trucks | B10: =ShareTruck -> 0.13
A12: No Build Case Alternative | B12: Unit | D12: =Base.Year -> 2019 | E12: =D12+1 -> 2020 | F12: 2021 | G12: 2022 | H12: 2023 | I12: 2024 | J12: 2025 | K12: 2026 | L12: 2027 | M12: 2028 | N12: 2029 | O12: 2030 | P12: 2031 | Q12: 2032 | R12: 2033 | S12: 2034 | T12: 2035 | U12: 2036 | V12: 2037 | W12: 2038 | X12: 2039 | Y12: 2040 | Z12: 2041 | AA12: 2042 | AB12: 2043 | AC12: 2044 | AD12: 2045 | AE12: 2046 | AF12: =AE12+1 -> 2047 | AG12: =AF12+1 -> 2048 | AH12: =AG12+1 -> 2049 | AI12: =AH12+1 -> 2050 | AJ12: =AI12+1 -> 2051 | AK12: =AJ12+1 -> 2052 | AL12: =AK12+1 -> 2053 | AM12: =AL12+1 -> 2054 | AN12: =AM12+1 -> 2055
A13: Emission Cost - West of Industrial
A14: Vehicle Miles Travelled | D14: =('Traffic Projection'!I47)*((1+CAGR_VMT_WestIndustrial)^(2019-2017)) -> 4963232.982 | E14: =(D14)*(1+CAGR_VMT_WestIndustrial) -> 5041326.433 | F14: 5120648.637 | G14: 5201218.927 | H14: 5283056.942 | I14: 5366182.628 | J14: 5450616.246 | K14: 5536378.376 | L14: 5623489.921 | M14: 5711972.113 | N14: 5801846.518 | O14: 5893135.043 | P14: 5985859.937 | Q14: 6080043.8 | R14: 6175709.59 | S14: 6272880.622 | T14: 6371580.582 | U14: 6471833.525 | V14: 6573663.887 | W14: 6677096.488 | X14: 6782156.538 | Y14: 6888869.645 | Z14: 6997261.816 | AA14: 7107359.473 | AB14: 7219189.45 | AC14: 7332779.003 | AD14: 7448155.818 | AE14: =AD14 -> 7448155.818 | AF14: =AE14 -> 7448155.818 | AG14: 7448155.818 | AH14: 7448155.818 | AI14: 7448155.818 | AJ14: 7448155.818 | AK14: 7448155.818 | AL14: 7448155.818 | AM14: 7448155.818 | AN14: 7448155.818
A15: Automobile Vehicle Miles Travelled | D15: =D14*$B$9 -> 4318012.694 | E15: =E14*$B$9 -> 4385953.997 | F15: =F14*$B$9 -> 4454964.314 | G15: 4525060.466 | H15: 4596259.539 | I15: 4668578.886 | J15: 4742036.134 | K15: 4816649.187 | L15: 4892436.231 | M15: 4969415.738 | N15: 5047606.471 | O15: 5127027.487 | P15: 5207698.145 | Q15: 5289638.106 | R15: 5372867.343 | S15: 5457406.141 | T15: 5543275.106 | U15: 5630495.167 | V15: 5719087.582 | W15: 5809073.945 | X15: 5900476.188 | Y15: 5993316.591 | Z15: 6087617.78 | AA15: 6183402.742 | AB15: 6280694.821 | AC15: 6379517.732 | AD15: 6479895.562 | AE15: 6479895.562 | AF15: =AF14*$B$9 -> 6479895.562 | AG15: 6479895.562 | AH15: 6479895.562 | AI15: 6479895.562 | AJ15: 6479895.562 | AK15: 6479895.562 | AL15: 6479895.562 | AM15: 6479895.562 | AN15: 6479895.562
A16: Truck Vehicle Miles Travelled | D16: =D14*$B$10 -> 645220.2877 | E16: =E14*$B$10 -> 655372.4363 | F16: 665684.3228 | G16: 676158.4605 | H16: 686797.4024 | I16: 697603.7416 | J16: 708580.112 | K16: 719729.1889 | L16: 731053.6897 | M16: 742556.3747 | N16: 754240.0474 | O16: 766107.5556 | P16: 778161.7918 | Q16: 790405.694 | R16: 802842.2467 | S16: 815474.4809 | T16: 828305.4756 | U16: 841338.3582 | V16: 854576.3053 | W16: 868022.5435 | X16: 881680.35 | Y16: 895553.0538 | Z16: 909644.0361 | AA16: 923956.7315 | AB16: 938494.6285 | AC16: 953261.2703 | AD16: 968260.2564 | AE16: 968260.2564 | AF16: =AF14*$B$10 -> 968260.2564 | AG16: 968260.2564 | AH16: 968260.2564 | AI16: 968260.2564 | AJ16: 968260.2564 | AK16: 968260.2564 | AL16: 968260.2564 | AM16: 968260.2564 | AN16: 968260.2564
A17: Average Speed | D17: ='Traffic Projection'!J140*((1+CAGR_Speed_NoBuild)^(2019-2015)) -> 62.31845875 | E17: =D17*(1+CAGR_Speed_NoBuild) -> 62.00944252 | F17: 61.70195861 | G17: 61.3959994 | H17: 61.09155734 | I17: 60.78862491 | J17: 60.48719462 | K17: 60.18725902 | L17: 59.8888107 | M17: 59.59184228 | N17: 59.29634643 | O17: 59.00231584 | P17: 58.70974326 | Q17: 58.41862144 | R17: 58.12894319 | S17: 57.84070137 | T17: 57.55388883 | U17: 57.26849851 | V17: 56.98452333 | W17: 56.7019563 | X17: 56.42079042 | Y17: 56.14101874 | Z17: 55.86263436 | AA17: 55.5856304 | AB17: 55.31 | AC17: 55.03573636 | AD17: 54.7628327 | AE17: =AD17 -> 54.7628327 | AF17: =AE17 -> 54.7628327 | AG17: 54.7628327 | AH17: 54.7628327 | AI17: 54.7628327 | AJ17: 54.7628327 | AK17: 54.7628327 | AL17: 54.7628327 | AM17: 54.7628327 | AN17: 54.7628327
B18: =Inputs!$D$85 -> g/metric ton | C18: =Inputs!$E$85 -> 1000000
A19: Nitrogen Oxides (NOx) - Auto | B19: tonnes | D19: =D$15*INDEX(Emissions.Calc!$U$51:$AJ$91, MATCH(D$12,Emissions.Calc!$T$51:$T$91, 0), MATCH(D$17,Emissions.Calc!$U$50:$AJ$50, 1))/$C$18 -> 0.769123607 | E19: =E$15*INDEX(Emissions.Calc!$U$51:$AJ$91, MATCH(E$12,Emissions.Calc!$T$51:$T$91, 0), MATCH(E$17,Emissions.Calc!$U$50:$AJ$50, 1))/$C$18 -> 0.649384085 | F19: =F$15*INDEX(Emissions.Calc!$U$51:$AJ$91, MATCH(F$12,Emissions.Calc!$T$51:$T$91, 0), MATCH(F$17,Emissions.Calc!$U$50:$AJ$50, 1))/$C$18 -> 0.5482859791 | G19: =G$15*INDEX(Emissions.Calc!$U$51:$AJ$91, MATCH(G$12,Emissions.Calc!$T$51:$T$91, 0), MATCH(G$17,Emissions.Calc!$U$50:$AJ$50, 1))/$C$18 -> 0.4629271364 | H19: =H$15*INDEX(Emissions.Calc!$U$51:$AJ$91, MATCH(H$12,Emissions.Calc!$T$51:$T$91, 0), MATCH(H$17,Emissions.Calc!$U$50:$AJ$50, 1))/$C$18 -> 0.39085722 | I19: =I$15*INDEX(Emissions.Calc!$U$51:$AJ$91, MATCH(I$12,Emissions.Calc!$T$51:$T$91, 0), MATCH(I$17,Emissions.Calc!$U$50:$AJ$50, 1))/$C$18 -> 0.3300073693 | J19: =J$15*INDEX(Emissions.Calc!$U$51:$AJ$91, MATCH(J$12,Emissions.Calc!$T$51:$T$91, 0), MATCH(J$17,Emissions.Calc!$U$50:$AJ$50, 1))/$C$18 -> 0.27863081 | K19: =K$15*INDEX(Emissions.Calc!$U$51:$AJ$91, MATCH(K$12,Emissions.Calc!$T$51:$T$91, 0), MATCH(K$17,Emissions.Calc!$U$50:$AJ$50, 1))/$C$18 -> 0.2626325144 | L19: =L$15*INDEX(Emissions.Calc!$U$51:$AJ$91, MATCH(L$12,Emissions.Calc!$T$51:$T$91, 0), MATCH(L$17,Emissions.Calc!$U$50:$AJ$50, 1))/$C$18 -> 0.238677622 | M19: =M$15*INDEX(Emissions.Calc!$U$51:$AJ$91, MATCH(M$12,Emissions.Calc!$T$51:$T$91, 0), MATCH(M$17,Emissions.Calc!$U$50:$AJ$50, 1))/$C$18 -> 0.2243757184 | N19: =N$15*INDEX(Emissions.Calc!$U$51:$AJ$91, MATCH(N$12,Emissions.Calc!$T$51:$T$91, 0), MATCH(N$17,Emissions.Calc!$U$50:$AJ$50, 1))/$C$18 -> 0.2109308053 | O19: =O$15*INDEX(Emissions.Calc!$U$51:$AJ$91, MATCH(O$12,Emissions.Calc!$T$51:$T$91, 0), MATCH(O$17,Emissions.Calc!$U$50:$AJ$50, 1))/$C$18 -> 0.1982915305 | P19: =P$15*INDEX(Emissions.Calc!$U$51:$AJ$91, MATCH(P$12,Emissions.Calc!$T$51:$T$91, 0), MATCH(P$17,Emissions.Calc!$U$50:$AJ$50, 1))/$C$18 -> 0.1864096191 | Q19: =Q$15*INDEX(Emissions.Calc!$U$51:$AJ$91, MATCH(Q$12,Emissions.Calc!$T$51:$T$91, 0), MATCH(Q$17,Emissions.Calc!$U$50:$AJ$50, 1))/$C$18 -> 0.1752396888 | R19: =R$15*INDEX(Emissions.Calc!$U$51:$AJ$91, MATCH(R$12,Emissions.Calc!$T$51:$T$91, 0), MATCH(R$17,Emissions.Calc!$U$50:$AJ$50, 1))/$C$18 -> 0.1647390767 | S19: =S$15*INDEX(Emissions.Calc!$U$51:$AJ$91, MATCH(S$12,Emissions.Calc!$T$51:$T$91, 0), MATCH(S$17,Emissions.Calc!$U$50:$AJ$50, 1))/$C$18 -> 0.1548676762 | T19: =T$15*INDEX(Emissions.Calc!$U$51:$AJ$91, MATCH(T$12,Emissions.Calc!$T$51:$T$91, 0), MATCH(T$17,Emissions.Calc!$U$50:$AJ$50, 1))/$C$18 -> 0.1455877841 | U19: =U$15*INDEX(Emissions.Calc!$U$51:$AJ$91, MATCH(U$12,Emissions.Calc!$T$51:$T$91, 0), MATCH(U$17,Emissions.Calc!$U$50:$AJ$50, 1))/$C$18 -> 0.144920299 | V19: =V$15*INDEX(Emissions.Calc!$U$51:$AJ$91, MATCH(V$12,Emissions.Calc!$T$51:$T$91, 0), MATCH(V$17,Emissions.Calc!$U$50:$AJ$50, 1))/$C$18 -> 0.1442558742 | W19: =W$15*INDEX(Emissions.Calc!$U$51:$AJ$91, MATCH(W$12,Emissions.Calc!$T$51:$T$91, 0), MATCH(W$17,Emissions.Calc!$U$50:$AJ$50, 1))/$C$18 -> 0.1435944957 | X19: =X$15*INDEX(Emissions.Calc!$U$51:$AJ$91, MATCH(X$12,Emissions.Calc!$T$51:$T$91, 0), MATCH(X$17,Emissions.Calc!$U$50:$AJ$50, 1))/$C$18 -> 0.1429361494 | Y19: =Y$15*INDEX(Emissions.Calc!$U$51:$AJ$91, MATCH(Y$12,Emissions.Calc!$T$51:$T$91, 0), MATCH(Y$17,Emissions.Calc!$U$50:$AJ$50, 1))/$C$18 -> 0.1422808214 | Z19: =Z$15*INDEX(Emissions.Calc!$U$51:$AJ$91, MATCH(Z$12,Emissions.Calc!$T$51:$T$91, 0), MATCH(Z$17,Emissions.Calc!$U$50:$AJ$50, 1))/$C$18 -> 0.141628498 | AA19: =AA$15*INDEX(Emissions.Calc!$U$51:$AJ$91, MATCH(AA$12,Emissions.Calc!$T$51:$T$91, 0), MATCH(AA$17,Emissions.Calc!$U$50:$AJ$50, 1))/$C$18 -> 0.1409791653 | AB19: =AB$15*INDEX(Emissions.Calc!$U$51:$AJ$91, MATCH(AB$12,Emissions.Calc!$T$51:$T$91, 0), MATCH(AB$17,Emissions.Calc!$U$50:$AJ$50, 1))/$C$18 -> 0.1403328097 | AC19: =AC$15*INDEX(Emissions.Calc!$U$51:$AJ$91, MATCH(AC$12,Emissions.Calc!$T$51:$T$91, 0), MATCH(AC$17,Emissions.Calc!$U$50:$AJ$50, 1))/$C$18 -> 0.1396894174 | AD19: =AD$15*INDEX(Emissions.Calc!$U$51:$AJ$91, MATCH(AD$12,Emissions.Calc!$T$51:$T$91, 0), MATCH(AD$17,Emissions.Calc!$U$50:$AJ$50, 1))/$C$18 -> 0.131775446 | AE19: =AE$15*INDEX(Emissions.Calc!$U$51:$AJ$91, MATCH(AE$12,Emissions.Calc!$T$51:$T$91, 0), MATCH(AE$17,Emissions.Calc!$U$50:$AJ$50, 1))/$C$18 -> 0.131775446 | AF19: =AF$15*INDEX(Emissions.Calc!$U$51:$AJ$91, MATCH(AF$12,Emissions.Calc!$T$51:$T$91, 0), MATCH(AF$17,Emissions.Calc!$U$50:$AJ$50, 1))/$C$18 -> 0.131775446 | AG19: =AG$15*INDEX(Emissions.Calc!$U$51:$AJ$91, MATCH(AG$12,Emissions.Calc!$T$51:$T$91, 0), MATCH(AG$17,Emissions.Calc!$U$50:$AJ$50, 1))/$C$18 -> 0.131775446 | AH19: =AH$15*INDEX(Emissions.Calc!$U$51:$AJ$91, MATCH(AH$12,Emissions.Calc!$T$51:$T$91, 0), MATCH(AH$17,Emissions.Calc!$U$50:$AJ$50, 1))/$C$18 -> 0.131775446 | AI19: =AI$15*INDEX(Emissions.Calc!$U$51:$AJ$91, MATCH(AI$12,Emissions.Calc!$T$51:$T$91, 0), MATCH(AI$17,Emissions.Calc!$U$50:$AJ$50, 1))/$C$18 -> 0.131775446 | AJ19: =AJ$15*INDEX(Emissions.Calc!$U$51:$AJ$91, MATCH(AJ$12,Emissions.Calc!$T$51:$T$91, 0), MATCH(AJ$17,Emissions.Calc!$U$50:$AJ$50, 1))/$C$18 -> 0.131775446 | AK19: =AK$15*INDEX(Emissions.Calc!$U$51:$AJ$91, MATCH(AK$12,Emissions.Calc!$T$51:$T$91, 0), MATCH(AK$17,Emissions.Calc!$U$50:$AJ$50, 1))/$C$18 -> 0.131775446 | AL19: =AL$15*INDEX(Emissions.Calc!$U$51:$AJ$91, MATCH(AL$12,Emissions.Calc!$T$51:$T$91, 0), MATCH(AL$17,Emissions.Calc!$U$50:$AJ$50, 1))/$C$18 -> 0.131775446 | AM19: =AM$15*INDEX(Emissions.Calc!$U$51:$AJ$91, MATCH(AM$12,Emissions.Calc!$T$51:$T$91, 0), MATCH(AM$17,Emissions.Calc!$U$50:$AJ$50, 1))/$C$18 -> 0.131775446 | AN19: =AN$15*INDEX(Emissions.Calc!$U$51:$AJ$91, MATCH(AN$12,Emissions.Calc!$T$51:$T$91, 0), MATCH(AN$17,Emissions.Calc!$U$50:$AJ$50, 1))/$C$18 -> 0.131775446
A20: Fine Particulate Matter (PM) - Auto | B20: tonnes | D20: =D$15*INDEX(Emissions.Calc!$U$95:$AJ$135, MATCH(D$12,Emissions.Calc!$T$95:$T$135, 0), MATCH(D$17,Emissions.Calc!$U$94:$AJ$94, 1))/$C$18 -> 0.02129213314 | E20: =E$15*INDEX(Emissions.Calc!$U$95:$AJ$135, MATCH(E$12,Emissions.Calc!$T$95:$T$135, 0), MATCH(E$17,Emissions.Calc!$U$94:$AJ$94, 1))/$C$18 -> 0.01963264296 | F20: =F$15*INDEX(Emissions.Calc!$U$95:$AJ$135, MATCH(F$12,Emissions.Calc!$T$95:$T$135, 0), MATCH(F$17,Emissions.Calc!$U$94:$AJ$94, 1))/$C$18 -> 0.01810249198 | G20: =G$15*INDEX(Emissions.Calc!$U$95:$AJ$135, MATCH(G$12,Emissions.Calc!$T$95:$T$135, 0), MATCH(G$17,Emissions.Calc!$U$94:$AJ$94, 1))/$C$18 -> 0.01669159964 | H20: =H$15*INDEX(Emissions.Calc!$U$95:$AJ$135, MATCH(H$12,Emissions.Calc!$T$95:$T$135, 0), MATCH(H$17,Emissions.Calc!$U$94:$AJ$94, 1))/$C$18 -> 0.015390671 | I20: =I$15*INDEX(Emissions.Calc!$U$95:$AJ$135, MATCH(I$12,Emissions.Calc!$T$95:$T$135, 0), MATCH(I$17,Emissions.Calc!$U$94:$AJ$94, 1))/$C$18 -> 0.0141911356 | J20: =J$15*INDEX(Emissions.Calc!$U$95:$AJ$135, MATCH(J$12,Emissions.Calc!$T$95:$T$135, 0), MATCH(J$17,Emissions.Calc!$U$94:$AJ$94, 1))/$C$18 -> 0.01308509094 | K20: =K$15*INDEX(Emissions.Calc!$U$95:$AJ$135, MATCH(K$12,Emissions.Calc!$T$95:$T$135, 0), MATCH(K$17,Emissions.Calc!$U$94:$AJ$94, 1))/$C$18 -> 0.01271004564 | L20: =L$15*INDEX(Emissions.Calc!$U$95:$AJ$135, MATCH(L$12,Emissions.Calc!$T$95:$T$135, 0), MATCH(L$17,Emissions.Calc!$U$94:$AJ$94, 1))/$C$18 -> 0.01296286646 | M20: =M$15*INDEX(Emissions.Calc!$U$95:$AJ$135, MATCH(M$12,Emissions.Calc!$T$95:$T$135, 0), MATCH(M$17,Emissions.Calc!$U$94:$AJ$94, 1))/$C$18 -> 0.01282748372 | N20: =N$15*INDEX(Emissions.Calc!$U$95:$AJ$135, MATCH(N$12,Emissions.Calc!$T$95:$T$135, 0), MATCH(N$17,Emissions.Calc!$U$94:$AJ$94, 1))/$C$18 -> 0.0126935149 | O20: =O$15*INDEX(Emissions.Calc!$U$95:$AJ$135, MATCH(O$12,Emissions.Calc!$T$95:$T$135, 0), MATCH(O$17,Emissions.Calc!$U$94:$AJ$94, 1))/$C$18 -> 0.01256094523 | P20: =P$15*INDEX(Emissions.Calc!$U$95:$AJ$135, MATCH(P$12,Emissions.Calc!$T$95:$T$135, 0), MATCH(P$17,Emissions.Calc!$U$94:$AJ$94, 1))/$C$18 -> 0.01242976011 | Q20: =Q$15*INDEX(Emissions.Calc!$U$95:$AJ$135, MATCH(Q$12,Emissions.Calc!$T$95:$T$135, 0), MATCH(Q$17,Emissions.Calc!$U$94:$AJ$94, 1))/$C$18 -> 0.01229994506 | R20: =R$15*INDEX(Emissions.Calc!$U$95:$AJ$135, MATCH(R$12,Emissions.Calc!$T$95:$T$135, 0), MATCH(R$17,Emissions.Calc!$U$94:$AJ$94, 1))/$C$18 -> 0.0121714858 | S20: =S$15*INDEX(Emissions.Calc!$U$95:$AJ$135, MATCH(S$12,Emissions.Calc!$T$95:$T$135, 0), MATCH(S$17,Emissions.Calc!$U$94:$AJ$94, 1))/$C$18 -> 0.01204436815 | T20: =T$15*INDEX(Emissions.Calc!$U$95:$AJ$135, MATCH(T$12,Emissions.Calc!$T$95:$T$135, 0), MATCH(T$17,Emissions.Calc!$U$94:$AJ$94, 1))/$C$18 -> 0.01005269296 | U20: =U$15*INDEX(Emissions.Calc!$U$95:$AJ$135, MATCH(U$12,Emissions.Calc!$T$95:$T$135, 0), MATCH(U$17,Emissions.Calc!$U$94:$AJ$94, 1))/$C$18 -> 0.01011594891 | V20: =V$15*INDEX(Emissions.Calc!$U$95:$AJ$135, MATCH(V$12,Emissions.Calc!$T$95:$T$135, 0), MATCH(V$17,Emissions.Calc!$U$94:$AJ$94, 1))/$C$18 -> 0.0101796029 | W20: =W$15*INDEX(Emissions.Calc!$U$95:$AJ$135, MATCH(W$12,Emissions.Calc!$T$95:$T$135, 0), MATCH(W$17,Emissions.Calc!$U$94:$AJ$94, 1))/$C$18 -> 0.01024365742 | X20: =X$15*INDEX(Emissions.Calc!$U$95:$AJ$135, MATCH(X$12,Emissions.Calc!$T$95:$T$135, 0), MATCH(X$17,Emissions.Calc!$U$94:$AJ$94, 1))/$C$18 -> 0.01030811501 | Y20: =Y$15*INDEX(Emissions.Calc!$U$95:$AJ$135, MATCH(Y$12,Emissions.Calc!$T$95:$T$135, 0), MATCH(Y$17,Emissions.Calc!$U$94:$AJ$94, 1))/$C$18 -> 0.01037297819 | Z20: =Z$15*INDEX(Emissions.Calc!$U$95:$AJ$135, MATCH(Z$12,Emissions.Calc!$T$95:$T$135, 0), MATCH(Z$17,Emissions.Calc!$U$94:$AJ$94, 1))/$C$18 -> 0.01043824952 | AA20: =AA$15*INDEX(Emissions.Calc!$U$95:$AJ$135, MATCH(AA$12,Emissions.Calc!$T$95:$T$135, 0), MATCH(AA$17,Emissions.Calc!$U$94:$AJ$94, 1))/$C$18 -> 0.01050393156 | AB20: =AB$15*INDEX(Emissions.Calc!$U$95:$AJ$135, MATCH(AB$12,Emissions.Calc!$T$95:$T$135, 0), MATCH(AB$17,Emissions.Calc!$U$94:$AJ$94, 1))/$C$18 -> 0.0105700269 | AC20: =AC$15*INDEX(Emissions.Calc!$U$95:$AJ$135, MATCH(AC$12,Emissions.Calc!$T$95:$T$135, 0), MATCH(AC$17,Emissions.Calc!$U$94:$AJ$94, 1))/$C$18 -> 0.01063653815 | AD20: =AD$15*INDEX(Emissions.Calc!$U$95:$AJ$135, MATCH(AD$12,Emissions.Calc!$T$95:$T$135, 0), MATCH(AD$17,Emissions.Calc!$U$94:$AJ$94, 1))/$C$18 -> 0.01107843418 | AE20: =AE$15*INDEX(Emissions.Calc!$U$95:$AJ$135, MATCH(AE$12,Emissions.Calc!$T$95:$T$135, 0), MATCH(AE$17,Emissions.Calc!$U$94:$AJ$94, 1))/$C$18 -> 0.01107843418 | AF20: =AF$15*INDEX(Emissions.Calc!$U$95:$AJ$135, MATCH(AF$12,Emissions.Calc!$T$95:$T$135, 0), MATCH(AF$17,Emissions.Calc!$U$94:$AJ$94, 1))/$C$18 -> 0.01107843418 | AG20: =AG$15*INDEX(Emissions.Calc!$U$95:$AJ$135, MATCH(AG$12,Emissions.Calc!$T$95:$T$135, 0), MATCH(AG$17,Emissions.Calc!$U$94:$AJ$94, 1))/$C$18 -> 0.01107843418 | AH20: =AH$15*INDEX(Emissions.Calc!$U$95:$AJ$135, MATCH(AH$12,Emissions.Calc!$T$95:$T$135, 0), MATCH(AH$17,Emissions.Calc!$U$94:$AJ$94, 1))/$C$18 -> 0.01107843418 | AI20: =AI$15*INDEX(Emissions.Calc!$U$95:$AJ$135, MATCH(AI$12,Emissions.Calc!$T$95:$T$135, 0), MATCH(AI$17,Emissions.Calc!$U$94:$AJ$94, 1))/$C$18 -> 0.01107843418 | AJ20: =AJ$15*INDEX(Emissions.Calc!$U$95:$AJ$135, MATCH(AJ$12,Emissions.Calc!$T$95:$T$135, 0), MATCH(AJ$17,Emissions.Calc!$U$94:$AJ$94, 1))/$C$18 -> 0.01107843418 | AK20: =AK$15*INDEX(Emissions.Calc!$U$95:$AJ$135, MATCH(AK$12,Emissions.Calc!$T$95:$T$135, 0), MATCH(AK$17,Emissions.Calc!$U$94:$AJ$94, 1))/$C$18 -> 0.01107843418 | AL20: =AL$15*INDEX(Emissions.Calc!$U$95:$AJ$135, MATCH(AL$12,Emissions.Calc!$T$95:$T$135, 0), MATCH(AL$17,Emissions.Calc!$U$94:$AJ$94, 1))/$C$18 -> 0.01107843418 | AM20: =AM$15*INDEX(Emissions.Calc!$U$95:$AJ$135, MATCH(AM$12,Emissions.Calc!$T$95:$T$135, 0), MATCH(AM$17,Emissions.Calc!$U$94:$AJ$94, 1))/$C$18 -> 0.01107843418 | AN20: =AN$15*INDEX(Emissions.Calc!$U$95:$AJ$135, MATCH(AN$12,Emissions.Calc!$T$95:$T$135, 0), MATCH(AN$17,Emissions.Calc!$U$94:$AJ$94, 1))/$C$18 -> 0.01107843418
A21: Sulfur Dioxide (SO2) - Auto | B21: tonnes | D21: =D$15*INDEX(Emissions.Calc!$U$139:$AJ$179, MATCH(D$12,Emissions.Calc!$T$139:$T$179, 0), MATCH(D$17,Emissions.Calc!$U$138:$AJ$138, 1))/$C$18 -> 0.01593563148 | E21: =E$15*INDEX(Emissions.Calc!$U$139:$AJ$179, MATCH(E$12,Emissions.Calc!$T$139:$T$179, 0), MATCH(E$17,Emissions.Calc!$U$138:$AJ$138, 1))/$C$18 -> 0.01388862927 | F21: =F$15*INDEX(Emissions.Calc!$U$139:$AJ$179, MATCH(F$12,Emissions.Calc!$T$139:$T$179, 0), MATCH(F$17,Emissions.Calc!$U$138:$AJ$138, 1))/$C$18 -> 0.01210457352 | G21: =G$15*INDEX(Emissions.Calc!$U$139:$AJ$179, MATCH(G$12,Emissions.Calc!$T$139:$T$179, 0), MATCH(G$17,Emissions.Calc!$U$138:$AJ$138, 1))/$C$18 -> 0.01054968762 | H21: =H$15*INDEX(Emissions.Calc!$U$139:$AJ$179, MATCH(H$12,Emissions.Calc!$T$139:$T$179, 0), MATCH(H$17,Emissions.Calc!$U$138:$AJ$138, 1))/$C$18 -> 0.009194533672 | I21: =I$15*INDEX(Emissions.Calc!$U$139:$AJ$179, MATCH(I$12,Emissions.Calc!$T$139:$T$179, 0), MATCH(I$17,Emissions.Calc!$U$138:$AJ$138, 1))/$C$18 -> 0.008013455232 | J21: =J$15*INDEX(Emissions.Calc!$U$139:$AJ$179, MATCH(J$12,Emissions.Calc!$T$139:$T$179, 0), MATCH(J$17,Emissions.Calc!$U$138:$AJ$138, 1))/$C$18 -> 0.006984091531 | K21: =K$15*INDEX(Emissions.Calc!$U$139:$AJ$179, MATCH(K$12,Emissions.Calc!$T$139:$T$179, 0), MATCH(K$17,Emissions.Calc!$U$138:$AJ$138, 1))/$C$18 -> 0.006914055796 | L21: =L$15*INDEX(Emissions.Calc!$U$139:$AJ$179, MATCH(L$12,Emissions.Calc!$T$139:$T$179, 0), MATCH(L$17,Emissions.Calc!$U$138:$AJ$138, 1))/$C$18 -> 0.00693604645 | M21: =M$15*INDEX(Emissions.Calc!$U$139:$AJ$179, MATCH(M$12,Emissions.Calc!$T$139:$T$179, 0), MATCH(M$17,Emissions.Calc!$U$138:$AJ$138, 1))/$C$18 -> 0.006866486579 | N21: =N$15*INDEX(Emissions.Calc!$U$139:$AJ$179, MATCH(N$12,Emissions.Calc!$T$139:$T$179, 0), MATCH(N$17,Emissions.Calc!$U$138:$AJ$138, 1))/$C$18 -> 0.006797624305 | O21: =O$15*INDEX(Emissions.Calc!$U$139:$AJ$179, MATCH(O$12,Emissions.Calc!$T$139:$T$179, 0), MATCH(O$17,Emissions.Calc!$U$138:$AJ$138, 1))/$C$18 -> 0.006729452635 | P21: =P$15*INDEX(Emissions.Calc!$U$139:$AJ$179, MATCH(P$12,Emissions.Calc!$T$139:$T$179, 0), MATCH(P$17,Emissions.Calc!$U$138:$AJ$138, 1))/$C$18 -> 0.006661964641 | Q21: =Q$15*INDEX(Emissions.Calc!$U$139:$AJ$179, MATCH(Q$12,Emissions.Calc!$T$139:$T$179, 0), MATCH(Q$17,Emissions.Calc!$U$138:$AJ$138, 1))/$C$18 -> 0.006595153467 | R21: =R$15*INDEX(Emissions.Calc!$U$139:$AJ$179, MATCH(R$12,Emissions.Calc!$T$139:$T$179, 0), MATCH(R$17,Emissions.Calc!$U$138:$AJ$138, 1))/$C$18 -> 0.006529012326 | S21: =S$15*INDEX(Emissions.Calc!$U$139:$AJ$179, MATCH(S$12,Emissions.Calc!$T$139:$T$179, 0), MATCH(S$17,Emissions.Calc!$U$138:$AJ$138, 1))/$C$18 -> 0.006463534497 | T21: =T$15*INDEX(Emissions.Calc!$U$139:$AJ$179, MATCH(T$12,Emissions.Calc!$T$139:$T$179, 0), MATCH(T$17,Emissions.Calc!$U$138:$AJ$138, 1))/$C$18 -> 0.00639871333 | U21: =U$15*INDEX(Emissions.Calc!$U$139:$AJ$179, MATCH(U$12,Emissions.Calc!$T$139:$T$179, 0), MATCH(U$17,Emissions.Calc!$U$138:$AJ$138, 1))/$C$18 -> 0.006472629347 | V21: =V$15*INDEX(Emissions.Calc!$U$139:$AJ$179, MATCH(V$12,Emissions.Calc!$T$139:$T$179, 0), MATCH(V$17,Emissions.Calc!$U$138:$AJ$138, 1))/$C$18 -> 0.00654739922 | W21: =W$15*INDEX(Emissions.Calc!$U$139:$AJ$179, MATCH(W$12,Emissions.Calc!$T$139:$T$179, 0), MATCH(W$17,Emissions.Calc!$U$138:$AJ$138, 1))/$C$18 -> 0.006623032812 | X21: =X$15*INDEX(Emissions.Calc!$U$139:$AJ$179, MATCH(X$12,Emissions.Calc!$T$139:$T$179, 0), MATCH(X$17,Emissions.Calc!$U$138:$AJ$138, 1))/$C$18 -> 0.006699540101 | Y21: =Y$15*INDEX(Emissions.Calc!$U$139:$AJ$179, MATCH(Y$12,Emissions.Calc!$T$139:$T$179, 0), MATCH(Y$17,Emissions.Calc!$U$138:$AJ$138, 1))/$C$18 -> 0.006776931179 | Z21: =Z$15*INDEX(Emissions.Calc!$U$139:$AJ$179, MATCH(Z$12,Emissions.Calc!$T$139:$T$179, 0), MATCH(Z$17,Emissions.Calc!$U$138:$AJ$138, 1))/$C$18 -> 0.006855216256 | AA21: =AA$15*INDEX(Emissions.Calc!$U$139:$AJ$179, MATCH(AA$12,Emissions.Calc!$T$139:$T$179, 0), MATCH(AA$17,Emissions.Calc!$U$138:$AJ$138, 1))/$C$18 -> 0.006934405658 | AB21: =AB$15*INDEX(Emissions.Calc!$U$139:$AJ$179, MATCH(AB$12,Emissions.Calc!$T$139:$T$179, 0), MATCH(AB$17,Emissions.Calc!$U$138:$AJ$138, 1))/$C$18 -> 0.007014509833 | AC21: =AC$15*INDEX(Emissions.Calc!$U$139:$AJ$179, MATCH(AC$12,Emissions.Calc!$T$139:$T$179, 0), MATCH(AC$17,Emissions.Calc!$U$138:$AJ$138, 1))/$C$18 -> 0.007095539347 | AD21: =AD$15*INDEX(Emissions.Calc!$U$139:$AJ$179, MATCH(AD$12,Emissions.Calc!$T$139:$T$179, 0), MATCH(AD$17,Emissions.Calc!$U$138:$AJ$138, 1))/$C$18 -> 0.007321573292 | AE21: =AE$15*INDEX(Emissions.Calc!$U$139:$AJ$179, MATCH(AE$12,Emissions.Calc!$T$139:$T$179, 0), MATCH(AE$17,Emissions.Calc!$U$138:$AJ$138, 1))/$C$18 -> 0.007321573292 | AF21: =AF$15*INDEX(Emissions.Calc!$U$139:$AJ$179, MATCH(AF$12,Emissions.Calc!$T$139:$T$179, 0), MATCH(AF$17,Emissions.Calc!$U$138:$AJ$138, 1))/$C$18 -> 0.007321573292 | AG21: =AG$15*INDEX(Emissions.Calc!$U$139:$AJ$179, MATCH(AG$12,Emissions.Calc!$T$139:$T$179, 0), MATCH(AG$17,Emissions.Calc!$U$138:$AJ$138, 1))/$C$18 -> 0.007321573292 | AH21: =AH$15*INDEX(Emissions.Calc!$U$139:$AJ$179, MATCH(AH$12,Emissions.Calc!$T$139:$T$179, 0), MATCH(AH$17,Emissions.Calc!$U$138:$AJ$138, 1))/$C$18 -> 0.007321573292 | AI21: =AI$15*INDEX(Emissions.Calc!$U$139:$AJ$179, MATCH(AI$12,Emissions.Calc!$T$139:$T$179, 0), MATCH(AI$17,Emissions.Calc!$U$138:$AJ$138, 1))/$C$18 -> 0.007321573292 | AJ21: =AJ$15*INDEX(Emissions.Calc!$U$139:$AJ$179, MATCH(AJ$12,Emissions.Calc!$T$139:$T$179, 0), MATCH(AJ$17,Emissions.Calc!$U$138:$AJ$138, 1))/$C$18 -> 0.007321573292 | AK21: =AK$15*INDEX(Emissions.Calc!$U$139:$AJ$179, MATCH(AK$12,Emissions.Calc!$T$139:$T$179, 0), MATCH(AK$17,Emissions.Calc!$U$138:$AJ$138, 1))/$C$18 -> 0.007321573292 | AL21: =AL$15*INDEX(Emissions.Calc!$U$139:$AJ$179, MATCH(AL$12,Emissions.Calc!$T$139:$T$179, 0), MATCH(AL$17,Emissions.Calc!$U$138:$AJ$138, 1))/$C$18 -> 0.007321573292 | AM21: =AM$15*INDEX(Emissions.Calc!$U$139:$AJ$179, MATCH(AM$12,Emissions.Calc!$T$139:$T$179, 0), MATCH(AM$17,Emissions.Calc!$U$138:$AJ$138, 1))/$C$18 -> 0.007321573292 | AN21: =AN$15*INDEX(Emissions.Calc!$U$139:$AJ$179, MATCH(AN$12,Emissions.Calc!$T$139:$T$179, 0), MATCH(AN$17,Emissions.Calc!$U$138:$AJ$138, 1))/$C$18 -> 0.007321573292
A22: Carbon Dioxide (CO2) - Auto | B22: tonnes | D22: =D$15*(INDEX(Emissions.Calc!$U$7:$AJ$47, MATCH(D$12,Emissions.Calc!$T$7:$T$47, 0), MATCH(D$17,Emissions.Calc!$U$6:$AJ$6, 1)))/$C$18 -> 1151.866655 | E22: =E$15*(INDEX(Emissions.Calc!$U$7:$AJ$47, MATCH(E$12,Emissions.Calc!$T$7:$T$47, 0), MATCH(E$17,Emissions.Calc!$U$6:$AJ$6, 1)))/$C$18 -> 1133.967031 | F22: =F$15*(INDEX(Emissions.Calc!$U$7:$AJ$47, MATCH(F$12,Emissions.Calc!$T$7:$T$47, 0), MATCH(F$17,Emissions.Calc!$U$6:$AJ$6, 1)))/$C$18 -> 1116.345562 | G22: =G$15*(INDEX(Emissions.Calc!$U$7:$AJ$47, MATCH(G$12,Emissions.Calc!$T$7:$T$47, 0), MATCH(G$17,Emissions.Calc!$U$6:$AJ$6, 1)))/$C$18 -> 1098.997924 | H22: =H$15*(INDEX(Emissions.Calc!$U$7:$AJ$47, MATCH(H$12,Emissions.Calc!$T$7:$T$47, 0), MATCH(H$17,Emissions.Calc!$U$6:$AJ$6, 1)))/$C$18 -> 1081.919862 | I22: =I$15*(INDEX(Emissions.Calc!$U$7:$AJ$47, MATCH(I$12,Emissions.Calc!$T$7:$T$47, 0), MATCH(I$17,Emissions.Calc!$U$6:$AJ$6, 1)))/$C$18 -> 1065.107188 | J22: =J$15*(INDEX(Emissions.Calc!$U$7:$AJ$47, MATCH(J$12,Emissions.Calc!$T$7:$T$47, 0), MATCH(J$17,Emissions.Calc!$U$6:$AJ$6, 1)))/$C$18 -> 1048.555778 | K22: =K$15*(INDEX(Emissions.Calc!$U$7:$AJ$47, MATCH(K$12,Emissions.Calc!$T$7:$T$47, 0), MATCH(K$17,Emissions.Calc!$U$6:$AJ$6, 1)))/$C$18 -> 1037.606175 | L22: =L$15*(INDEX(Emissions.Calc!$U$7:$AJ$47, MATCH(L$12,Emissions.Calc!$T$7:$T$47, 0), MATCH(L$17,Emissions.Calc!$U$6:$AJ$6, 1)))/$C$18 -> 1040.472263 | M22: =M$15*(INDEX(Emissions.Calc!$U$7:$AJ$47, MATCH(M$12,Emissions.Calc!$T$7:$T$47, 0), MATCH(M$17,Emissions.Calc!$U$6:$AJ$6, 1)))/$C$18 -> 1029.605686 | N22: =N$15*(INDEX(Emissions.Calc!$U$7:$AJ$47, MATCH(N$12,Emissions.Calc!$T$7:$T$47, 0), MATCH(N$17,Emissions.Calc!$U$6:$AJ$6, 1)))/$C$18 -> 1018.852598 | O22: =O$15*(INDEX(Emissions.Calc!$U$7:$AJ$47, MATCH(O$12,Emissions.Calc!$T$7:$T$47, 0), MATCH(O$17,Emissions.Calc!$U$6:$AJ$6, 1)))/$C$18 -> 1008.211814 | P22: =P$15*(INDEX(Emissions.Calc!$U$7:$AJ$47, MATCH(P$12,Emissions.Calc!$T$7:$T$47, 0), MATCH(P$17,Emissions.Calc!$U$6:$AJ$6, 1)))/$C$18 -> 997.6821614 | Q22: =Q$15*(INDEX(Emissions.Calc!$U$7:$AJ$47, MATCH(Q$12,Emissions.Calc!$T$7:$T$47, 0), MATCH(Q$17,Emissions.Calc!$U$6:$AJ$6, 1)))/$C$18 -> 987.2624792 | R22: =R$15*(INDEX(Emissions.Calc!$U$7:$AJ$47, MATCH(R$12,Emissions.Calc!$T$7:$T$47, 0), MATCH(R$17,Emissions.Calc!$U$6:$AJ$6, 1)))/$C$18 -> 976.951619 | S22: =S$15*(INDEX(Emissions.Calc!$U$7:$AJ$47, MATCH(S$12,Emissions.Calc!$T$7:$T$47, 0), MATCH(S$17,Emissions.Calc!$U$6:$AJ$6, 1)))/$C$18 -> 966.7484443 | T22: =T$15*(INDEX(Emissions.Calc!$U$7:$AJ$47, MATCH(T$12,Emissions.Calc!$T$7:$T$47, 0), MATCH(T$17,Emissions.Calc!$U$6:$AJ$6, 1)))/$C$18 -> 956.6518304 | U22: =U$15*(INDEX(Emissions.Calc!$U$7:$AJ$47, MATCH(U$12,Emissions.Calc!$T$7:$T$47, 0), MATCH(U$17,Emissions.Calc!$U$6:$AJ$6, 1)))/$C$18 -> 967.3640901 | V22: =V$15*(INDEX(Emissions.Calc!$U$7:$AJ$47, MATCH(V$12,Emissions.Calc!$T$7:$T$47, 0), MATCH(V$17,Emissions.Calc!$U$6:$AJ$6, 1)))/$C$18 -> 978.1963021 | W22: =W$15*(INDEX(Emissions.Calc!$U$7:$AJ$47, MATCH(W$12,Emissions.Calc!$T$7:$T$47, 0), MATCH(W$17,Emissions.Calc!$U$6:$AJ$6, 1)))/$C$18 -> 989.1498095 | X22: =X$15*(INDEX(Emissions.Calc!$U$7:$AJ$47, MATCH(X$12,Emissions.Calc!$T$7:$T$47, 0), MATCH(X$17,Emissions.Calc!$U$6:$AJ$6, 1)))/$C$18 -> 1000.22597 | Y22: =Y$15*(INDEX(Emissions.Calc!$U$7:$AJ$47, MATCH(Y$12,Emissions.Calc!$T$7:$T$47, 0), MATCH(Y$17,Emissions.Calc!$U$6:$AJ$6, 1)))/$C$18 -> 1011.426158 | Z22: =Z$15*(INDEX(Emissions.Calc!$U$7:$AJ$47, MATCH(Z$12,Emissions.Calc!$T$7:$T$47, 0), MATCH(Z$17,Emissions.Calc!$U$6:$AJ$6, 1)))/$C$18 -> 1022.751762 | AA22: =AA$15*(INDEX(Emissions.Calc!$U$7:$AJ$47, MATCH(AA$12,Emissions.Calc!$T$7:$T$47, 0), MATCH(AA$17,Emissions.Calc!$U$6:$AJ$6, 1)))/$C$18 -> 1034.204187 | AB22: =AB$15*(INDEX(Emissions.Calc!$U$7:$AJ$47, MATCH(AB$12,Emissions.Calc!$T$7:$T$47, 0), MATCH(AB$17,Emissions.Calc!$U$6:$AJ$6, 1)))/$C$18 -> 1045.784851 | AC22: =AC$15*(INDEX(Emissions.Calc!$U$7:$AJ$47, MATCH(AC$12,Emissions.Calc!$T$7:$T$47, 0), MATCH(AC$17,Emissions.Calc!$U$6:$AJ$6, 1)))/$C$18 -> 1057.495192 | AD22: =AD$15*(INDEX(Emissions.Calc!$U$7:$AJ$47, MATCH(AD$12,Emissions.Calc!$T$7:$T$47, 0), MATCH(AD$17,Emissions.Calc!$U$6:$AJ$6, 1)))/$C$18 -> 1090.802131 | AE22: =AE$15*(INDEX(Emissions.Calc!$U$7:$AJ$47, MATCH(AE$12,Emissions.Calc!$T$7:$T$47, 0), MATCH(AE$17,Emissions.Calc!$U$6:$AJ$6, 1)))/$C$18 -> 1090.802131 | AF22: =AF$15*(INDEX(Emissions.Calc!$U$7:$AJ$47, MATCH(AF$12,Emissions.Calc!$T$7:$T$47, 0), MATCH(AF$17,Emissions.Calc!$U$6:$AJ$6, 1)))/$C$18 -> 1090.802131 | AG22: =AG$15*(INDEX(Emissions.Calc!$U$7:$AJ$47, MATCH(AG$12,Emissions.Calc!$T$7:$T$47, 0), MATCH(AG$17,Emissions.Calc!$U$6:$AJ$6, 1)))/$C$18 -> 1090.802131 | AH22: =AH$15*(INDEX(Emissions.Calc!$U$7:$AJ$47, MATCH(AH$12,Emissions.Calc!$T$7:$T$47, 0), MATCH(AH$17,Emissions.Calc!$U$6:$AJ$6, 1)))/$C$18 -> 1090.802131 | AI22: =AI$15*(INDEX(Emissions.Calc!$U$7:$AJ$47, MATCH(AI$12,Emissions.Calc!$T$7:$T$47, 0), MATCH(AI$17,Emissions.Calc!$U$6:$AJ$6, 1)))/$C$18 -> 1090.802131 | AJ22: =AJ$15*(INDEX(Emissions.Calc!$U$7:$AJ$47, MATCH(AJ$12,Emissions.Calc!$T$7:$T$47, 0), MATCH(AJ$17,Emissions.Calc!$U$6:$AJ$6, 1)))/$C$18 -> 1090.802131 | AK22: =AK$15*(INDEX(Emissions.Calc!$U$7:$AJ$47, MATCH(AK$12,Emissions.Calc!$T$7:$T$47, 0), MATCH(AK$17,Emissions.Calc!$U$6:$AJ$6, 1)))/$C$18 -> 1090.802131 | AL22: =AL$15*(INDEX(Emissions.Calc!$U$7:$AJ$47, MATCH(AL$12,Emissions.Calc!$T$7:$T$47, 0), MATCH(AL$17,Emissions.Calc!$U$6:$AJ$6, 1)))/$C$18 -> 1090.802131 | AM22: =AM$15*(INDEX(Emissions.Calc!$U$7:$AJ$47, MATCH(AM$12,Emissions.Calc!$T$7:$T$47, 0), MATCH(AM$17,Emissions.Calc!$U$6:$AJ$6, 1)))/$C$18 -> 1090.802131 | AN22: =AN$15*(INDEX(Emissions.Calc!$U$7:$AJ$47, MATCH(AN$12,Emissions.Calc!$T$7:$T$47, 0), MATCH(AN$17,Emissions.Calc!$U$6:$AJ$6, 1)))/$C$18 -> 1090.802131
A24: Nitrogen Oxides (NOx) - Truck | B24: tonnes | D24: =D$16*INDEX(Emissions.Calc!$C$51:$R$91, MATCH(D$12,Emissions.Calc!$B$51:$B$91, 0), MATCH(D$17,Emissions.Calc!$C$50:$R$50, 1))/$C$18 -> 1.929843885 | E24: =E$16*INDEX(Emissions.Calc!$C$51:$R$91, MATCH(E$12,Emissions.Calc!$B$51:$B$91, 0), MATCH(E$17,Emissions.Calc!$C$50:$R$50, 1))/$C$18 -> 1.741219684 | F24: =F$16*INDEX(Emissions.Calc!$C$51:$R$91, MATCH(F$12,Emissions.Calc!$B$51:$B$91, 0), MATCH(F$17,Emissions.Calc!$C$50:$R$50, 1))/$C$18 -> 1.571031736 | G24: =G$16*INDEX(Emissions.Calc!$C$51:$R$91, MATCH(G$12,Emissions.Calc!$B$51:$B$91, 0), MATCH(G$17,Emissions.Calc!$C$50:$R$50, 1))/$C$18 -> 1.417478069 | H24: =H$16*INDEX(Emissions.Calc!$C$51:$R$91, MATCH(H$12,Emissions.Calc!$B$51:$B$91, 0), MATCH(H$17,Emissions.Calc!$C$50:$R$50, 1))/$C$18 -> 1.278932837 | I24: =I$16*INDEX(Emissions.Calc!$C$51:$R$91, MATCH(I$12,Emissions.Calc!$B$51:$B$91, 0), MATCH(I$17,Emissions.Calc!$C$50:$R$50, 1))/$C$18 -> 1.153929107 | J24: =J$16*INDEX(Emissions.Calc!$C$51:$R$91, MATCH(J$12,Emissions.Calc!$B$51:$B$91, 0), MATCH(J$17,Emissions.Calc!$C$50:$R$50, 1))/$C$18 -> 1.041143323 | K24: =K$16*INDEX(Emissions.Calc!$C$51:$R$91, MATCH(K$12,Emissions.Calc!$B$51:$B$91, 0), MATCH(K$17,Emissions.Calc!$C$50:$R$50, 1))/$C$18 -> 0.9995892938 | L24: =L$16*INDEX(Emissions.Calc!$C$51:$R$91, MATCH(L$12,Emissions.Calc!$B$51:$B$91, 0), MATCH(L$17,Emissions.Calc!$C$50:$R$50, 1))/$C$18 -> 0.9755514437 | M24: =M$16*INDEX(Emissions.Calc!$C$51:$R$91, MATCH(M$12,Emissions.Calc!$B$51:$B$91, 0), MATCH(M$17,Emissions.Calc!$C$50:$R$50, 1))/$C$18 -> 0.936287409 | N24: =N$16*INDEX(Emissions.Calc!$C$51:$R$91, MATCH(N$12,Emissions.Calc!$B$51:$B$91, 0), MATCH(N$17,Emissions.Calc!$C$50:$R$50, 1))/$C$18 -> 0.8986036748 | O24: =O$16*INDEX(Emissions.Calc!$C$51:$R$91, MATCH(O$12,Emissions.Calc!$B$51:$B$91, 0), MATCH(O$17,Emissions.Calc!$C$50:$R$50, 1))/$C$18 -> 0.8624366371 | P24: =P$16*INDEX(Emissions.Calc!$C$51:$R$91, MATCH(P$12,Emissions.Calc!$B$51:$B$91, 0), MATCH(P$17,Emissions.Calc!$C$50:$R$50, 1))/$C$18 -> 0.8277252518 | Q24: =Q$16*INDEX(Emissions.Calc!$C$51:$R$91, MATCH(Q$12,Emissions.Calc!$B$51:$B$91, 0), MATCH(Q$17,Emissions.Calc!$C$50:$R$50, 1))/$C$18 -> 0.7944109317 | R24: =R$16*INDEX(Emissions.Calc!$C$51:$R$91, MATCH(R$12,Emissions.Calc!$B$51:$B$91, 0), MATCH(R$17,Emissions.Calc!$C$50:$R$50, 1))/$C$18 -> 0.7624374478 | S24: =S$16*INDEX(Emissions.Calc!$C$51:$R$91, MATCH(S$12,Emissions.Calc!$B$51:$B$91, 0), MATCH(S$17,Emissions.Calc!$C$50:$R$50, 1))/$C$18 -> 0.731750834 | T24: =T$16*INDEX(Emissions.Calc!$C$51:$R$91, MATCH(T$12,Emissions.Calc!$B$51:$B$91, 0), MATCH(T$17,Emissions.Calc!$C$50:$R$50, 1))/$C$18 -> 0.7022992963 | U24: =U$16*INDEX(Emissions.Calc!$C$51:$R$91, MATCH(U$12,Emissions.Calc!$B$51:$B$91, 0), MATCH(U$17,Emissions.Calc!$C$50:$R$50, 1))/$C$18 -> 0.7105769263 | V24: =V$16*INDEX(Emissions.Calc!$C$51:$R$91, MATCH(V$12,Emissions.Calc!$B$51:$B$91, 0), MATCH(V$17,Emissions.Calc!$C$50:$R$50, 1))/$C$18 -> 0.7189521204 | W24: =W$16*INDEX(Emissions.Calc!$C$51:$R$91, MATCH(W$12,Emissions.Calc!$B$51:$B$91, 0), MATCH(W$17,Emissions.Calc!$C$50:$R$50, 1))/$C$18 -> 0.7274260284 | X24: =X$16*INDEX(Emissions.Calc!$C$51:$R$91, MATCH(X$12,Emissions.Calc!$B$51:$B$91, 0), MATCH(X$17,Emissions.Calc!$C$50:$R$50, 1))/$C$18 -> 0.7359998139 | Y24: =Y$16*INDEX(Emissions.Calc!$C$51:$R$91, MATCH(Y$12,Emissions.Calc!$B$51:$B$91, 0), MATCH(Y$17,Emissions.Calc!$C$50:$R$50, 1))/$C$18 -> 0.7446746541 | Z24: =Z$16*INDEX(Emissions.Calc!$C$51:$R$91, MATCH(Z$12,Emissions.Calc!$B$51:$B$91, 0), MATCH(Z$17,Emissions.Calc!$C$50:$R$50, 1))/$C$18 -> 0.75345174 | AA24: =AA$16*INDEX(Emissions.Calc!$C$51:$R$91, MATCH(AA$12,Emissions.Calc!$B$51:$B$91, 0), MATCH(AA$17,Emissions.Calc!$C$50:$R$50, 1))/$C$18 -> 0.7623322768 | AB24: =AB$16*INDEX(Emissions.Calc!$C$51:$R$91, MATCH(AB$12,Emissions.Calc!$B$51:$B$91, 0), MATCH(AB$17,Emissions.Calc!$C$50:$R$50, 1))/$C$18 -> 0.7713174838 | AC24: =AC$16*INDEX(Emissions.Calc!$C$51:$R$91, MATCH(AC$12,Emissions.Calc!$B$51:$B$91, 0), MATCH(AC$17,Emissions.Calc!$C$50:$R$50, 1))/$C$18 -> 0.7804085946 | AD24: =AD$16*INDEX(Emissions.Calc!$C$51:$R$91, MATCH(AD$12,Emissions.Calc!$B$51:$B$91, 0), MATCH(AD$17,Emissions.Calc!$C$50:$R$50, 1))/$C$18 -> 0.8309158212 | AE24: =AE$16*INDEX(Emissions.Calc!$C$51:$R$91, MATCH(AE$12,Emissions.Calc!$B$51:$B$91, 0), MATCH(AE$17,Emissions.Calc!$C$50:$R$50, 1))/$C$18 -> 0.8309158212 | AF24: =AF$16*INDEX(Emissions.Calc!$C$51:$R$91, MATCH(AF$12,Emissions.Calc!$B$51:$B$91, 0), MATCH(AF$17,Emissions.Calc!$C$50:$R$50, 1))/$C$18 -> 0.8309158212 | AG24: =AG$16*INDEX(Emissions.Calc!$C$51:$R$91, MATCH(AG$12,Emissions.Calc!$B$51:$B$91, 0), MATCH(AG$17,Emissions.Calc!$C$50:$R$50, 1))/$C$18 -> 0.8309158212 | AH24: =AH$16*INDEX(Emissions.Calc!$C$51:$R$91, MATCH(AH$12,Emissions.Calc!$B$51:$B$91, 0), MATCH(AH$17,Emissions.Calc!$C$50:$R$50, 1))/$C$18 -> 0.8309158212 | AI24: =AI$16*INDEX(Emissions.Calc!$C$51:$R$91, MATCH(AI$12,Emissions.Calc!$B$51:$B$91, 0), MATCH(AI$17,Emissions.Calc!$C$50:$R$50, 1))/$C$18 -> 0.8309158212 | AJ24: =AJ$16*INDEX(Emissions.Calc!$C$51:$R$91, MATCH(AJ$12,Emissions.Calc!$B$51:$B$91, 0), MATCH(AJ$17,Emissions.Calc!$C$50:$R$50, 1))/$C$18 -> 0.8309158212 | AK24: =AK$16*INDEX(Emissions.Calc!$C$51:$R$91, MATCH(AK$12,Emissions.Calc!$B$51:$B$91, 0), MATCH(AK$17,Emissions.Calc!$C$50:$R$50, 1))/$C$18 -> 0.8309158212 | AL24: =AL$16*INDEX(Emissions.Calc!$C$51:$R$91, MATCH(AL$12,Emissions.Calc!$B$51:$B$91, 0), MATCH(AL$17,Emissions.Calc!$C$50:$R$50, 1))/$C$18 -> 0.8309158212 | AM24: =AM$16*INDEX(Emissions.Calc!$C$51:$R$91, MATCH(AM$12,Emissions.Calc!$B$51:$B$91, 0), MATCH(AM$17,Emissions.Calc!$C$50:$R$50, 1))/$C$18 -> 0.8309158212 | AN24: =AN$16*INDEX(Emissions.Calc!$C$51:$R$91, MATCH(AN$12,Emissions.Calc!$B$51:$B$91, 0), MATCH(AN$17,Emissions.Calc!$C$50:$R$50, 1))/$C$18 -> 0.8309158212
A25: Fine Particulate Matter (PM) - Truck | B25: tonnes | D25: =D$16*INDEX(Emissions.Calc!$C$95:$R$135, MATCH(D$12,Emissions.Calc!$B$95:$B$135, 0), MATCH(D$17,Emissions.Calc!$C$94:$R$94, 1))/$C$18 -> 0.06817399139 | E25: =E$16*INDEX(Emissions.Calc!$C$95:$R$135, MATCH(E$12,Emissions.Calc!$B$95:$B$135, 0), MATCH(E$17,Emissions.Calc!$C$94:$R$94, 1))/$C$18 -> 0.05939377306 | F25: =F$16*INDEX(Emissions.Calc!$C$95:$R$135, MATCH(F$12,Emissions.Calc!$B$95:$B$135, 0), MATCH(F$17,Emissions.Calc!$C$94:$R$94, 1))/$C$18 -> 0.05174437063 | G25: =G$16*INDEX(Emissions.Calc!$C$95:$R$135, MATCH(G$12,Emissions.Calc!$B$95:$B$135, 0), MATCH(G$17,Emissions.Calc!$C$94:$R$94, 1))/$C$18 -> 0.04508014484 | H25: =H$16*INDEX(Emissions.Calc!$C$95:$R$135, MATCH(H$12,Emissions.Calc!$B$95:$B$135, 0), MATCH(H$17,Emissions.Calc!$C$94:$R$94, 1))/$C$18 -> 0.03927421349 | I25: =I$16*INDEX(Emissions.Calc!$C$95:$R$135, MATCH(I$12,Emissions.Calc!$B$95:$B$135, 0), MATCH(I$17,Emissions.Calc!$C$94:$R$94, 1))/$C$18 -> 0.0342160357 | J25: =J$16*INDEX(Emissions.Calc!$C$95:$R$135, MATCH(J$12,Emissions.Calc!$B$95:$B$135, 0), MATCH(J$17,Emissions.Calc!$C$94:$R$94, 1))/$C$18 -> 0.0298093073 | K25: =K$16*INDEX(Emissions.Calc!$C$95:$R$135, MATCH(K$12,Emissions.Calc!$B$95:$B$135, 0), MATCH(K$17,Emissions.Calc!$C$94:$R$94, 1))/$C$18 -> 0.02750357271 | L25: =L$16*INDEX(Emissions.Calc!$C$95:$R$135, MATCH(L$12,Emissions.Calc!$B$95:$B$135, 0), MATCH(L$17,Emissions.Calc!$C$94:$R$94, 1))/$C$18 -> 0.02748564682 | M25: =M$16*INDEX(Emissions.Calc!$C$95:$R$135, MATCH(M$12,Emissions.Calc!$B$95:$B$135, 0), MATCH(M$17,Emissions.Calc!$C$94:$R$94, 1))/$C$18 -> 0.02532364472 | N25: =N$16*INDEX(Emissions.Calc!$C$95:$R$135, MATCH(N$12,Emissions.Calc!$B$95:$B$135, 0), MATCH(N$17,Emissions.Calc!$C$94:$R$94, 1))/$C$18 -> 0.02333170421 | O25: =O$16*INDEX(Emissions.Calc!$C$95:$R$135, MATCH(O$12,Emissions.Calc!$B$95:$B$135, 0), MATCH(O$17,Emissions.Calc!$C$94:$R$94, 1))/$C$18 -> 0.02149644838 | P25: =P$16*INDEX(Emissions.Calc!$C$95:$R$135, MATCH(P$12,Emissions.Calc!$B$95:$B$135, 0), MATCH(P$17,Emissions.Calc!$C$94:$R$94, 1))/$C$18 -> 0.01980555252 | Q25: =Q$16*INDEX(Emissions.Calc!$C$95:$R$135, MATCH(Q$12,Emissions.Calc!$B$95:$B$135, 0), MATCH(Q$17,Emissions.Calc!$C$94:$R$94, 1))/$C$18 -> 0.01824766136 | R25: =R$16*INDEX(Emissions.Calc!$C$95:$R$135, MATCH(R$12,Emissions.Calc!$B$95:$B$135, 0), MATCH(R$17,Emissions.Calc!$C$94:$R$94, 1))/$C$18 -> 0.01681231285 | S25: =S$16*INDEX(Emissions.Calc!$C$95:$R$135, MATCH(S$12,Emissions.Calc!$B$95:$B$135, 0), MATCH(S$17,Emissions.Calc!$C$94:$R$94, 1))/$C$18 -> 0.01548986786 | T25: =T$16*INDEX(Emissions.Calc!$C$95:$R$135, MATCH(T$12,Emissions.Calc!$B$95:$B$135, 0), MATCH(T$17,Emissions.Calc!$C$94:$R$94, 1))/$C$18 -> 0.0142714455 | U25: =U$16*INDEX(Emissions.Calc!$C$95:$R$135, MATCH(U$12,Emissions.Calc!$B$95:$B$135, 0), MATCH(U$17,Emissions.Calc!$C$94:$R$94, 1))/$C$18 -> 0.01440702175 | V25: =V$16*INDEX(Emissions.Calc!$C$95:$R$135, MATCH(V$12,Emissions.Calc!$B$95:$B$135, 0), MATCH(V$17,Emissions.Calc!$C$94:$R$94, 1))/$C$18 -> 0.01454388596 | W25: =W$16*INDEX(Emissions.Calc!$C$95:$R$135, MATCH(W$12,Emissions.Calc!$B$95:$B$135, 0), MATCH(W$17,Emissions.Calc!$C$94:$R$94, 1))/$C$18 -> 0.01468205036 | X25: =X$16*INDEX(Emissions.Calc!$C$95:$R$135, MATCH(X$12,Emissions.Calc!$B$95:$B$135, 0), MATCH(X$17,Emissions.Calc!$C$94:$R$94, 1))/$C$18 -> 0.0148215273 | Y25: =Y$16*INDEX(Emissions.Calc!$C$95:$R$135, MATCH(Y$12,Emissions.Calc!$B$95:$B$135, 0), MATCH(Y$17,Emissions.Calc!$C$94:$R$94, 1))/$C$18 -> 0.01496232924 | Z25: =Z$16*INDEX(Emissions.Calc!$C$95:$R$135, MATCH(Z$12,Emissions.Calc!$B$95:$B$135, 0), MATCH(Z$17,Emissions.Calc!$C$94:$R$94, 1))/$C$18 -> 0.01510446877 | AA25: =AA$16*INDEX(Emissions.Calc!$C$95:$R$135, MATCH(AA$12,Emissions.Calc!$B$95:$B$135, 0), MATCH(AA$17,Emissions.Calc!$C$94:$R$94, 1))/$C$18 -> 0.01524795861 | AB25: =AB$16*INDEX(Emissions.Calc!$C$95:$R$135, MATCH(AB$12,Emissions.Calc!$B$95:$B$135, 0), MATCH(AB$17,Emissions.Calc!$C$94:$R$94, 1))/$C$18 -> 0.01539281157 | AC25: =AC$16*INDEX(Emissions.Calc!$C$95:$R$135, MATCH(AC$12,Emissions.Calc!$B$95:$B$135, 0), MATCH(AC$17,Emissions.Calc!$C$94:$R$94, 1))/$C$18 -> 0.01553904061 | AD25: =AD$16*INDEX(Emissions.Calc!$C$95:$R$135, MATCH(AD$12,Emissions.Calc!$B$95:$B$135, 0), MATCH(AD$17,Emissions.Calc!$C$94:$R$94, 1))/$C$18 -> 0.01755332397 | AE25: =AE$16*INDEX(Emissions.Calc!$C$95:$R$135, MATCH(AE$12,Emissions.Calc!$B$95:$B$135, 0), MATCH(AE$17,Emissions.Calc!$C$94:$R$94, 1))/$C$18 -> 0.01755332397 | AF25: =AF$16*INDEX(Emissions.Calc!$C$95:$R$135, MATCH(AF$12,Emissions.Calc!$B$95:$B$135, 0), MATCH(AF$17,Emissions.Calc!$C$94:$R$94, 1))/$C$18 -> 0.01755332397 | AG25: =AG$16*INDEX(Emissions.Calc!$C$95:$R$135, MATCH(AG$12,Emissions.Calc!$B$95:$B$135, 0), MATCH(AG$17,Emissions.Calc!$C$94:$R$94, 1))/$C$18 -> 0.01755332397 | AH25: =AH$16*INDEX(Emissions.Calc!$C$95:$R$135, MATCH(AH$12,Emissions.Calc!$B$95:$B$135, 0), MATCH(AH$17,Emissions.Calc!$C$94:$R$94, 1))/$C$18 -> 0.01755332397 | AI25: =AI$16*INDEX(Emissions.Calc!$C$95:$R$135, MATCH(AI$12,Emissions.Calc!$B$95:$B$135, 0), MATCH(AI$17,Emissions.Calc!$C$94:$R$94, 1))/$C$18 -> 0.01755332397 | AJ25: =AJ$16*INDEX(Emissions.Calc!$C$95:$R$135, MATCH(AJ$12,Emissions.Calc!$B$95:$B$135, 0), MATCH(AJ$17,Emissions.Calc!$C$94:$R$94, 1))/$C$18 -> 0.01755332397 | AK25: =AK$16*INDEX(Emissions.Calc!$C$95:$R$135, MATCH(AK$12,Emissions.Calc!$B$95:$B$135, 0), MATCH(AK$17,Emissions.Calc!$C$94:$R$94, 1))/$C$18 -> 0.01755332397 | AL25: =AL$16*INDEX(Emissions.Calc!$C$95:$R$135, MATCH(AL$12,Emissions.Calc!$B$95:$B$135, 0), MATCH(AL$17,Emissions.Calc!$C$94:$R$94, 1))/$C$18 -> 0.01755332397 | AM25: =AM$16*INDEX(Emissions.Calc!$C$95:$R$135, MATCH(AM$12,Emissions.Calc!$B$95:$B$135, 0), MATCH(AM$17,Emissions.Calc!$C$94:$R$94, 1))/$C$18 -> 0.01755332397 | AN25: =AN$16*INDEX(Emissions.Calc!$C$95:$R$135, MATCH(AN$12,Emissions.Calc!$B$95:$B$135, 0), MATCH(AN$17,Emissions.Calc!$C$94:$R$94, 1))/$C$18 -> 0.01755332397
A26: Sulfur Dioxide (SO2) - Truck | B26: tonnes | D26: =D16*INDEX(Emissions.Calc!$C$139:$R$179, MATCH(D$12,Emissions.Calc!$B$139:$B$179, 0), MATCH(D17,Emissions.Calc!$C$138:$R$138, 1))/$C$18 -> 0.006286837724 | E26: =E16*INDEX(Emissions.Calc!$C$139:$R$179, MATCH(E$12,Emissions.Calc!$B$139:$B$179, 0), MATCH(E17,Emissions.Calc!$C$138:$R$138, 1))/$C$18 -> 0.006324838459 | F26: =F16*INDEX(Emissions.Calc!$C$139:$R$179, MATCH(F$12,Emissions.Calc!$B$139:$B$179, 0), MATCH(F17,Emissions.Calc!$C$138:$R$138, 1))/$C$18 -> 0.006363068888 | G26: =G16*INDEX(Emissions.Calc!$C$139:$R$179, MATCH(G$12,Emissions.Calc!$B$139:$B$179, 0), MATCH(G17,Emissions.Calc!$C$138:$R$138, 1))/$C$18 -> 0.006401530401 | H26: =H16*INDEX(Emissions.Calc!$C$139:$R$179, MATCH(H$12,Emissions.Calc!$B$139:$B$179, 0), MATCH(H17,Emissions.Calc!$C$138:$R$138, 1))/$C$18 -> 0.006440224395 | I26: =I16*INDEX(Emissions.Calc!$C$139:$R$179, MATCH(I$12,Emissions.Calc!$B$139:$B$179, 0), MATCH(I17,Emissions.Calc!$C$138:$R$138, 1))/$C$18 -> 0.006479152273 | J26: =J16*INDEX(Emissions.Calc!$C$139:$R$179, MATCH(J$12,Emissions.Calc!$B$139:$B$179, 0), MATCH(J17,Emissions.Calc!$C$138:$R$138, 1))/$C$18 -> 0.006518315451 | K26: =K16*INDEX(Emissions.Calc!$C$139:$R$179, MATCH(K$12,Emissions.Calc!$B$139:$B$179, 0), MATCH(K17,Emissions.Calc!$C$138:$R$138, 1))/$C$18 -> 0.006602390187 | L26: =L16*INDEX(Emissions.Calc!$C$139:$R$179, MATCH(L$12,Emissions.Calc!$B$139:$B$179, 0), MATCH(L17,Emissions.Calc!$C$138:$R$138, 1))/$C$18 -> 0.006791325454 | M26: =M16*INDEX(Emissions.Calc!$C$139:$R$179, MATCH(M$12,Emissions.Calc!$B$139:$B$179, 0), MATCH(M17,Emissions.Calc!$C$138:$R$138, 1))/$C$18 -> 0.006876553157 | N26: =N16*INDEX(Emissions.Calc!$C$139:$R$179, MATCH(N$12,Emissions.Calc!$B$139:$B$179, 0), MATCH(N17,Emissions.Calc!$C$138:$R$138, 1))/$C$18 -> 0.006962850425 | O26: =O16*INDEX(Emissions.Calc!$C$139:$R$179, MATCH(O$12,Emissions.Calc!$B$139:$B$179, 0), MATCH(O17,Emissions.Calc!$C$138:$R$138, 1))/$C$18 -> 0.00705023068 | P26: =P16*INDEX(Emissions.Calc!$C$139:$R$179, MATCH(P$12,Emissions.Calc!$B$139:$B$179, 0), MATCH(P17,Emissions.Calc!$C$138:$R$138, 1))/$C$18 -> 0.007138707513 | Q26: =Q16*INDEX(Emissions.Calc!$C$139:$R$179, MATCH(Q$12,Emissions.Calc!$B$139:$B$179, 0), MATCH(Q17,Emissions.Calc!$C$138:$R$138, 1))/$C$18 -> 0.007228294685 | R26: =R16*INDEX(Emissions.Calc!$C$139:$R$179, MATCH(R$12,Emissions.Calc!$B$139:$B$179, 0), MATCH(R17,Emissions.Calc!$C$138:$R$138, 1))/$C$18 -> 0.007319006132 | S26: =S16*INDEX(Emissions.Calc!$C$139:$R$179, MATCH(S$12,Emissions.Calc!$B$139:$B$179, 0), MATCH(S17,Emissions.Calc!$C$138:$R$138, 1))/$C$18 -> 0.007410855961 | T26: =T16*INDEX(Emissions.Calc!$C$139:$R$179, MATCH(T$12,Emissions.Calc!$B$139:$B$179, 0), MATCH(T17,Emissions.Calc!$C$138:$R$138, 1))/$C$18 -> 0.007503858459 | U26: =U16*INDEX(Emissions.Calc!$C$139:$R$179, MATCH(U$12,Emissions.Calc!$B$139:$B$179, 0), MATCH(U17,Emissions.Calc!$C$138:$R$138, 1))/$C$18 -> 0.007619182287 | V26: =V16*INDEX(Emissions.Calc!$C$139:$R$179, MATCH(V$12,Emissions.Calc!$B$139:$B$179, 0), MATCH(V17,Emissions.Calc!$C$138:$R$138, 1))/$C$18 -> 0.007736278482 | W26: =W16*INDEX(Emissions.Calc!$C$139:$R$179, MATCH(W$12,Emissions.Calc!$B$139:$B$179, 0), MATCH(W17,Emissions.Calc!$C$138:$R$138, 1))/$C$18 -> 0.007855174281 | X26: =X16*INDEX(Emissions.Calc!$C$139:$R$179, MATCH(X$12,Emissions.Calc!$B$139:$B$179, 0), MATCH(X17,Emissions.Calc!$C$138:$R$138, 1))/$C$18 -> 0.007975897343 | Y26: =Y16*INDEX(Emissions.Calc!$C$139:$R$179, MATCH(Y$12,Emissions.Calc!$B$139:$B$179, 0), MATCH(Y17,Emissions.Calc!$C$138:$R$138, 1))/$C$18 -> 0.00809847575 | Z26: =Z16*INDEX(Emissions.Calc!$C$139:$R$179, MATCH(Z$12,Emissions.Calc!$B$139:$B$179, 0), MATCH(Z17,Emissions.Calc!$C$138:$R$138, 1))/$C$18 -> 0.008222938016 | AA26: =AA16*INDEX(Emissions.Calc!$C$139:$R$179, MATCH(AA$12,Emissions.Calc!$B$139:$B$179, 0), MATCH(AA17,Emissions.Calc!$C$138:$R$138, 1))/$C$18 -> 0.008349313093 | AB26: =AB16*INDEX(Emissions.Calc!$C$139:$R$179, MATCH(AB$12,Emissions.Calc!$B$139:$B$179, 0), MATCH(AB17,Emissions.Calc!$C$138:$R$138, 1))/$C$18 -> 0.008477630379 | AC26: =AC16*INDEX(Emissions.Calc!$C$139:$R$179, MATCH(AC$12,Emissions.Calc!$B$139:$B$179, 0), MATCH(AC17,Emissions.Calc!$C$138:$R$138, 1))/$C$18 -> 0.008607919722 | AD26: =AD16*INDEX(Emissions.Calc!$C$139:$R$179, MATCH(AD$12,Emissions.Calc!$B$139:$B$179, 0), MATCH(AD17,Emissions.Calc!$C$138:$R$138, 1))/$C$18 -> 0.009233763057 | AE26: =AE16*INDEX(Emissions.Calc!$C$139:$R$179, MATCH(AE$12,Emissions.Calc!$B$139:$B$179, 0), MATCH(AE17,Emissions.Calc!$C$138:$R$138, 1))/$C$18 -> 0.009233763057 | AF26: =AF16*INDEX(Emissions.Calc!$C$139:$R$179, MATCH(AF$12,Emissions.Calc!$B$139:$B$179, 0), MATCH(AF17,Emissions.Calc!$C$138:$R$138, 1))/$C$18 -> 0.009233763057 | AG26: =AG16*INDEX(Emissions.Calc!$C$139:$R$179, MATCH(AG$12,Emissions.Calc!$B$139:$B$179, 0), MATCH(AG17,Emissions.Calc!$C$138:$R$138, 1))/$C$18 -> 0.009233763057 | AH26: =AH16*INDEX(Emissions.Calc!$C$139:$R$179, MATCH(AH$12,Emissions.Calc!$B$139:$B$179, 0), MATCH(AH17,Emissions.Calc!$C$138:$R$138, 1))/$C$18 -> 0.009233763057 | AI26: =AI16*INDEX(Emissions.Calc!$C$139:$R$179, MATCH(AI$12,Emissions.Calc!$B$139:$B$179, 0), MATCH(AI17,Emissions.Calc!$C$138:$R$138, 1))/$C$18 -> 0.009233763057 | AJ26: =AJ16*INDEX(Emissions.Calc!$C$139:$R$179, MATCH(AJ$12,Emissions.Calc!$B$139:$B$179, 0), MATCH(AJ17,Emissions.Calc!$C$138:$R$138, 1))/$C$18 -> 0.009233763057 | AK26: =AK16*INDEX(Emissions.Calc!$C$139:$R$179, MATCH(AK$12,Emissions.Calc!$B$139:$B$179, 0), MATCH(AK17,Emissions.Calc!$C$138:$R$138, 1))/$C$18 -> 0.009233763057 | AL26: =AL16*INDEX(Emissions.Calc!$C$139:$R$179, MATCH(AL$12,Emissions.Calc!$B$139:$B$179, 0), MATCH(AL17,Emissions.Calc!$C$138:$R$138, 1))/$C$18 -> 0.009233763057 | AM26: =AM16*INDEX(Emissions.Calc!$C$139:$R$179, MATCH(AM$12,Emissions.Calc!$B$139:$B$179, 0), MATCH(AM17,Emissions.Calc!$C$138:$R$138, 1))/$C$18 -> 0.009233763057 | AN26: =AN16*INDEX(Emissions.Calc!$C$139:$R$179, MATCH(AN$12,Emissions.Calc!$B$139:$B$179, 0), MATCH(AN17,Emissions.Calc!$C$138:$R$138, 1))/$C$18 -> 0.009233763057
A27: Carbon Dioxide (CO2) - Truck | B27: tonnes | D27: =D$16*(INDEX(Emissions.Calc!$C$7:$R$47, MATCH(D$12,Emissions.Calc!$B$7:$B$47, 0), MATCH(D$17,Emissions.Calc!$C$6:$R$6, 1)))/$C$18 -> 740.5385871 | E27: =E$16*(INDEX(Emissions.Calc!$C$7:$R$47, MATCH(E$12,Emissions.Calc!$B$7:$B$47, 0), MATCH(E$17,Emissions.Calc!$C$6:$R$6, 1)))/$C$18 -> 746.6124704 | F27: =F$16*(INDEX(Emissions.Calc!$C$7:$R$47, MATCH(F$12,Emissions.Calc!$B$7:$B$47, 0), MATCH(F$17,Emissions.Calc!$C$6:$R$6, 1)))/$C$18 -> 752.7361715 | G27: =G$16*(INDEX(Emissions.Calc!$C$7:$R$47, MATCH(G$12,Emissions.Calc!$B$7:$B$47, 0), MATCH(G$17,Emissions.Calc!$C$6:$R$6, 1)))/$C$18 -> 758.910099 | H27: =H$16*(INDEX(Emissions.Calc!$C$7:$R$47, MATCH(H$12,Emissions.Calc!$B$7:$B$47, 0), MATCH(H$17,Emissions.Calc!$C$6:$R$6, 1)))/$C$18 -> 765.1346651 | I27: =I$16*(INDEX(Emissions.Calc!$C$7:$R$47, MATCH(I$12,Emissions.Calc!$B$7:$B$47, 0), MATCH(I$17,Emissions.Calc!$C$6:$R$6, 1)))/$C$18 -> 771.4102848 | J27: =J$16*(INDEX(Emissions.Calc!$C$7:$R$47, MATCH(J$12,Emissions.Calc!$B$7:$B$47, 0), MATCH(J$17,Emissions.Calc!$C$6:$R$6, 1)))/$C$18 -> 777.7373771 | K27: =K$16*(INDEX(Emissions.Calc!$C$7:$R$47, MATCH(K$12,Emissions.Calc!$B$7:$B$47, 0), MATCH(K$17,Emissions.Calc!$C$6:$R$6, 1)))/$C$18 -> 788.1669228 | L27: =L$16*(INDEX(Emissions.Calc!$C$7:$R$47, MATCH(L$12,Emissions.Calc!$B$7:$B$47, 0), MATCH(L$17,Emissions.Calc!$C$6:$R$6, 1)))/$C$18 -> 811.1100403 | M27: =M$16*(INDEX(Emissions.Calc!$C$7:$R$47, MATCH(M$12,Emissions.Calc!$B$7:$B$47, 0), MATCH(M$17,Emissions.Calc!$C$6:$R$6, 1)))/$C$18 -> 821.7068108 | N27: =N$16*(INDEX(Emissions.Calc!$C$7:$R$47, MATCH(N$12,Emissions.Calc!$B$7:$B$47, 0), MATCH(N$17,Emissions.Calc!$C$6:$R$6, 1)))/$C$18 -> 832.4420231 | O27: =O$16*(INDEX(Emissions.Calc!$C$7:$R$47, MATCH(O$12,Emissions.Calc!$B$7:$B$47, 0), MATCH(O$17,Emissions.Calc!$C$6:$R$6, 1)))/$C$18 -> 843.3174859 | P27: =P$16*(INDEX(Emissions.Calc!$C$7:$R$47, MATCH(P$12,Emissions.Calc!$B$7:$B$47, 0), MATCH(P$17,Emissions.Calc!$C$6:$R$6, 1)))/$C$18 -> 854.3350315 | Q27: =Q$16*(INDEX(Emissions.Calc!$C$7:$R$47, MATCH(Q$12,Emissions.Calc!$B$7:$B$47, 0), MATCH(Q$17,Emissions.Calc!$C$6:$R$6, 1)))/$C$18 -> 865.4965161 | R27: =R$16*(INDEX(Emissions.Calc!$C$7:$R$47, MATCH(R$12,Emissions.Calc!$B$7:$B$47, 0), MATCH(R$17,Emissions.Calc!$C$6:$R$6, 1)))/$C$18 -> 876.8038203 | S27: =S$16*(INDEX(Emissions.Calc!$C$7:$R$47, MATCH(S$12,Emissions.Calc!$B$7:$B$47, 0), MATCH(S$17,Emissions.Calc!$C$6:$R$6, 1)))/$C$18 -> 888.2588491 | T27: =T$16*(INDEX(Emissions.Calc!$C$7:$R$47, MATCH(T$12,Emissions.Calc!$B$7:$B$47, 0), MATCH(T$17,Emissions.Calc!$C$6:$R$6, 1)))/$C$18 -> 899.8635324 | U27: =U$16*(INDEX(Emissions.Calc!$C$7:$R$47, MATCH(U$12,Emissions.Calc!$B$7:$B$47, 0), MATCH(U$17,Emissions.Calc!$C$6:$R$6, 1)))/$C$18 -> 913.7124655 | V27: =V$16*(INDEX(Emissions.Calc!$C$7:$R$47, MATCH(V$12,Emissions.Calc!$B$7:$B$47, 0), MATCH(V$17,Emissions.Calc!$C$6:$R$6, 1)))/$C$18 -> 927.7745341 | W27: =W$16*(INDEX(Emissions.Calc!$C$7:$R$47, MATCH(W$12,Emissions.Calc!$B$7:$B$47, 0), MATCH(W$17,Emissions.Calc!$C$6:$R$6, 1)))/$C$18 -> 942.0530185 | X27: =X$16*(INDEX(Emissions.Calc!$C$7:$R$47, MATCH(X$12,Emissions.Calc!$B$7:$B$47, 0), MATCH(X$17,Emissions.Calc!$C$6:$R$6, 1)))/$C$18 -> 956.5512493 | Y27: =Y$16*(INDEX(Emissions.Calc!$C$7:$R$47, MATCH(Y$12,Emissions.Calc!$B$7:$B$47, 0), MATCH(Y$17,Emissions.Calc!$C$6:$R$6, 1)))/$C$18 -> 971.2726084 | Z27: =Z$16*(INDEX(Emissions.Calc!$C$7:$R$47, MATCH(Z$12,Emissions.Calc!$B$7:$B$47, 0), MATCH(Z$17,Emissions.Calc!$C$6:$R$6, 1)))/$C$18 -> 986.2205297 | AA27: =AA$16*(INDEX(Emissions.Calc!$C$7:$R$47, MATCH(AA$12,Emissions.Calc!$B$7:$B$47, 0), MATCH(AA$17,Emissions.Calc!$C$6:$R$6, 1)))/$C$18 -> 1001.3985 | AB27: =AB$16*(INDEX(Emissions.Calc!$C$7:$R$47, MATCH(AB$12,Emissions.Calc!$B$7:$B$47, 0), MATCH(AB$17,Emissions.Calc!$C$6:$R$6, 1)))/$C$18 -> 1016.81006 | AC27: =AC$16*(INDEX(Emissions.Calc!$C$7:$R$47, MATCH(AC$12,Emissions.Calc!$B$7:$B$47, 0), MATCH(AC$17,Emissions.Calc!$C$6:$R$6, 1)))/$C$18 -> 1032.458805 | AD27: =AD$16*(INDEX(Emissions.Calc!$C$7:$R$47, MATCH(AD$12,Emissions.Calc!$B$7:$B$47, 0), MATCH(AD$17,Emissions.Calc!$C$6:$R$6, 1)))/$C$18 -> 1107.547701 | AE27: =AE$16*(INDEX(Emissions.Calc!$C$7:$R$47, MATCH(AE$12,Emissions.Calc!$B$7:$B$47, 0), MATCH(AE$17,Emissions.Calc!$C$6:$R$6, 1)))/$C$18 -> 1107.547701 | AF27: =AF$16*(INDEX(Emissions.Calc!$C$7:$R$47, MATCH(AF$12,Emissions.Calc!$B$7:$B$47, 0), MATCH(AF$17,Emissions.Calc!$C$6:$R$6, 1)))/$C$18 -> 1107.547701 | AG27: =AG$16*(INDEX(Emissions.Calc!$C$7:$R$47, MATCH(AG$12,Emissions.Calc!$B$7:$B$47, 0), MATCH(AG$17,Emissions.Calc!$C$6:$R$6, 1)))/$C$18 -> 1107.547701 | AH27: =AH$16*(INDEX(Emissions.Calc!$C$7:$R$47, MATCH(AH$12,Emissions.Calc!$B$7:$B$47, 0), MATCH(AH$17,Emissions.Calc!$C$6:$R$6, 1)))/$C$18 -> 1107.547701 | AI27: =AI$16*(INDEX(Emissions.Calc!$C$7:$R$47, MATCH(AI$12,Emissions.Calc!$B$7:$B$47, 0), MATCH(AI$17,Emissions.Calc!$C$6:$R$6, 1)))/$C$18 -> 1107.547701 | AJ27: =AJ$16*(INDEX(Emissions.Calc!$C$7:$R$47, MATCH(AJ$12,Emissions.Calc!$B$7:$B$47, 0), MATCH(AJ$17,Emissions.Calc!$C$6:$R$6, 1)))/$C$18 -> 1107.547701 | AK27: =AK$16*(INDEX(Emissions.Calc!$C$7:$R$47, MATCH(AK$12,Emissions.Calc!$B$7:$B$47, 0), MATCH(AK$17,Emissions.Calc!$C$6:$R$6, 1)))/$C$18 -> 1107.547701 | AL27: =AL$16*(INDEX(Emissions.Calc!$C$7:$R$47, MATCH(AL$12,Emissions.Calc!$B$7:$B$47, 0), MATCH(AL$17,Emissions.Calc!$C$6:$R$6, 1)))/$C$18 -> 1107.547701 | AM27: =AM$16*(INDEX(Emissions.Calc!$C$7:$R$47, MATCH(AM$12,Emissions.Calc!$B$7:$B$47, 0), MATCH(AM$17,Emissions.Calc!$C$6:$R$6, 1)))/$C$18 -> 1107.547701 | AN27: =AN$16*(INDEX(Emissions.Calc!$C$7:$R$47, MATCH(AN$12,Emissions.Calc!$B$7:$B$47, 0), MATCH(AN$17,Emissions.Calc!$C$6:$R$6, 1)))/$C$18 -> 1107.547701
A29: Emission Cost - Douglas to Anderson
A30: Vehicle Miles Travelled | D30: =('Traffic Projection'!I60)*((1+CAGR_VMT_Douglas_Anderson)^(2019-2017)) -> 19158132.13 | E30: =D30*(1+CAGR_VMT_Douglas_Anderson) -> 19424095.62 | F30: 19693751.35 | G30: 19967150.59 | H30: 20244345.31 | I30: 20525388.19 | J30: 20810332.66 | K30: 21099232.88 | L30: 21392143.77 | M30: 21689121.01 | N30: 21990221.04 | O30: 22295501.11 | P30: 22605019.24 | Q30: 22918834.26 | R30: 23237005.84 | S30: 23559594.44 | T30: 23886661.39 | U30: 24218268.86 | V30: 24554479.89 | W30: 24895358.37 | X30: 25240969.12 | Y30: 25591377.82 | Z30: 25946651.08 | AA30: 26306856.43 | AB30: 26672062.35 | AC30: 27042338.26 | AD30: 27417754.53 | AE30: =AD30 -> 27417754.53 | AF30: =AE30 -> 27417754.53 | AG30: 27417754.53 | AH30: 27417754.53 | AI30: 27417754.53 | AJ30: 27417754.53 | AK30: 27417754.53 | AL30: 27417754.53 | AM30: 27417754.53 | AN30: 27417754.53
A31: Automobile Vehicle Miles Travelled | D31: =D30*$B$9 -> 16667574.95 | E31: =E30*$B$9 -> 16898963.19 | F31: 17133563.68 | G31: 17371421.01 | H31: 17612580.42 | I31: 17857087.72 | J31: 18104989.41 | K31: 18356332.61 | L31: 18611165.08 | M31: 18869535.28 | N31: 19131492.31 | O31: 19397085.96 | P31: 19666366.74 | Q31: 19939385.81 | R31: 20216195.08 | S31: 20496847.16 | T31: 20781395.41 | U31: 21069893.91 | V31: 21362397.5 | W31: 21658961.79 | X31: 21959643.13 | Y31: 22264498.7 | Z31: 22573586.44 | AA31: 22886965.1 | AB31: 23204694.25 | AC31: 23526834.28 | AD31: 23853446.44 | AE31: 23853446.44 | AF31: =AF30*$B$9 -> 23853446.44 | AG31: 23853446.44 | AH31: 23853446.44 | AI31: 23853446.44 | AJ31: 23853446.44 | AK31: 23853446.44 | AL31: 23853446.44 | AM31: 23853446.44 | AN31: 23853446.44
A32: Truck Vehicle Miles Travelled | D32: =D30*$B$10 -> 2490557.177 | E32: =E30*$B$10 -> 2525132.43 | F32: 2560187.676 | G32: 2595729.577 | H32: 2631764.89 | I32: 2668300.464 | J32: 2705343.246 | K32: 2742900.274 | L32: 2780978.69 | M32: 2819585.731 | N32: 2858728.735 | O32: 2898415.144 | P32: 2938652.501 | Q32: 2979448.454 | R32: 3020810.759 | S32: 3062747.277 | T32: 3105265.981 | U32: 3148374.952 | V32: 3192082.385 | W32: 3236396.589 | X32: 3281325.985 | Y32: 3326879.116 | Z32: 3373064.64 | AA32: 3419891.336 | AB32: 3467368.106 | AC32: 3515503.973 | AD32: 3564308.089 | AE32: 3564308.089 | AF32: =AF30*$B$10 -> 3564308.089 | AG32: 3564308.089 | AH32: 3564308.089 | AI32: 3564308.089 | AJ32: 3564308.089 | AK32: 3564308.089 | AL32: 3564308.089 | AM32: 3564308.089 | AN32: 3564308.089
A33: Average Speed | D33: ='Traffic Projection'!J165*((1+CAGR_Speed_NoBuild)^(2019-2015)) -> 62.31845875 | E33: =D33*(1+CAGR_Speed_NoBuild) -> 62.00944252 | F33: 61.70195861 | G33: 61.3959994 | H33: 61.09155734 | I33: 60.78862491 | J33: 60.48719462 | K33: 60.18725902 | L33: 59.8888107 | M33: 59.59184228 | N33: 59.29634643 | O33: 59.00231584 | P33: 58.70974326 | Q33: 58.41862144 | R33: 58.12894319 | S33: 57.84070137 | T33: 57.55388883 | U33: 57.26849851 | V33: 56.98452333 | W33: 56.7019563 | X33: 56.42079042 | Y33: 56.14101874 | Z33: 55.86263436 | AA33: 55.5856304 | AB33: 55.31 | AC33: 55.03573636 | AD33: 54.7628327 | AE33: =AD33 -> 54.7628327 | AF33: =AE33 -> 54.7628327 | AG33: 54.7628327 | AH33: 54.7628327 | AI33: 54.7628327 | AJ33: 54.7628327 | AK33: 54.7628327 | AL33: 54.7628327 | AM33: 54.7628327 | AN33: 54.7628327
B34: =Inputs!$D$85 -> g/metric ton | C34: =Inputs!$E$85 -> 1000000
A35: Nitrogen Oxides (NOx) - Auto | B35: tonnes | D35: =D$31*INDEX(Emissions.Calc!$U$51:$AJ$91, MATCH(D$12,Emissions.Calc!$T$51:$T$91, 0), MATCH(D$33,Emissions.Calc!$U$50:$AJ$50, 1))/$C$34 -> 2.968825308 | E35: =E$31*INDEX(Emissions.Calc!$U$51:$AJ$91, MATCH(E$12,Emissions.Calc!$T$51:$T$91, 0), MATCH(E$33,Emissions.Calc!$U$50:$AJ$50, 1))/$C$34 -> 2.502059473 | F35: =F$31*INDEX(Emissions.Calc!$U$51:$AJ$91, MATCH(F$12,Emissions.Calc!$T$51:$T$91, 0), MATCH(F$33,Emissions.Calc!$U$50:$AJ$50, 1))/$C$34 -> 2.108679683 | G35: =G$31*INDEX(Emissions.Calc!$U$51:$AJ$91, MATCH(G$12,Emissions.Calc!$T$51:$T$91, 0), MATCH(G$33,Emissions.Calc!$U$50:$AJ$50, 1))/$C$34 -> 1.777148006 | H35: =H$31*INDEX(Emissions.Calc!$U$51:$AJ$91, MATCH(H$12,Emissions.Calc!$T$51:$T$91, 0), MATCH(H$33,Emissions.Calc!$U$50:$AJ$50, 1))/$C$34 -> 1.497740534 | I35: =I$31*INDEX(Emissions.Calc!$U$51:$AJ$91, MATCH(I$12,Emissions.Calc!$T$51:$T$91, 0), MATCH(I$33,Emissions.Calc!$U$50:$AJ$50, 1))/$C$34 -> 1.262262176 | J35: =J$31*INDEX(Emissions.Calc!$U$51:$AJ$91, MATCH(J$12,Emissions.Calc!$T$51:$T$91, 0), MATCH(J$33,Emissions.Calc!$U$50:$AJ$50, 1))/$C$34 -> 1.063806289 | K35: =K$31*INDEX(Emissions.Calc!$U$51:$AJ$91, MATCH(K$12,Emissions.Calc!$T$51:$T$91, 0), MATCH(K$33,Emissions.Calc!$U$50:$AJ$50, 1))/$C$34 -> 1.000897014 | L35: =L$31*INDEX(Emissions.Calc!$U$51:$AJ$91, MATCH(L$12,Emissions.Calc!$T$51:$T$91, 0), MATCH(L$33,Emissions.Calc!$U$50:$AJ$50, 1))/$C$34 -> 0.9079461467 | M35: =M$31*INDEX(Emissions.Calc!$U$51:$AJ$91, MATCH(M$12,Emissions.Calc!$T$51:$T$91, 0), MATCH(M$33,Emissions.Calc!$U$50:$AJ$50, 1))/$C$34 -> 0.8519845706 | N35: =N$31*INDEX(Emissions.Calc!$U$51:$AJ$91, MATCH(N$12,Emissions.Calc!$T$51:$T$91, 0), MATCH(N$33,Emissions.Calc!$U$50:$AJ$50, 1))/$C$34 -> 0.7994722056 | O35: =O$31*INDEX(Emissions.Calc!$U$51:$AJ$91, MATCH(O$12,Emissions.Calc!$T$51:$T$91, 0), MATCH(O$33,Emissions.Calc!$U$50:$AJ$50, 1))/$C$34 -> 0.7501964585 | P35: =P$31*INDEX(Emissions.Calc!$U$51:$AJ$91, MATCH(P$12,Emissions.Calc!$T$51:$T$91, 0), MATCH(P$33,Emissions.Calc!$U$50:$AJ$50, 1))/$C$34 -> 0.7039578391 | Q35: =Q$31*INDEX(Emissions.Calc!$U$51:$AJ$91, MATCH(Q$12,Emissions.Calc!$T$51:$T$91, 0), MATCH(Q$33,Emissions.Calc!$U$50:$AJ$50, 1))/$C$34 -> 0.6605691532 | R35: =R$31*INDEX(Emissions.Calc!$U$51:$AJ$91, MATCH(R$12,Emissions.Calc!$T$51:$T$91, 0), MATCH(R$33,Emissions.Calc!$U$50:$AJ$50, 1))/$C$34 -> 0.6198547439 | S35: =S$31*INDEX(Emissions.Calc!$U$51:$AJ$91, MATCH(S$12,Emissions.Calc!$T$51:$T$91, 0), MATCH(S$33,Emissions.Calc!$U$50:$AJ$50, 1))/$C$34 -> 0.5816497815 | T35: =T$31*INDEX(Emissions.Calc!$U$51:$AJ$91, MATCH(T$12,Emissions.Calc!$T$51:$T$91, 0), MATCH(T$33,Emissions.Calc!$U$50:$AJ$50, 1))/$C$34 -> 0.5457995951 | U35: =U$31*INDEX(Emissions.Calc!$U$51:$AJ$91, MATCH(U$12,Emissions.Calc!$T$51:$T$91, 0), MATCH(U$33,Emissions.Calc!$U$50:$AJ$50, 1))/$C$34 -> 0.542306713 | V35: =V$31*INDEX(Emissions.Calc!$U$51:$AJ$91, MATCH(V$12,Emissions.Calc!$T$51:$T$91, 0), MATCH(V$33,Emissions.Calc!$U$50:$AJ$50, 1))/$C$34 -> 0.5388361839 | W35: =W$31*INDEX(Emissions.Calc!$U$51:$AJ$91, MATCH(W$12,Emissions.Calc!$T$51:$T$91, 0), MATCH(W$33,Emissions.Calc!$U$50:$AJ$50, 1))/$C$34 -> 0.5353878646 | X35: =X$31*INDEX(Emissions.Calc!$U$51:$AJ$91, MATCH(X$12,Emissions.Calc!$T$51:$T$91, 0), MATCH(X$33,Emissions.Calc!$U$50:$AJ$50, 1))/$C$34 -> 0.5319616131 | Y35: =Y$31*INDEX(Emissions.Calc!$U$51:$AJ$91, MATCH(Y$12,Emissions.Calc!$T$51:$T$91, 0), MATCH(Y$33,Emissions.Calc!$U$50:$AJ$50, 1))/$C$34 -> 0.5285572881 | Z35: =Z$31*INDEX(Emissions.Calc!$U$51:$AJ$91, MATCH(Z$12,Emissions.Calc!$T$51:$T$91, 0), MATCH(Z$33,Emissions.Calc!$U$50:$AJ$50, 1))/$C$34 -> 0.5251747493 | AA35: =AA$31*INDEX(Emissions.Calc!$U$51:$AJ$91, MATCH(AA$12,Emissions.Calc!$T$51:$T$91, 0), MATCH(AA$33,Emissions.Calc!$U$50:$AJ$50, 1))/$C$34 -> 0.5218138573 | AB35: =AB$31*INDEX(Emissions.Calc!$U$51:$AJ$91, MATCH(AB$12,Emissions.Calc!$T$51:$T$91, 0), MATCH(AB$33,Emissions.Calc!$U$50:$AJ$50, 1))/$C$34 -> 0.5184744736 | AC35: =AC$31*INDEX(Emissions.Calc!$U$51:$AJ$91, MATCH(AC$12,Emissions.Calc!$T$51:$T$91, 0), MATCH(AC$33,Emissions.Calc!$U$50:$AJ$50, 1))/$C$34 -> 0.5151564605 | AD35: =AD$31*INDEX(Emissions.Calc!$U$51:$AJ$91, MATCH(AD$12,Emissions.Calc!$T$51:$T$91, 0), MATCH(AD$33,Emissions.Calc!$U$50:$AJ$50, 1))/$C$34 -> 0.4850847539 | AE35: =AE$31*INDEX(Emissions.Calc!$U$51:$AJ$91, MATCH(AE$12,Emissions.Calc!$T$51:$T$91, 0), MATCH(AE$33,Emissions.Calc!$U$50:$AJ$50, 1))/$C$34 -> 0.4850847539 | AF35: =AF$31*INDEX(Emissions.Calc!$U$51:$AJ$91, MATCH(AF$12,Emissions.Calc!$T$51:$T$91, 0), MATCH(AF$33,Emissions.Calc!$U$50:$AJ$50, 1))/$C$34 -> 0.4850847539 | AG35: =AG$31*INDEX(Emissions.Calc!$U$51:$AJ$91, MATCH(AG$12,Emissions.Calc!$T$51:$T$91, 0), MATCH(AG$33,Emissions.Calc!$U$50:$AJ$50, 1))/$C$34 -> 0.4850847539 | AH35: =AH$31*INDEX(Emissions.Calc!$U$51:$AJ$91, MATCH(AH$12,Emissions.Calc!$T$51:$T$91, 0), MATCH(AH$33,Emissions.Calc!$U$50:$AJ$50, 1))/$C$34 -> 0.4850847539 | AI35: =AI$31*INDEX(Emissions.Calc!$U$51:$AJ$91, MATCH(AI$12,Emissions.Calc!$T$51:$T$91, 0), MATCH(AI$33,Emissions.Calc!$U$50:$AJ$50, 1))/$C$34 -> 0.4850847539 | AJ35: =AJ$31*INDEX(Emissions.Calc!$U$51:$AJ$91, MATCH(AJ$12,Emissions.Calc!$T$51:$T$91, 0), MATCH(AJ$33,Emissions.Calc!$U$50:$AJ$50, 1))/$C$34 -> 0.4850847539 | AK35: =AK$31*INDEX(Emissions.Calc!$U$51:$AJ$91, MATCH(AK$12,Emissions.Calc!$T$51:$T$91, 0), MATCH(AK$33,Emissions.Calc!$U$50:$AJ$50, 1))/$C$34 -> 0.4850847539 | AL35: =AL$31*INDEX(Emissions.Calc!$U$51:$AJ$91, MATCH(AL$12,Emissions.Calc!$T$51:$T$91, 0), MATCH(AL$33,Emissions.Calc!$U$50:$AJ$50, 1))/$C$34 -> 0.4850847539 | AM35: =AM$31*INDEX(Emissions.Calc!$U$51:$AJ$91, MATCH(AM$12,Emissions.Calc!$T$51:$T$91, 0), MATCH(AM$33,Emissions.Calc!$U$50:$AJ$50, 1))/$C$34 -> 0.4850847539 | AN35: =AN$31*INDEX(Emissions.Calc!$U$51:$AJ$91, MATCH(AN$12,Emissions.Calc!$T$51:$T$91, 0), MATCH(AN$33,Emissions.Calc!$U$50:$AJ$50, 1))/$C$34 -> 0.4850847539
A36: Fine Particulate Matter (PM) - Auto | B36: tonnes | D36: =D$31*INDEX(Emissions.Calc!$U$95:$AJ$135, MATCH(D$12,Emissions.Calc!$T$95:$T$135, 0), MATCH(D$33,Emissions.Calc!$U$94:$AJ$94, 1))/$C$34 -> 0.0821878605 | E36: =E$31*INDEX(Emissions.Calc!$U$95:$AJ$135, MATCH(E$12,Emissions.Calc!$T$95:$T$135, 0), MATCH(E$33,Emissions.Calc!$U$94:$AJ$94, 1))/$C$34 -> 0.07564404707 | F36: =F$31*INDEX(Emissions.Calc!$U$95:$AJ$135, MATCH(F$12,Emissions.Calc!$T$95:$T$135, 0), MATCH(F$33,Emissions.Calc!$U$94:$AJ$94, 1))/$C$34 -> 0.06962125334 | G36: =G$31*INDEX(Emissions.Calc!$U$95:$AJ$135, MATCH(G$12,Emissions.Calc!$T$95:$T$135, 0), MATCH(G$33,Emissions.Calc!$U$94:$AJ$94, 1))/$C$34 -> 0.06407799561 | H36: =H$31*INDEX(Emissions.Calc!$U$95:$AJ$135, MATCH(H$12,Emissions.Calc!$T$95:$T$135, 0), MATCH(H$33,Emissions.Calc!$U$94:$AJ$94, 1))/$C$34 -> 0.05897609314 | I36: =I$31*INDEX(Emissions.Calc!$U$95:$AJ$135, MATCH(I$12,Emissions.Calc!$T$95:$T$135, 0), MATCH(I$33,Emissions.Calc!$U$94:$AJ$94, 1))/$C$34 -> 0.05428040514 | J36: =J$31*INDEX(Emissions.Calc!$U$95:$AJ$135, MATCH(J$12,Emissions.Calc!$T$95:$T$135, 0), MATCH(J$33,Emissions.Calc!$U$94:$AJ$94, 1))/$C$34 -> 0.04995858873 | K36: =K$31*INDEX(Emissions.Calc!$U$95:$AJ$135, MATCH(K$12,Emissions.Calc!$T$95:$T$135, 0), MATCH(K$33,Emissions.Calc!$U$94:$AJ$94, 1))/$C$34 -> 0.04843820176 | L36: =L$31*INDEX(Emissions.Calc!$U$95:$AJ$135, MATCH(L$12,Emissions.Calc!$T$95:$T$135, 0), MATCH(L$33,Emissions.Calc!$U$94:$AJ$94, 1))/$C$34 -> 0.04931163867 | M36: =M$31*INDEX(Emissions.Calc!$U$95:$AJ$135, MATCH(M$12,Emissions.Calc!$T$95:$T$135, 0), MATCH(M$33,Emissions.Calc!$U$94:$AJ$94, 1))/$C$34 -> 0.04870766892 | N36: =N$31*INDEX(Emissions.Calc!$U$95:$AJ$135, MATCH(N$12,Emissions.Calc!$T$95:$T$135, 0), MATCH(N$33,Emissions.Calc!$U$94:$AJ$94, 1))/$C$34 -> 0.04811109661 | O36: =O$31*INDEX(Emissions.Calc!$U$95:$AJ$135, MATCH(O$12,Emissions.Calc!$T$95:$T$135, 0), MATCH(O$33,Emissions.Calc!$U$94:$AJ$94, 1))/$C$34 -> 0.04752183112 | P36: =P$31*INDEX(Emissions.Calc!$U$95:$AJ$135, MATCH(P$12,Emissions.Calc!$T$95:$T$135, 0), MATCH(P$33,Emissions.Calc!$U$94:$AJ$94, 1))/$C$34 -> 0.04693978297 | Q36: =Q$31*INDEX(Emissions.Calc!$U$95:$AJ$135, MATCH(Q$12,Emissions.Calc!$T$95:$T$135, 0), MATCH(Q$33,Emissions.Calc!$U$94:$AJ$94, 1))/$C$34 -> 0.04636486375 | R36: =R$31*INDEX(Emissions.Calc!$U$95:$AJ$135, MATCH(R$12,Emissions.Calc!$T$95:$T$135, 0), MATCH(R$33,Emissions.Calc!$U$94:$AJ$94, 1))/$C$34 -> 0.04579698615 | S36: =S$31*INDEX(Emissions.Calc!$U$95:$AJ$135, MATCH(S$12,Emissions.Calc!$T$95:$T$135, 0), MATCH(S$33,Emissions.Calc!$U$94:$AJ$94, 1))/$C$34 -> 0.04523606392 | T36: =T$31*INDEX(Emissions.Calc!$U$95:$AJ$135, MATCH(T$12,Emissions.Calc!$T$95:$T$135, 0), MATCH(T$33,Emissions.Calc!$U$94:$AJ$94, 1))/$C$34 -> 0.03768692395 | U36: =U$31*INDEX(Emissions.Calc!$U$95:$AJ$135, MATCH(U$12,Emissions.Calc!$T$95:$T$135, 0), MATCH(U$33,Emissions.Calc!$U$94:$AJ$94, 1))/$C$34 -> 0.03785492467 | V36: =V$31*INDEX(Emissions.Calc!$U$95:$AJ$135, MATCH(V$12,Emissions.Calc!$T$95:$T$135, 0), MATCH(V$33,Emissions.Calc!$U$94:$AJ$94, 1))/$C$34 -> 0.03802367431 | W36: =W$31*INDEX(Emissions.Calc!$U$95:$AJ$135, MATCH(W$12,Emissions.Calc!$T$95:$T$135, 0), MATCH(W$33,Emissions.Calc!$U$94:$AJ$94, 1))/$C$34 -> 0.03819317619 | X36: =X$31*INDEX(Emissions.Calc!$U$95:$AJ$135, MATCH(X$12,Emissions.Calc!$T$95:$T$135, 0), MATCH(X$33,Emissions.Calc!$U$94:$AJ$94, 1))/$C$34 -> 0.03836343369 | Y36: =Y$31*INDEX(Emissions.Calc!$U$95:$AJ$135, MATCH(Y$12,Emissions.Calc!$T$95:$T$135, 0), MATCH(Y$33,Emissions.Calc!$U$94:$AJ$94, 1))/$C$34 -> 0.03853445015 | Z36: =Z$31*INDEX(Emissions.Calc!$U$95:$AJ$135, MATCH(Z$12,Emissions.Calc!$T$95:$T$135, 0), MATCH(Z$33,Emissions.Calc!$U$94:$AJ$94, 1))/$C$34 -> 0.03870622897 | AA36: =AA$31*INDEX(Emissions.Calc!$U$95:$AJ$135, MATCH(AA$12,Emissions.Calc!$T$95:$T$135, 0), MATCH(AA$33,Emissions.Calc!$U$94:$AJ$94, 1))/$C$34 -> 0.03887877355 | AB36: =AB$31*INDEX(Emissions.Calc!$U$95:$AJ$135, MATCH(AB$12,Emissions.Calc!$T$95:$T$135, 0), MATCH(AB$33,Emissions.Calc!$U$94:$AJ$94, 1))/$C$34 -> 0.0390520873 | AC36: =AC$31*INDEX(Emissions.Calc!$U$95:$AJ$135, MATCH(AC$12,Emissions.Calc!$T$95:$T$135, 0), MATCH(AC$33,Emissions.Calc!$U$94:$AJ$94, 1))/$C$34 -> 0.03922617364 | AD36: =AD$31*INDEX(Emissions.Calc!$U$95:$AJ$135, MATCH(AD$12,Emissions.Calc!$T$95:$T$135, 0), MATCH(AD$33,Emissions.Calc!$U$94:$AJ$94, 1))/$C$34 -> 0.04078134191 | AE36: =AE$31*INDEX(Emissions.Calc!$U$95:$AJ$135, MATCH(AE$12,Emissions.Calc!$T$95:$T$135, 0), MATCH(AE$33,Emissions.Calc!$U$94:$AJ$94, 1))/$C$34 -> 0.04078134191 | AF36: =AF$31*INDEX(Emissions.Calc!$U$95:$AJ$135, MATCH(AF$12,Emissions.Calc!$T$95:$T$135, 0), MATCH(AF$33,Emissions.Calc!$U$94:$AJ$94, 1))/$C$34 -> 0.04078134191 | AG36: =AG$31*INDEX(Emissions.Calc!$U$95:$AJ$135, MATCH(AG$12,Emissions.Calc!$T$95:$T$135, 0), MATCH(AG$33,Emissions.Calc!$U$94:$AJ$94, 1))/$C$34 -> 0.04078134191 | AH36: =AH$31*INDEX(Emissions.Calc!$U$95:$AJ$135, MATCH(AH$12,Emissions.Calc!$T$95:$T$135, 0), MATCH(AH$33,Emissions.Calc!$U$94:$AJ$94, 1))/$C$34 -> 0.04078134191 | AI36: =AI$31*INDEX(Emissions.Calc!$U$95:$AJ$135, MATCH(AI$12,Emissions.Calc!$T$95:$T$135, 0), MATCH(AI$33,Emissions.Calc!$U$94:$AJ$94, 1))/$C$34 -> 0.04078134191 | AJ36: =AJ$31*INDEX(Emissions.Calc!$U$95:$AJ$135, MATCH(AJ$12,Emissions.Calc!$T$95:$T$135, 0), MATCH(AJ$33,Emissions.Calc!$U$94:$AJ$94, 1))/$C$34 -> 0.04078134191 | AK36: =AK$31*INDEX(Emissions.Calc!$U$95:$AJ$135, MATCH(AK$12,Emissions.Calc!$T$95:$T$135, 0), MATCH(AK$33,Emissions.Calc!$U$94:$AJ$94, 1))/$C$34 -> 0.04078134191 | AL36: =AL$31*INDEX(Emissions.Calc!$U$95:$AJ$135, MATCH(AL$12,Emissions.Calc!$T$95:$T$135, 0), MATCH(AL$33,Emissions.Calc!$U$94:$AJ$94, 1))/$C$34 -> 0.04078134191 | AM36: =AM$31*INDEX(Emissions.Calc!$U$95:$AJ$135, MATCH(AM$12,Emissions.Calc!$T$95:$T$135, 0), MATCH(AM$33,Emissions.Calc!$U$94:$AJ$94, 1))/$C$34 -> 0.04078134191 | AN36: =AN$31*INDEX(Emissions.Calc!$U$95:$AJ$135, MATCH(AN$12,Emissions.Calc!$T$95:$T$135, 0), MATCH(AN$33,Emissions.Calc!$U$94:$AJ$94, 1))/$C$34 -> 0.04078134191
A37: Sulfur Dioxide (SO2) - Auto | B37: tonnes | D37: =D$31*INDEX(Emissions.Calc!$U$139:$AJ$179, MATCH(D$12,Emissions.Calc!$T$139:$T$179, 0), MATCH(D$33,Emissions.Calc!$U$138:$AJ$138, 1))/$C$34 -> 0.06151170709 | E37: =E$31*INDEX(Emissions.Calc!$U$139:$AJ$179, MATCH(E$12,Emissions.Calc!$T$139:$T$179, 0), MATCH(E$33,Emissions.Calc!$U$138:$AJ$138, 1))/$C$34 -> 0.05351251628 | F37: =F$31*INDEX(Emissions.Calc!$U$139:$AJ$179, MATCH(F$12,Emissions.Calc!$T$139:$T$179, 0), MATCH(F$33,Emissions.Calc!$U$138:$AJ$138, 1))/$C$34 -> 0.04655356735 | G37: =G$31*INDEX(Emissions.Calc!$U$139:$AJ$179, MATCH(G$12,Emissions.Calc!$T$139:$T$179, 0), MATCH(G$33,Emissions.Calc!$U$138:$AJ$138, 1))/$C$34 -> 0.04049958372 | H37: =H$31*INDEX(Emissions.Calc!$U$139:$AJ$179, MATCH(H$12,Emissions.Calc!$T$139:$T$179, 0), MATCH(H$33,Emissions.Calc!$U$138:$AJ$138, 1))/$C$34 -> 0.03523288063 | I37: =I$31*INDEX(Emissions.Calc!$U$139:$AJ$179, MATCH(I$12,Emissions.Calc!$T$139:$T$179, 0), MATCH(I$33,Emissions.Calc!$U$138:$AJ$138, 1))/$C$34 -> 0.03065107745 | J37: =J$31*INDEX(Emissions.Calc!$U$139:$AJ$179, MATCH(J$12,Emissions.Calc!$T$139:$T$179, 0), MATCH(J$33,Emissions.Calc!$U$138:$AJ$138, 1))/$C$34 -> 0.02666510749 | K37: =K$31*INDEX(Emissions.Calc!$U$139:$AJ$179, MATCH(K$12,Emissions.Calc!$T$139:$T$179, 0), MATCH(K$33,Emissions.Calc!$U$138:$AJ$138, 1))/$C$34 -> 0.02634958514 | L37: =L$31*INDEX(Emissions.Calc!$U$139:$AJ$179, MATCH(L$12,Emissions.Calc!$T$139:$T$179, 0), MATCH(L$33,Emissions.Calc!$U$138:$AJ$138, 1))/$C$34 -> 0.0263851994 | M37: =M$31*INDEX(Emissions.Calc!$U$139:$AJ$179, MATCH(M$12,Emissions.Calc!$T$139:$T$179, 0), MATCH(M$33,Emissions.Calc!$U$138:$AJ$138, 1))/$C$34 -> 0.02607296663 | N37: =N$31*INDEX(Emissions.Calc!$U$139:$AJ$179, MATCH(N$12,Emissions.Calc!$T$139:$T$179, 0), MATCH(N$33,Emissions.Calc!$U$138:$AJ$138, 1))/$C$34 -> 0.02576442871 | O37: =O$31*INDEX(Emissions.Calc!$U$139:$AJ$179, MATCH(O$12,Emissions.Calc!$T$139:$T$179, 0), MATCH(O$33,Emissions.Calc!$U$138:$AJ$138, 1))/$C$34 -> 0.02545954192 | P37: =P$31*INDEX(Emissions.Calc!$U$139:$AJ$179, MATCH(P$12,Emissions.Calc!$T$139:$T$179, 0), MATCH(P$33,Emissions.Calc!$U$138:$AJ$138, 1))/$C$34 -> 0.02515826305 | Q37: =Q$31*INDEX(Emissions.Calc!$U$139:$AJ$179, MATCH(Q$12,Emissions.Calc!$T$139:$T$179, 0), MATCH(Q$33,Emissions.Calc!$U$138:$AJ$138, 1))/$C$34 -> 0.0248605494 | R37: =R$31*INDEX(Emissions.Calc!$U$139:$AJ$179, MATCH(R$12,Emissions.Calc!$T$139:$T$179, 0), MATCH(R$33,Emissions.Calc!$U$138:$AJ$138, 1))/$C$34 -> 0.02456635878 | S37: =S$31*INDEX(Emissions.Calc!$U$139:$AJ$179, MATCH(S$12,Emissions.Calc!$T$139:$T$179, 0), MATCH(S$33,Emissions.Calc!$U$138:$AJ$138, 1))/$C$34 -> 0.02427564951 | T37: =T$31*INDEX(Emissions.Calc!$U$139:$AJ$179, MATCH(T$12,Emissions.Calc!$T$139:$T$179, 0), MATCH(T$33,Emissions.Calc!$U$138:$AJ$138, 1))/$C$34 -> 0.02398838039 | U37: =U$31*INDEX(Emissions.Calc!$U$139:$AJ$179, MATCH(U$12,Emissions.Calc!$T$139:$T$179, 0), MATCH(U$33,Emissions.Calc!$U$138:$AJ$138, 1))/$C$34 -> 0.02422124691 | V37: =V$31*INDEX(Emissions.Calc!$U$139:$AJ$179, MATCH(V$12,Emissions.Calc!$T$139:$T$179, 0), MATCH(V$33,Emissions.Calc!$U$138:$AJ$138, 1))/$C$34 -> 0.02445637398 | W37: =W$31*INDEX(Emissions.Calc!$U$139:$AJ$179, MATCH(W$12,Emissions.Calc!$T$139:$T$179, 0), MATCH(W$33,Emissions.Calc!$U$138:$AJ$138, 1))/$C$34 -> 0.02469378354 | X37: =X$31*INDEX(Emissions.Calc!$U$139:$AJ$179, MATCH(X$12,Emissions.Calc!$T$139:$T$179, 0), MATCH(X$33,Emissions.Calc!$U$138:$AJ$138, 1))/$C$34 -> 0.02493349775 | Y37: =Y$31*INDEX(Emissions.Calc!$U$139:$AJ$179, MATCH(Y$12,Emissions.Calc!$T$139:$T$179, 0), MATCH(Y$33,Emissions.Calc!$U$138:$AJ$138, 1))/$C$34 -> 0.02517553898 | Z37: =Z$31*INDEX(Emissions.Calc!$U$139:$AJ$179, MATCH(Z$12,Emissions.Calc!$T$139:$T$179, 0), MATCH(Z$33,Emissions.Calc!$U$138:$AJ$138, 1))/$C$34 -> 0.02541992981 | AA37: =AA$31*INDEX(Emissions.Calc!$U$139:$AJ$179, MATCH(AA$12,Emissions.Calc!$T$139:$T$179, 0), MATCH(AA$33,Emissions.Calc!$U$138:$AJ$138, 1))/$C$34 -> 0.02566669307 | AB37: =AB$31*INDEX(Emissions.Calc!$U$139:$AJ$179, MATCH(AB$12,Emissions.Calc!$T$139:$T$179, 0), MATCH(AB$33,Emissions.Calc!$U$138:$AJ$138, 1))/$C$34 -> 0.02591585176 | AC37: =AC$31*INDEX(Emissions.Calc!$U$139:$AJ$179, MATCH(AC$12,Emissions.Calc!$T$139:$T$179, 0), MATCH(AC$33,Emissions.Calc!$U$138:$AJ$138, 1))/$C$34 -> 0.02616742917 | AD37: =AD$31*INDEX(Emissions.Calc!$U$139:$AJ$179, MATCH(AD$12,Emissions.Calc!$T$139:$T$179, 0), MATCH(AD$33,Emissions.Calc!$U$138:$AJ$138, 1))/$C$34 -> 0.02695178567 | AE37: =AE$31*INDEX(Emissions.Calc!$U$139:$AJ$179, MATCH(AE$12,Emissions.Calc!$T$139:$T$179, 0), MATCH(AE$33,Emissions.Calc!$U$138:$AJ$138, 1))/$C$34 -> 0.02695178567 | AF37: =AF$31*INDEX(Emissions.Calc!$U$139:$AJ$179, MATCH(AF$12,Emissions.Calc!$T$139:$T$179, 0), MATCH(AF$33,Emissions.Calc!$U$138:$AJ$138, 1))/$C$34 -> 0.02695178567 | AG37: =AG$31*INDEX(Emissions.Calc!$U$139:$AJ$179, MATCH(AG$12,Emissions.Calc!$T$139:$T$179, 0), MATCH(AG$33,Emissions.Calc!$U$138:$AJ$138, 1))/$C$34 -> 0.02695178567 | AH37: =AH$31*INDEX(Emissions.Calc!$U$139:$AJ$179, MATCH(AH$12,Emissions.Calc!$T$139:$T$179, 0), MATCH(AH$33,Emissions.Calc!$U$138:$AJ$138, 1))/$C$34 -> 0.02695178567 | AI37: =AI$31*INDEX(Emissions.Calc!$U$139:$AJ$179, MATCH(AI$12,Emissions.Calc!$T$139:$T$179, 0), MATCH(AI$33,Emissions.Calc!$U$138:$AJ$138, 1))/$C$34 -> 0.02695178567 | AJ37: =AJ$31*INDEX(Emissions.Calc!$U$139:$AJ$179, MATCH(AJ$12,Emissions.Calc!$T$139:$T$179, 0), MATCH(AJ$33,Emissions.Calc!$U$138:$AJ$138, 1))/$C$34 -> 0.02695178567 | AK37: =AK$31*INDEX(Emissions.Calc!$U$139:$AJ$179, MATCH(AK$12,Emissions.Calc!$T$139:$T$179, 0), MATCH(AK$33,Emissions.Calc!$U$138:$AJ$138, 1))/$C$34 -> 0.02695178567 | AL37: =AL$31*INDEX(Emissions.Calc!$U$139:$AJ$179, MATCH(AL$12,Emissions.Calc!$T$139:$T$179, 0), MATCH(AL$33,Emissions.Calc!$U$138:$AJ$138, 1))/$C$34 -> 0.02695178567 | AM37: =AM$31*INDEX(Emissions.Calc!$U$139:$AJ$179, MATCH(AM$12,Emissions.Calc!$T$139:$T$179, 0), MATCH(AM$33,Emissions.Calc!$U$138:$AJ$138, 1))/$C$34 -> 0.02695178567 | AN37: =AN$31*INDEX(Emissions.Calc!$U$139:$AJ$179, MATCH(AN$12,Emissions.Calc!$T$139:$T$179, 0), MATCH(AN$33,Emissions.Calc!$U$138:$AJ$138, 1))/$C$34 -> 0.02695178567
